Workbook

Sheet Base (hidden)
A1: CENTRO ESPECIALIZADO EN TRATAMIENTO A PERSONAS CON CONSUMO PROBLEMÁTICO DE ALCOHOL Y OTRAS DROGAS
A2: TIPO | B2: SERVICIO | D2: GRUPO 03 | E2: AMBIENTE | F2: TIPO INFRAESTRUCTURA | G2: Cantidad | H2: ANEXO | I2: Observaciones | J2: M² | K2: TIPO | L2: EQUIPAMIENTO | M2: Cantidad * Esp | N2: TIPO EQUIP | O2: ANEXO | P2: TIPO | Q2: Observaciones
A3: ADMINISTRATIVO | B3: ADMISIÓN Y ESTADÍSTICA | C3: Área Técnica | D3: AMBIENTES | E3: Admisión, Información y Recepción | F3: AMBIENTE | G3: 1 | I3: Calcular según el número de puestos de atención (2,7 m2) y el número de personas a atender | J3: - | K3: Requerido | L3: Mostrador / escritorio/Mesa de despacho | M3: 1 | N3: MG | O3: EQ_01
L4: Silla | M4: 1 | N4: MG
L5: Basurero | M5: 1 | N5: MG | Q5: Recipiente para desechos comunes
L6: Tablero de Avisos | M6: 1 | N6: MG | Q6: Puede ser remplazado cuando hay acceso directo al sistema audiovisual de la sala de espera
L7: Armario/Archivador | M7: 1 | N7: MG | Q7: Puede estar incorporado en el Mostrador/escritorio o Mesa de despacho lo que se requiere es que tengan donde almacenar documentos temporalmente
L8: Teléfono | M8: 1 | N8: EG
L9: Computador completo (Portátil o de Escritorio) | M9: 1 | N9: EG | O9: EQ_02
E10: Archivo | F10: AMBIENTE | G10: 1 | I10: Para construcciones nuevas calcular según la demanda (cantidad y tipo de elementos a archivar) | J10: - | K10: Requerido | L10: Estantería | M10: 1 | N10: MG
L11: Armario/Archivador | M11: 1 | N11: MG
L12: Escalera pata de gallo / Gradilla | M12: 1 | N12: MG | P12: Condición | Q12: Si es que tiene estanterías altas que no sean accesibles al operador/funcionario/usuario
L13: Escritorio/ Mesa de despacho | M13: 1 | N13: MG | O13: EQ_01 | P13: Condición | Q13: Se activará cuando el servicio posea otra zona administrativa responsable del manejo exclusivo del archivo
L14: Computador completo (Portátil o de Escritorio) | M14: 1 | N14: EG | O14: EQ_02 | P14: Condición
L15: Silla | M15: 1 | N15: MG | P15: Condición
L16: Basurero | M16: 1 | N16: MG | Q16: Recipiente para desechos comunes
L17: Extintor de incendios portátil | M17: 1 | N17: EG | Q17: Se verificará según la normativa y que este accesible para este ambiente aunque este compartido con otro
D18: INSTALACIONES | E18: Estructura General | F18: INSTALACION | G18: 1 | H18: EG-01 | J18: - | K18: Requerido
E19: Instalaciones Generales | F19: INSTALACION | G19: 1 | H19: IG-01 | J19: - | K19: Requerido
A20: ASISTENCIAL | B20: CONSULTA EXTERNA | C20: Área de Atención de Consulta | D20: AMBIENTES | E20: Sala de espera | F20: AMBIENTE | G20: 1 | I20: Espera de usuarios/as y familiares. Junto a la admisión. | J20: Para construcciones nuevas es deseable 1 m2 por cama de la unidad | K20: Requerido | L20: Banca/Sillas | M20: 1 | N20: MG | Q20: Mínimo contar con 3 puestos para la sala de espera (bancas en tándem o sillas o sillones)
L21: Basurero | M21: 1 | N21: MG | Q21: Recipiente para desechos comunes
L22: Reloj de pared | M22: 1 | N22: EG | P22: Deseable
L23: Extintor de incendios portátil | M23: 1 | N23: EG | Q23: El mismo que cubrirá toda el servicio de consulta externa/Se verificará según normativa
L24: Sistema Audiovisual de información | M24: 1 | N24: MG | O24: EQ_03
E25: Baños/Baterías Sanitarias para personas con discapacidad-puede ser un ambiente exclusivo o puede estar incorporado al ambiente general de baños/baterías sanitarias | F25: AMBIENTE | G25: 1 | J25: Para construcciones nuevas es obligatorio y las existentes deberán adecuar este ambiente funcional para el próximo licenciamiento. Las construcciones nuevas deben cumplir con la normativa específica para personas con discapacidad | K25: Deseable | L25: Inodoro | M25: 1 | N25: MG | P25: Deseable
L26: Barras de apoyo | M26: 1 | N26: MG | P26: Deseable
L27: Dispensador de papel higiénico | M27: 1 | N27: MG | P27: Deseable
L28: Lavabo | M28: 1 | N28: MG | P28: Deseable
L29: Dispensador de jabón | M29: 1 | N29: MG | P29: Deseable
L30: Dispensador de papel toalla | M30: 1 | N30: MG | P30: Deseable | Q30: Se justificará si tiene secador de manos
L31: Basurero | M31: 2 | N31: MG | P31: Deseable | Q31: Recipientes para desechos peligrosos y comunes. Se justificá el recipiente de desechos comunes si dispone de secador de manos
L32: Espejo empotrado | M32: 1 | N32: MG | P32: Deseable | Q32: Fijo a la pared para evitar roturas que puedan generar riesgo de accidentes
L33: Gancho doble | M33: 1 | N33: MG | P33: Deseable
E34: Baños/Baterías Sanitarias por puestos | F34: AMBIENTE | G34: 1 | J34: Para construcciones nuevas y existentes diferenciado para hombres y mujeres | K34: Requerido | L34: Inodoro | M34: 1 | N34: MG
L35: Gancho doble | M35: 1 | N35: MG
L36: Basurero | M36: 1 | N36: MG | Q36: Recipiente para desechos peligrosos
E37: Baños/Baterías Sanitarias(compartido) | F37: AMBIENTE | G37: 1 | K37: Requerido | L37: Lavabo | M37: 1 | N37: MG
L38: Dispensador de jabón | M38: 1 | N38: MG
L39: Dispensador de papel toalla | M39: 1 | N39: MG | Q39: Se justificará si tiene secador de manos
L40: Dispensador de papel higiénico | M40: 1 | N40: MG
L41: Espejo empotrado | M41: 1 | N41: MG | P41: Deseable | Q41: Fijo a la pared para evitar roturas que puedan generar riesgo de accidentes
L42: Basurero | M42: 1 | N42: MG | Q42: Recipiente para desechos comunes. Se justificará el recipiente si dispone de secador de manos
E43: Consultorio polivalente (Psiquiatría/Medicina Interna/Familiar y Comunitaria/General) | F43: AMBIENTE | G43: 1 | I43: Para exploración y atención de usuarios/as. Será requerida una de las sigiuentes prestaciones: Medicina general o especialista en: Psiquiatría o Medicina Interna o Familiar y Comunitaria, además con conocimientos en drogodependencia. | J43: Para construcciones nuevas deseable 16 m2 | K43: Requerido | L43: Escritorio/ Mesa de despacho | M43: 1 | N43: MG | O43: EQ_01
L44: Computador completo (Portátil o de Escritorio) | M44: 1 | N44: EG | O44: EQ_02 | P44: Deseable
L45: Silla | M45: 1 | N45: MG
L46: Silla confidente | M46: 2 | N46: MG
L47: Armario/Vitrina | M47: 1 | N47: MG | Q47: Puede estar incorporado en el Mostrador/escritorio o Mesa de despacho lo que se requiere es que tengan donde almacenar documentos temporalmente
L48: Perchero de pie /Gancho doble | M48: 1 | N48: MG | P48: Deseable
L49: Camilla de exploración | M49: 1 | N49: MM
L50: Escabel | M50: 1 | N50: MG | P50: Condición | Q50: Será requerido en el caso de que la camila de exploración no sea de altura regulable
L51: Lámpara examen rodable | M51: 1 | N51: EM
L52: Tensiómetro para Adultos | M52: 1 | N52: EM
L53: Estetoscopio para Adultos | M53: 1 | N53: EM
L54: Tensiómetro pediátrico | M54: 1 | N54: EM | P54: Condición | Q54: Será requerido en el caso de ofertar prestación pediátrica/Se justifica cuando el tensiómetro para adultos cuenta con brazaletes para tallas pediátricas
L55: Estetoscopio pediátrico | M55: 1 | N55: EM | P55: Condición | Q55: Será requerido en el caso de ofertar prestación pediátrica
L56: Báscula + Tallímetro | M56: 1 | N56: EM | P56: Condición | Q56: Será requerido si no cuenta con Enfermería
L57: Set de Diagnóstico | M57: 1 | N57: EM | O57: EQ_10
L58: Coche de curaciones | M58: 1 | N58: MM | O58: EQ_08 | P58: Condición
L59: Dispensador para solución hidroalcohólica | M59: 1 | N59: EG
L60: Lavabo | M60: 1 | N60: MG | Q60: En el caso de que no este en el ambiente, se justificará la disponibilidad funcional(accesibilidad directa para cumplir con la bioseguridad activa-lavado de manos-)
L61: Dispensador de jabón | M61: 1 | N61: MG
L62: Dispensador de papel toalla | M62: 1 | N62: MG
L63: Set de recipientes para el manejo de desechos peligrosos y no peligrosos. | M63: 1 | N63: MG | O63: EQ_07
E64: Consultorio de psicología | F64: AMBIENTE | G64: 1 | I64: Terapia para el paciente en seguimiento, familia. | J64: Para construcciones nuevas, mínimo deseable 12 m2 | K64: Requerido | L64: Escritorio/Mesa de despacho | M64: 1 | N64: MG | O64: EQ_01
L65: Computador completo (Portátil o de Escritorio) | M65: 1 | N65: EG | O65: EQ_02
L66: Armario/vitrina/Archivador | M66: 1 | N66: MG
L67: Dispensador para solución hidroalcohólica | M67: 1 | N67: MG
L68: Basurero | M68: 1 | N68: MG | Q68: Recipiente para desechos comunes
L69: Perchero de pie/Gancho doble | M69: 1 | N69: MG | P69: Deseable
L70: Espejo empotrado | M70: 1 | N70: MG | P70: condición
L71: Silla confidente | M71: 2 | N71: MG | Q71: Puede contar con sofás o sillones, como mínimos 2 puestos
L72: Silla | M72: 1 | N72: MG
E73: Enfermería | F73: AMBIENTE | G73: 1 | I73: Realización de mediciones clínicas o somatométricas previas al ingreso en los consultorios polivalentes y para proceder en el caso de curaciones. | J73: Para construcciones nuevas deseable 12 m2 | K73: Requerido | L73: Escritorio/Mesa de despacho | M73: 1 | N73: MG | O73: EQ_01
L74: Computador completo (Portátil o de Escritorio) | M74: 1 | N74: EG | O74: EQ_02
L75: Armario /vitrina | M75: 1 | N75: MG
L76: Báscula + tallímetro | M76: 1 | N76: EM
L77: Mesa Auxiliar | M77: 1 | N77: EM | Q77: Donde se ubican porta termómetros y termómetros
L78: Dispensador de papel toalla | M78: 1 | N78: EG
L79: Dispensador de jabón | M79: 1 | N79: EG
L80: Lavabo | M80: 1 | N80: MG
L81: Tensiómetro para adultos | M81: 1 | N81: EM
L82: Estetoscopio para adultos | M82: 1 | N82: EM
L83: Tensiómetro pediátrico | M83: 1 | N83: EM | P83: Condición | Q83: Será requerido en el caso de ofertar prestación pediátrica/Se justifica cuando el tensiómetro para adultos cuenta con brazaletes para tallas pediátricas
L84: Estetoscopio pediátrico | M84: 1 | N84: EM | P84: Condición | Q84: Será requerido en el caso de ofertar prestación pediátrica
L85: Termómetro | M85: 1 | N85: EM | Q85: Deseable que sea digital
L86: Set de recipientes para el manejo de desechos peligrosos y no peligrosos. | M86: 1 | N86: MG | O86: EQ_07
L87: Perchero de pie/Gancho doble | M87: 1 | N87: MG | P87: Deseable
L88: Silla confidente | M88: 2 | N88: MG
L89: Silla | M89: 1 | N89: MG
D90: INSTALACIONES | E90: Estructura General | F90: INSTALACION | G90: 1 | H90: EG-01 | J90: - | K90: Requerido | M90: 1
E91: Instalaciones Generales | F91: INSTALACION | G91: 1 | H91: IG-01 | J91: - | K91: Requerido | M91: 1
A92: ASISTENCIAL | B92: INTERNACIÓN/RESIDENCIA El establecimiento contará con infraestructura, y equipamiento adecuado diferenciado para el tratamiento de adultos, adultas, niños y adolescentes hombres, niñas y adolescentes mujeres. Las instalaciones pueden estar ubicadas en un mismo inmueble, sin embargo cada grupo etario (adultos, adultas), (niños y adolescentes hombres), (niñas y adolescentes mujeres) debe tener independencia y privacidad entre ellos, así como medidas de seguridad estrictas que garanticen la integridad de los pacientes con consumo problemático de alcohol y otras drogas | C92: Área de Internación/Residencia | D92: AMBIENTES | E92: Habitación individual/múltiple | F92: AMBIENTE | G92: 1 | I92: Para el licenciamiento máximo hasta 5 camas con un baño completo (lavamanos, inodoro y ducha). Se puede concentrar los baños en una batería sanitaria calculando la cantidad de piezas sanitarias según lo indicado. | J92: Por cada cama mínimo 5 m2, incluye mesita/velador de 60 cm de ancho por 40 cm de profundidad | K92: Requerido | L92: Cama Básica y colchón | M92: 1 | N92: MG | O92: EQ_04
L93: Basurero | M93: 1 | N93: MG | Q93: Puede estar centralizado. Recipiente para desechos comunes
L94: Velador | M94: 1 | N94: MG
L95: Armario | M95: 1 | N95: MG | Q95: Puede compartir
E96: Baño de la habitación por puestos | F96: AMBIENTE | G96: 1 | I96: Número de piezas sanitarias mínimo: Un inodoro, 1 lavamanos y 1 ducha. | J96: Se debe calcular según cantidad de usuarios. Mínimo 3m2. | K96: Requerido | L96: Inodoro | M96: 1 | N96: MG
L97: Barras de apoyo | M97: 1 | N97: MG | P97: Deseable | Q97: Lo importante es que se debe adaptar un baño para personas con Discapacidad
L98: Dispensador de papel higiénico | M98: 1 | N98: EG
L99: Basurero | M99: 1 | N99: MG | Q99: Recipiente para desechos infecciosos
L100: Gancho doble | M100: 1 | N100: MG
E101: Baño de la habitación (compartido) | F101: AMBIENTE | G101: 1 | K101: Requerido | L101: Lavabo | M101: 1 | N101: MG
L102: Dispensador de papel toalla | M102: 1 | N102: EG
L103: Dispensador de jabón | M103: 1 | N103: EG
L104: Espejo empotrado | M104: 1 | N104: MG | P104: Deseable | Q104: Fijo a la pared para evitar roturas que puedan generar riesgo de accidentes
L105: Basurero | M105: 1 | N105: MG | Q105: Recipiente para desechos infecciosos
L106: Ducha | M106: 1 | N106: MG
E107: Estar de personal- Será requerido en caso de no contar con Habitación de personal | F107: AMBIENTE | G107: 1 | J107: Dimensionar según demanda funcional | K107: Condición | L107: Mesa | M107: 1 | N107: MG
L108: Silla | M108: 4 | N108: MG | Q108: Puede ser sillón de descanso
L109: Refrigerador | M109: 1 | N109: EG | P109: condición
L110: Microondas | M110: 1 | N110: EG | P110: condición
L111: Mesón con lavabo | M111: 1 | N111: MG | Q111: Puede estar en otro ambiente pero se tiene que asegurar la bioseguridad pasiva
L112: Dispensador de jabón | M112: 1 | N112: MG
L113: Dispensador de papel toalla | M113: 1 | N113: MG
L114: Basurero | M114: 1 | N114: MG | Q114: Recipiente para desechos comunes
E115: Habitación del personal - Será requerido en caso de no contar con Estar de personal | F115: AMBIENTE | G115: 1 | I115: Estancia del personal por 24 horas, para rotación del personal (ubicación focalizada a los dormitorios de los pacientes). Baño con ducha, 1 habitación es para el monitor vivencial y está en cada comunidad; y un residente de psiquiatría por toda la comunidad | J115: Dimensionar según demanda funcional. Mínimo 9 m2 | K115: Condición | L115: Cama Básica y colchón | M115: 1 | N115: MG | O115: EQ_04
L116: Basurero | M116: 1 | N116: MG | Q116: Recipiente para desechos comunes
L117: velador | M117: 1 | N117: MG
L118: Armario | M118: 1 | N118: MG
E119: Baños para personal | F119: AMBIENTE | G119: 1 | I119: Número de piezas sanitarias mínimo: Un inodoro y 1 lavamanos. | J119: Mínimo 1,7 m2. Se debe calcular según cantidad de usuarios | K119: Requerido | L119: Inodoro | M119: 1 | N119: MG
L120: Dispensador de papel higiénico | M120: 1 | N120: MG
L121: Lavabo | M121: 1 | N121: MG
L122: Dispensador de jabón | M122: 1 | N122: MG
L123: Dispensador de papel toalla | M123: 1 | N123: MG
L124: Basurero | M124: 1 | N124: MG | Q124: Recipiente para desechos comunes
L125: Gancho doble | M125: 1 | N125: MG
L126: Espejo empotrado | M126: 1 | N126: MG | P126: Deseable | Q126: Fijo a la pared para evitar roturas que puedan generar riesgo de accidentes
C127: Área de Soporte y suministros | D127: AMBIENTES | E127: Lencería | F127: AMBIENTE | G127: 1 | J127: Dimensionar según demanda funcional | K127: Requerido | L127: Coche de transporte de ropa limpia | M127: 1 | N127: MG
L128: Estantería/Mueble para almacenamiento | M128: 1 | N128: MG
E129: Recepción y Clasificación de Ropa Usada | F129: AMBIENTE | G129: 1 | J129: Dimensionar según demanda funcional | K129: Requerido | L129: Estantería | M129: 1 | N129: MG
L130: Coche de transporte de ropa sucia | M130: 1 | N130: MG
L131: Basurero | M131: 1 | N131: MG | Q131: Recipiente para desechos comunes
E132: Bodega General | F132: AMBIENTE | G132: 1 | I132: Dimensionar según demanda funcional | K132: Requerido | L132: Estantería | M132: 1 | N132: MG
L133: Escalera pata de gallo/Gradilla | M133: 1 | N133: MG | P133: condición
L134: Extintor de incendios portátil | M134: 1 | N134: EG
L135: Pallets | M135: 1 | N135: MG
E136: Estación de enfermería | F136: AMBIENTE | G136: 1 | J136: Dimensionar según demanda funcional. | K136: Condición | L136: Mostrador / escritorio/Mesa de despacho | M136: 1 | N136: MG | O136: EQ_01
L137: Computador completo (Portátil o de Escritorio) | M137: 1 | N137: EG | O137: EQ_02
L138: Silla | M138: 1 | N138: MG
L139: Set de recipientes para el manejo de desechos peligrosos y no peligrosos | M139: 1 | N139: MG | O139: EQ_07
L140: Tablero de avisos | M140: 1 | N140: MG
L141: Extintor de incendios portátil | M141: 1 | N141: EG | Q141: El mismo que cubrirá toda el servicio de internación y será según normativa
L142: Teléfono | M142: 1 | N142: EG
L143: Coche de paro completo y reanimación | M143: 1 | N143: EM | O143: EQ_09 | P143: condición | Q143: si posee este equipamiento, se verificará la existencia de protocolos de manejo; los medicamentos y dispositivos médicos corresponderán a los eventos prevalentes de emergencia de acuerdo al perfil epidemiológicos, la revisión y reposición del contenido del coche de paro será responsabilidad del Farmacéutico. La custodia será responsabilidad del personal de enfermería
L144: Armario con seguridad | M144: 1 | N144: EM | P144: Condición | Q144: Será requerido en el caso que tenga medicamentos que contienen sustancias estupefacientes y/o psicótropicas
L145: Dispensador de papel toalla | M145: 1 | N145: EG
L146: Dispensador de jabón | M146: 1 | N146: EG
L147: Lavabo | M147: 1 | N147: MG
D148: INSTALACIONES | E148: Estructura General | F148: INSTALACION | G148: 1 | H148: EG-01 | J148: - | K148: Requerido
E149: Instalaciones Generales | F149: INSTALACION | G149: 1 | H149: IG-01 | J149: - | K149: Requerido
C150: Área del Personal | D150: AMBIENTES | E150: Sala de Uso múltiple | F150: AMBIENTE | G150: 1 | I150: Actividades terapéuticas: terapia grupal, multifamiliar, cine foro, grupo de auto apoyo (puertas adentro/afuera). Área que permita abrir o cerrar el ambiente. | J150: Dimensionar según demanda funcional | K150: Condición | L150: Computador completo (Portátil o de Escritorio) | M150: 1 | N150: EG | O150: EQ_02
L151: Proyector multimedia/Sistema Audiovisual | M151: 1 | N151: EG
L152: Pantalla de proyección | M152: 1 | N152: MG | P152: condición
L153: mesa | M153: 1 | N153: MG
L154: Silla | M154: 8 | N154: MG | Q154: En función del cronograma de actividades y de cantidad de usuarios
L155: Equipo de amplificación con micrófono, consola y caja amplificadora | M155: 1 | N155: EG | P155: condición
L156: Casilleros/lockers | M156: 1 | N156: MG | P156: condición
E157: Vestidores | F157: AMBIENTE | G157: 1 | I157: Equipamiento mínimo necesario: un casillero (40x40x60 cm) y un banco/silla (40x60x40) | K157: Condición | L157: Casilleros/lockers | M157: 1 | N157: MG
L158: Banco de vestuario | M158: 1 | N158: MG
L159: Gancho doble | M159: 2 | N159: MG
L160: Basurero | M160: 1 | N160: MG | Q160: Recipiente para desechos comunes
E161: Baño de vestidores | F161: AMBIENTE | G161: 1 | I161: Número de piezas sanitarias mínimo: Un inodoro, 1 lavamanos y 1 ducha. | K161: Condición | L161: Inodoro | M161: 1 | N161: MG
L162: Dispensador de papel higiénico | M162: 1 | N162: MG
L163: Lavabo | M163: 1 | N163: MG
L164: Dispensador de jabón | M164: 1 | N164: MG
L165: Dispensador de papel toalla | M165: 1 | N165: MG
L166: Basurero | M166: 2 | N166: MG | Q166: Recipientes para desechos comunes y peligrosos - infecciosos
L167: Gancho doble | M167: 1 | N167: MG
L168: Espejo empotrado | M168: 1 | N168: MG | P168: Deseable | Q168: Fijo a la pared para evitar roturas que puedan generar riesgo de accidentes
L169: Ducha | M169: 1 | N169: MG
D170: INSTALACIONES | E170: Estructura General | F170: INSTALACION | G170: 1 | H170: EG-01 | J170: - | K170: Condición
E171: Instalaciones Generales | F171: INSTALACION | G171: 1 | H171: IG-01 | J171: - | K171: Condición
A172: APOYO TERAPÉUTICO | B172: DOTACIÓN DE MEDICAMENTOS Y DISPOSITIVOS MÉDICOS (FARMACIA) En el caso de que el CETAD dependa de un Establecimiento, corresponderá al profesional farmacéutico del mismo, realizar la gestión del suministro de medicamentos y el control de las sustancias psicotrópicas y estupefacientes; caso contrario, cada CETAD deberá disponer de un profesional farmacéutico | C172: Área de Farmacia | D172: AMBIENTES | E172: Dispensación | F172: AMBIENTE | G172: 1 | J172: Dimensionar según la demanda funcional | K172: Requerido | L172: Mostrador/Escritorio | M172: 1 | N172: MG | O172: EQ_01
L173: Computador completo (Portátil o de Escritorio) | M173: 1 | N173: EG | O173: EQ_02
L174: Silla | M174: 1 | N174: MG
L175: Armario con seguridad | M175: 1 | N175: MM | P175: Condición | Q175: Será requerido en el caso que tenga medicamentos que contienen sustancias estupefacientes y/o psicótropicas
L176: Estantería | M176: 1 | N176: MG
L177: Refrigerador con termo higrómetro | M177: 1 | N177: EG
L178: Termo higrómetro ambiental | M178: 1 | N178: EG
L179: Basurero | M179: 2 | N179: MG | Q179: Recipientes para desechos no peligrosos - comunes y peligrosos - especiales
L180: Lavabo | M180: 1 | N180: MG | Q180: Puede estar en otro ambiente pero se tiene que asegurar la bioseguridad pasiva
L181: Dispensador de jabón | M181: 1 | N181: MG
L182: Dispensador de papel toalla | M182: 1 | N182: MG
E183: Bodega | F183: AMBIENTE | G183: 1 | J183: Para construcciones nuevas calcular según demanda funcional | K183: Requerido | L183: Estantería | M183: 1 | N183: MG
L184: Armario con seguridad | M184: 1 | N184: MG | P184: Condición | Q184: Será requerido en el caso que tenga medicamentos que contienen sustancias estupefacientes y/o psicótropicas
L185: Pallet | M185: 1 | N185: MG
L186: Refrigerador con termo higrómetro | M186: 1 | N186: EG
L187: Termo higrómetro ambiental | M187: 1 | N187: EG
L188: Extintor de incendios portátil | M188: 1 | N188: EG | Q188: La especificación será según normativa
L189: Escalera pata de gallo / Gradilla | M189: 1 | N189: MG | Q189: Si es que tiene estanterías altas que no sean accesibles al operador/funcionario/usuario
D190: INSTALACIONES | E190: Estructura General | F190: INSTALACION | G190: 1 | H190: EG-01 | J190: - | K190: Requerido
E191: Instalaciones Generales | F191: INSTALACION | G191: 1 | H191: IG-01 | J191: - | K191: Requerido
A192: APOYO DIAGNÓSTICO Y TERAPÉUTICO | B192: REHABILITACIÓN | C192: Área de Terapias | D192: AMBIENTES | E192: Taller ocupacional y de uso múltiple | F192: AMBIENTE | G192: 1 | J192: Dimensionar según la demanda funcional | K192: Requerido | L192: Mesa de trabajo | M192: 1 | N192: MG
L193: Computador completo (Portátil o de Escritorio) | M193: 1 | N193: EG | O193: EQ_02
L194: Proyector multimedia/Sistema Audiovisual | M194: 1 | N194: EG
L195: Espejo empotrado | M195: 1 | N195: MG
L196: Casilleros/lockers | M196: 2 | N196: MG | P196: condición
L197: Estantería | M197: 1 | N197: MG
L198: Silla | M198: 8 | N198: MG
L199: Lavabo | M199: 1 | N199: MG
L200: Dispensador de papel toalla | M200: 1 | N200: EG
... 169 more rows

Sheet BaseTalentoHumano (hidden)
A1: CENTRO ESPECIALIZADO EN TRATAMIENTO A PERSONAS CON CONSUMO PROBLEMÁTICO DE ALCOHOL Y OTRAS DROGAS
A2: (Se verificará el estudio académico del personal por medio del Senescyt y que este inscrito en el Ministerio de Salud Pública) y Además es requerido que cuenten con el curso general virtual sobre derechos humanos y salud.
A3: GRUPO 00 | B3: GRUPO 01 | C3: GRUPO 02 | D3: GRUPO 03 | E3: Personal | F3: Tipo Personal | G3: Cant Mínima | H3: Por Puestos/Camas/Consultorios/Quirófano | I3: ANEXO | J3: Obs | K3: TIPO
A4: Administrativo | B4: ADMISIÓN Y ESTADISTICA | C4: Recepción, Admisión e Información | D4: Administrativos | E4: Asistente de Admisiones y Estadísticas | F4: ADMINISTRATIVO | G4: 1 | J4: Agenda los pacientes, archiva e ingresa historia clínicas | K4: Requerido
A5: Asistencial | B5: CONSULTA EXTERNA | C5: Área de Atención de Consulta | D5: Operativos | E5: Medico especialista en: Psiquiatría, Medicina Interna, Familiar o General, además con conocimientos en drogodependencia | F5: ASISTENCIAL | G5: 1 | J5: El profesional se encargará de la consulta externa y de las interconsultas de Internación /Residencia- Itinerante | K5: Requerido
E6: Psicólogo clínico | F6: ASISTENCIAL | G6: 1 | J6: El profesional se encargará de la consulta externa, terapias psicológicas , psicorehabilitación y de las interconsultas de Internación /Residencia | K6: Requerido
E7: Lcda(o). En Enfermería | F7: ASISTENCIAL | G7: 1 | K7: Requerido
A8: Asistencial | B8: INTERNACIÓN /RESIDENCIA El establecimiento contará con talento humano adecuado diferenciado para el tratamiento de adultos, adultas, niños y adolescentes hombres, niñas y adolescentes mujeres | C8: Área de Internación/Residencia | D8: Operativos | E8: Lcda(o). En Enfermería | F8: ASISTENCIAL | G8: 1 | K8: Requerido
E9: Personal/Monitor Vivencial | F9: ASISTENCIAL | G9: 1 | J9: Personal que ha atravesado o no un proceso de tratamiento por consumo problemático de alcohol y otras drogas. No es un usuario residente que se encuentra en tratamiento en el establecimiento. Realiza charlas grupales por un máximo de 10 horas a la semana. | K9: Condición
A10: Apoyo Terapéutico | B10: DOTACIÓN DE MEDICAMENTOS Y DISPOSITIVOS MÉDICOS (FARMACIA) | C10: Área de Farmacia | D10: Operativos | E10: Químico o Bioquímico Farmacéutico Responsable de la Gestión del suministro de Medicamentos y Dispositivos Médicos | F10: ASISTENCIAL | G10: 1 | J10: Puede ser permanente o itinerante, debe garantizar que entre sus funciones disponga del horario que le permita el adecuado control de los medicamentos sujetos a fiscalización | K10: Requerido
E11: Auxiliar de Farmacia | F11: ADMINISTRATIVO | G11: 1 | J11: Funciones para ventanilla. Puede realizar esta función un(a) auxiliar de enfermería. | K11: Requerido
A12: Apoyo Diagnóstico y Terapéutico | B12: REHABILITACIÓN | C12: Área de Terapias | D12: Operativos | E12: Terapista Ocupacional | F12: ASISTENCIAL | G12: 1 | J12: 1/Servicio - En caso de que en la zona no existan suficientes terapistas ocupacionales, se dispondrá de otras alternativas terapéuticas, según lo establezca el Programa Terapéutico del establecimiento | K12: Requerido
E13: Terapista Físico | F13: ASISTENCIAL | G13: 1 | J13: 1/Servicio | K13: Condición
A14: Apoyo Terapéutico | B14: ALIMENTACION Y DIETÉTICA | C14: Área técnica de cocina | D14: operativos | E14: Nutricionista | F14: ASISTENCIAL | G14: 1 | J14: Profesional que coordina, supervisa y es operativo del servicio y puede ser Itinerante | K14: Requerido
E15: Personal de cocina | F15: ADMINISTRATIVO | G15: 1 | K15: Requerido
A16: Administrativo | B16: ADMINISTRACION TECNICA | C16: Área Técnica | D16: Administrativos | E16: Responsable Técnico del Establecimiento (psiquiatra, médico o psicólogo especialista o con experiencia en drogodependencias) | F16: ADMINISTRATIVO | G16: 1 | J16: En caso de que el Coordinador sea un psiquiatra se justificará el requerido del profesional en la consulta externa | K16: Requerido
E17: Trabajador Social | F17: ASISTENCIAL | G17: 1 | H17: 60 | J17: Es para todo los servicios el estándar es 1 profesional por 60 camas | K17: Requerido
E18: Asistente administrativo | F18: ADMINISTRATIVO | G18: 1 | K18: Condición
A19: General | B19: SERVICIOS INTERNOS DE APOYO | C19: LAVANDERÍA/LIMPIEZA | D19: Operativos | E19: Auxiliar de Servicios | F19: ADMINISTRATIVO | G19: 1 | J19: Puede estar externalizado | K19: Requerido
C20: GUARDIANIA | D20: 0perativos | E20: Guardia de Seguridad | F20: ADMINISTRATIVO | G20: 1 | J20: Puede estar externalizado | K20: Condición

Sheet BaseNorma (hidden)
A1: CENTRO ESPECIALIZADO EN TRATAMIENTO A PERSONAS CON CONSUMO PROBLEMÁTICO DE ALCOHOL Y OTRAS DROGAS
A2: Tipo | B2: Servicio | C2: ESPACIO | D2: POLÍTICAS, NORMAS, ACUERDOS, REGLAMENTOS, PROTOCOLOS Y GUÍAS CLÍNICAS | E2: Cant Mínima | F2: Factor | G2: Obs | H2: TIPO
A3: ADMINISTRATIVO | B3: ADMISIÓN Y ESTADISTICA | C3: Admisión, Información y Recepción | D3: Instructivo para el Llenado del Registro Diario Automatizado de Consultas y Atenciones Ambulatorias (RDACAA). 2013 | E3: 1 | G3: Será requerido para Establecimientos del MSP | H3: Condición
D4: Manual de Instalación del Tarjetero índice | E4: 1 | G4: Será requerido para Establecimientos del MSP | H4: Condición
D5: Manual del Usuario del Tarjetero Indice | E5: 1 | G5: Será requerido para Establecimientos del MSP | H5: Condición
D6: Manual de Manejo, Archivo de las Historias Clínicas | E6: 1 | H6: Requerido
D7: Norma Técnica: Subsistema de Referencia, Derivación, Contrareferencia, Referencia inversa y Transferencia del Sistema Nacional de Salud. 2014 | E7: 1 | H7: Requerido
D8: Políticas Uso de Servicios de Red y Servicios Informáticos del Ministerio de Salud Pública | E8: 1 | G8: Será requerido para Establecimientos del MSP | H8: Condición
D9: Modelo de Gestión de requerimientos e inconformidades ciudadanas para mejorar los servicios de salud a nivel nacional | E9: 1 | H9: Requerido
D10: Registro de visitas a usuarios/pacientes | E10: 1 | H10: Requerido
D11: Reglamento de Señalización de Seguridad para Establecimientos de Salud | E11: 1 | H11: Requerido
D12: Acuerdo Ministerial 5212: Tipología Sustitutiva para Homologar los Establecimientos de Salud por Niveles de Atención y Servicios de Apoyo del Sistema Nacional de Salud | E12: 1 | H12: Requerido
D13: Manual de Normas de Bioseguridad para la Red de Servicios de Salud en el Ecuador | E13: 1 | H13: Requerido
D14: Norma Técnica: Atención Integral en Violencia de Género. 2014 | E14: 1 | H14: Requerido
D15: Ley Derechos y Amparo al Paciente impreso en formato A0 | E15: 1 | H15: Requerido
D16: Protocolos de Procedimientos de Limpieza | E16: 1 | H16: Requerido
D17: Registro de limpieza del área funcional del Establecimiento | E17: 1 | H17: Requerido
D18: Registro de Mantenimiento de Equipos: Preventivo y/o Correctivo | E18: 1 | H18: Requerido
D19: Acuerdo Ministerial 5186: Reglamento Interministerial para la Gestión Integral de Desechos Sanitarios | E19: 1 | H19: Requerido
A20: Asistencial | B20: CONSULTA EXTERNA | C20: Consultorio polivalente (Psiquiatría/Medicina Interna/Familiar y Comunitaria/General) | D20: Instructivo para el Llenado del Registro Diario Automatizado de Consultas y Atenciones Ambulatorias (RDACAA). 2013 | E20: 1 | G20: Será requerido para Establecimientos del MSP | H20: Condición
D21: Clasificación Estadística Internacional de Enfermedades y Problemas Relacionados con la Salud. Décima Revisión - CIE10 | E21: 1 | H21: Requerido
D22: Reglamento a la Ley Organica de Salud | E22: 1 | H22: Requerido
D23: Guía para la adecuación cultural de los servicios de salud. 2006 | E23: 1 | H23: Requerido
D24: Manual del modelo de atención integral en salud - MAIS. 2013 | E24: 1 | H24: Requerido
D25: Ley Derechos y Amparo al Paciente | E25: 1 | H25: Requerido
D26: Ley de sustancias estupefacientes y Psicotrópicas | E26: 1 | H26: Requerido
D27: Cuadro nacional de medicamentos básicos y registro terapéutico. 9na revisión | E27: 1 | H27: Requerido
D28: Acuerdo Ministerial 4693: Reforma a la 9na. Revisión del Cuadro Nacional de Medicamentos Básicos y Registro Terapéutico | E28: 1 | H28: Requerido
D29: Norma Técnica: Subsistema de Referencia, Derivación, Contrareferencia, Referencia inversa y Transferencia del Sistema Nacional de Salud. 2014 | E29: 1 | H29: Requerido
D30: Registro de Evolución de la Atención Médica y Modelo Terapéutico | E30: 1 | H30: Requerido
D31: Registro de Indicadores para la Satisfacción del Usuario | E31: 1 | H31: Requerido
D32: Protocolo: Atención integral del consumo nocivo de alcohol, tabaco y otras drogas. 2016 | E32: 1 | H32: Requerido
D33: Guía de atención integral de adultos y Adolescentes con infección por VIH/SIDA. 2012 | E33: 1 | G33: Será requerido en el caso de ofertar la prestación | H33: Condición
D34: Guía de Práctica Clínica: Prevención, Diagnóstico, Tratamiento y Control de la Tuberculosis. 2015 | E34: 1 | H34: Requerido
D35: Manual de Normas y Procedimientos para el Control de la Tuberculosis en Ecuador. 2010 | E35: 1 | H35: Requerido
D36: Normas y protocolos para la alimentación y nutrición en la atención integral a personas que viven con VIH/SIDA. 2010 | E36: 1 | G36: Será requerido en el caso de ofertar la prestación | H36: Condición
D37: Normas y protocolos de atención integral de salud de las y los adultos mayores - 1. 2010 | E37: 1 | G37: Será requerido en el caso de ofertar la prestación | H37: Condición
D38: Normas y protocolos de atención integral de salud de las y los adultos mayores - 2. 2010 | E38: 1 | G38: Será requerido en el caso de ofertar la prestación | H38: Condición
D39: Normas y protocolos de atención integral de salud de las y los adultos mayores - 3. 2010 | E39: 1 | G39: Será requerido en el caso de ofertar la prestación | H39: Condición
D40: Normas y procedimientos para la atención integral de salud a adolescentes. 2009 | E40: 1 | G40: Será requerido en el caso de ofertar la prestación | H40: Condición
D41: Guía de Supervisión: Salud de Adolescentes. 2014 | E41: 1 | G41: Será requerido en el caso de ofertar la prestación | H41: Condición
D42: Manual de procedimientos de antropometría y determinación de la presión arterial. 2012 | E42: 1 | H42: Requerido
D43: Acuerdo Ministerial 1124: Instructivo para el uso de la Receta Médica. | E43: 1 | G43: Será requerido para Establecimientos del MSP | H43: Condición
D44: Acuerdo Ministerial 4912: Reforma al Reglamento para la Gestión del Suministro de Medicamentos y Control Administrativo Financiero, y el Instructivo para el uso de la Receta Médica. | E44: 1 | G44: Será requerido para Establecimientos del MSP | H44: Condición
D45: Acuerdo Ministerial 5186: Reglamento Interministerial para la Gestión Integral de Desechos Sanitarios | E45: 1 | H45: Requerido
D46: Manual de Normas de Bioseguridad para la Red de Servicios de Salud en el Ecuador | E46: 1 | H46: Requerido
D47: Protocolos de Procedimientos de Limpieza y Desinfección | E47: 1 | H47: Requerido
D48: Registro de limpieza y desinfección del área funcional del Establecimiento | E48: 1 | H48: Requerido
D49: Registro de Mantenimiento de Equipos: Preventivo y/o Correctivo | E49: 1 | H49: Requerido
C50: Consultorio psicología | D50: Instructivo para el Llenado del Registro Diario Automatizado de Consultas y Atenciones Ambulatorias (RDACAA). 2013 | E50: 1 | G50: Será requerido para Establecimientos del MSP | H50: Condición
D51: Clasificación Estadística Internacional de Enfermedades y Problemas Relacionados con la Salud. Décima Revisión - CIE10 | E51: 1 | H51: Requerido
D52: Reglamento a la Ley Organica de Salud | E52: 1 | H52: Requerido
D53: Guía para la adecuación cultural de los servicios de salud. 2006 | E53: 1 | H53: Requerido
D54: Manual del modelo de atención integral en salud - MAIS. 2013 | E54: 1 | H54: Requerido
D55: Ley Derechos y Amparo al Paciente | E55: 1 | H55: Requerido
D56: Ley de sustancias estupefacientes y Psicotrópicas | E56: 1 | H56: Requerido
D57: Cuadro nacional de medicamentos básicos y registro terapéutico. 9na revisión | E57: 1 | H57: Requerido
D58: Acuerdo Ministerial 4693: Reforma a la 9na. Revisión del Cuadro Nacional de Medicamentos Básicos y Registro Terapéutico | E58: 1 | H58: Requerido
D59: Norma Técnica: Subsistema de Referencia, Derivación, Contrareferencia, Referencia inversa y Transferencia del Sistema Nacional de Salud. 2014 | E59: 1 | H59: Requerido
D60: Protocolo: Atención integral del consumo nocivo de alcohol, tabaco y otras drogas. 2016 | E60: 1 | H60: Requerido
D61: Fundamentos de la Prevención en Materia de Drogas | E61: 1 | G61: Será requerido para Establecimientos del MSP | H61: Condición
D62: Guía de Abordaje del Tabaquismo en Atención Primaria de Salud | E62: 1 | G62: Será requerido para Establecimientos del MSP | H62: Condición
D63: Plan Estratégico Nacional de Salud Mental 2015 - 2017 | E63: 1 | H63: Requerido
D64: Modelo de Atención de Salud Mental, en el Marco del Modelo de Atención Integral de Salud (MAIS) - con enfoque familiar, comunitario e intercultural | E64: 1 | H64: Requerido
D65: Acuerdo Ministerial 1124: Instructivo para el uso de la Receta Médica. | E65: 1 | G65: Será requerido para Establecimientos del MSP | H65: Condición
D66: Acuerdo Ministerial 4912: Reforma al Reglamento para la Gestión del Suministro de Medicamentos y Control Administrativo Financiero, y el Instructivo para el uso de la Receta Médica. | E66: 1 | G66: Será requerido para Establecimientos del MSP | H66: Condición
D67: Acuerdo Ministerial 5186: Reglamento Interministerial para la Gestión Integral de Desechos Sanitarios | E67: 1 | H67: Requerido
D68: Manual de Normas de Bioseguridad para la Red de Servicios de Salud en el Ecuador | E68: 1 | H68: Requerido
D69: Protocolos de Procedimientos de Limpieza y Desinfección | E69: 1 | H69: Requerido
D70: Registro de limpieza y desinfección del área funcional del Establecimiento | E70: 1 | H70: Requerido
D71: Registro de Mantenimiento de Equipos: Preventivo y/o Correctivo | E71: 1 | H71: Requerido
C72: Enfermería | D72: Instructivo para el Llenado del Registro Diario Automatizado de Consultas y Atenciones Ambulatorias (RDACAA). 2013 | E72: 1 | G72: Será requerido para Establecimientos del MSP | H72: Condición
D73: Clasificación Estadística Internacional de Enfermedades y Problemas Relacionados con la Salud. Décima Revisión - CIE10 | E73: 1 | H73: Requerido
D74: Reglamento a la Ley Organica de Salud | E74: 1 | H74: Requerido
D75: Guía para la adecuación cultural de los servicios de salud. 2006 | E75: 1 | H75: Requerido
D76: Manual del modelo de atención integral en salud - MAIS. 2013 | E76: 1 | H76: Requerido
D77: Ley Derechos y Amparo al Paciente | E77: 1 | H77: Requerido
D78: Cuadro nacional de medicamentos básicos y registro terapéutico. 9na revisión | E78: 1 | H78: Requerido
D79: Acuerdo Ministerial 4693: Reforma a la 9na. Revisión del Cuadro Nacional de Medicamentos Básicos y Registro Terapéutico | E79: 1 | H79: Requerido
D80: Modelo de gestión de aplicación de consentimiento informado en práctica asistencial. 2015 | E80: 1 | H80: Requerido
D81: Guía de Práctica Clínica: Cuidados Paliativos. 2014 | E81: 1 | H81: Requerido
D82: Manual de procedimientos de Enfermería | E82: 1 | H82: Requerido
D83: Protocolo: Atención integral del consumo nocivo de alcohol, tabaco y otras drogas. 2016 | E83: 1 | H83: Requerido
D84: Guía de Práctica Clínica: Prevención, Diagnóstico, Tratamiento y Control de la Tuberculosis. 2015 | E84: 1 | H84: Requerido
D85: Manual de Normas y Procedimientos para el Control de la Tuberculosis en Ecuador. 2010 | E85: 1 | H85: Requerido
D86: Guía de atención integral de adultos y Adolescentes con infección por VIH/SIDA. 2012 | E86: 1 | G86: Será requerido en el caso de ofertar la prestación | H86: Condición
D87: Normas y protocolos de atención integral de salud de las y los adultos mayores - 1. 2010 | E87: 1 | G87: Será requerido en el caso de ofertar la prestación | H87: Condición
D88: Normas y protocolos de atención integral de salud de las y los adultos mayores - 2. 2010 | E88: 1 | G88: Será requerido en el caso de ofertar la prestación | H88: Condición
D89: Normas y protocolos de atención integral de salud de las y los adultos mayores - 3. 2010 | E89: 1 | G89: Será requerido en el caso de ofertar la prestación | H89: Condición
D90: Manual para cuidadores de la persona adulta mayor dependiente | E90: 1 | G90: Será requerido en el caso de ofertar la prestación | H90: Condición
D91: Normas de atención integral a la niñez. 2011 | E91: 1 | G91: Será requerido en el caso de ofertar la prestación | H91: Condición
D92: Normas y procedimientos para la atención integral de salud a adolescentes. 2009 | E92: 1 | G92: Será requerido en el caso de ofertar la prestación | H92: Condición
D93: Guía de Supervisión: Salud de Adolescentes. 2014 | E93: 1 | G93: Será requerido en el caso de ofertar la prestación | H93: Condición
D94: Promoción de la Salud Mental: Manejo del Estrés | E94: 1 | H94: Requerido
D95: Guía de Abordaje del Tabaquismo en Atención Primaria de Salud | E95: 1 | H95: Requerido
D96: Manual de procedimientos de antropometría y determinación de la presión arterial. 2012 | E96: 1 | H96: Requerido
D97: Acuerdo Ministerial 1124: Instructivo para el uso de la Receta Médica. | E97: 1 | G97: Será requerido para Establecimientos del MSP | H97: Condición
D98: Acuerdo Ministerial 4912: Reforma al Reglamento para la Gestión del Suministro de Medicamentos y Control Administrativo Financiero, y el Instructivo para el uso de la Receta Médica. | E98: 1 | G98: Será requerido para Establecimientos del MSP | H98: Condición
D99: Acuerdo Ministerial 5186: Reglamento Interministerial para la Gestión Integral de Desechos Sanitarios | E99: 1 | H99: Requerido
D100: Manual de lencería sanitaria para los establecimientos de salud pertenecientes al MSP. 2014 | E100: 1 | G100: Será requerido para Establecimientos del MSP | H100: Condición
D101: Manual de Normas de Bioseguridad para la Red de Servicios de Salud en el Ecuador | E101: 1 | H101: Requerido
D102: Protocolos de Procedimientos de Limpieza y Desinfección | E102: 1 | H102: Requerido
D103: Registro de limpieza y desinfección del área funcional del Establecimiento | E103: 1 | H103: Requerido
D104: Registro de Mantenimiento de Equipos: Preventivo y/o Correctivo | E104: 1 | H104: Requerido
A105: Asistencial | B105: INTERNACIÓN/RESIDENCIA | C105: Área de Internación/Residencia | D105: Instructivo para el Llenado del Registro Diario Automatizado de Consultas y Atenciones Ambulatorias (RDACAA). 2013 | E105: 1 | G105: Será requerido para Establecimientos del MSP | H105: Condición
D106: Clasificación Estadística Internacional de Enfermedades y Problemas Relacionados con la Salud. Décima Revisión - CIE10 | E106: 1 | H106: Requerido
D107: Reglamento a la Ley Organica de Salud | E107: 1 | H107: Requerido
D108: Guía para la adecuación cultural de los servicios de salud. 2006 | E108: 1 | H108: Requerido
D109: Manual del modelo de atención integral en salud - MAIS. 2013 | E109: 1 | H109: Requerido
D110: Ley Derechos y Amparo al Paciente | E110: 1 | H110: Requerido
D111: Ley de sustancias estupefacientes y Psicotrópicas | E111: 1 | H111: Requerido
D112: Cuadro nacional de medicamentos básicos y registro terapéutico. 9na revisión | E112: 1 | H112: Requerido
D113: Acuerdo Ministerial 4693: Reforma a la 9na. Revisión del Cuadro Nacional de Medicamentos Básicos y Registro Terapéutico | E113: 1 | H113: Requerido
D114: Norma Técnica: Subsistema de Referencia, Derivación, Contrareferencia, Referencia inversa y Transferencia del Sistema Nacional de Salud. 2014 | E114: 1 | H114: Requerido
D115: Manual de Procedimientos del Subsistema Alerta Acción (SIVE) - Alerta. 2014 | E115: 1 | H115: Requerido
D116: Guía de atención integral de adultos y Adolescentes con infección por VIH/SIDA. 2012 | E116: 1 | G116: Será requerido en el caso de ofertar la prestación | H116: Condición
D117: Protocolo: Atención integral del consumo nocivo de alcohol, tabaco y otras drogas. 2016 | E117: 1 | H117: Requerido
D118: Guía de Práctica Clínica: Prevención, Diagnóstico, Tratamiento y Control de la Tuberculosis. 2015 | E118: 1 | H118: Requerido
D119: Manual de Normas y Procedimientos para el Control de la Tuberculosis en Ecuador. 2010 | E119: 1 | H119: Requerido
D120: Protocolo de atención en intoxicación aguda por opioides y sindrome de abstinencia. 2015 | E120: 1 | H120: Requerido
D121: Normas y protocolos de atención integral de salud de las y los adultos mayores - 1. 2010 | E121: 1 | G121: Será requerido en el caso de ofertar la prestación | H121: Condición
D122: Normas y protocolos de atención integral de salud de las y los adultos mayores - 2. 2010 | E122: 1 | G122: Será requerido en el caso de ofertar la prestación | H122: Condición
D123: Normas y protocolos de atención integral de salud de las y los adultos mayores - 3. 2010 | E123: 1 | G123: Será requerido en el caso de ofertar la prestación | H123: Condición
D124: Carné Socio - Sanitario del Adulto Mayor | E124: 1 | G124: Será requerido en el caso de ofertar la prestación | H124: Condición
D125: Normas y procedimientos para la atención integral de salud a adolescentes. 2009 | E125: 1 | G125: Será requerido en el caso de ofertar la prestación | H125: Condición
D126: Caja de herramientas. Documentos de Apoyo Técnico. Normas y protocolos de Atención Integral a los/las Adolescentes | E126: 1 | G126: Será requerido en el caso de ofertar la prestación | H126: Condición
D127: Guía de Supervisión: Salud de Adolescentes. 2014 | E127: 1 | G127: Será requerido en el caso de ofertar la prestación | H127: Condición
D128: Norma Técnica de Atención Integral en Violencia de Género. 2014 | E128: 1 | H128: Requerido
D129: Norma y protocolos de atención integral a la violencia de género, intrafamiliar y sexual por ciclos de vida. 2011 | E129: 1 | H129: Requerido
D130: Introducción a la Guía de actividad Física dirigido al personal de salud I. 2011 | E130: 1 | H130: Requerido
D131: Guía de actividad Física dirigido al personal de salud II. 2011 | E131: 1 | H131: Requerido
D132: Manual de lencería sanitaria para los establecimientos de salud pertenecientes al MSP. 2014 | E132: 1 | G132: Será requerido para Establecimientos del MSP | H132: Condición
D133: Manual de procedimientos de antropometría y determinación de la presión arterial. 2012 | E133: 1 | H133: Requerido
D134: Acuerdo Ministerial 1124: Instructivo para el uso de la Receta Médica. | E134: 1 | G134: Será requerido para Establecimientos del MSP | H134: Condición
D135: Acuerdo Ministerial 4912: Reforma al Reglamento para la Gestión del Suministro de Medicamentos y Control Administrativo Financiero, y el Instructivo para el uso de la Receta Médica. | E135: 1 | G135: Será requerido para Establecimientos del MSP | H135: Condición
D136: Acuerdo Ministerial 5186: Reglamento Interministerial para la Gestión Integral de Desechos Sanitarios | E136: 1 | H136: Requerido
D137: Manual de Normas de Bioseguridad para la Red de Servicios de Salud en el Ecuador | E137: 1 | H137: Requerido
D138: Protocolos de Procedimientos de Limpieza y Desinfección | E138: 1 | H138: Requerido
D139: Registro de limpieza y desinfección del área funcional del Establecimiento | E139: 1 | H139: Requerido
D140: Registro de Mantenimiento de Equipos: Preventivo y/o Correctivo | E140: 1 | H140: Requerido
A141: Apoyo Terapéutico | B141: Dotación de Medicamentos y Dispositivos Médicos (Farmacia) | C141: Área de Farmacia | D141: Guia Recepción de Medicamentos | E141: 1 | H141: Requerido
D142: Manual de Procesos para la Gestión de Suministros de Medicamentos | E142: 1 | H142: Requerido
D143: Acuerdo Ministerial 1124: Instructivo para el uso de la Receta Médica. | E143: 1 | G143: Será requerido para Establecimientos del MSP | H143: Condición
D144: Acuerdo Ministerial 4912: Reforma al Reglamento para la Gestión del Suministro de Medicamentos y Control Administrativo Financiero, y el Instructivo para el uso de la Receta Médica. | E144: 1 | G144: Será requerido para Establecimientos del MSP | H144: Condición
D145: Cuadro nacional de medicamentos básicos y registro terapéutico. 9na revisión | E145: 1 | H145: Requerido
D146: Acuerdo Ministerial 4693: Reforma a la 9na. Revisión del Cuadro Nacional de Medicamentos Básicos y Registro Terapéutico | E146: 1 | H146: Requerido
D147: Acuerdo Ministerial 205: Reglamento para el registro y control sanitario de dispositivos médicos, reactivos bioquímicos y de diagnóstico; y, productos dentales | E147: 1 | H147: Requerido
D148: Acuerdo Ministerial 4872: Reglamento de buenas prácticas de almacenamiento, distribución y transporte para establecimientos farmacéuticos | E148: 1 | H148: Requerido
D149: Registro de Temperatura de los refrigeradores | E149: 1 | H149: Requerido
D150: Registro de Temperatura y Humedad ambiental | E150: 1 | H150: Requerido
D151: Acuerdo Ministerial 5186: Reglamento Interministerial para la Gestión Integral de Desechos Sanitarios | E151: 1 | H151: Requerido
D152: Manual de Normas de Bioseguridad para la Red de Servicios de Salud en el Ecuador | E152: 1 | H152: Requerido
D153: Protocolos de Procedimientos de Limpieza y Desinfección | E153: 1 | H153: Requerido
D154: Registro de limpieza y desinfección del área funcional del Establecimiento | E154: 1 | H154: Requerido
D155: Registro de Mantenimiento de Equipos: Preventivo y/o Correctivo | E155: 1 | H155: Requerido
A156: Apoyo Diagnóstico y Terapéutico | B156: Rehabilitación | C156: Taller ocupacional y de uso múltiple | D156: Instructivo para el Llenado del Registro Diario Automatizado de Consultas y Atenciones Ambulatorias (RDACAA). 2013 | E156: 1 | G156: Será requerido para Establecimientos del MSP | H156: Condición
D157: Ley Derechos y Amparo al Paciente impreso en formato A0 | E157: 1 | H157: Requerido
D158: Acuerdo Ministerial 5186: Reglamento Interministerial para la Gestión Integral de Desechos Sanitarios | E158: 1 | H158: Condición
D159: Manual de Normas de Bioseguridad para la Red de Servicios de Salud en el Ecuador | E159: 1 | H159: Condición
D161: Protocolos de Procedimientos de Limpieza y Desinfección | E161: 1 | H161: Condición
D162: Registro de limpieza y desinfección del área funcional del Establecimiento | E162: 1 | H162: Condición
D163: Registro de Mantenimiento de Equipos: Preventivo y/o Correctivo | E163: 1 | H163: Condición
D164: Registro Diario de Terapias | E164: 1 | H164: Condición
C165: Sala de cinesiterapia | D165: Instructivo para el Llenado del Registro Diario Automatizado de Consultas y Atenciones Ambulatorias (RDACAA). 2013 | E165: 1 | G165: Será requerido para Establecimientos del MSP | H165: Condición
D166: Acuerdo Ministerial 5186: Reglamento Interministerial para la Gestión Integral de Desechos Sanitarios | E166: 1 | H166: Condición
D167: Manual de Normas de Bioseguridad para la Red de Servicios de Salud en el Ecuador | E167: 1 | H167: Condición
D168: Protocolos de Procedimientos de Limpieza y Desinfección | E168: 1 | H168: Condición
D169: Registro de limpieza y desinfección del área funcional del Establecimiento | E169: 1 | H169: Condición
D170: Registro de Mantenimiento de Equipos: Preventivo y/o Correctivo | E170: 1 | H170: Condición
D171: Registro Diario de Terapias | E171: 1 | H171: Condición
A172: Apoyo Terapéutico | B172: NUTRICIÓN Y DIETETICA | C172: Área de comedor | D172: Ley Derechos y Amparo al Paciente impreso en formato A0 | E172: 1 | H172: Requerido
D173: Acuerdo Ministerial 5186: Reglamento Interministerial para la Gestión Integral de Desechos Sanitarios | E173: 1 | H173: Requerido
D174: Manual de Normas de Bioseguridad para la Red de Servicios de Salud en el Ecuador | E174: 1 | H174: Requerido
D175: Protocolos de Procedimientos de Limpieza | E175: 1 | H175: Requerido
C176: Área técnica de cocina | D176: Ley Derechos y Amparo al Paciente | E176: 1 | H176: Requerido
D177: Guía para la adecuación cultural de los servicios de salud. 2006 | E177: 1 | H177: Requerido
D178: Manual del modelo de atención integral en salud - MAIS. 2013 | E178: 1 | H178: Requerido
D179: Normas y protocolos para la alimentación y nutrición en la atención integral a personas que viven con VIH/SIDA. 2010 | E179: 1 | G179: Será requerido en el caso de ofertar la prestación | H179: Condición
D180: Procolo de Atención y Manual de Consejería para el Crecimiento del niño y la niña. 2011 | E180: 1 | G180: Será requerido en el caso de ofertar la prestación | H180: Condición
D181: Normas de nutrición para la prevención primaria y control del sobrepeso y la obesidad en niñas, niños y adolescentes. 2011 | E181: 1 | G181: Será requerido en el caso de ofertar la prestación | H181: Condición
D182: Normas de nutrición para la prevención secundaria y control del sobrepeso y la obesidad en niñas, niños y adolescentes. 2011 | E182: 1 | G182: Será requerido en el caso de ofertar la prestación | H182: Condición
D183: Manual de consejería nutricional para el crecimiento y alimentacion de niños y niñas menores de cinco años y de cinco a nueve años. 2011 | E183: 1 | G183: Será requerido en el caso de ofertar la prestación | H183: Condición
D184: Acuerdo Ministerial 5186: Reglamento Interministerial para la Gestión Integral de Desechos Sanitarios | E184: 1 | H184: Requerido
D185: Manual de Normas de Bioseguridad para la Red de Servicios de Salud en el Ecuador | E185: 1 | H185: Requerido
D186: Protocolos de Procedimientos de Limpieza y Desinfección | E186: 1 | H186: Requerido
D187: Registro de limpieza y desinfección del área funcional del Establecimiento | E187: 1 | H187: Requerido
D188: Registro de Mantenimiento de Equipos: Preventivo y/o Correctivo | E188: 1 | H188: Requerido
A189: Administrativo | B189: ADMINISTRACION TÉCNICA | C189: Despacho del Responsable Técnico | D189: Constitución de la Republica del Ecuador | E189: 1 | H189: Requerido
D190: Plan Nacional del Buen Vivir 2013-2017 | E190: 1 | H190: Requerido
D191: Agenda Social 2017 | E191: 1 | H191: Requerido
D192: Código Orgánico Integral Penal - COIP | E192: 1 | H192: Requerido
D193: Ley Orgánica del Servidor Publico - LOSEP | E193: 1 | G193: Será requerido para Establecimientos del MSP | H193: Condición
D194: Reglamento a Ley Orgánica del Servidor Publico - LOSEP | E194: 1 | G194: Será requerido para Establecimientos del MSP | H194: Condición
D195: Codificación del Código del Trabajo (2005) | E195: 1 | H195: Requerido
D196: Código Orgánico de Organización Territorial, Autonomia y Descentralización - COOTAD | E196: 1 | H196: Requerido
D197: Instructivo para el Llenado del Registro Diario Automatizado de Consultas y Atenciones Ambulatorias (RDACAA). 2013 | E197: 1 | G197: Será requerido para Establecimientos del MSP | H197: Condición
D198: Distribución Zonas Distritos 2011 | E198: 1 | H198: Requerido
D199: Manual del Sistema Organizado de la Red de Servicios de Salud | E199: 1 | H199: Requerido
D200: Acuerdo Ministerial 80: Normativa Sanitaria para el control y vigilancia de los establecimientos de salud que prestan servicios de tratamiento a personas con consumo problemático de alcohol y otras drogas (ESTAD) | E200: 1
D201: Guía para la adecuación cultural de los servicios de salud. 2006 | E201: 1 | H201: Requerido
... 40 more rows

Sheet Menu
A4: MATRIZ DE LICENCIAMIENTO:
A5: CENTRO ESPECIALIZADO EN TRATAMIENTO PARA PERSONAS CON CONSUMO PROBLEMÁTICO DE ALCOHOL Y OTRAS DROGAS (CETADS)
A8: ENTIDAD DEL SISTEMA:
A9: NOMBRE UNIDAD OPERATIVA:
C10: UNICÓDIGO:
C11: REPRESENTANTE LEGAL:
A12: R.U.C:
C13: REGIÓN:
A14: PROVINCIA:
A15: CANTÓN:
A16: PARROQUIA:
A17: DISTRIBUCIÓN ZONAL SENPLADES:
A18: ÁREA/DISTRITO:
C19: DIRECCIÓN:
A20: TELÉFONO:
A21: CORREO ELECTRÓNICO DEL ESTABLECIMIENTO:
C22: FECHA:

Sheet Infraestructura
A1: FILTROS: | B1: Anx: | C1: Requerido: | D1: m² Util: | E1: Tipo: | F1: BUENO: | G1: MALO: | H1: Calif: | K1: Observaciones:
A2: =Menu!$A$5 -> CENTRO ESPECIALIZADO EN TRATAMIENTO PARA PERSONAS CON CONSUMO PROBLEMÁTICO DE ALCOHOL Y OTRAS DROGAS (CETADS) | Q2: req | S2: cond + | U2: cond - | W2: des | Y2: req | AA2: cond+ | AC2: cond - | AE2: des | AG2: req | AI2: cond+ | AK2: cond - | AM2: des | AO2: req | AQ2: cond+ | AS2: cond - | AU2: des
A3: INFRAESTRUCTURA | Q3: AMBIENTES | Y3: INSTALACIONES GENERALES | AG3: INSTALACIONES - ESTRUCTURA | AO3: TOTAL AMBIENTES | AW3: TOTAL INSTALACIONES GENERALES | BE3: TOTAL INSTALACIONES GESTRUCTURA
A4: ADMINISTRATIVO | AO4: =SUM(Q5:Q12) -> 20 | AP4: 0 | AQ4: 0 | AR4: 0 | AS4: 0 | AT4: 0 | AU4: 0 | AV4: 0 | AW4: 10 | AX4: 0 | AY4: 0 | AZ4: 0 | BA4: 0 | BB4: 0 | BC4: 0 | BD4: 0 | BE4: 10 | BF4: 0 | BG4: 0 | BH4: 0 | BI4: 0 | BJ4: 0 | BK4: 0 | BL4: 0
A5: ADMISIÓN Y ESTADÍSTICA | AO5: =SUM(Q6:Q12) -> 20 | AP5: 0 | AQ5: 0 | AR5: 0 | AS5: 0 | AT5: 0 | AU5: 0 | AV5: 0 | AW5: 10 | AX5: 0 | AY5: 0 | AZ5: 0 | BA5: 0 | BB5: 0 | BC5: 0 | BD5: 0 | BE5: 10 | BF5: 0 | BG5: 0 | BH5: 0 | BI5: 0 | BJ5: 0 | BK5: 0 | BL5: 0
A6: ÁREA TÉCNICA | AO6: =SUM(Q7:Q12) -> 20 | AP6: 0 | AQ6: 0 | AR6: 0 | AS6: 0 | AT6: 0 | AU6: 0 | AV6: 0 | AW6: 10 | AX6: 0 | AY6: 0 | AZ6: 0 | BA6: 0 | BB6: 0 | BC6: 0 | BD6: 0 | BE6: 10 | BF6: 0 | BG6: 0 | BH6: 0 | BI6: 0 | BJ6: 0 | BK6: 0 | BL6: 0
A7: AMBIENTES | B7: =B1 -> Anx: | C7: =C$1 -> Requerido: | D7: m² Util: | E7: Tipo: | F7: BUENO: | G7: MALO: | J7: Calif: | K7: Observaciones: | AO7: =SUM(Q8:Q9) -> 20 | AP7: 0 | AQ7: 0 | AR7: 0 | AS7: 0 | AT7: 0 | AU7: 0 | AV7: 0 | AW7: 0 | AX7: 0 | AY7: 0 | AZ7: 0 | BA7: 0 | BB7: 0 | BC7: 0 | BD7: 0 | BE7: 0 | BF7: 0 | BG7: 0 | BH7: 0 | BI7: 0 | BJ7: 0 | BK7: 0 | BL7: 0
A8: Admisión, Información y Recepción | C8: 1 | D8: - | E8: Requerido | F8: 0 | G8: 0 | H8: =IF(AND(F8>=C8,F8>0),10,0) -> 0 | I8: =IF(AND(G8>=C8,C8>0,G8>=1),10,0) -> 0 | J8: =H8-I8 -> 0 | Q8: =IF(UPPER(E8)="REQUERIDO", 10, "") -> 10 | R8: =IF(UPPER(E8)="REQUERIDO", H8, "") -> 0
A9: Archivo | C9: 1 | D9: - | E9: Requerido | F9: 0 | G9: 0 | H9: =IF(AND(F9>=C9,F9>0),10,0) -> 0 | I9: =IF(AND(G9>=C9,C9>0,G9>=1),10,0) -> 0 | J9: =H9-I9 -> 0 | Q9: =IF(UPPER(E9)="REQUERIDO", 10, "") -> 10 | R9: =IF(UPPER(E9)="REQUERIDO", H9, "") -> 0
A10: INSTALACIONES | B10: =B1 -> Anx: | C10: =C$1 -> Requerido: | D10: m² Util: | E10: Tipo: | F10: BUENO: | G10: MALO: | J10: Calif: | K10: Observaciones: | AO10: =SUM(Q11:Q12) -> 0 | AP10: =SUM(R11:R12) -> 0 | AQ10: =SUM(S11:S12) -> 0 | AR10: =SUM(T11:T12) -> 0 | AS10: =SUM(U11:U12) -> 0 | AT10: 0 | AU10: 0 | AV10: 0 | AW10: 10 | AX10: 0 | AY10: 0 | AZ10: 0 | BA10: 0 | BB10: 0 | BC10: 0 | BD10: 0 | BE10: 10 | BF10: 0 | BG10: 0 | BH10: 0 | BI10: 0 | BJ10: 0 | BK10: 0 | BL10: 0
A11: Estructura General | B11: EG_01 | C11: 1 | D11: - | E11: Requerido | F11: 0 | G11: 0 | H11: =IF(AND(F11>=C11,F11>0),10,0) -> 0 | I11: =IF(AND(G11>=C11,C11>0,G11>=1),10,0) -> 0 | J11: =H11-I11 -> 0 | AG11: =IF(UPPER(E11)="REQUERIDO", 10, "") -> 10 | AH11: =IF(UPPER(E11)="REQUERIDO", H11, "") -> 0
A12: Instalaciones Generales | B12: IG_01 | C12: 1 | D12: - | E12: Requerido | F12: 0 | G12: 0 | H12: =IF(AND(F12>=C12,F12>0),10,0) -> 0 | I12: =IF(AND(G12>=C12,C12>0,G12>=1),10,0) -> 0 | J12: =H12-I12 -> 0 | Y12: =IF(UPPER(E12)="REQUERIDO", 10, "") -> 10 | Z12: =IF(UPPER(E12)="REQUERIDO", H12, "") -> 0
A13: ASISTENCIAL | AO13: =SUM(Q14:Q26) -> 60 | AP13: =SUM(R14:R26) -> 0 | AQ13: =SUM(S14:S26) -> 0 | AR13: =SUM(T14:T26) -> 0 | AS13: =SUM(U14:U26) -> 0 | AT13: 0 | AU13: 10 | AV13: 0 | AW13: 10 | AX13: 0 | AY13: 0 | AZ13: 0 | BA13: 0 | BB13: 0 | BC13: 0 | BD13: 0 | BE13: 10 | BF13: 0 | BG13: 0 | BH13: 0 | BI13: 0 | BJ13: 0 | BK13: 0 | BL13: 0
A14: CONSULTA EXTERNA | AO14: =SUM(Q15:Q26) -> 60 | AP14: =SUM(R15:R26) -> 0 | AQ14: =SUM(S15:S26) -> 0 | AR14: =SUM(T15:T26) -> 0 | AS14: =SUM(U15:U26) -> 0 | AT14: 0 | AU14: 10 | AV14: 0 | AW14: 10 | AX14: 0 | AY14: 0 | AZ14: 0 | BA14: 0 | BB14: 0 | BC14: 0 | BD14: 0 | BE14: 10 | BF14: 0 | BG14: 0 | BH14: 0 | BI14: 0 | BJ14: 0 | BK14: 0 | BL14: 0
A15: ÁREA DE ATENCIÓN DE CONSULTA | AO15: =SUM(Q16:Q26) -> 60 | AP15: =SUM(R16:R26) -> 0 | AQ15: =SUM(S16:S26) -> 0 | AR15: =SUM(T16:T26) -> 0 | AS15: =SUM(U16:U26) -> 0 | AT15: 0 | AU15: 10 | AV15: 0 | AW15: 10 | AX15: 0 | AY15: 0 | AZ15: 0 | BA15: 0 | BB15: 0 | BC15: 0 | BD15: 0 | BE15: 10 | BF15: 0 | BG15: 0 | BH15: 0 | BI15: 0 | BJ15: 0 | BK15: 0 | BL15: 0
A16: AMBIENTES | B16: =B1 -> Anx: | C16: =C$1 -> Requerido: | D16: m² Util: | E16: Tipo: | F16: BUENO: | G16: MALO: | J16: Calif: | K16: Observaciones: | AO16: =SUM(Q17:Q23) -> 60 | AP16: =SUM(R17:R23) -> 0 | AQ16: =SUM(S17:S23) -> 0 | AR16: =SUM(T17:T23) -> 0 | AS16: =SUM(U17:U23) -> 0 | AT16: 0 | AU16: 10 | AV16: 0 | AW16: 0 | AX16: 0 | AY16: 0 | AZ16: 0 | BA16: 0 | BB16: 0 | BC16: 0 | BD16: 0 | BE16: 0 | BF16: 0 | BG16: 0 | BH16: 0 | BI16: 0 | BJ16: 0 | BK16: 0 | BL16: 0
A17: Sala de espera | C17: 1 | D17: Para construcciones nuevas es deseable 1 m2 por cama de la unidad | E17: Requerido | F17: 0 | G17: 0 | H17: =IF(AND(F17>=C17,F17>0),10,0) -> 0 | I17: =IF(AND(G17>=C17,C17>0,G17>=1),10,0) -> 0 | J17: =H17-I17 -> 0 | Q17: =IF(UPPER(E17)="REQUERIDO", 10, "") -> 10 | R17: =IF(UPPER(E17)="REQUERIDO", H17, "") -> 0
A18: Baños/Baterías Sanitarias para personas con discapacidad-puede ser un ambiente exclusivo o puede estar incorporado al ambiente general de baños/baterías sanitarias | C18: 1 | D18: Para construcciones nuevas es obligatorio y las existentes deberán adecuar este ambiente funcional para el próximo licenciamiento. Las construcciones nuevas deben cumplir con la normativa específica para personas con discapacidad | E18: Deseable | F18: 0 | G18: 0 | H18: 0 | I18: 0 | J18: 0 | W18: =IF(UPPER(E18)="DESEABLE", 10, "") -> 10 | X18: =IF(UPPER(E18)="DESEABLE", H18, "") -> 0
A19: Baños/Baterías Sanitarias por puestos | C19: 1 | D19: Para construcciones nuevas y existentes diferenciado para hombres y mujeres | E19: Requerido | F19: 0 | G19: 0 | H19: 0 | I19: 0 | J19: 0 | Q19: =IF(UPPER(E19)="REQUERIDO", 10, 0) -> 10 | R19: =IF(UPPER(E19)="REQUERIDO", H19, "") -> 0
A20: Baños/Baterías Sanitarias(compartido) | C20: 1 | D20: Para construcciones nuevas y existentes diferenciado para hombres y mujeres | E20: Requerido | F20: 0 | G20: 0 | H20: 0 | I20: 0 | J20: 0 | Q20: =IF(UPPER(E20)="REQUERIDO", 10, "") -> 10 | R20: =IF(UPPER(E20)="REQUERIDO", H20, "") -> 0
A21: Consultorio polivalente (Psiquiatría/Medicina Interna/Familiar y Comunitaria/General) | C21: 1 | D21: Para construcciones nuevas deseable 16 m2 | E21: Requerido | F21: 0 | G21: 0 | H21: 0 | I21: 0 | J21: 0 | Q21: =IF(UPPER(E21)="REQUERIDO", 10, "") -> 10 | R21: =IF(UPPER(E21)="REQUERIDO", H21, "") -> 0
A22: Consultorio de psicología | C22: 1 | D22: Para construcciones nuevas, mínimo deseable 12 m2 | E22: Requerido | F22: 0 | G22: 0 | H22: 0 | I22: 0 | J22: 0 | Q22: =IF(UPPER(E22)="REQUERIDO", 10, "") -> 10 | R22: =IF(UPPER(E22)="REQUERIDO", H22, "") -> 0
A23: Enfermería | C23: 1 | D23: Realización de mediciones clínicas o somatométricas previas al ingreso en los consultorios polivalentes y para proceder en el caso de curaciones. | E23: Requerido | F23: 0 | G23: 0 | H23: 0 | I23: 0 | J23: 0 | Q23: =IF(UPPER(E23)="REQUERIDO", 10, "") -> 10 | R23: =IF(UPPER(E23)="REQUERIDO", H23, "") -> 0
A24: INSTALACIONES | B24: =B1 -> Anx: | C24: =C$1 -> Requerido: | D24: m² Util: | E24: Tipo: | F24: BUENO: | G24: MALO: | J24: Calif: | K24: Observaciones: | AO24: =SUM(Q25:Q26) -> 0 | AP24: =SUM(R25:R26) -> 0 | AQ24: =SUM(S25:S26) -> 0 | AR24: =SUM(T25:T26) -> 0 | AS24: =SUM(U25:U26) -> 0 | AT24: 0 | AU24: 0 | AV24: 0 | AW24: 10 | AX24: 0 | AY24: 0 | AZ24: 0 | BA24: 0 | BB24: 0 | BC24: 0 | BD24: 0 | BE24: 10 | BF24: 0 | BG24: 0 | BH24: 0 | BI24: 0 | BJ24: 0 | BK24: 0 | BL24: 0
A25: Estructura General | B25: EG_01 | C25: 1 | D25: - | E25: Requerido | F25: 0 | G25: 0 | H25: =IF(AND(F25>=C25,F25>0),10,0) -> 0 | I25: =IF(AND(G25>=C25,C25>0,G25>=1),10,0) -> 0 | J25: =H25-I25 -> 0 | AG25: =IF(UPPER(E11)="REQUERIDO", 10, "") -> 10 | AH25: =IF(UPPER(E11)="REQUERIDO", H11, "") -> 0
A26: Instalaciones Generales | B26: IG_01 | C26: 1 | D26: - | E26: Requerido | F26: 0 | G26: 0 | H26: =IF(AND(F26>=C26,F26>0),10,0) -> 0 | I26: =IF(AND(G26>=C26,C26>0,G26>=1),10,0) -> 0 | J26: =H26-I26 -> 0 | Y26: =IF(UPPER(E12)="REQUERIDO", 10, "") -> 10 | Z26: =IF(UPPER(E12)="REQUERIDO", H12, "") -> 0
A27: ASISTENCIAL | AO27: =SUM(Q28:Q57) -> 70 | AP27: =SUM(R28:R57) -> 0 | AQ27: =SUM(S28:S57) -> 60 | AR27: =SUM(T28:T57) -> 0 | AS27: =SUM(U28:U57) -> 60 | AT27: 0 | AU27: 0 | AV27: 0 | AW27: =SUM(Y28:Y57) -> 20 | AX27: 0 | AY27: 10 | AZ27: 0 | BA27: 10 | BB27: 0 | BC27: 0 | BD27: 0 | BE27: =SUM(AG28:AG57) -> 20 | BF27: 0 | BG27: 10 | BH27: 0 | BI27: 10 | BJ27: 0 | BK27: 0 | BL27: 0
A28: INTERNACIÓN / RESIDENCIA | AO28: =SUM(Q30:Q57) -> 70 | AP28: =SUM(R30:R57) -> 0 | AQ28: =SUM(S30:S57) -> 60 | AR28: =SUM(T30:T57) -> 0 | AS28: =SUM(U30:U57) -> 60 | AT28: 0 | AU28: 0 | AV28: 0 | AW28: 20 | AX28: 0 | AY28: 10 | AZ28: 0 | BA28: 10 | BB28: 0 | BC28: 0 | BD28: 0 | BE28: 20 | BF28: 0 | BG28: 10 | BH28: 0 | BI28: 10 | BJ28: 0 | BK28: 0 | BL28: 0
A29: El establecimiento contará con infraestructura, y equipamiento adecuado diferenciado para el tratamiento de adultos, adultas, niños y adolescentes hombres, niñas y adolescentes mujeres. Las instalaciones pueden estar ubicadas en un mismo inmueble, sin embargo cada grupo etario (adultos, adultas), (niños y adolescentes hombres), (niñas y adolescentes mujeres) debe tener independencia y privacidad entre ellos, así como medidas de seguridad estrictas que garanticen la integridad de los pacientes con consumo problemático de alcohol y otras drogas
A30: ÁREA DE INTERNACIÓN/RESIDENCIA | AO30: =SUM(Q31:Q37) -> 40 | AP30: =SUM(R31:R37) -> 0 | AQ30: =SUM(S31:S37) -> 20 | AR30: =SUM(T31:T37) -> 0 | AS30: =SUM(U31:U37) -> 20 | AT30: 0 | AU30: 0 | AV30: 0 | AW30: 0 | AX30: 0 | AY30: 0 | AZ30: 0 | BA30: 0 | BB30: 0 | BC30: 0 | BD30: 0 | BE30: 0 | BF30: 0 | BG30: 0 | BH30: 0 | BI30: 0 | BJ30: 0 | BK30: 0 | BL30: 0
A31: AMBIENTES | B31: =B1 -> Anx: | C31: =C$1 -> Requerido: | D31: m² Util: | E31: Tipo: | F31: BUENO: | G31: MALO: | J31: Calif: | K31: Observaciones: | AO31: =SUM(Q32:Q37) -> 40 | AP31: =SUM(R32:R37) -> 0 | AQ31: =SUM(S32:S37) -> 20 | AR31: =SUM(T32:T37) -> 0 | AS31: =SUM(U32:U37) -> 20 | AT31: 0 | AU31: 0 | AV31: 0 | AW31: 0 | AX31: 0 | AY31: 0 | AZ31: 0 | BA31: 0 | BB31: 0 | BC31: 0 | BD31: 0 | BE31: 0 | BF31: 0 | BG31: 0 | BH31: 0 | BI31: 0 | BJ31: 0 | BK31: 0 | BL31: 0
A32: Habitación individual/múltiple | C32: 1 | D32: Por cada cama mínimo 5 m2, incluye mesita/velador de 60 cm de ancho por 40 cm de profundidad | E32: Requerido | F32: 0 | G32: 0 | H32: =IF(AND(F32>=C32,F32>0),10,0) -> 0 | I32: =IF(AND(G32>=C32,C32>0,G32>=1),10,0) -> 0 | J32: =H32-I32 -> 0 | Q32: =IF(UPPER(E32)="REQUERIDO", 10, "") -> 10 | R32: =IF(UPPER(E32)="REQUERIDO", H32, "") -> 0
A33: Baño de la habitación por puestos | C33: 1 | D33: Se debe calcular según cantidad de usuarios. Mínimo 3m2. | E33: Requerido | F33: 0 | G33: 0 | H33: 0 | I33: 0 | J33: 0 | Q33: =IF(UPPER(E33)="REQUERIDO", 10, "") -> 10 | R33: =IF(UPPER(E33)="REQUERIDO", H33, "") -> 0
A34: Baño de la habitación (compartido) | C34: 1 | E34: Requerido | F34: 0 | G34: 0 | H34: 0 | I34: 0 | J34: 0 | Q34: =IF(UPPER(E34)="REQUERIDO", 10, 0) -> 10 | R34: =IF(UPPER(E34)="REQUERIDO", H34, "") -> 0
A35: Estar de personal- Será requerido en caso de no contar con Habitación de personal | C35: 1 | D35: Dimensionar según demanda funcional- | E35: Condición | F35: 0 | G35: 0 | H35: 0 | I35: 0 | J35: 0 | S35: =IF(UPPER(E35)="CONDICIÓN", 10, 0) -> 10 | T35: =IF(UPPER(E35)="CONDICIÓN", H35, "") -> 0 | U35: =IF(UPPER(E35)="CONDICIÓN", 10, 0) -> 10 | V35: =IF(UPPER(E35)="CONDICIÓN", I35, "") -> 0
A36: Habitación del personal - Será requerido en caso de no contar con Estar de personal | C36: 1 | D36: Dimensionar según demanda funcional. Mínimo 9 m2 | E36: Condición | F36: 0 | G36: 0 | H36: 0 | I36: 0 | J36: 0 | S36: =IF(UPPER(E36)="CONDICIÓN", 10, 0) -> 10 | T36: =IF(UPPER(E36)="CONDICIÓN", H36,H36) -> 0 | U36: =IF(UPPER(E36)="CONDICIÓN", 10, 0) -> 10 | V36: =IF(UPPER(E36)="CONDICIÓN", I36, "") -> 0
A37: Baños para personal | C37: 1 | D37: Número de piezas sanitarias mínimo: Un inodoro y 1 lavamanos. | E37: Requerido | F37: 0 | G37: 0 | H37: 0 | I37: 0 | J37: 0 | Q37: =IF(UPPER(E37)="REQUERIDO", 10, 0) -> 10 | R37: =IF(UPPER(E37)="REQUERIDO", H37, "") -> 0
A38: INSTALACIONES | B38: =B1 -> Anx: | C38: =C$1 -> Requerido: | D38: m² Util: | E38: Tipo: | F38: BUENO: | G38: MALO: | J38: Calif: | K38: Observaciones: | AO38: =SUM(Q39:Q40) -> 0 | AP38: =SUM(R39:R40) -> 0 | AQ38: =SUM(S39:S40) -> 0 | AR38: =SUM(T39:T40) -> 0 | AS38: =SUM(U39:U40) -> 0 | AT38: 0 | AU38: 0 | AV38: 0 | AW38: 10 | AX38: 0 | AY38: 0 | AZ38: 0 | BA38: 0 | BB38: 0 | BC38: 0 | BD38: 0 | BE38: 10 | BF38: 0 | BG38: 0 | BH38: 0 | BI38: 0 | BJ38: 0 | BK38: 0 | BL38: 0
A39: Estructura General | B39: EG_01 | C39: 1 | D39: - | E39: Requerido | F39: 0 | G39: 0 | H39: =IF(AND(F39>=C39,F39>0),10,0) -> 0 | I39: =IF(AND(G39>=C39,C39>0,G39>=1),10,0) -> 0 | J39: =H39-I39 -> 0 | AG39: =IF(UPPER(E39)="REQUERIDO", 10, "") -> 10 | AH39: =IF(UPPER(E39)="REQUERIDO", H39, "") -> 0
A40: Instalaciones Generales | B40: IG_01 | C40: 1 | D40: - | E40: Requerido | F40: 0 | G40: 0 | H40: =IF(AND(F40>=C40,F40>0),10,0) -> 0 | I40: =IF(AND(G40>=C40,C40>0,G40>=1),10,0) -> 0 | J40: =H40-I40 -> 0 | Y40: =IF(UPPER(E40)="REQUERIDO", 10, "") -> 10 | Z40: =IF(UPPER(E40)="REQUERIDO", H40, "") -> 0 | AG40: =IF(UPPER(O40)="REQUERIDO", 10, "") ->  | AH40: =IF(UPPER(O40)="REQUERIDO", R40, "") -> 
A41: ÁREA DE SOPORTE Y SUMINISTROS | AO41: =SUM(Q42:Q49) -> 30 | AP41: =SUM(R42:R49) -> 0 | AQ41: =SUM(S42:S49) -> 10 | AR41: =SUM(T42:T49) -> 0 | AS41: =SUM(U42:U49) -> 10 | AT41: 0 | AU41: 0 | AV41: 0 | AW41: 10 | AX41: 0 | AY41: 0 | AZ41: 0 | BA41: 0 | BB41: 0 | BC41: 0 | BD41: 0 | BE41: 10 | BF41: 0 | BG41: 0 | BH41: 0 | BI41: 0 | BJ41: 0 | BK41: 0 | BL41: 0
A42: AMBIENTES | B42: =B1 -> Anx: | C42: =C$1 -> Requerido: | D42: m² Util: | E42: Tipo: | F42: BUENO: | G42: MALO: | J42: Calif: | K42: Observaciones: | AO42: =SUM(Q43:Q45) -> 30 | AP42: =SUM(R43:R45) -> 0 | AQ42: =SUM(S43:S45) -> 0 | AR42: =SUM(T43:T45) -> 0 | AS42: =SUM(U43:U45) -> 0 | AT42: 0 | AU42: 0 | AV42: 0 | AW42: 0 | AX42: 0 | AY42: 0 | AZ42: 0 | BA42: 0 | BB42: 0 | BC42: 0 | BD42: 0 | BE42: 0 | BF42: 0 | BG42: 0 | BH42: 0 | BI42: 0 | BJ42: 0 | BK42: 0 | BL42: 0
A43: Lencería | C43: 1 | D43: - | E43: Requerido | F43: 0 | G43: 0 | H43: =IF(AND(F43>=C43,F43>0),10,0) -> 0 | I43: =IF(AND(G43>=C43,C43>0,G43>=1),10,0) -> 0 | J43: =H43-I43 -> 0 | Q43: =IF(UPPER(E43)="REQUERIDO", 10, "") -> 10 | R43: =IF(UPPER(E43)="REQUERIDO", H43, "") -> 0
A44: Recepción y Clasificación de Ropa Usada | C44: 1 | D44: Dimensionar según demanda funcional | E44: Requerido | F44: 0 | G44: 0 | H44: =IF(AND(F44>=C44,F44>0),10,0) -> 0 | I44: =IF(AND(G44>=C44,C44>0,G44>=1),10,0) -> 0 | J44: =H44-I44 -> 0 | Q44: =IF(UPPER(E44)="REQUERIDO", 10, "") -> 10 | R44: =IF(UPPER(E44)="REQUERIDO", H44, "") -> 0
A45: Bodega General | C45: 1 | D45: Dimensionar según demanda funcional. | E45: Requerido | F45: 0 | G45: 0 | H45: =IF(AND(F45>=C45,F45>0),10,0) -> 0 | I45: =IF(AND(G45>=C45,C45>0,G45>=1),10,0) -> 0 | J45: =H45-I45 -> 0 | Q45: =IF(UPPER(E45)="REQUERIDO", 10, "") -> 10 | R45: =IF(UPPER(E45)="REQUERIDO", H45, "") -> 0
A46: Estación de enfermería | C46: 1 | D46: Dimensionar según demanda funcional. | E46: Condición | F46: 0 | G46: 0 | H46: =IF(AND(F46>=C46,F46>0),10,0) -> 0 | I46: =IF(AND(G46>=C46,C46>0,G46>=1),10,0) -> 0 | J46: =H46-I46 -> 0 | S46: =IF(UPPER(E46)="CONDICIÓN", 10, 0) -> 10 | T46: =IF(UPPER(E46)="CONDICIÓN", H46, "") -> 0 | U46: =IF(UPPER(E46)="CONDICIÓN", 10, 0) -> 10 | V46: =IF(UPPER(E46)="CONDICIÓN", I46, "") -> 0
A47: INSTALACIONES | B47: =B1 -> Anx: | C47: =C$1 -> Requerido: | D47: =D$1 -> m² Util: | E47: Tipo: | F47: BUENO: | G47: MALO: | J47: Calif: | K47: Observaciones: | AO47: =SUM(Q48:Q49) -> 0 | AP47: =SUM(R48:R49) -> 0 | AQ47: =SUM(S48:S49) -> 0 | AR47: =SUM(T48:T49) -> 0 | AS47: =SUM(U48:U49) -> 0 | AT47: 0 | AU47: 0 | AV47: 0 | AW47: 10 | AX47: 0 | AY47: 0 | AZ47: 0 | BA47: 0 | BB47: 0 | BC47: 0 | BD47: 0 | BE47: 10 | BF47: 0 | BG47: 0 | BH47: 0 | BI47: 0 | BJ47: 0 | BK47: 0 | BL47: 0
A48: Estructura General | B48: EG_01 | C48: 1 | D48: - | E48: Requerido | F48: 0 | G48: 0 | H48: =IF(AND(F48>=C48,F48>0),10,0) -> 0 | I48: =IF(AND(G48>=C48,C48>0,G48>=1),10,0) -> 0 | J48: =H48-I48 -> 0 | AG48: =IF(UPPER(E48)="REQUERIDO", 10, "") -> 10 | AH48: =IF(UPPER(E48)="REQUERIDO", H48, "") -> 0
A49: Instalaciones Generales | B49: IG_01 | C49: 1 | D49: - | E49: Requerido | F49: 0 | G49: 0 | H49: =IF(AND(F49>=C49,F49>0),10,0) -> 0 | I49: =IF(AND(G49>=C49,C49>0,G49>=1),10,0) -> 0 | J49: =H49-I49 -> 0 | Y49: =IF(UPPER(E49)="REQUERIDO", 10, "") -> 10 | Z49: =IF(UPPER(E49)="REQUERIDO", H49, "") -> 0 | AG49: =IF(UPPER(O49)="REQUERIDO", 10, "") ->  | AH49: =IF(UPPER(O49)="REQUERIDO", R49, "") -> 
A50: ÁREA DEL PERSONAL | AO50: =SUM(Q51:Q57) -> 0 | AP50: =SUM(R51:R57) -> 0 | AQ50: =SUM(S51:S57) -> 30 | AR50: =SUM(T51:T57) -> 0 | AS50: =SUM(U51:U57) -> 30 | AT50: 0 | AU50: 0 | AV50: 0 | AW50: 0 | AX50: 0 | AY50: 10 | AZ50: 0 | BA50: 10 | BB50: 0 | BC50: 0 | BD50: 0 | BE50: 0 | BF50: 0 | BG50: 10 | BH50: 0 | BI50: 10 | BJ50: 0 | BK50: 0 | BL50: 0
A51: AMBIENTES | B51: =B10 -> Anx: | C51: =C$1 -> Requerido: | D51: m² Util: | E51: Tipo: | F51: BUENO: | G51: MALO: | J51: Calif: | K51: Observaciones: | AO51: =SUM(Q51:Q57) -> 0 | AP51: =SUM(R51:R57) -> 0 | AQ51: =SUM(S51:S57) -> 30 | AR51: =SUM(T51:T57) -> 0 | AS51: =SUM(U51:U57) -> 30 | AT51: 0 | AU51: 0 | AV51: 0 | AW51: 0 | AX51: 0 | AY51: 10 | AZ51: 0 | BA51: 10 | BB51: 0 | BC51: 0 | BD51: 0 | BE51: 0 | BF51: 0 | BG51: 10 | BH51: 0 | BI51: 10 | BJ51: 0 | BK51: 0 | BL51: 0
A52: Sala de Uso múltiple | C52: 1 | D52: Dimensionar según demanda funcional | E52: Condición | F52: 0 | G52: 0 | H52: =IF(AND(F52>=C52,F52>0),10,0) -> 0 | I52: =IF(AND(G52>=C52,C52>0,G52>=1),10,0) -> 0 | J52: =H52-I52 -> 0 | S52: =IF(UPPER(E52)="CONDICIÓN", 10, 0) -> 10 | T52: =IF(UPPER(E52)="CONDICIÓN", H52, "") -> 0 | U52: =IF(UPPER(E52)="CONDICIÓN", 10, 0) -> 10 | V52: =IF(UPPER(E52)="CONDICIÓN", I52, "") -> 0
A53: Vestidores | C53: 1 | D53: Dimensionar según demanda funcional | E53: Condición | F53: 0 | G53: 0 | H53: =IF(AND(F53>=C53,F53>0),10,0) -> 0 | I53: =IF(AND(G53>=C53,C53>0,G53>=1),10,0) -> 0 | J53: =H53-I53 -> 0 | S53: =IF(UPPER(E53)="CONDICIÓN", 10, 0) -> 10 | T53: =IF(UPPER(E53)="CONDICIÓN", H53, "") -> 0 | U53: =IF(UPPER(E53)="CONDICIÓN", 10, 0) -> 10 | V53: =IF(UPPER(E53)="CONDICIÓN", I53, "") -> 0
A54: Baño de vestidores | C54: 1 | D54: Dimensionar según demanda funcional | E54: Condición | F54: 0 | G54: 0 | H54: =IF(AND(F54>=C54,F54>0),10,0) -> 0 | I54: =IF(AND(G54>=C54,C54>0,G54>=1),10,0) -> 0 | J54: =H54-I54 -> 0 | S54: =IF(UPPER(E54)="CONDICIÓN", 10, 0) -> 10 | T54: =IF(UPPER(E54)="CONDICIÓN", H54, "") -> 0 | U54: =IF(UPPER(E54)="CONDICIÓN", 10, 0) -> 10 | V54: =IF(UPPER(E54)="CONDICIÓN", I54, "") -> 0
A55: INSTALACIONES | B55: =B10 -> Anx: | C55: =C$1 -> Requerido: | D55: m² Util: | E55: Tipo: | F55: BUENO: | G55: MALO: | J55: Calif: | K55: Observaciones: | AO55: =SUM(Q56:Q57) -> 0 | AP55: =SUM(R56:R57) -> 0 | AQ55: =SUM(S56:S57) -> 0 | AR55: =SUM(T56:T57) -> 0 | AS55: =SUM(U56:U57) -> 0 | AT55: 0 | AU55: 0 | AV55: 0 | AW55: 0 | AX55: 0 | AY55: 10 | AZ55: 0 | BA55: 10 | BB55: 0 | BC55: 0 | BD55: 0 | BE55: 0 | BF55: 0 | BG55: 10 | BH55: 0 | BI55: 10 | BJ55: 0 | BK55: 0 | BL55: 0
A56: Estructura General | B56: EG_01 | C56: 1 | D56: - | E56: Condición | F56: 0 | G56: 0 | H56: =IF(AND(F56>=C56,F56>0),10,0) -> 0 | I56: =IF(AND(G56>=C56,C56>0,G56>=1),10,0) -> 0 | J56: =H56-I56 -> 0 | AI56: =IF(UPPER(E56)="CONDICIÓN", 10, 0) -> 10 | AJ56: =IF(UPPER(E56)="CONDICIÓN", H56, "") -> 0 | AK56: =IF(UPPER(E56)="CONDICIÓN", 10, 0) -> 10 | AL56: =IF(UPPER(E56)="CONDICIÓN", I56, "") -> 0
A57: Instalaciones Generales | B57: IG_01 | C57: 1 | D57: - | E57: Condición | F57: 0 | G57: 0 | H57: =IF(AND(F57>=C57,F57>0),10,0) -> 0 | I57: =IF(AND(G57>=C57,C57>0,G57>=1),10,0) -> 0 | J57: =H57-I57 -> 0 | AA57: =IF(UPPER(E57)="CONDICIÓN", 10, 0) -> 10 | AB57: =IF(UPPER(E57)="CONDICIÓN", H57, "") -> 0 | AC57: =IF(UPPER(E57)="CONDICIÓN", 10, 0) -> 10 | AD57: =IF(UPPER(E57)="CONDICIÓN", I57, "") -> 0
A58: APOYO TERAPEÚTICO | AO58: =SUM(Q59:Q67) -> 20 | AP58: =SUM(R59:R67) -> 0 | AQ58: =SUM(S59:S67) -> 0 | AR58: =SUM(T59:T67) -> 0 | AS58: =SUM(U59:U67) -> 0 | AT58: 0 | AU58: 0 | AV58: 0 | AW58: 10 | AX58: 0 | AY58: 0 | AZ58: 0 | BA58: 0 | BB58: 0 | BC58: 0 | BD58: 0 | BE58: 10 | BF58: 0 | BG58: 0 | BH58: 0 | BI58: 0 | BJ58: 0 | BK58: 0 | BL58: 0
A59: DOTACIÓN DE MEDICAMENTOS Y DISPOSITIVOS MÉDICOS (FARMACIA) | AO59: =SUM(Q61:Q67) -> 20 | AP59: =SUM(R61:R67) -> 0 | AQ59: =SUM(S61:S67) -> 0 | AR59: =SUM(T61:T67) -> 0 | AS59: =SUM(U61:U67) -> 0 | AT59: 0 | AU59: 0 | AV59: 0 | AW59: 10 | AX59: 0 | AY59: 0 | AZ59: 0 | BA59: 0 | BB59: 0 | BC59: 0 | BD59: 0 | BE59: 10 | BF59: 0 | BG59: 0 | BH59: 0 | BI59: 0 | BJ59: 0 | BK59: 0 | BL59: 0
A60: En el caso de que el CETAD dependa de un Establecimiento, corresponderá al profesional farmacéutico del mismo, realizar la gestión del suministro de medicamentos y el control de las sustancias psicotrópicas y estupefacientes; caso contrario, cada CETAD deberá disponer de un profesional farmacéutico.
A61: ÁREA DE FARMACIA | AO61: =SUM(Q62:Q67) -> 20 | AP61: =SUM(R62:R67) -> 0 | AQ61: =SUM(S62:S67) -> 0 | AR61: =SUM(T62:T67) -> 0 | AS61: =SUM(U62:U67) -> 0 | AT61: 0 | AU61: 0 | AV61: 0 | AW61: 10 | AX61: 0 | AY61: 0 | AZ61: 0 | BA61: 0 | BB61: 0 | BC61: 0 | BD61: 0 | BE61: 10 | BF61: 0 | BG61: 0 | BH61: 0 | BI61: 0 | BJ61: 0 | BK61: 0 | BL61: 0
A62: AMBIENTES | B62: =B1 -> Anx: | C62: =C$1 -> Requerido: | D62: m² Util: | E62: Tipo: | F62: BUENO: | G62: MALO: | J62: Calif: | K62: Observaciones: | AO62: =SUM(Q63:Q64) -> 20 | AP62: =SUM(R63:R64) -> 0 | AQ62: =SUM(S63:S64) -> 0 | AR62: =SUM(T63:T64) -> 0 | AS62: =SUM(U63:U64) -> 0 | AT62: 0 | AU62: 0 | AV62: 0 | AW62: 0 | AX62: 0 | AY62: 0 | AZ62: 0 | BA62: 0 | BB62: 0 | BC62: 0 | BD62: 0 | BE62: 0 | BF62: 0 | BG62: 0 | BH62: 0 | BI62: 0 | BJ62: 0 | BK62: 0 | BL62: 0
A63: Dispensación | C63: 1 | D63: Dimensionar según la demanda funcional | E63: Requerido | F63: 0 | G63: 0 | H63: =IF(AND(F63>=C63,F63>0),10,0) -> 0 | I63: =IF(AND(G63>=C63,C63>0,G63>=1),10,0) -> 0 | J63: =H63-I63 -> 0 | Q63: =IF(UPPER(E63)="REQUERIDO", 10, "") -> 10 | R63: =IF(UPPER(E63)="REQUERIDO", H63, "") -> 0
A64: Bodega | C64: 1 | D64: Dimensionar según la demanda funcional | E64: Requerido | F64: 0 | G64: 0 | H64: =IF(AND(F64>=C64,F64>0),10,0) -> 0 | I64: =IF(AND(G64>=C64,C64>0,G64>=1),10,0) -> 0 | J64: =H64-I64 -> 0 | Q64: =IF(UPPER(E64)="REQUERIDO", 10, "") -> 10 | R64: =IF(UPPER(E64)="REQUERIDO", H64, "") -> 0
A65: INSTALACIONES | B65: =B1 -> Anx: | C65: =C$1 -> Requerido: | D65: m² Util: | E65: Tipo: | F65: BUENO: | G65: MALO: | J65: Calif: | K65: Observaciones: | AO65: =SUM(Q66:Q67) -> 0 | AP65: =SUM(R66:R67) -> 0 | AQ65: =SUM(S66:S67) -> 0 | AR65: =SUM(T66:T67) -> 0 | AS65: =SUM(U66:U67) -> 0 | AT65: 0 | AU65: 0 | AV65: 0 | AW65: 10 | AX65: 0 | AY65: 0 | AZ65: 0 | BA65: 0 | BB65: 0 | BC65: 0 | BD65: 0 | BE65: 10 | BF65: 0 | BG65: 0 | BH65: 0 | BI65: 0 | BJ65: 0 | BK65: 0 | BL65: 0
A66: Estructura General | B66: EG_01 | C66: 1 | D66: - | E66: Requerido | F66: 0 | G66: 0 | H66: =IF(AND(F66>=C66,F66>0),10,0) -> 0 | I66: =IF(AND(G66>=C66,C66>0,G66>=1),10,0) -> 0 | J66: =H66-I66 -> 0 | AG66: =IF(UPPER(E66)="REQUERIDO", 10, "") -> 10 | AH66: =IF(UPPER(E66)="REQUERIDO", H66, "") -> 0
A67: Instalaciones Generales | B67: IG_01 | C67: 1 | D67: - | E67: Requerido | F67: 0 | G67: 0 | H67: =IF(AND(F67>=C67,F67>0),10,0) -> 0 | I67: =IF(AND(G67>=C67,C67>0,G67>=1),10,0) -> 0 | J67: =H67-I67 -> 0 | Y67: =IF(UPPER(E67)="REQUERIDO", 10, "") -> 10 | Z67: =IF(UPPER(E67)="REQUERIDO", H67, "") -> 0
A68: APOYO DIAGNÓSTICO Y TERAPEÚTICO | AO68: =SUM(Q69:Q78) -> 20 | AP68: =SUM(R69:R78) -> 0 | AQ68: =SUM(S69:S78) -> 20 | AR68: =SUM(T69:T78) -> 0 | AS68: =SUM(U69:U78) -> 20 | AT68: 0 | AU68: 0 | AV68: 0 | AW68: 10 | AX68: 0 | AY68: 0 | AZ68: 0 | BA68: 0 | BB68: 0 | BC68: 0 | BD68: 0 | BE68: 10 | BF68: 0 | BG68: 0 | BH68: 0 | BI68: 0 | BJ68: 0 | BK68: 0 | BL68: 0
A69: REHABILITACIÓN | AO69: =SUM(Q70:Q78) -> 20 | AP69: =SUM(R70:R78) -> 0 | AQ69: =SUM(S70:S78) -> 20 | AR69: =SUM(T70:T78) -> 0 | AS69: =SUM(U70:U78) -> 20 | AT69: 0 | AU69: 0 | AV69: 0 | AW69: 10 | AX69: 0 | AY69: 0 | AZ69: 0 | BA69: 0 | BB69: 0 | BC69: 0 | BD69: 0 | BE69: 10 | BF69: 0 | BG69: 0 | BH69: 0 | BI69: 0 | BJ69: 0 | BK69: 0 | BL69: 0
A70: ÁREA DE TERAPIAS | AO70: =SUM(Q71:Q78) -> 20 | AP70: =SUM(R71:R78) -> 0 | AQ70: =SUM(S71:S78) -> 20 | AR70: =SUM(T71:T78) -> 0 | AS70: =SUM(U71:U78) -> 20 | AT70: 0 | AU70: 0 | AV70: 0 | AW70: 10 | AX70: 0 | AY70: 0 | AZ70: 0 | BA70: 0 | BB70: 0 | BC70: 0 | BD70: 0 | BE70: 10 | BF70: 0 | BG70: 0 | BH70: 0 | BI70: 0 | BJ70: 0 | BK70: 0 | BL70: 0
A71: AMBIENTES | B71: =B1 -> Anx: | C71: =C$1 -> Requerido: | D71: m² Util: | E71: Tipo: | F71: BUENO: | G71: MALO: | J71: Calif: | K71: Observaciones: | AO71: =SUM(Q72:Q75) -> 20 | AP71: =SUM(R72:R75) -> 0 | AQ71: =SUM(S72:S75) -> 20 | AR71: =SUM(T72:T75) -> 0 | AS71: =SUM(U72:U75) -> 20 | AT71: 0 | AU71: 0 | AV71: 0 | AW71: 0 | AX71: 0 | AY71: 0 | AZ71: 0 | BA71: 0 | BB71: 0 | BC71: 0 | BD71: 0 | BE71: 0 | BF71: 0 | BG71: 0 | BH71: 0 | BI71: 0 | BJ71: 0 | BK71: 0 | BL71: 0
A72: Taller ocupacional y de uso múltiple | C72: 1 | D72: Dimensionar según la demanda funcional | E72: Requerido | F72: 0 | G72: 0 | H72: =IF(AND(F72>=C72,F72>0),10,0) -> 0 | I72: =IF(AND(G72>=C72,C72>0,G72>=1),10,0) -> 0 | J72: =H72-I72 -> 0 | Q72: =IF(UPPER(E72)="REQUERIDO", 10, "") -> 10 | R72: =IF(UPPER(E72)="REQUERIDO", H72, "") -> 0
A73: Gimnasio/Áreas deportivas | C73: 1 | D73: Dimensionar según la demanda funcional | E73: Requerido | F73: 0 | G73: 0 | H73: =IF(AND(F73>=C73,F73>0),10,0) -> 0 | I73: =IF(AND(G73>=C73,C73>0,G73>=1),10,0) -> 0 | J73: =H73-I73 -> 0 | Q73: =IF(UPPER(E73)="REQUERIDO", 10, "") -> 10 | R73: =IF(UPPER(E73)="REQUERIDO", H73, "") -> 0
A74: Sala de Cinesiterapia | C74: 1 | D74: - | E74: Condición | F74: 0 | G74: 0 | H74: =IF(AND(F74>=C74,F74>0),10,0) -> 0 | I74: =IF(AND(G74>=C74,C74>0,G74>=1),10,0) -> 0 | J74: =H74-I74 -> 0 | S74: =IF(UPPER(E74)="CONDICIÓN", 10, 0) -> 10 | T74: =IF(UPPER(E74)="CONDICIÓN", H74, "") -> 0 | U74: =IF(UPPER(E74)="CONDICIÓN", 10, 0) -> 10 | V74: =IF(UPPER(E74)="CONDICIÓN", I74, "") -> 0
A75: Baño/Baterías sanitarias-se aceptará en el caso de que este compartido con otro servicio pero debe tener acceso directo pero si no esta accesible será requerido. | C75: 1 | D75: Dimensionar según la demanda funcional | E75: Condición | F75: 0 | G75: 0 | H75: =IF(AND(F75>=C75,F75>0),10,0) -> 0 | I75: =IF(AND(G75>=C75,C75>0,G75>=1),10,0) -> 0 | J75: =H75-I75 -> 0 | Q75: =IF(UPPER(E75)="REQUERIDO", 10, "") ->  | R75: =IF(UPPER(E75)="REQUERIDO", H75, "") ->  | S75: =IF(UPPER(E75)="CONDICIÓN", 10, 0) -> 10 | T75: =IF(UPPER(E75)="CONDICIÓN", H75, "") -> 0 | U75: =IF(UPPER(E75)="CONDICIÓN", 10, 0) -> 10 | V75: =IF(UPPER(E75)="CONDICIÓN", I75, "") -> 0
A76: INSTALACIONES | B76: =B1 -> Anx: | C76: =C$1 -> Requerido: | D76: m² Util: | E76: Tipo: | F76: BUENO: | G76: MALO: | J76: Calif: | K76: Observaciones: | AO76: =SUM(Q77:Q78) -> 0 | AP76: =SUM(R77:R78) -> 0 | AQ76: =SUM(S77:S78) -> 0 | AR76: =SUM(T77:T78) -> 0 | AS76: =SUM(U77:U78) -> 0 | AT76: 0 | AU76: 0 | AV76: 0 | AW76: 10 | AX76: 0 | AY76: 0 | AZ76: 0 | BA76: 0 | BB76: 0 | BC76: 0 | BD76: 0 | BE76: 10 | BF76: 0 | BG76: 0 | BH76: 0 | BI76: 0 | BJ76: 0 | BK76: 0 | BL76: 0
A77: Estructura General | B77: EG_01 | C77: 1 | D77: - | E77: Requerido | F77: 0 | G77: 0 | H77: =IF(AND(F77>=C77,F77>0),10,0) -> 0 | I77: =IF(AND(G77>=C77,C77>0,G77>=1),10,0) -> 0 | J77: =H77-I77 -> 0 | AG77: =IF(UPPER(E77)="REQUERIDO", 10, "") -> 10 | AH77: =IF(UPPER(E77)="REQUERIDO", H77, "") -> 0
A78: Instalaciones Generales | B78: IG_01 | C78: 1 | D78: - | E78: Requerido | F78: 0 | G78: 0 | H78: =IF(AND(F78>=C78,F78>0),10,0) -> 0 | I78: =IF(AND(G78>=C78,C78>0,G78>=1),10,0) -> 0 | J78: =H78-I78 -> 0 | Y78: =IF(UPPER(E78)="REQUERIDO", 10, "") -> 10 | Z78: =IF(UPPER(E78)="REQUERIDO", H78, "") -> 0
A79: APOYO TERAPEÚTICO | AO79: =SUM(Q80:Q98) -> 70 | AP79: =SUM(R80:R98) -> 0 | AQ79: =SUM(S80:S98) -> 10 | AR79: =SUM(T80:T98) -> 0 | AS79: =SUM(U80:U98) -> 10 | AT79: 0 | AU79: 0 | AV79: 0 | AW79: 20 | AX79: 0 | AY79: 0 | AZ79: 0 | BA79: 0 | BB79: 0 | BC79: 0 | BD79: 0 | BE79: 20 | BF79: 0 | BG79: 0 | BH79: 0 | BI79: 0 | BJ79: 0 | BK79: 0 | BL79: 0
A80: NUTRICIÓN Y DIETÉTICA | AO80: =SUM(Q81:Q98) -> 70 | AP80: =SUM(R81:R98) -> 0 | AQ80: =SUM(S81:S98) -> 10 | AR80: =SUM(T81:T98) -> 0 | AS80: =SUM(U81:U98) -> 10 | AT80: 0 | AU80: 0 | AV80: 0 | AW80: 20 | AX80: 0 | AY80: 0 | AZ80: 0 | BA80: 0 | BB80: 0 | BC80: 0 | BD80: 0 | BE80: 20 | BF80: 0 | BG80: 0 | BH80: 0 | BI80: 0 | BJ80: 0 | BK80: 0 | BL80: 0
A81: ÁREA DE COMEDOR | AO81: =SUM(Q82:Q84) -> 10 | AP81: =SUM(R82:R84) -> 0 | AQ81: =SUM(S82:S84) -> 10 | AR81: =SUM(T82:T84) -> 0 | AS81: =SUM(U82:U84) -> 10 | AT81: 0 | AU81: 0 | AV81: 0 | AW81: 0 | AX81: 0 | AY81: 0 | AZ81: 0 | BA81: 0 | BB81: 0 | BC81: 0 | BD81: 0 | BE81: 0 | BF81: 0 | BG81: 0 | BH81: 0 | BI81: 0 | BJ81: 0 | BK81: 0 | BL81: 0
A82: AMBIENTES | B82: =B1 -> Anx: | C82: =C$1 -> Requerido: | D82: m² Util: | E82: Tipo: | F82: =F$1 -> BUENO: | G82: MALO: | J82: Calif: | K82: Observaciones: | AO82: =SUM(Q83:Q84) -> 10 | AP82: =SUM(R83:R84) -> 0 | AQ82: =SUM(S83:S84) -> 10 | AR82: =SUM(T83:T84) -> 0 | AS82: =SUM(U83:U84) -> 10 | AT82: 0 | AU82: 0 | AV82: 0 | AW82: 0 | AX82: 0 | AY82: 0 | AZ82: 0 | BA82: 0 | BB82: 0 | BC82: 0 | BD82: 0 | BE82: 0 | BF82: 0 | BG82: 0 | BH82: 0 | BI82: 0 | BJ82: 0 | BK82: 0 | BL82: 0
A83: Comedor | C83: 1 | D83: Dimensionar según la demanda funcional | E83: Requerido | F83: 0 | G83: 0 | H83: =IF(AND(F83>=C83,F83>0),10,0) -> 0 | I83: =IF(AND(G83>=C83,C83>0,G83>=1),10,0) -> 0 | J83: =H83-I83 -> 0 | Q83: =IF(UPPER(E83)="REQUERIDO", 10,"") -> 10 | R83: =IF(UPPER(E83)="REQUERIDO", H83, "") -> 0
A84: Baño- será requerido en el caso que el ambiente no esté accesible | C84: 1 | D84: Dimensionar según la demanda funcional | E84: Condición | F84: 0 | G84: 0 | H84: =IF(AND(F84>=C84,F84>0),10,0) -> 0 | I84: =IF(AND(G84>=C84,C84>0,G84>=1),10,0) -> 0 | J84: =H84-I84 -> 0 | S84: =IF(UPPER(E84)="CONDICIÓN", 10, 0) -> 10 | T84: =IF(UPPER(E84)="CONDICIÓN", H84, "") -> 0 | U84: =IF(UPPER(E84)="CONDICIÓN", 10, 0) -> 10 | V84: =IF(UPPER(E84)="CONDICIÓN", I84, "") -> 0
A85: INSTALACIONES | B85: =B1 -> Anx: | C85: =C$1 -> Requerido: | D85: m² Util: | E85: Tipo: | F85: BUENO: | G85: MALO: | J85: Calif: | K85: Observaciones: | AO85: =SUM(Q86:Q87) -> 0 | AP85: =SUM(R86:R87) -> 0 | AQ85: =SUM(S86:S87) -> 0 | AR85: =SUM(T86:T87) -> 0 | AS85: =SUM(U86:U87) -> 0 | AT85: 0 | AU85: 0 | AV85: 0 | AW85: 10 | AX85: 0 | AY85: 0 | AZ85: 0 | BA85: 0 | BB85: 0 | BC85: 0 | BD85: 0 | BE85: 10 | BF85: 0 | BG85: 0 | BH85: 0 | BI85: 0 | BJ85: 0 | BK85: 0 | BL85: 0
A86: Estructura General | B86: EG_01 | C86: 1 | D86: - | E86: Requerido | F86: 0 | G86: 0 | H86: =IF(AND(F86>=C86,F86>0),10,0) -> 0 | I86: =IF(AND(G86>=C86,C86>0,G86>=1),10,0) -> 0 | J86: =H86-I86 -> 0 | AG86: =IF(UPPER(E86)="REQUERIDO", 10, "") -> 10 | AH86: =IF(UPPER(E86)="REQUERIDO", H86, "") -> 0
A87: Instalaciones Generales | B87: IG_01 | C87: 1 | D87: - | E87: Requerido | F87: 0 | G87: 0 | H87: =IF(AND(F87>=C87,F87>0),10,0) -> 0 | I87: =IF(AND(G87>=C87,C87>0,G87>=1),10,0) -> 0 | J87: =H87-I87 -> 0 | Y87: =IF(UPPER(E87)="REQUERIDO", 10, "") -> 10 | Z87: =IF(UPPER(E87)="REQUERIDO", H87, "") -> 0 | AG87: =IF(UPPER(O87)="REQUERIDO", 10, "") ->  | AH87: =IF(UPPER(O87)="REQUERIDO", R87, "") -> 
A88: ÁREA TÉCNICA DE COCINA | AO88: =SUM(Q89:Q98) -> 60 | AP88: =SUM(R89:R98) -> 0 | AQ88: =SUM(S89:S98) -> 0 | AR88: =SUM(T89:T98) -> 0 | AS88: =SUM(U89:U98) -> 0 | AT88: 0 | AU88: 0 | AV88: 0 | AW88: 10 | AX88: 0 | AY88: 0 | AZ88: 0 | BA88: 0 | BB88: 0 | BC88: 0 | BD88: 0 | BE88: 10 | BF88: 0 | BG88: 0 | BH88: 0 | BI88: 0 | BJ88: 0 | BK88: 0 | BL88: 0
A89: AMBIENTES | B89: =B1 -> Anx: | C89: =C$1 -> Requerido: | D89: m² Util: | E89: Tipo: | F89: BUENO: | G89: MALO: | J89: Calif: | K89: Observaciones: | AO89: =SUM(Q90:Q95) -> 60 | AP89: =SUM(R90:R95) -> 0 | AQ89: =SUM(S90:S95) -> 0 | AR89: =SUM(T90:T95) -> 0 | AS89: =SUM(U90:U95) -> 0 | AT89: 0 | AU89: 0 | AV89: 0 | AW89: 0 | AX89: 0 | AY89: 0 | AZ89: 0 | BA89: 0 | BB89: 0 | BC89: 0 | BD89: 0 | BE89: 0 | BF89: 0 | BG89: 0 | BH89: 0 | BI89: 0 | BJ89: 0 | BK89: 0 | BL89: 0
A90: Bodega para Almacenamiento diferenciado de productos no perecibles, perecibles | C90: 1 | D90: Dimensionar según la demanda funcional | E90: Requerido | F90: 0 | G90: 0 | H90: =IF(AND(F90>=C90,F90>0),10,0) -> 0 | I90: =IF(AND(G90>=C90,C90>0,G90>=1),10,0) -> 0 | J90: =H90-I90 -> 0 | Q90: =IF(UPPER(E90)="REQUERIDO", 10, "") -> 10 | R90: =IF(UPPER(E90)="REQUERIDO", H90, "") -> 0
A91: Zona de Refrigeradores y Congeladores - puede estar en la bodega para almacenamiento diferenciado de productos o en la zona preparación de alimentos | C91: 1 | D91: Dimensionar según la demanda funcional | E91: Requerido | F91: 0 | G91: 0 | H91: 0 | I91: 0 | J91: 0 | Q91: 10 | R91: 0
A92: Preparación de alimentos y lavado de menaje de cocina | C92: 1 | D92: Dimensionar según la demanda funcional | E92: Requerido | F92: 0 | G92: 0 | H92: 0 | I92: 0 | J92: 0 | Q92: 10 | R92: 0
A93: Zona de cocción | C93: 1 | D93: Dimensionar según la demanda funcional | E93: Requerido | F93: 0 | G93: 0 | H93: 0 | I93: 0 | J93: 0 | Q93: 10 | R93: 0
A94: Bodega/Almacenamiento de menaje | C94: 1 | D94: Dimensionar según la demanda funcional | E94: Requerido | F94: 0 | G94: 0 | H94: 0 | I94: 0 | J94: 0 | Q94: 10 | R94: 0
A95: Cuarto de limpieza | C95: 1 | D95: Dimensionar según la demanda funcional | E95: Requerido | F95: 0 | G95: 0 | H95: 0 | I95: 0 | J95: 0 | Q95: 10 | R95: 0
A96: INSTALACIONES | B96: =B1 -> Anx: | C96: =C$1 -> Requerido: | D96: m² Util: | E96: Tipo: | F96: BUENO: | G96: MALO: | J96: Calif: | K96: Observaciones: | AO96: =SUM(Q97:Q98) -> 0 | AP96: =SUM(R97:R98) -> 0 | AQ96: =SUM(S97:S98) -> 0 | AR96: =SUM(T97:T98) -> 0 | AS96: =SUM(U97:U98) -> 0 | AT96: 0 | AU96: 0 | AV96: 0 | AW96: 10 | AX96: 0 | AY96: 0 | AZ96: 0 | BA96: 0 | BB96: 0 | BC96: 0 | BD96: 0 | BE96: 10 | BF96: 0 | BG96: 0 | BH96: 0 | BI96: 0 | BJ96: 0 | BK96: 0 | BL96: 0
A97: Estructura General | B97: EG_01 | C97: 1 | D97: - | E97: Requerido | F97: 0 | G97: 0 | H97: =IF(AND(F97>=C97,F97>0),10,0) -> 0 | I97: =IF(AND(G97>=C97,C97>0,G97>=1),10,0) -> 0 | J97: =H97-I97 -> 0 | AG97: =IF(UPPER(E97)="REQUERIDO", 10, "") -> 10 | AH97: =IF(UPPER(E97)="REQUERIDO", H97, "") -> 0
A98: Instalaciones Generales | B98: IG_01 | C98: 1 | D98: - | E98: Requerido | F98: 0 | G98: 0 | H98: =IF(AND(F98>=C98,F98>0),10,0) -> 0 | I98: =IF(AND(G98>=C98,C98>0,G98>=1),10,0) -> 0 | J98: =H98-I98 -> 0 | Y98: =IF(UPPER(E98)="REQUERIDO", 10, "") -> 10 | Z98: =IF(UPPER(E98)="REQUERIDO", H98, "") -> 0 | AG98: =IF(UPPER(O98)="REQUERIDO", 10, "") ->  | AH98: =IF(UPPER(O98)="REQUERIDO", R98, "") -> 
A99: ADMINISTRATIVO | AO99: =SUM(Q100:Q109) -> 20 | AP99: =SUM(R100:R109) -> 0 | AQ99: =SUM(S100:S109) -> 20 | AR99: =SUM(T100:T109) -> 0 | AS99: =SUM(U100:U109) -> 20 | AT99: 0 | AU99: 0 | AV99: 0 | AW99: 10 | AX99: 0 | AY99: 0 | AZ99: 0 | BA99: 0 | BB99: 0 | BC99: 0 | BD99: 0 | BE99: 10 | BF99: 0 | BG99: 0 | BH99: 0 | BI99: 0 | BJ99: 0 | BK99: 0 | BL99: 0
A100: ADMINISTRACIÓN TÉCNICA | AO100: =SUM(Q101:Q109) -> 20 | AP100: =SUM(R101:R109) -> 0 | AQ100: =SUM(S101:S109) -> 20 | AR100: =SUM(T101:T109) -> 0 | AS100: =SUM(U101:U109) -> 20 | AT100: 0 | AU100: 0 | AV100: 0 | AW100: 10 | AX100: 0 | AY100: 0 | AZ100: 0 | BA100: 0 | BB100: 0 | BC100: 0 | BD100: 0 | BE100: 10 | BF100: 0 | BG100: 0 | BH100: 0 | BI100: 0 | BJ100: 0 | BK100: 0 | BL100: 0
A101: ÁREA TÉCNICA | AO101: =SUM(Q102:Q109) -> 20 | AP101: =SUM(R102:R109) -> 0 | AQ101: =SUM(S102:S109) -> 20 | AR101: =SUM(T102:T109) -> 0 | AS101: =SUM(U102:U109) -> 20 | AT101: 0 | AU101: 0 | AV101: 0 | AW101: 10 | AX101: 0 | AY101: 0 | AZ101: 0 | BA101: 0 | BB101: 0 | BC101: 0 | BD101: 0 | BE101: 10 | BF101: 0 | BG101: 0 | BH101: 0 | BI101: 0 | BJ101: 0 | BK101: 0 | BL101: 0
A102: AMBIENTES | B102: =B1 -> Anx: | C102: =C$1 -> Requerido: | D102: m² Util: | E102: Tipo: | F102: BUENO: | G102: MALO: | J102: Calif: | K102: Observaciones: | AO102: =SUM(Q103:Q106) -> 20 | AP102: =SUM(R103:R106) -> 0 | AQ102: =SUM(S103:S106) -> 20 | AR102: =SUM(T103:T106) -> 0 | AS102: =SUM(U103:U106) -> 20 | AT102: 0 | AU102: 0 | AV102: 0 | AW102: 0 | AX102: 0 | AY102: 0 | AZ102: 0 | BA102: 0 | BB102: 0 | BC102: 0 | BD102: 0 | BE102: 0 | BF102: 0 | BG102: 0 | BH102: 0 | BI102: 0 | BJ102: 0 | BK102: 0 | BL102: 0
A103: Despacho del Responsable Técnico- puede compartir con otro ambiente administrativo | C103: 1 | D103: Para construcciones nuevas mínimo deseable 10m 2 | E103: Requerido | F103: 0 | G103: 0 | H103: =IF(AND(F103>=C103,F103>0),10,0) -> 0 | I103: =IF(AND(G103>=C103,C103>0,G103>=1),10,0) -> 0 | J103: =H103-I103 -> 0 | Q103: =IF(UPPER(E103)="REQUERIDO", 10, "") -> 10 | R103: =IF(UPPER(E103)="REQUERIDO", H103, "") -> 0
A104: Sala de espera | C104: 1 | D104: Para construcciones nuevas es deseable 1 m2 por puesto | E104: Condición | F104: 0 | G104: 0 | H104: =IF(AND(F104>=C104,F104>0),10,0) -> 0 | I104: =IF(AND(G104>=C104,C104>0,G104>=1),10,0) -> 0 | J104: =H104-I104 -> 0 | S104: =IF(UPPER(E104)="CONDICIÓN", 10, 0) -> 10 | T104: =IF(UPPER(E104)="CONDICIÓN", H104, "") -> 0 | U104: =IF(UPPER(E104)="CONDICIÓN", 10, 0) -> 10 | V104: =IF(UPPER(E104)="CONDICIÓN", I104, "") -> 0
A105: Unidad Administrativa de Apoyo | C105: 1 | D105: Para construcciones nuevas deseable 2,7 m2 por puesto de trabajo | E105: Condición | F105: 0 | G105: 0 | H105: =IF(AND(F105>=C105,F105>0),10,0) -> 0 | I105: =IF(AND(G105>=C105,C105>0,G105>=1),10,0) -> 0 | J105: =H105-I105 -> 0 | S105: =IF(UPPER(E105)="CONDICIÓN", 10, 0) -> 10 | T105: =IF(UPPER(E105)="CONDICIÓN", H105, "") -> 0 | U105: =IF(UPPER(E105)="CONDICIÓN", 10, 0) -> 10 | V105: =IF(UPPER(E105)="CONDICIÓN", I105, "") -> 0
A106: Oficina de trabajo social - puede compartir con otro ambiente de consulta | C106: 1 | D106: Para construcciones nuevas deseable 12 m2 | E106: Requerido | F106: 0 | G106: 0 | H106: =IF(AND(F106>=C106,F106>0),10,0) -> 0 | I106: =IF(AND(G106>=C106,C106>0,G106>=1),10,0) -> 0 | J106: =H106-I106 -> 0 | Q106: =IF(UPPER(E106)="REQUERIDO", 10, "") -> 10 | R106: =IF(UPPER(E106)="REQUERIDO", H106, "") -> 0
A107: INSTALACIONES | B107: =B1 -> Anx: | C107: =C$1 -> Requerido: | D107: m² Util: | E107: Tipo: | F107: BUENO: | G107: MALO: | J107: Calif: | K107: Observaciones: | AO107: =SUM(Q108:Q109) -> 0 | AP107: =SUM(R108:R109) -> 0 | AQ107: =SUM(S108:S109) -> 0 | AR107: =SUM(T108:T109) -> 0 | AS107: =SUM(U108:U109) -> 0 | AT107: 0 | AU107: 0 | AV107: 0 | AW107: 10 | AX107: 0 | AY107: 0 | AZ107: 0 | BA107: 0 | BB107: 0 | BC107: 0 | BD107: 0 | BE107: 10 | BF107: 0 | BG107: 0 | BH107: 0 | BI107: 0 | BJ107: 0 | BK107: 0 | BL107: 0
A108: Estructura General | B108: EG_01 | C108: 1 | D108: - | E108: Requerido | F108: 0 | G108: 0 | H108: =IF(AND(F108>=C108,F108>0),10,0) -> 0 | I108: =IF(AND(G108>=C108,C108>0,G108>=1),10,0) -> 0 | J108: =H108-I108 -> 0 | AG108: =IF(UPPER(E108)="REQUERIDO", 10, "") -> 10 | AH108: =IF(UPPER(E108)="REQUERIDO", H108, "") -> 0
A109: Instalaciones Generales | B109: IG_01 | C109: 1 | D109: - | E109: Requerido | F109: 0 | G109: 0 | H109: =IF(AND(F109>=C109,F109>0),10,0) -> 0 | I109: =IF(AND(G109>=C109,C109>0,G109>=1),10,0) -> 0 | J109: =H109-I109 -> 0 | Y109: =IF(UPPER(E109)="REQUERIDO", 10, "") -> 10 | Z109: =IF(UPPER(E109)="REQUERIDO", H109, "") -> 0 | AG109: =IF(UPPER(O109)="REQUERIDO", 10, "") ->  | AH109: =IF(UPPER(O109)="REQUERIDO", R109, "") -> 
A110: GENERAL | AO110: =SUM(Q110:Q144) -> 80 | AP110: =SUM(R110:R144) -> 0 | AQ110: =SUM(S110:S144) -> 40 | AR110: =SUM(T110:T144) -> 0 | AS110: =SUM(U110:U144) -> 40 | AT110: 0 | AU110: 0 | AV110: 0 | AW110: 30 | AX110: 0 | AY110: 10 | AZ110: 0 | BA110: 10 | BB110: 0 | BC110: 0 | BD110: 0 | BE110: 30 | BF110: 0 | BG110: 10 | BH110: 0 | BI110: 10 | BJ110: 0 | BK110: 0 | BL110: 0
A111: SERVICIOS INTERNOS DE APOYO | AO111: =SUM(Q112:Q144) -> 80 | AP111: =SUM(R112:R144) -> 0 | AQ111: =SUM(S112:S144) -> 40 | AR111: =SUM(T112:T144) -> 0 | AS111: =SUM(U112:U144) -> 40 | AT111: 0 | AU111: 0 | AV111: 0 | AW111: 30 | AX111: 0 | AY111: 10 | AZ111: 0 | BA111: 10 | BB111: 0 | BC111: 0 | BD111: 0 | BE111: 30 | BF111: 0 | BG111: 10 | BH111: 0 | BI111: 10 | BJ111: 0 | BK111: 0 | BL111: 0
A112: LAVANDERÍA | AO112: =SUM(Q112:Q120) -> 40 | AP112: =SUM(R112:R120) -> 0 | AQ112: =SUM(S112:S120) -> 0 | AR112: =SUM(T112:T120) -> 0 | AS112: =SUM(U112:U120) -> 0 | AT112: 0 | AU112: 0 | AV112: 0 | AW112: 10 | AX112: 0 | AY112: 0 | AZ112: 0 | BA112: 0 | BB112: 0 | BC112: 0 | BD112: 0 | BE112: 10 | BF112: 0 | BG112: 0 | BH112: 0 | BI112: 0 | BJ112: 0 | BK112: 0 | BL112: 0
A113: AMBIENTES | B113: =B31 -> Anx: | C113: =C$1 -> Requerido: | D113: m² Util: | E113: Tipo: | F113: BUENO: | G113: MALO: | J113: Calif: | K113: Observaciones: | AO113: =SUM(Q114:Q117) -> 40 | AP113: =SUM(R114:R117) -> 0 | AQ113: =SUM(S114:S117) -> 0 | AR113: =SUM(T114:T117) -> 0 | AS113: =SUM(U114:U117) -> 0 | AT113: 0 | AU113: 0 | AV113: 0 | AW113: 0 | AX113: 0 | AY113: 0 | AZ113: 0 | BA113: 0 | BB113: 0 | BC113: 0 | BD113: 0 | BE113: 0 | BF113: 0 | BG113: 0 | BH113: 0 | BI113: 0 | BJ113: 0 | BK113: 0 | BL113: 0
A114: Recepción y Clasificación de Ropa Usada | C114: 1 | D114: - | E114: Requerido | F114: 0 | G114: 0 | H114: =IF(AND(F114>=C114,F114>0),10,0) -> 0 | I114: =IF(AND(G114>=C114,C114>0,G114>=1),10,0) -> 0 | J114: =H114-I114 -> 0 | Q114: =IF(UPPER(E114)="REQUERIDO", 10, "") -> 10 | R114: =IF(UPPER(E114)="REQUERIDO", H114, "") -> 0
A115: Lavado | C115: 1 | D115: - | E115: Requerido | F115: 0 | G115: 0 | H115: =IF(AND(F115>=C115,F115>0),10,0) -> 0 | I115: =IF(AND(G115>=C115,C115>0,G115>=1),10,0) -> 0 | J115: =H115-I115 -> 0 | Q115: =IF(UPPER(E115)="REQUERIDO", 10, "") -> 10 | R115: =IF(UPPER(E115)="REQUERIDO", H115, "") -> 0
A116: Planchado | C116: 1 | D116: - | E116: Requerido | F116: 0 | G116: 0 | H116: =IF(AND(F116>=C116,F116>0),10,0) -> 0 | I116: =IF(AND(G116>=C116,C116>0,G116>=1),10,0) -> 0 | J116: =H116-I116 -> 0 | Q116: =IF(UPPER(E116)="REQUERIDO", 10, "") -> 10 | R116: =IF(UPPER(E116)="REQUERIDO", H116, "") -> 0
A117: Área de lavado manual | C117: 1 | D117: 2.5 | E117: Requerido | F117: 0 | G117: 0 | H117: =IF(AND(F117>=C117,F117>0),10,0) -> 0 | I117: =IF(AND(G117>=C117,C117>0,G117>=1),10,0) -> 0 | J117: =H117-I117 -> 0 | Q117: =IF(UPPER(E117)="REQUERIDO", 10, "") -> 10 | R117: =IF(UPPER(E117)="REQUERIDO", H117, "") -> 0
A118: INSTALACIONES | B118: =B31 -> Anx: | C118: =C$1 -> Requerido: | D118: m² Util: | E118: Tipo: | F118: BUENO: | G118: MALO: | J118: Calif: | K118: Observaciones: | AO118: =SUM(Q119:Q120) -> 0 | AP118: =SUM(R119:R120) -> 0 | AQ118: =SUM(S119:S120) -> 0 | AR118: =SUM(T119:T120) -> 0 | AS118: =SUM(U119:U120) -> 0 | AT118: 0 | AU118: 0 | AV118: 0 | AW118: 10 | AX118: 0 | AY118: 0 | AZ118: 0 | BA118: 0 | BB118: 0 | BC118: 0 | BD118: 0 | BE118: 10 | BF118: 0 | BG118: 0 | BH118: 0 | BI118: 0 | BJ118: 0 | BK118: 0 | BL118: 0
A119: Estructura General | B119: EG_01 | C119: 1 | D119: - | E119: Requerido | F119: 0 | G119: 0 | H119: =IF(AND(F119>=C119,F119>0),10,0) -> 0 | I119: =IF(AND(G119>=C119,C119>0,G119>=1),10,0) -> 0 | J119: =H119-I119 -> 0 | AG119: =IF(UPPER(E119)="REQUERIDO", 10, "") -> 10 | AH119: =IF(UPPER(E119)="REQUERIDO", H119, "") -> 0
A120: Instalaciones Generales | B120: IG_01 | C120: 1 | D120: - | E120: Requerido | F120: 0 | G120: 0 | H120: =IF(AND(F120>=C120,F120>0),10,0) -> 0 | I120: =IF(AND(G120>=C120,C120>0,G120>=1),10,0) -> 0 | J120: =H120-I120 -> 0 | Y120: =IF(UPPER(E120)="REQUERIDO", 10, "") -> 10 | Z120: =IF(UPPER(E120)="REQUERIDO", H120, "") -> 0
A121: LIMPIEZA | AO121: =SUM(Q122:Q126) -> 10 | AP121: =SUM(R122:R126) -> 0 | AQ121: =SUM(S122:S126) -> 30 | AR121: =SUM(T122:T126) -> 0 | AS121: =SUM(U122:U126) -> 30 | AT121: 0 | AU121: 0 | AV121: 0 | AW121: 0 | AX121: 0 | AY121: 0 | AZ121: 0 | BA121: 0 | BB121: 0 | BC121: 0 | BD121: 0 | BE121: 0 | BF121: 0 | BG121: 0 | BH121: 0 | BI121: 0 | BJ121: 0 | BK121: 0 | BL121: 0
A122: AMBIENTES | B122: =B1 -> Anx: | C122: =C$1 -> Requerido: | D122: m² Util: | E122: Tipo: | F122: BUENO: | G122: MALO: | J122: Calif: | K122: Observaciones: | AO122: =SUM(Q123:Q126) -> 10 | AP122: =SUM(R123:R126) -> 0 | AQ122: =SUM(S123:S126) -> 30 | AR122: =SUM(T123:T126) -> 0 | AS122: =SUM(U123:U126) -> 30 | AT122: 0 | AU122: 0 | AV122: 0 | AW122: 0 | AX122: 0 | AY122: 0 | AZ122: 0 | BA122: 0 | BB122: 0 | BC122: 0 | BD122: 0 | BE122: 0 | BF122: 0 | BG122: 0 | BH122: 0 | BI122: 0 | BJ122: 0 | BK122: 0 | BL122: 0
A123: Bodega (Puede encontrarse dentro de la bodega general, pero en un área diferenciada) | C123: 1 | D123: - | E123: Requerido | F123: 0 | G123: 0 | H123: =IF(AND(F123>=C123,F123>0),10,0) -> 0 | I123: =IF(AND(G123>=C123,C123>0,G123>=1),10,0) -> 0 | J123: =H123-I123 -> 0 | Q123: =IF(UPPER(E123)="REQUERIDO", 10, "") -> 10 | R123: =IF(UPPER(E123)="REQUERIDO", H123, "") -> 0
A124: Cuarto de Limpieza (será requerido en el caso de no contar con cuartos de limpieza en los servicios que lo requieran) | C124: 1 | D124: - | E124: Condición | F124: 0 | G124: 0 | H124: =IF(AND(F124>=C124,F124>0),10,0) -> 0 | I124: =IF(AND(G124>=C124,C124>0,G124>=1),10,0) -> 0 | J124: =H124-I124 -> 0 | S124: =IF(UPPER(E124)="CONDICIÓN", 10, 0) -> 10 | T124: =IF(UPPER(E124)="CONDICIÓN", H124, "") -> 0 | U124: =IF(UPPER(E124)="CONDICIÓN", 10, 0) -> 10 | V124: =IF(UPPER(E124)="CONDICIÓN", I124, "") -> 0
A125: Vestidores (Será requerido en el caso de que en el vestidor del área de personal no se ha previsto un espacio exclusivo para el personal de limpieza) | C125: 1 | D125: - | E125: Condición | F125: 0 | G125: 0 | H125: =IF(AND(F125>=C125,F125>0),10,0) -> 0 | I125: =IF(AND(G125>=C125,C125>0,G125>=1),10,0) -> 0 | J125: =H125-I125 -> 0 | S125: =IF(UPPER(E125)="CONDICIÓN", 10, 0) -> 10 | T125: =IF(UPPER(E125)="CONDICIÓN", H125, "") -> 0 | U125: =IF(UPPER(E125)="CONDICIÓN", 10, 0) -> 10 | V125: =IF(UPPER(E125)="CONDICIÓN", I125, "") -> 0
A126: Baño de vestidores | C126: 1 | D126: - | E126: Condición | F126: 0 | G126: 0 | H126: =IF(AND(F126>=C126,F126>0),10,0) -> 0 | I126: =IF(AND(G126>=C126,C126>0,G126>=1),10,0) -> 0 | J126: =H126-I126 -> 0 | S126: =IF(UPPER(E126)="CONDICIÓN", 10, 0) -> 10 | T126: =IF(UPPER(E126)="CONDICIÓN", H126, "") -> 0 | U126: =IF(UPPER(E126)="CONDICIÓN", 10, 0) -> 10 | V126: =IF(UPPER(E126)="CONDICIÓN", I126, "") -> 0
A127: INSTALACIONES | B127: =B1 -> Anx: | C127: =C$1 -> Requerido: | D127: m² Util: | E127: Tipo: | F127: BUENO: | G127: MALO: | J127: Calif: | K127: Observaciones: | AO127: =SUM(Q128:Q129) -> 0 | AP127: =SUM(R128:R129) -> 0 | AQ127: =SUM(S128:S129) -> 0 | AR127: =SUM(T128:T129) -> 0 | AS127: =SUM(U128:U129) -> 0 | AT127: 0 | AU127: 0 | AV127: 0 | AW127: 10 | AX127: 0 | AY127: 0 | AZ127: 0 | BA127: 0 | BB127: 0 | BC127: 0 | BD127: 0 | BE127: 10 | BF127: 0 | BG127: 0 | BH127: 0 | BI127: 0 | BJ127: 0 | BK127: 0 | BL127: 0
A128: Estructura General | B128: EG_01 | C128: 1 | D128: - | E128: Requerido | F128: 0 | G128: 0 | H128: =IF(AND(F128>=C128,F128>0),10,0) -> 0 | I128: =IF(AND(G128>=C128,C128>0,G128>=1),10,0) -> 0 | J128: =H128-I128 -> 0 | AG128: =IF(UPPER(E128)="REQUERIDO", 10, "") -> 10 | AH128: =IF(UPPER(E128)="REQUERIDO", H128, "") -> 0
A129: Instalaciones Generales | B129: IG_01 | C129: 1 | D129: - | E129: Requerido | F129: 0 | G129: 0 | H129: =IF(AND(F129>=C129,F129>0),10,0) -> 0 | I129: =IF(AND(G129>=C129,C129>0,G129>=1),10,0) -> 0 | J129: =H129-I129 -> 0 | Y129: =IF(UPPER(E129)="REQUERIDO", 10, "") -> 10 | Z129: =IF(UPPER(E129)="REQUERIDO", H129, "") -> 0
A130: ALMACENAMIENTO FINAL DE DESECHOS | AO130: =SUM(Q132:Q138) -> 30 | AP130: =SUM(R132:R138) -> 0 | AQ130: =SUM(S132:S138) -> 0 | AR130: =SUM(T132:T138) -> 0 | AS130: =SUM(U132:U138) -> 0 | AT130: 0 | AU130: 0 | AV130: 0 | AW130: 10 | AX130: 0 | AY130: 0 | AZ130: 0 | BA130: 0 | BB130: 0 | BC130: 0 | BD130: 0 | BE130: 10 | BF130: 0 | BG130: 0 | BH130: 0 | BI130: 0 | BJ130: 0 | BK130: 0 | BL130: 0
A131: Puede estar en un solo ambiente con áreas diferenciadas y rotuladas
A132: AMBIENTES | B132: =B1 -> Anx: | C132: =C$1 -> Requerido: | D132: m² Util: | E132: Tipo: | F132: BUENO: | G132: MALO: | J132: Calif: | K132: Observaciones: | AO132: =SUM(Q133:Q135) -> 30 | AP132: =SUM(R133:R135) -> 0 | AQ132: =SUM(S133:S135) -> 0 | AR132: =SUM(T133:T135) -> 0 | AS132: =SUM(U133:U135) -> 0 | AT132: 0 | AU132: 0 | AV132: 0 | AW132: 0 | AX132: 0 | AY132: 0 | AZ132: 0 | BA132: 0 | BB132: 0 | BC132: 0 | BD132: 0 | BE132: 0 | BF132: 0 | BG132: 0 | BH132: 0 | BI132: 0 | BJ132: 0 | BK132: 0 | BL132: 0
A133: Área de Almacenamiento de Desechos no peligrosos - Comunes | C133: 1 | D133: - | E133: Requerido | F133: 0 | G133: 0 | H133: =IF(AND(F133>=C133,F133>0),10,0) -> 0 | I133: =IF(AND(G133>=C133,C133>0,G133>=1),10,0) -> 0 | J133: =H133-I133 -> 0 | Q133: =IF(UPPER(E133)="REQUERIDO", 10, "") -> 10 | R133: =IF(UPPER(E133)="REQUERIDO", H133, "") -> 0
A134: Área de Almacenamiento de Desechos Peligrosos- Infecciosos | C134: 1 | D134: - | E134: Requerido | F134: 0 | G134: 0 | H134: =IF(AND(F134>=C134,F134>0),10,0) -> 0 | I134: =IF(AND(G134>=C134,C134>0,G134>=1),10,0) -> 0 | J134: =H134-I134 -> 0 | Q134: =IF(UPPER(E134)="REQUERIDO", 10, "") -> 10 | R134: =IF(UPPER(E134)="REQUERIDO", H134, "") -> 0
A135: Área de Desechos Peligrosos- Especiales | C135: 1 | D135: - | E135: Requerido | F135: 0 | G135: 0 | H135: =IF(AND(F135>=C135,F135>0),10,0) -> 0 | I135: =IF(AND(G135>=C135,C135>0,G135>=1),10,0) -> 0 | J135: =H135-I135 -> 0 | Q135: =IF(UPPER(E135)="REQUERIDO", 10, "") -> 10 | R135: =IF(UPPER(E135)="REQUERIDO", H135, "") -> 0
A136: INSTALACIONES | B136: =B1 -> Anx: | C136: =C$1 -> Requerido: | D136: m² Util: | E136: Tipo: | F136: BUENO: | G136: MALO: | J136: Calif: | K136: Observaciones: | AO136: =SUM(Q137:Q138) -> 0 | AP136: =SUM(R137:R138) -> 0 | AQ136: =SUM(S137:S138) -> 0 | AR136: =SUM(T137:T138) -> 0 | AS136: =SUM(U137:U138) -> 0 | AT136: 0 | AU136: 0 | AV136: 0 | AW136: 10 | AX136: 0 | AY136: 0 | AZ136: 0 | BA136: 0 | BB136: 0 | BC136: 0 | BD136: 0 | BE136: 10 | BF136: 0 | BG136: 0 | BH136: 0 | BI136: 0 | BJ136: 0 | BK136: 0 | BL136: 0
A137: Estructura General | B137: EG_01 | C137: 1 | D137: - | E137: Requerido | F137: 0 | G137: 0 | H137: =IF(AND(F137>=C137,F137>0),10,0) -> 0 | I137: =IF(AND(G137>=C137,C137>0,G137>=1),10,0) -> 0 | J137: =H137-I137 -> 0 | AG137: =IF(UPPER(E137)="REQUERIDO", 10, "") -> 10 | AH137: =IF(UPPER(E137)="REQUERIDO", H137, "") -> 0
A138: Instalaciones Generales | B138: IG_01 | C138: 1 | D138: - | E138: Requerido | F138: 0 | G138: 0 | H138: =IF(AND(F138>=C138,F138>0),10,0) -> 0 | I138: =IF(AND(G138>=C138,C138>0,G138>=1),10,0) -> 0 | J138: =H138-I138 -> 0 | Y138: =IF(UPPER(E138)="REQUERIDO", 10, "") -> 10 | Z138: =IF(UPPER(E138)="REQUERIDO", H138, "") -> 0
A139: ÁREA DE APOYO | AO139: =SUM(Q139:Q141) -> 0 | AP139: =SUM(R139:R141) -> 0 | AQ139: =SUM(S139:S141) -> 10 | AR139: =SUM(T139:T141) -> 0 | AS139: =SUM(U139:U141) -> 10 | AT139: 0 | AU139: 0 | AV139: 0 | AW139: 0 | AX139: 0 | AY139: 0 | AZ139: 0 | BA139: 0 | BB139: 0 | BC139: 0 | BD139: 0 | BE139: 0 | BF139: 0 | BG139: 0 | BH139: 0 | BI139: 0 | BJ139: 0 | BK139: 0 | BL139: 0
A140: AMBIENTES | B140: =B10 -> Anx: | C140: =C$1 -> Requerido: | D140: m² Util: | E140: Tipo: | F140: BUENO: | G140: MALO: | J140: Calif: | K140: Observaciones: | AO140: =SUM(Q141) -> 0 | AP140: =SUM(R141) -> 0 | AQ140: =SUM(S141) -> 10 | AR140: =SUM(T141) -> 0 | AS140: =SUM(U141) -> 10 | AT140: 0 | AU140: 0 | AV140: 0 | AW140: 0 | AX140: 0 | AY140: 0 | AZ140: 0 | BA140: 0 | BB140: 0 | BC140: 0 | BD140: 0 | BE140: 0 | BF140: 0 | BG140: 0 | BH140: 0 | BI140: 0 | BJ140: 0 | BK140: 0 | BL140: 0
A141: Zona de guardianía | C141: 1 | D141: Dimensionar según la demanda funcional | E141: Condición | F141: 0 | G141: 0 | H141: =IF(AND(F141>=C141,F141>0),10,0) -> 0 | I141: =IF(AND(G141>=C141,C141>0,G141>=1),10,0) -> 0 | J141: =H141-I141 -> 0 | Q141: =IF(UPPER(E141)="REQUERIDO", 10, "") ->  | R141: =IF(UPPER(E141)="REQUERIDO", H141, "") ->  | S141: =IF(UPPER(E141)="CONDICIÓN",10,0) -> 10 | T141: =IF(UPPER(E141)="CONDICIÓN", H141, "") -> 0 | U141: =IF(UPPER(E141)="CONDICIÓN", 10, 0) -> 10 | V141: =IF(UPPER(E141)="CONDICIÓN", I141, "") -> 0
A142: INSTALACIONES | B142: =B1 -> Anx: | C142: =C$1 -> Requerido: | D142: m² Util: | E142: Tipo: | F142: BUENO: | G142: MALO: | J142: Calif: | K142: Observaciones: | AO142: =SUM(Q143:Q144) -> 0 | AP142: =SUM(R143:R144) -> 0 | AQ142: =SUM(S143:S144) -> 0 | AR142: =SUM(T143:T144) -> 0 | AS142: =SUM(U143:U144) -> 0 | AT142: 0 | AU142: 0 | AV142: 0 | AW142: 0 | AX142: 0 | AY142: 10 | AZ142: 0 | BA142: 10 | BB142: 0 | BC142: 0 | BD142: 0 | BE142: 0 | BF142: 0 | BG142: 10 | BH142: 0 | BI142: 10 | BJ142: 0 | BK142: 0 | BL142: 0
A143: Estructura General | B143: EG_01 | C143: 1 | D143: - | E143: Condición | F143: 0 | G143: 0 | H143: =IF(AND(F143>=C143,F143>0),10,0) -> 0 | I143: =IF(AND(G143>=C143,C143>0,G143>=1),10,0) -> 0 | J143: =H143-I143 -> 0 | AI143: =IF(UPPER(E143)="CONDICIÓN", 10, 0) -> 10 | AJ143: =IF(UPPER(E143)="CONDICIÓN", H143, "") -> 0 | AK143: =IF(UPPER(E143)="CONDICIÓN", 10, 0) -> 10 | AL143: =IF(UPPER(E143)="CONDICIÓN", I143, "") -> 0
A144: Instalaciones Generales | B144: IG_01 | C144: 1 | D144: - | E144: Condición | F144: 0 | G144: 0 | H144: =IF(AND(F144>=C144,F144>0),10,0) -> 0 | I144: =IF(AND(G144>=C144,C144>0,G144>=1),10,0) -> 0 | J144: =H144-I144 -> 0 | AA144: =IF(UPPER(E144)="CONDICIÓN", 10, 0) -> 10 | AB144: =IF(UPPER(E144)="CONDICIÓN", H144, "") -> 0 | AC144: =IF(UPPER(E144)="CONDICIÓN", 10, 0) -> 10 | AD144: =IF(UPPER(E144)="CONDICIÓN", I144, "") -> 0
A145: INSTALACIONES DEL LOCAL | AO145: =SUM(Q145:Q180) -> 0 | AP145: =SUM(R145:R180) -> 0 | AQ145: =SUM(S145:S180) -> 0 | AR145: =SUM(T145:T180) -> 0 | AS145: =SUM(U145:U180) -> 0 | AT145: 0 | AU145: 0 | AV145: 0 | AW145: 100 | AX145: 0 | AY145: 80 | AZ145: 0 | BA145: 80 | BB145: =SUM(AD145:AD180) -> 0 | BC145: 0 | BD145: 0 | BE145: 0 | BF145: 0 | BG145: 0 | BH145: 0 | BI145: 0 | BJ145: 0 | BK145: 0 | BL145: 0
A146: Estructura General | AO146: =SUM(Q146:Q149) -> 0 | AP146: =SUM(R146:R149) -> 0 | AQ146: =SUM(S146:S149) -> 0 | AR146: =SUM(T146:T149) -> 0 | AS146: =SUM(U146:U149) -> 0 | AT146: 0 | AU146: 0 | AV146: 0 | AW146: 0 | AX146: 0 | AY146: 10 | AZ146: 0 | BA146: 10 | BB146: 0 | BC146: 0 | BD146: 0 | BE146: 0 | BF146: 0 | BG146: 0 | BH146: 0 | BI146: 0 | BJ146: 0 | BK146: 0 | BL146: 0
A147: INSTALACIONES | B147: =B1 -> Anx: | C147: =C$1 -> Requerido: | D147: m² Util: | E147: Tipo: | F147: BUENO: | G147: MALO: | J147: Calif: | K147: Observaciones: | AO147: =SUM(Q148:Q149) -> 0 | AP147: =SUM(R148:R149) -> 0 | AQ147: =SUM(S148:S149) -> 0 | AR147: =SUM(T148:T149) -> 0 | AS147: =SUM(U148:U149) -> 0 | AT147: 0 | AU147: 0 | AV147: 0 | AW147: 0 | AX147: 0 | AY147: 10 | AZ147: 0 | BA147: 10 | BB147: 0 | BC147: 0 | BD147: 0 | BE147: 0 | BF147: 0 | BG147: 0 | BH147: 0 | BI147: 0 | BJ147: 0 | BK147: 0 | BL147: 0
A148: Cerramiento externo | C148: 1 | D148: - | E148: Condición | F148: 0 | G148: 0 | H148: =IF(AND(F148>=C148,F148>0),10,0) -> 0 | I148: =IF(AND(G148>=C148,C148>0,G148>=1),10,0) -> 0 | J148: =H148-I148 -> 0
A149: Áreas adecuadas para el tránsito de sillas de ruedas | C149: 1 | D149: - | E149: Condición | F149: 0 | G149: 0 | H149: =IF(AND(F149>=C149,F149>0),10,0) -> 0 | I149: =IF(AND(G149>=C149,C149>0,G149>=1),10,0) -> 0 | J149: =H149-I149 -> 0 | AA149: =IF(UPPER(E149)="CONDICIÓN", 10, 0) -> 10 | AB149: =IF(UPPER(E149)="CONDICIÓN", H149, "") -> 0 | AC149: =IF(UPPER(E149)="CONDICIÓN", 10, 0) -> 10 | AD149: =IF(UPPER(E149)="CONDICIÓN", I149, "") -> 0
A150: INSTALACIONES ELÉCTRICAS GENERALES (ILUMINACIÓN Y FUERZA) | AO150: =SUM(Q150:Q156) -> 0 | AP150: =SUM(R150:R156) -> 0 | AQ150: =SUM(S150:S156) -> 0 | AR150: =SUM(T150:T156) -> 0 | AS150: =SUM(U150:U156) -> 0 | AT150: 0 | AU150: 0 | AV150: 0 | AW150: 30 | AX150: 0 | AY150: 20 | AZ150: 0 | BA150: 20 | BB150: 0 | BC150: 0 | BD150: 0 | BE150: 0 | BF150: 0 | BG150: 0 | BH150: 0 | BI150: 0 | BJ150: 0 | BK150: 0 | BL150: 0
A151: INSTALACIONES | B151: =B1 -> Anx: | C151: =C$1 -> Requerido: | D151: m² Util: | E151: Tipo: | F151: BUENO: | G151: MALO: | J151: Calif: | K151: Observaciones: | AO151: =SUM(Q152:Q156) -> 0 | AP151: =SUM(R152:R156) -> 0 | AQ151: =SUM(S152:S156) -> 0 | AR151: =SUM(T152:T156) -> 0 | AS151: =SUM(U152:U156) -> 0 | AT151: 0 | AU151: 0 | AV151: 0 | AW151: 30 | AX151: 0 | AY151: 20 | AZ151: 0 | BA151: 20 | BB151: 0 | BC151: 0 | BD151: 0 | BE151: 0 | BF151: 0 | BG151: 0 | BH151: 0 | BI151: 0 | BJ151: 0 | BK151: 0 | BL151: 0
A152: Red de tomas de energía | C152: 1 | D152: - | E152: Requerido | F152: 0 | G152: 0 | H152: =IF(AND(F152>=C152,F152>0),10,0) -> 0 | I152: =IF(AND(G152>=C152,C152>0,G152>=1),10,0) -> 0 | J152: =H152-I152 -> 0 | Y152: =IF(UPPER(E152)="REQUERIDO", 10, "") -> 10 | Z152: =IF(UPPER(E152)="REQUERIDO", H152, "") -> 0
A153: Red de instalaciones para iluminación | C153: 1 | D153: - | E153: Requerido | F153: 0 | G153: 0 | H153: =IF(AND(F153>=C153,F153>0),10,0) -> 0 | I153: =IF(AND(G153>=C153,C153>0,G153>=1),10,0) -> 0 | J153: =H153-I153 -> 0 | Y153: =IF(UPPER(E153)="REQUERIDO", 10, "") -> 10 | Z153: =IF(UPPER(E153)="REQUERIDO", H153, "") -> 0
A154: Acometidas Eléctricas (tableros de control - interruptores termomagnéticos-) | C154: 1 | D154: - | E154: Requerido | F154: 0 | G154: 0 | H154: =IF(AND(F154>=C154,F154>0),10,0) -> 0 | I154: =IF(AND(G154>=C154,C154>0,G154>=1),10,0) -> 0 | J154: =H154-I154 -> 0 | Y154: =IF(UPPER(E154)="REQUERIDO", 10, "") -> 10 | Z154: =IF(UPPER(E154)="REQUERIDO", H154, "") -> 0
A155: Sistema de soporte de energía eléctrica de emergencia. (Generación o respaldo de baterías generales o individuales) | C155: 1 | D155: - | E155: Condición | F155: 0 | G155: 0 | H155: =IF(AND(F155>=C155,F155>0),10,0) -> 0 | I155: =IF(AND(G155>=C155,C155>0,G155>=1),10,0) -> 0 | J155: =H155-I155 -> 0 | AA155: =IF(UPPER(E155)="CONDICIÓN", 10, 0) -> 10 | AB155: =IF(UPPER(E155)="CONDICIÓN", H155, "") -> 0 | AC155: =IF(UPPER(E155)="CONDICIÓN", 10, 0) -> 10 | AD155: =IF(UPPER(E155)="CONDICIÓN", I155, "") -> 0
A156: Instalación de pararrayos | C156: 1 | D156: - | E156: Condición | F156: 0 | G156: 0 | H156: =IF(AND(F156>=C156,F156>0),10,0) -> 0 | I156: =IF(AND(G156>=C156,C156>0,G156>=1),10,0) -> 0 | J156: =H156-I156 -> 0 | AA156: =IF(UPPER(E156)="CONDICIÓN", 10, 0) -> 10 | AB156: =IF(UPPER(E156)="CONDICIÓN", H156, "") -> 0 | AC156: =IF(UPPER(E156)="CONDICIÓN", 10, 0) -> 10 | AD156: =IF(UPPER(E156)="CONDICIÓN", I156, "") -> 0
A157: INSTALACIONES ELECTRÓNICAS | AO157: =SUM(Q157:Q160) -> 0 | AP157: =SUM(R157:R160) -> 0 | AQ157: =SUM(S157:S160) -> 0 | AR157: =SUM(T157:T160) -> 0 | AS157: =SUM(U157:U160) -> 0 | AT157: 0 | AU157: 0 | AV157: 0 | AW157: 10 | AX157: 0 | AY157: 10 | AZ157: 0 | BA157: 10 | BB157: 0 | BC157: 0 | BD157: 0 | BE157: 0 | BF157: 0 | BG157: 0 | BH157: 0 | BI157: 0 | BJ157: 0 | BK157: 0 | BL157: 0
A158: INSTALACIONES | B158: =B1 -> Anx: | C158: =C$1 -> Requerido: | D158: m² Util: | E158: Tipo: | F158: BUENO: | G158: MALO: | J158: Calif: | K158: Observaciones: | AO158: =SUM(Q158:Q160) -> 0 | AP158: =SUM(R158:R160) -> 0 | AQ158: =SUM(S158:S160) -> 0 | AR158: =SUM(T158:T160) -> 0 | AS158: =SUM(U158:U160) -> 0 | AT158: 0 | AU158: 0 | AV158: 0 | AW158: 10 | AX158: 0 | AY158: 10 | AZ158: 0 | BA158: 10 | BB158: 0 | BC158: 0 | BD158: 0 | BE158: 0 | BF158: 0 | BG158: 0 | BH158: 0 | BI158: 0 | BJ158: 0 | BK158: 0 | BL158: 0
A159: Sensores y alarmas para incendios | C159: 1 | D159: - | E159: Requerido | F159: 0 | G159: 0 | H159: =IF(AND(F159>=C159,F159>0),10,0) -> 0 | I159: =IF(AND(G159>=C159,C159>0,G159>=1),10,0) -> 0 | J159: =H159-I159 -> 0 | Y159: =IF(UPPER(E159)="REQUERIDO", 10, "") -> 10 | Z159: =IF(UPPER(E159)="REQUERIDO", H159, "") -> 0
A160: Sistema de audio centralizado | C160: 1 | D160: - | E160: Condición | F160: 0 | G160: 0 | H160: =IF(AND(F160>=C160,F160>0),10,0) -> 0 | I160: =IF(AND(G160>=C160,C160>0,G160>=1),10,0) -> 0 | J160: =H160-I160 -> 0 | AA160: =IF(UPPER(E160)="CONDICIÓN", 10, 0) -> 10 | AB160: =IF(UPPER(E160)="CONDICIÓN", H160, "") -> 0 | AC160: =IF(UPPER(E160)="CONDICIÓN", 10, 0) -> 10 | AD160: =IF(UPPER(E160)="CONDICIÓN", I160, "") -> 0
A161: INSTALACIONES DE TELECOMUNICACIONES | AO161: =SUM(Q161:Q164) -> 0 | AP161: =SUM(R161:R164) -> 0 | AQ161: =SUM(S161:S164) -> 0 | AR161: =SUM(T161:T164) -> 0 | AS161: =SUM(U161:U164) -> 0 | AT161: 0 | AU161: 0 | AV161: 0 | AW161: 20 | AX161: 0 | AY161: 0 | AZ161: 0 | BA161: 0 | BB161: 0 | BC161: 0 | BD161: 0 | BE161: 0 | BF161: 0 | BG161: 0 | BH161: 0 | BI161: 0 | BJ161: 0 | BK161: 0 | BL161: 0
A162: INSTALACIONES | B162: =B1 -> Anx: | C162: =C$1 -> Requerido: | D162: m² Util: | E162: Tipo: | F162: BUENO: | G162: MALO: | J162: Calif: | K162: Observaciones: | AO162: =SUM(Q162:Q164) -> 0 | AP162: =SUM(R163:R169) -> 0 | AQ162: =SUM(S162:S164) -> 0 | AR162: =SUM(T163:T169) -> 0 | AS162: =SUM(U162:U164) -> 0 | AT162: =SUM(V163:V169) -> 0 | AU162: =SUM(W162:W164) -> 0 | AV162: =SUM(X163:X169) -> 0 | AW162: =SUM(Y162:Y164) -> 20 | AX162: =SUM(Z163:Z169) -> 0 | AY162: =SUM(AA162:AA164) -> 0 | AZ162: =SUM(AB163:AB169) -> 0 | BA162: =SUM(AC162:AC164) -> 0 | BB162: =SUM(AD163:AD169) -> 0 | BC162: =SUM(AE162:AE164) -> 0 | BD162: =SUM(AF163:AF169) -> 0 | BE162: =SUM(AG162:AG164) -> 0 | BF162: =SUM(AH163:AH169) -> 0 | BG162: =SUM(AI162:AI164) -> 0 | BH162: =SUM(AJ163:AJ169) -> 0 | BI162: =SUM(AK162:AK164) -> 0 | BJ162: =SUM(AL163:AL169) -> 0 | BK162: =SUM(AM162:AM164) -> 0 | BL162: =SUM(AN163:AN169) -> 0
A163: Instalaciones telefónicas convencionales | C163: 1 | D163: - | E163: Requerido | F163: 0 | G163: 0 | H163: =IF(AND(F163>=C163,F163>0),10,0) -> 0 | I163: =IF(AND(G163>=C163,C163>0,G163>=1),10,0) -> 0 | J163: =H163-I163 -> 0 | Y163: =IF(UPPER(E163)="REQUERIDO", 10, "") -> 10 | Z163: =IF(UPPER(E163)="REQUERIDO", H163, "") -> 0
A164: Suministro de Internet | C164: 1 | D164: - | E164: Requerido | F164: 0 | G164: 0 | H164: =IF(AND(F164>=C164,F164>0),10,0) -> 0 | I164: =IF(AND(G164>=C164,C164>0,G164>=1),10,0) -> 0 | J164: =H164-I164 -> 0 | Y164: =IF(UPPER(E164)="REQUERIDO", 10, "") -> 10 | Z164: =IF(UPPER(E164)="REQUERIDO", H164, "") -> 0
A165: INSTALACIONES DE ABASTECIMIENTO DE AGUA | AO165: =SUM(Q165:Q169) -> 0 | AP165: =SUM(R165:R169) -> 0 | AQ165: =SUM(S165:S169) -> 0 | AR165: =SUM(T165:T169) -> 0 | AS165: =SUM(U165:U169) -> 0 | AT165: 0 | AU165: 0 | AV165: 0 | AW165: 20 | AX165: 0 | AY165: 10 | AZ165: 0 | BA165: 10 | BB165: 0 | BC165: 0 | BD165: 0 | BE165: 0 | BF165: 0 | BG165: 0 | BH165: 0 | BI165: 0 | BJ165: 0 | BK165: 0 | BL165: 0
A166: INSTALACIONES | B166: =B16 -> Anx: | C166: =C$1 -> Requerido: | D166: m² Util: | E166: Tipo: | F166: BUENO: | G166: MALO: | J166: Calif: | K166: Observaciones: | AO166: =SUM(Q166:Q169) -> 0 | AP166: =SUM(R166:R169) -> 0 | AQ166: =SUM(S166:S169) -> 0 | AR166: =SUM(T166:T169) -> 0 | AS166: =SUM(U166:U169) -> 0 | AT166: 0 | AU166: 0 | AV166: 0 | AW166: 20 | AX166: 0 | AY166: 10 | AZ166: 0 | BA166: 10 | BB166: 0 | BC166: 0 | BD166: 0 | BE166: 0 | BF166: 0 | BG166: 0 | BH166: 0 | BI166: 0 | BJ166: 0 | BK166: 0 | BL166: 0
A167: Reservorio y sistema de provisión de agua potable para casos de emergencia por falta de provisión normal de la misma. Ejem: Cisterna/tanques | C167: 1 | D167: - | E167: Requerido | F167: 0 | G167: 0 | H167: =IF(AND(F167>=C167,F167>0),10,0) -> 0 | I167: =IF(AND(G167>=C167,C167>0,G167>=1),10,0) -> 0 | J167: =H167-I167 -> 0 | Y167: =IF(UPPER(E167)="REQUERIDO", 10, "") -> 10 | Z167: =IF(UPPER(E167)="REQUERIDO", H167, "") -> 0
A168: Instalaciones de agua fría | C168: 1 | D168: - | E168: Requerido | F168: 0 | G168: 0 | H168: =IF(AND(F168>=C168,F168>0),10,0) -> 0 | I168: =IF(AND(G168>=C168,C168>0,G168>=1),10,0) -> 0 | J168: =H168-I168 -> 0 | Y168: =IF(UPPER(E168)="REQUERIDO", 10, "") -> 10 | Z168: =IF(UPPER(E168)="REQUERIDO", H168, "") -> 0
A169: Instalaciones de agua caliente | C169: 1 | D169: - | E169: Condición | F169: 0 | G169: 0 | H169: =IF(AND(F169>=C169,F169>0),10,0) -> 0 | I169: =IF(AND(G169>=C169,C169>0,G169>=1),10,0) -> 0 | J169: =H169-I169 -> 0 | AA169: =IF(UPPER(E169)="CONDICIÓN", 10, 0) -> 10 | AB169: =IF(UPPER(E169)="CONDICIÓN", H169, "") -> 0 | AC169: =IF(UPPER(E169)="CONDICIÓN", 10, 0) -> 10 | AD169: =IF(UPPER(E169)="CONDICIÓN", I169, "") -> 0
A170: INSTALACIONES DE DESAGÜE | AO170: =SUM(Q170:Q172) -> 0 | AP170: =SUM(R170:R172) -> 0 | AQ170: =SUM(S170:S172) -> 0 | AR170: =SUM(T170:T172) -> 0 | AS170: =SUM(U170:U172) -> 0 | AT170: 0 | AU170: 0 | AV170: 0 | AW170: 10 | AX170: 0 | AY170: 0 | AZ170: 0 | BA170: 0 | BB170: 0 | BC170: 0 | BD170: 0 | BE170: 0 | BF170: 0 | BG170: 0 | BH170: 0 | BI170: 0 | BJ170: 0 | BK170: 0 | BL170: 0
A171: INSTALACIONES | B171: =B1 -> Anx: | C171: =C$1 -> Requerido: | D171: m² Util: | E171: Tipo: | F171: BUENO: | G171: MALO: | J171: Calif: | K171: Observaciones: | AO171: =SUM(Q171:Q172) -> 0 | AP171: =SUM(R171:R172) -> 0 | AQ171: =SUM(S171:S172) -> 0 | AR171: =SUM(T171:T172) -> 0 | AS171: =SUM(U171:U172) -> 0 | AT171: 0 | AU171: 0 | AV171: 0 | AW171: 10 | AX171: 0 | AY171: 0 | AZ171: 0 | BA171: 0 | BB171: 0 | BC171: 0 | BD171: 0 | BE171: 0 | BF171: 0 | BG171: 0 | BH171: 0 | BI171: 0 | BJ171: 0 | BK171: 0 | BL171: 0
A172: Red de instalaciones internas de recolección y conducción de aguas servidas. | C172: 1 | D172: - | E172: Requerido | F172: 0 | G172: 0 | H172: =IF(AND(F172>=C172,F172>0),10,0) -> 0 | I172: =IF(AND(G172>=C172,C172>0,G172>=1),10,0) -> 0 | J172: =H172-I172 -> 0 | Y172: =IF(UPPER(E172)="REQUERIDO", 10, "") -> 10 | Z172: =IF(UPPER(E172)="REQUERIDO", H172, "") -> 0
A173: INSTALACIONES MECÁNICAS GENERALES | AO173: =SUM(Q173:Q176) -> 0 | AP173: =SUM(R173:R176) -> 0 | AQ173: =SUM(S173:S176) -> 0 | AR173: =SUM(T173:T176) -> 0 | AS173: =SUM(U173:U176) -> 0 | AT173: 0 | AU173: 0 | AV173: 0 | AW173: 0 | AX173: 0 | AY173: 20 | AZ173: 0 | BA173: 20 | BB173: 0 | BC173: 0 | BD173: 0 | BE173: 0 | BF173: 0 | BG173: 0 | BH173: 0 | BI173: 0 | BJ173: 0 | BK173: 0 | BL173: 0
A174: INSTALACIONES | B174: =B24 -> Anx: | C174: =C$1 -> Requerido: | D174: m² Util: | E174: Tipo: | F174: BUENO: | G174: MALO: | J174: Calif: | K174: Observaciones: | AO174: =SUM(Q173:Q176) -> 0 | AP174: =SUM(R173:R176) -> 0 | AQ174: =SUM(S173:S176) -> 0 | AR174: =SUM(T173:T176) -> 0 | AS174: =SUM(U173:U176) -> 0 | AT174: 0 | AU174: 0 | AV174: 0 | AW174: 0 | AX174: 0 | AY174: 20 | AZ174: 0 | BA174: 20 | BB174: 0 | BC174: 0 | BD174: 0 | BE174: 0 | BF174: 0 | BG174: 0 | BH174: 0 | BI174: 0 | BJ174: 0 | BK174: 0 | BL174: 0
A175: Sistemas centralizados de aire acondicionado. Enfriadores(Chillers)-Unidades manejadoras de aire (UMAS) | C175: 1 | D175: - | E175: Condición | F175: 0 | G175: 0 | H175: =IF(AND(F175>=C175,F175>0),10,0) -> 0 | I175: =IF(AND(G175>=C175,C175>0,G175>=1),10,0) -> 0 | J175: =H175-I175 -> 0 | AA175: =IF(UPPER(E175)="CONDICIÓN", 10, 0) -> 10 | AB175: =IF(UPPER(E175)="CONDICIÓN", H175, "") -> 0 | AC175: =IF(UPPER(E175)="CONDICIÓN", 10, 0) -> 10 | AD175: =IF(UPPER(E175)="CONDICIÓN", I175, "") -> 0
A176: Redes de ductos de aire acondicionado y/o ventilación/extracción | C176: 1 | D176: - | E176: Condición | F176: 0 | G176: 0 | H176: =IF(AND(F176>=C176,F176>0),10,0) -> 0 | I176: =IF(AND(G176>=C176,C176>0,G176>=1),10,0) -> 0 | J176: =H176-I176 -> 0 | AA176: =IF(UPPER(E176)="CONDICIÓN", 10, 0) -> 10 | AB176: =IF(UPPER(E176)="CONDICIÓN", H176, "") -> 0 | AC176: =IF(UPPER(E176)="CONDICIÓN", 10, 0) -> 10 | AD176: =IF(UPPER(E176)="CONDICIÓN", I176, "") -> 0
A177: INSTALACIONES GENERALES | AO177: =SUM(Q177:Q180) -> 0 | AP177: =SUM(R177:R180) -> 0 | AQ177: =SUM(S177:S180) -> 0 | AR177: =SUM(T177:T180) -> 0 | AS177: =SUM(U177:U180) -> 0 | AT177: 0 | AU177: 0 | AV177: 0 | AW177: 10 | AX177: 0 | AY177: 10 | AZ177: 0 | BA177: 10 | BB177: 0 | BC177: 0 | BD177: 0 | BE177: 0 | BF177: 0 | BG177: 0 | BH177: 0 | BI177: 0 | BJ177: 0 | BK177: 0 | BL177: 0
A178: INSTALACIONES | B178: =B1 -> Anx: | C178: =C$1 -> Requerido: | D178: m² Util: | E178: Tipo: | F178: BUENO: | G178: MALO: | J178: Calif: | K178: Observaciones: | AO178: =SUM(Q178:Q180) -> 0 | AP178: =SUM(R178:R180) -> 0 | AQ178: =SUM(S178:S180) -> 0 | AR178: =SUM(T178:T180) -> 0 | AS178: =SUM(U178:U180) -> 0 | AT178: 0 | AU178: 0 | AV178: 0 | AW178: 10 | AX178: 0 | AY178: 10 | AZ178: 0 | BA178: 10 | BB178: 0 | BC178: 0 | BD178: 0 | BE178: 0 | BF178: 0 | BG178: 0 | BH178: 0 | BI178: 0 | BJ178: 0 | BK178: 0 | BL178: 0
A179: Instalaciones de ascensores (circulación vertical) | C179: 1 | D179: - | E179: Condición | F179: 0 | G179: 0 | H179: =IF(AND(F179>=C179,F179>0),10,0) -> 0 | I179: =IF(AND(G179>=C179,C179>0,G179>=1),10,0) -> 0 | J179: =H179-I179 -> 0 | AA179: =IF(UPPER(E179)="CONDICIÓN", 10, 0) -> 10 | AB179: =IF(UPPER(E179)="CONDICIÓN", H179, "") -> 0 | AC179: =IF(UPPER(E179)="CONDICIÓN", 10, 0) -> 10 | AD179: =IF(UPPER(E179)="CONDICIÓN", I179, "") -> 0
A180: Señalización externa e interna | C180: 1 | D180: - | E180: Requerido | F180: 0 | G180: 0 | H180: =IF(AND(F180>=C180,F180>0),10,0) -> 0 | I180: =IF(AND(G180>=C180,C180>0,G180>=1),10,0) -> 0 | J180: =H180-I180 -> 0 | Y180: =IF(UPPER(E180)="REQUERIDO", 10, "") -> 10 | Z180: =IF(UPPER(E180)="REQUERIDO", H180, "") -> 0 | AO180: AMBIENTES | AW180: INSTALACIONES | BE180: ESTRUCTURA GENERAL
A181: TOTALES PARCIALES REQUERIDOS: | AO181: req | AQ181: cond + | AS181: cond - | AU181: dese | AW181: req | AY181: cond | BA181: cond - | BC181: dese | BE181: req | BG181: cond | BI181: cond - | BK181: dese
A182: AMBIENTES: | C182: % Obtenido: | D182: % Obtenido: | E182: % Obtenido: | F182: % A Cumplir: | G182: % Final: | AF182: TOTAL GENERAL: | AO182: =(AO4+AO13+AO27+AO58+AO68+AO99+AO79+AO110+AO145) -> 360 | AP182: =(+Infraestructura!AP4+Infraestructura!AP13+Infraestructura!AP27+Infraestructura!AP58+Infraestructura!AP68+Infraestructura!AP99+Infraestructura!AP79+Infraestructura!AP110+Infraestructura!AP145) -> 0 | AQ182: =(AQ4+AQ13+AQ27+AQ58+AQ68+AQ99+AQ79+AQ110+AQ145) -> 150 | AR182: =(+Infraestructura!AR4+Infraestructura!AR13+Infraestructura!AR27+Infraestructura!AR58+Infraestructura!AR68+Infraestructura!AR99+Infraestructura!AR79+Infraestructura!AR110+Infraestructura!AR145) -> 0 | AS182: =(AS4+AS13+AS27+AS58+AS68+AS99+AS79+AS110+AS145) -> 150 | AT182: =(+Infraestructura!AT4+Infraestructura!AT13+Infraestructura!AT27+Infraestructura!AT58+Infraestructura!AT68+Infraestructura!AT99+Infraestructura!AT79+Infraestructura!AT110+Infraestructura!AT145) -> 0 | AU182: =(AU4+AU13+AU27+AU58+AU68+AU99+AU79+AU110+AU145) -> 10 | AV182: =(+Infraestructura!AV4+Infraestructura!AV13+Infraestructura!AV27+Infraestructura!AV58+Infraestructura!AV68+Infraestructura!AV99+Infraestructura!AV79+Infraestructura!AV110+Infraestructura!AV145) -> 0 | AW182: =(AW4+AW13+AW27+AW58+AW68+AW99+AW79+AW110+AW145) -> 220 | AX182: =(+Infraestructura!AX4+Infraestructura!AX13+Infraestructura!AX27+Infraestructura!AX58+Infraestructura!AX68+Infraestructura!AX99+Infraestructura!AX79+Infraestructura!AX110+Infraestructura!AX145) -> 0 | AY182: =(AY4+AY13+AY27+AY58+AY68+AY99+AY79+AY110+AY145) -> 100 | AZ182: =(+Infraestructura!AZ4+Infraestructura!AZ13+Infraestructura!AZ27+Infraestructura!AZ58+Infraestructura!AZ68+Infraestructura!AZ99+Infraestructura!AZ79+Infraestructura!AZ110+Infraestructura!AZ145) -> 0 | BA182: =(BA4+BA13+BA27+BA58+BA68+BA99+BA79+BA110+BA145) -> 100 | BB182: =(+Infraestructura!BB4+Infraestructura!BB13+Infraestructura!BB27+Infraestructura!BB58+Infraestructura!BB68+Infraestructura!BB99+Infraestructura!BB79+Infraestructura!BB110+Infraestructura!BB145) -> 0 | BC182: =(BC4+BC13+BC27+BC58+BC68+BC99+BC79+BC110+BC145) -> 0 | BD182: =(+Infraestructura!BD4+Infraestructura!BD13+Infraestructura!BD27+Infraestructura!BD58+Infraestructura!BD68+Infraestructura!BD99+Infraestructura!BD79+Infraestructura!BD110+Infraestructura!BD145) -> 0 | BE182: =(BE4+BE13+BE27+BE58+BE68+BE99+BE79+BE110+BE145) -> 120 | BF182: =(+Infraestructura!BF4+Infraestructura!BF13+Infraestructura!BF27+Infraestructura!BF58+Infraestructura!BF68+Infraestructura!BF99+Infraestructura!BF79+Infraestructura!BF110+Infraestructura!BF145) -> 0 | BG182: =(BG4+BG13+BG27+BG58+BG68+BG99+BG79+BG110+BG145) -> 20 | BH182: =(+Infraestructura!BH4+Infraestructura!BH13+Infraestructura!BH27+Infraestructura!BH58+Infraestructura!BH68+Infraestructura!BH99+Infraestructura!BH79+Infraestructura!BH110+Infraestructura!BH145) -> 0 | BI182: =(BI4+BI13+BI27+BI58+BI68+BI99+BI79+BI110+BI145) -> 20 | BJ182: =(+Infraestructura!BJ4+Infraestructura!BJ13+Infraestructura!BJ27+Infraestructura!BJ58+Infraestructura!BJ68+Infraestructura!BJ99+Infraestructura!BJ79+Infraestructura!BJ110+Infraestructura!BJ145) -> 0 | BK182: =(BK4+BK13+BK27+BK58+BK68+BK99+BK79+BK110+BK145) -> 0 | BL182: =(+Infraestructura!BL4+Infraestructura!BL13+Infraestructura!BL27+Infraestructura!BL58+Infraestructura!BL68+Infraestructura!BL99+Infraestructura!BL79+Infraestructura!BL110+Infraestructura!BL145) -> 0
A183: =$AF$183 -> ADMINISTRATIVO | C183: =(Infraestructura!$AP$183)*50/100/100 -> 0 | F183: =(Infraestructura!$AO$183)*50/100/100 -> 0.02777777778 | G183: =IF(Infraestructura!$C$183=Infraestructura!$F$183, "CUMPLE", "NO CUMPLE") -> NO CUMPLE | AF183: ADMINISTRATIVO | AO183: =AO4*100/AO182 -> 5.555555556 | AP183: =AP4*100/AO182 -> 0 | AQ183: =AQ4*100/AQ182 -> 0 | AR183: =AR4*100/AQ182 -> 0 | AS183: =AS4*100/AS182 -> 0 | AT183: =AT4*100/AS182 -> 0 | AU183: =AU4*100/AU182 -> 0 | AV183: =AV4*100/AU182 -> 0 | AW183: =AW4*100/AW182 -> 4.545454545 | AX183: =AX4*100/AW182 -> 0 | AY183: =AY4*100/AY182 -> 0 | AZ183: =AZ4*100/AY182 -> 0 | BA183: =BA4*100/BA182 -> 0 | BB183: =BB4*100/BA182 -> 0 | BC183: =BC4*100/BC182 ->  | BD183: =BD4*100/BC182 ->  | BE183: =BE4*100/BE182 -> 8.333333333 | BF183: =BF4*100/BE182 -> 0 | BG183: =BG4*100/BG182 -> 0 | BH183: =BH4*100/BG182 -> 0 | BI183: =BI4*100/BI182 -> 0 | BJ183: =BJ4*100/BI182 -> 0 | BK183: =BK4*100/BK182 ->  | BL183: =BL4*100/BK182 -> 
A184: =$AF$184 -> ADMISIÓN Y ESTADÍSTICA | D184: =(Infraestructura!$AP$184)*50/100/100 -> 0 | F184: =(Infraestructura!$AO$184)*50/100/100 -> 0.02777777778 | G184: =IF(Infraestructura!$D$184=Infraestructura!$F$184, "CUMPLE", "NO CUMPLE") -> NO CUMPLE | AF184: ADMISIÓN Y ESTADÍSTICA | AO184: =AO5*100/AO182 -> 5.555555556 | AP184: =AP5*100/AO182 -> 0 | AQ184: =AQ5*100/AQ182 -> 0 | AR184: =AR5*100/AQ182 -> 0 | AS184: =AS5*100/AS182 -> 0 | AT184: =AT5*100/AS182 -> 0 | AU184: =AU5*100/AU182 -> 0 | AV184: =AV5*100/AU182 -> 0 | AW184: =AW5*100/AW182 -> 4.545454545 | AX184: =AX5*100/AW182 -> 0 | AY184: =AY5*100/AY182 -> 0 | AZ184: =AZ5*100/AY182 -> 0 | BA184: =BA5*100/BA182 -> 0 | BB184: =BB5*100/BA182 -> 0 | BC184: =BC5*100/BC182 ->  | BD184: =BD5*100/BC182 ->  | BE184: =BE5*100/BE182 -> 8.333333333 | BF184: =BF5*100/BE182 -> 0 | BG184: =BG5*100/BG182 -> 0 | BH184: =BH5*100/BG182 -> 0 | BI184: =BI5*100/BI182 -> 0 | BJ184: =BJ5*100/BI182 -> 0 | BK184: =BK5*100/BK182 ->  | BL184: =BL5*100/BK182 -> 
A185: =$AF$185 -> ÁREA TÉCNICA | E185: =(Infraestructura!$AP$185)*50/100/100 -> 0 | F185: =(AO185)*50/100/100 -> 0.02777777778 | G185: =IF(Infraestructura!$E$185=Infraestructura!$F$185, "CUMPLE", "NO CUMPLE") -> NO CUMPLE | AF185: ÁREA TÉCNICA | AO185: =AO6*100/AO182 -> 5.555555556 | AP185: =AP6*100/AO182 -> 0 | AQ185: =AQ6*100/AQ182 -> 0 | AR185: =AR6*100/AQ182 -> 0 | AS185: =AS6*100/AS182 -> 0 | AT185: =AT6*100/AS182 -> 0 | AU185: =AU6*100/AU182 -> 0 | AV185: =AV6*100/AU182 -> 0 | AW185: =AW6*100/AW182 -> 4.545454545 | AX185: =AX6*100/AW182 -> 0 | AY185: =AY6*100/AY182 -> 0 | AZ185: =AZ6*100/AY182 -> 0 | BA185: =BA6*100/BA182 -> 0 | BB185: =BB6*100/BA182 -> 0 | BC185: =BC6*100/BC182 ->  | BD185: =BD6*100/BC182 ->  | BE185: =BE6*100/BE182 -> 8.333333333 | BF185: =BF6*100/BE182 -> 0 | BG185: =BG6*100/BG182 -> 0 | BH185: =BH6*100/BG182 -> 0 | BI185: =BI6*100/BI182 -> 0 | BJ185: =BJ6*100/BI182 -> 0 | BK185: =BK6*100/BK182 ->  | BL185: =BL6*100/BK182 -> 
A186: =Infraestructura!$AF$186 -> ASISTENCIAL | C186: =(AP186)*50/100/100 -> 0 | F186: 0.08333333333 | G186: =IF(Infraestructura!$C$186=Infraestructura!$F$186, "CUMPLE", "NO CUMPLE") -> NO CUMPLE | AF186: ASISTENCIAL | AO186: =AO13*100/AO182 -> 16.66666667 | AP186: =AP13*100/AO182 -> 0 | AQ186: =AQ13*100/AQ182 -> 0 | AR186: =AR13*100/AQ182 -> 0 | AS186: =AS13*100/AS182 -> 0 | AT186: =AT13*100/AS182 -> 0 | AU186: =AU13*100/AU182 -> 100 | AV186: =AV13*100/AU182 -> 0 | AW186: =AW13*100/AW182 -> 4.545454545 | AX186: =AX13*100/AW182 -> 0 | AY186: =AY13*100/AY182 -> 0 | AZ186: =AZ13*100/AY182 -> 0 | BA186: =BA13*100/BA182 -> 0 | BB186: =BB13*100/BA182 -> 0 | BC186: =BC13*100/BC182 ->  | BD186: =BD13*100/BC182 ->  | BE186: =BE13*100/BE182 -> 8.333333333 | BF186: =BF13*100/BE182 -> 0 | BG186: =BG13*100/BG182 -> 0 | BH186: =BH13*100/BG182 -> 0 | BI186: =BI13*100/BI182 -> 0 | BJ186: =BJ13*100/BI182 -> 0 | BK186: =BK13*100/BK182 ->  | BL186: =BL13*100/BK182 -> 
A187: =Infraestructura!$AF$187 -> CONSULTA EXTERNA | D187: =(AP187)*50/100/100 -> 0 | F187: 0.08333333333 | G187: =IF(Infraestructura!$D$187=Infraestructura!$F$187, "CUMPLE", "NO CUMPLE") -> NO CUMPLE | AF187: CONSULTA EXTERNA | AO187: =AO14*100/AO182 -> 16.66666667 | AP187: =AP14*100/AO182 -> 0 | AQ187: =AQ14*100/AQ182 -> 0 | AR187: =AR14*100/AQ182 -> 0 | AS187: =AS14*100/AS182 -> 0 | AT187: =AT14*100/AS182 -> 0 | AU187: =AU14*100/AU182 -> 100 | AV187: =AV14*100/AU182 -> 0 | AW187: =AW14*100/AW182 -> 4.545454545 | AX187: =AX14*100/AW182 -> 0 | AY187: =AY14*100/AY182 -> 0 | AZ187: =AZ14*100/AY182 -> 0 | BA187: =BA14*100/BA182 -> 0 | BB187: =BB14*100/BA182 -> 0 | BC187: =BC14*100/BC182 ->  | BD187: =BD14*100/BC182 ->  | BE187: =BE14*100/BE182 -> 8.333333333 | BF187: =BF14*100/BE182 -> 0 | BG187: =BG14*100/BG182 -> 0 | BH187: =BH14*100/BG182 -> 0 | BI187: =BI14*100/BI182 -> 0 | BJ187: =BJ14*100/BI182 -> 0 | BK187: =BK14*100/BK182 ->  | BL187: =BL14*100/BK182 -> 
A188: =Infraestructura!$AF$188 -> ÁREA DE CONSULTA | E188: =(AP188)*50/100/100 -> 0 | F188: 0.08333333333 | G188: =IF(Infraestructura!$E$188=Infraestructura!$F$188, "CUMPLE", "NO CUMPLE") -> NO CUMPLE | AF188: ÁREA DE CONSULTA | AO188: =AO15*100/AO182 -> 16.66666667 | AP188: =AP15*100/AO182 -> 0 | AQ188: =AQ15*100/AQ182 -> 0 | AR188: =AR15*100/AQ182 -> 0 | AS188: =AS15*100/AS182 -> 0 | AT188: =AT15*100/AS182 -> 0 | AU188: =AU15*100/AU182 -> 100 | AV188: =AV15*100/AU182 -> 0 | AW188: =AW15*100/AW182 -> 4.545454545 | AX188: =AX15*100/AW182 -> 0 | AY188: =AY15*100/AY182 -> 0 | AZ188: =AZ15*100/AY182 -> 0 | BA188: =BA15*100/BA182 -> 0 | BB188: =BB15*100/BA182 -> 0 | BC188: =BC15*100/BC182 ->  | BD188: =BD15*100/BC182 ->  | BE188: =BE15*100/BE182 -> 8.333333333 | BF188: =BF15*100/BE182 -> 0 | BG188: =BG15*100/BG182 -> 0 | BH188: =BH15*100/BG182 -> 0 | BI188: =BI15*100/BI182 -> 0 | BJ188: =BJ15*100/BI182 -> 0 | BK188: =BK15*100/BK182 ->  | BL188: =BL15*100/BK182 -> 
A189: =$AF$189 -> ASISTENCIAL | C189: =(AP189)*50/100/100 -> 0 | F189: 0.09722222222 | G189: =IF(Infraestructura!$C$189=Infraestructura!$F$189, "CUMPLE", "NO CUMPLE") -> NO CUMPLE | AF189: ASISTENCIAL | AO189: =AO27*100/AO182 -> 19.44444444 | AP189: =AP27*100/AO182 -> 0 | AQ189: =AQ27*100/AQ182 -> 40 | AR189: =AR27*100/AQ182 -> 0 | AS189: =AS27*100/AS182 -> 40 | AT189: =AT27*100/AS182 -> 0 | AU189: =AU27*100/AU182 -> 0 | AV189: =AV27*100/AU182 -> 0 | AW189: =AW27*100/AW182 -> 9.090909091 | AX189: =AX27*100/AW182 -> 0 | AY189: =AY27*100/AY182 -> 10 | AZ189: =AZ27*100/AY182 -> 0 | BA189: =BA27*100/BA182 -> 10 | BB189: =BB27*100/BA182 -> 0 | BC189: =BC27*100/BC182 ->  | BD189: =BD27*100/BC182 ->  | BE189: =BE27*100/BE182 -> 16.66666667 | BF189: =BF27*100/BE182 -> 0 | BG189: =BG27*100/BG182 -> 50 | BH189: =BH27*100/BG182 -> 0 | BI189: =BI27*100/BI182 -> 50 | BJ189: =BJ27*100/BI182 -> 0 | BK189: =BK27*100/BK182 ->  | BL189: =BL27*100/BK182 -> 
A190: =$AF$190 -> INTERNACIÓN / RESIDENCIA | D190: =(AP190)*50/100/100 -> 0 | F190: 0.09722222222 | G190: =IF(Infraestructura!$D$190=Infraestructura!$F$190, "CUMPLE", "NO CUMPLE") -> NO CUMPLE | AF190: INTERNACIÓN / RESIDENCIA | AO190: =AO$28*100/AO182 -> 19.44444444 | AP190: =AP28*100/AO182 -> 0 | AQ190: =AQ28*100/AQ182 -> 40 | AR190: =AR28*100/AQ182 -> 0 | AS190: =AS$28*100/AS182 -> 40 | AT190: =AT28*100/AS182 -> 0 | AU190: =AU28*100/AU182 -> 0 | AV190: =AV28*100/AU182 -> 0 | AW190: =AW$28*100/AW182 -> 9.090909091 | AX190: =AX28*100/AW182 -> 0 | AY190: =AY28*100/AY182 -> 10 | AZ190: =AZ28*100/AY182 -> 0 | BA190: =BA$28*100/BA182 -> 10 | BB190: =BB28*100/BA182 -> 0 | BC190: =BC28*100/BC182 ->  | BD190: =BD28*100/BC182 ->  | BE190: =BE$28*100/BE182 -> 16.66666667 | BF190: =BF28*100/BE182 -> 0 | BG190: =BG28*100/BG182 -> 50 | BH190: =BH28*100/BG182 -> 0 | BI190: =BI$28*100/BI182 -> 50 | BJ190: =BJ28*100/BI182 -> 0 | BK190: =BK28*100/BK182 ->  | BL190: =BL28*100/BK182 -> 
A191: =$AF$191 -> ÁREA DE INTERNACIÓN/RESIDENCIA | E191: =(AP191)*50/100/100 -> 0 | F191: 0.05555555556 | G191: =IF(Infraestructura!$E$191=Infraestructura!$F$191, "CUMPLE", "NO CUMPLE") -> NO CUMPLE | AF191: ÁREA DE INTERNACIÓN/RESIDENCIA | AO191: =AO30*100/AO182 -> 11.11111111 | AP191: =AP30*100/AO182 -> 0 | AQ191: =AQ30*100/AQ182 -> 13.33333333 | AR191: =AR30*100/AQ182 -> 0 | AS191: =AS30*100/AS182 -> 13.33333333 | AT191: =AT30*100/AS182 -> 0 | AU191: =AU30*100/AU182 -> 0 | AV191: =AV30*100/AU182 -> 0 | AW191: =AW30*100/AW182 -> 0 | AX191: =AX30*100/AW182 -> 0 | AY191: =AY30*100/AY182 -> 0 | AZ191: =AZ30*100/AY182 -> 0 | BA191: =BA30*100/BA182 -> 0 | BB191: =BB30*100/BA182 -> 0 | BC191: =BC30*100/BC182 ->  | BD191: =BD30*100/BC182 ->  | BE191: =BE30*100/BE182 -> 0 | BF191: =BF30*100/BE182 -> 0 | BG191: =BG30*100/BG182 -> 0 | BH191: =BH30*100/BG182 -> 0 | BI191: =BI30*100/BI182 -> 0 | BJ191: =BJ30*100/BI182 -> 0 | BK191: =BK30*100/BK182 ->  | BL191: =BL30*100/BK182 -> 
A192: =$AF$192 -> ÁREA DE SOPORTE Y SUMINISTROS | E192: =(AP192)*50/100/100 -> 0 | F192: 0.04166666667 | G192: =IF(Infraestructura!$E$192=Infraestructura!$F$192, "CUMPLE", "NO CUMPLE") -> NO CUMPLE | AF192: ÁREA DE SOPORTE Y SUMINISTROS | AO192: =AO41*100/AO182 -> 8.333333333 | AP192: =AP41*100/AO182 -> 0 | AQ192: =AQ41*100/AQ182 -> 6.666666667 | AR192: =AR41*100/AQ182 -> 0 | AS192: =AS41*100/AS182 -> 6.666666667 | AT192: =AT41*100/AS182 -> 0 | AU192: =AU41*100/AU182 -> 0 | AV192: =AV41*100/AU182 -> 0 | AW192: =AW41*100/AW182 -> 4.545454545 | AX192: =AX41*100/AW182 -> 0 | AY192: =AY41*100/AY182 -> 0 | AZ192: =AZ41*100/AY182 -> 0 | BA192: =BA41*100/BA182 -> 0 | BB192: =BB41*100/BA182 -> 0 | BC192: =BC41*100/BC182 ->  | BD192: =BD41*100/BC182 ->  | BE192: =BE41*100/BE182 -> 8.333333333 | BF192: =BF41*100/BE182 -> 0 | BG192: =BG41*100/BG182 -> 0 | BH192: =BH41*100/BG182 -> 0 | BI192: =BI41*100/BI182 -> 0 | BJ192: =BJ41*100/BI182 -> 0 | BK192: =BK41*100/BK182 ->  | BL192: =BL41*100/BK182 -> 
A193: =Infraestructura!$AF$194 -> APOYO TERAPEUTICO | C193: =(AP194)*50/100/100 -> 0 | F193: =(AO194)*50/100/100 -> 0.02777777778 | G193: =IF(Infraestructura!$C$193=Infraestructura!$F$193, "CUMPLE", "NO CUMPLE") -> NO CUMPLE | AF193: ÁREA DE PERSONAL | AO193: =AO50*100/AO182 -> 0 | AP193: =AO50*100/AO182 -> 0 | AQ193: =AQ50*100/AQ182 -> 20 | AR193: =AR50*100/AQ182 -> 0 | AS193: =AS50*100/AS182 -> 20 | AT193: =AT50*100/AS182 -> 0 | AU193: =AU50*100/AU182 -> 0 | AV193: =AV50*100/AU182 -> 0 | AW193: =AW50*100/AW182 -> 0 | AX193: =AW50*100/AW182 -> 0 | AY193: =AY50*100/AY182 -> 10 | AZ193: =AZ50*100/AY182 -> 0 | BA193: =BA50*100/BA182 -> 10 | BB193: =BB50*100/BA182 -> 0 | BC193: =BC50*100/BC182 ->  | BD193: =BD50*100/BC182 ->  | BE193: =BE50*100/BE182 -> 0 | BF193: =BE50*100/BE182 -> 0 | BG193: =BG50*100/BG182 -> 50 | BH193: =BH50*100/BG182 -> 0 | BI193: =BI50*100/BI182 -> 50 | BJ193: =BJ50*100/BI182 -> 0 | BK193: =BK50*100/BK182 ->  | BL193: =BL50*100/BK182 -> 
A194: =Infraestructura!$AF$195 -> DOTACIÓN DE MEDICAMENTOS Y DISPOSITIVOS MÉDICOS (FARMACIA) | D194: =(AP195)*50/100/100 -> 0 | F194: 0.02777777778 | G194: =IF(Infraestructura!$D$194=Infraestructura!$F$194, "CUMPLE", "NO CUMPLE") -> NO CUMPLE | AF194: APOYO TERAPEUTICO | AO194: =AO58*100/AO182 -> 5.555555556 | AP194: =AP58*100/AO182 -> 0 | AQ194: =AQ58*100/AQ182 -> 0 | AR194: =AR58*100/AQ182 -> 0 | AS194: =AS58*100/AS182 -> 0 | AT194: =AT58*100/AS182 -> 0 | AU194: =AU58*100/AU182 -> 0 | AV194: =AV58*100/AU182 -> 0 | AW194: =AW58*100/AW182 -> 4.545454545 | AX194: =AX58*100/AW182 -> 0 | AY194: =AY58*100/AY182 -> 0 | AZ194: =AZ58*100/AY182 -> 0 | BA194: =BA58*100/BA182 -> 0 | BB194: =BB58*100/BA182 -> 0 | BC194: =BC58*100/BC182 ->  | BD194: =BD58*100/BC182 ->  | BE194: =BE58*100/BE182 -> 8.333333333 | BF194: =BF58*100/BE182 -> 0 | BG194: =BG58*100/BG182 -> 0 | BH194: =BH58*100/BG182 -> 0 | BI194: =BI58*100/BI182 -> 0 | BJ194: =BJ58*100/BI182 -> 0 | BK194: =BK58*100/BK182 ->  | BL194: =BL58*100/BK182 -> 
A195: =Infraestructura!$AF$196 -> ÁREA DE FARMACIA | E195: =(AP196)*50/100/100 -> 0 | F195: 0.02777777778 | G195: =IF(Infraestructura!$E$195=Infraestructura!$F$195, "CUMPLE", "NO CUMPLE") -> NO CUMPLE | AF195: DOTACIÓN DE MEDICAMENTOS Y DISPOSITIVOS MÉDICOS (FARMACIA) | AO195: =AO59*100/AO182 -> 5.555555556 | AP195: =AP59*100/AO182 -> 0 | AQ195: =AQ59*100/AQ182 -> 0 | AR195: =AR59*100/AQ182 -> 0 | AS195: =AS59*100/AS182 -> 0 | AT195: =AT59*100/AS182 -> 0 | AU195: =AU59*100/AU182 -> 0 | AV195: =AV59*100/AU182 -> 0 | AW195: =AW59*100/AW182 -> 4.545454545 | AX195: =AX59*100/AW182 -> 0 | AY195: =AY59*100/AY182 -> 0 | AZ195: =AZ59*100/AY182 -> 0 | BA195: =BA59*100/BA182 -> 0 | BB195: =BB59*100/BA182 -> 0 | BC195: =BC59*100/BC182 ->  | BD195: =BD59*100/BC182 ->  | BE195: =BE59*100/BE182 -> 8.333333333 | BF195: =BF59*100/BE182 -> 0 | BG195: =BG59*100/BG182 -> 0 | BH195: =BH59*100/BG182 -> 0 | BI195: =BI59*100/BI182 -> 0 | BJ195: =BJ59*100/BI182 -> 0 | BK195: =BK59*100/BK182 ->  | BL195: =BL59*100/BK182 -> 
A196: =Infraestructura!$AF$197 -> APOYO DIAGNÓSTICO Y TERAPEUTICO | C196: =(AP197*50/100/100) -> 0 | F196: 0.02777777778 | G196: =IF(Infraestructura!$C$196=Infraestructura!$F$196, "CUMPLE", "NO CUMPLE") -> NO CUMPLE | AF196: ÁREA DE FARMACIA | AO196: =AO61*100/AO182 -> 5.555555556 | AP196: =AP61*100/AO182 -> 0 | AQ196: =AQ61*100/AQ182 -> 0 | AR196: =AR61*100/AQ182 -> 0 | AS196: =AS61*100/AS182 -> 0 | AT196: =AT61*100/AS182 -> 0 | AU196: =AU61*100/AU182 -> 0 | AV196: =AV61*100/AU182 -> 0 | AW196: =AW61*100/AW182 -> 4.545454545 | AX196: =AX61*100/AW182 -> 0 | AY196: =AY61*100/AY182 -> 0 | AZ196: =AZ61*100/AY182 -> 0 | BA196: =BA61*100/BA182 -> 0 | BB196: =BB61*100/BA182 -> 0 | BC196: =BC61*100/BC182 ->  | BD196: =BD61*100/BC182 ->  | BE196: =BE61*100/BE182 -> 8.333333333 | BF196: =BF61*100/BE182 -> 0 | BG196: =BG61*100/BG182 -> 0 | BH196: =BH61*100/BG182 -> 0 | BI196: =BI61*100/BI182 -> 0 | BJ196: =BJ61*100/BI182 -> 0 | BK196: =BK61*100/BK182 ->  | BL196: =BL61*100/BK182 -> 
A197: =Infraestructura!$AF$198 -> REHABILITACIÓN | D197: =(AP198)*50/100/100 -> 0 | F197: 0.02777777778 | G197: =IF(Infraestructura!$D$197=Infraestructura!$F$197, "CUMPLE", "NO CUMPLE") -> NO CUMPLE | AF197: APOYO DIAGNÓSTICO Y TERAPEUTICO | AO197: =AO68*100/AO182 -> 5.555555556 | AP197: =AP68*100/AO182 -> 0 | AQ197: =AQ68*100/AQ182 -> 13.33333333 | AR197: =AR68*100/AQ182 -> 0 | AS197: =AS68*100/AS182 -> 13.33333333 | AT197: =AT68*100/AS182 -> 0 | AU197: =AU68*100/AU182 -> 0 | AV197: =AV68*100/AU182 -> 0 | AW197: =AW68*100/AW182 -> 4.545454545 | AX197: =AX68*100/AW182 -> 0 | AY197: =AY68*100/AY182 -> 0 | AZ197: =AZ68*100/AY182 -> 0 | BA197: =BA68*100/BA182 -> 0 | BB197: =BB68*100/BA182 -> 0 | BC197: =BC68*100/BC182 ->  | BD197: =BD68*100/BC182 ->  | BE197: =BE68*100/BE182 -> 8.333333333 | BF197: =BF68*100/BE182 -> 0 | BG197: =BG68*100/BG182 -> 0 | BH197: =BH68*100/BG182 -> 0 | BI197: =BI68*100/BI182 -> 0 | BJ197: =BJ68*100/BI182 -> 0 | BK197: =BK68*100/BK182 ->  | BL197: =BL68*100/BK182 -> 
A198: =Infraestructura!$AF$199 -> ÁREA DE TERAPIAS | E198: =(AP199)*50/100/100 -> 0 | F198: 0.02777777778 | G198: =IF(Infraestructura!$E$198=Infraestructura!$F$198, "CUMPLE", "NO CUMPLE") -> NO CUMPLE | AF198: REHABILITACIÓN | AO198: =AO69*100/AO182 -> 5.555555556 | AP198: =AP69*100/AO182 -> 0 | AQ198: =AQ69*100/AQ182 -> 13.33333333 | AR198: =AR69*100/AQ182 -> 0 | AS198: =AS69*100/AS182 -> 13.33333333 | AT198: =AT69*100/AS182 -> 0 | AU198: =AU69*100/AU182 -> 0 | AV198: =AV69*100/AU182 -> 0 | AW198: =AW69*100/AW182 -> 4.545454545 | AX198: =AX69*100/AW182 -> 0 | AY198: =AY69*100/AY182 -> 0 | AZ198: =AZ69*100/AY182 -> 0 | BA198: =BA69*100/BA182 -> 0 | BB198: =BB69*100/BA182 -> 0 | BC198: =BC69*100/BC182 ->  | BD198: =BD69*100/BC182 ->  | BE198: =BE69*100/BE182 -> 8.333333333 | BF198: =BF69*100/BE182 -> 0 | BG198: =BG69*100/BG182 -> 0 | BH198: =BH69*100/BG182 -> 0 | BI198: =BI69*100/BI182 -> 0 | BJ198: =BJ69*100/BI182 -> 0 | BK198: =BK69*100/BK182 ->  | BL198: =BL69*100/BK182 -> 
A199: =Infraestructura!$AF$200 -> APOYO TERAPEÚTICO | C199: =(AP200)*50/100/100 -> 0 | F199: 0.09722222222 | G199: =IF(Infraestructura!$C$199=Infraestructura!$F$199, "CUMPLE", "NO CUMPLE") -> NO CUMPLE | AF199: ÁREA DE TERAPIAS | AO199: =AO70*100/AO182 -> 5.555555556 | AP199: =AP70*100/AO182 -> 0 | AQ199: =AQ70*100/AQ182 -> 13.33333333 | AR199: =AR70*100/AQ182 -> 0 | AS199: =AS70*100/AS182 -> 13.33333333 | AT199: =AT70*100/AS182 -> 0 | AU199: =AU70*100/AU182 -> 0 | AV199: =AV70*100/AU182 -> 0 | AW199: =AW70*100/AW182 -> 4.545454545 | AX199: =AX70*100/AW182 -> 0 | AY199: =AY70*100/AY182 -> 0 | AZ199: =AZ70*100/AY182 -> 0 | BA199: =BA70*100/BA182 -> 0 | BB199: =BB70*100/BA182 -> 0 | BC199: =BC70*100/BC182 ->  | BD199: =BD70*100/BC182 ->  | BE199: =BE70*100/BE182 -> 8.333333333 | BF199: =BF70*100/BE182 -> 0 | BG199: =BG70*100/BG182 -> 0 | BH199: =BH70*100/BG182 -> 0 | BI199: =BI70*100/BI182 -> 0 | BJ199: =BJ70*100/BI182 -> 0 | BK199: =BK70*100/BK182 ->  | BL199: =BL70*100/BK182 -> 
A200: =Infraestructura!$AF$201 -> NUTRICIÓN Y DIETÉTICA | D200: =(AP201)*50/100/100 -> 0 | F200: 0.09722222222 | G200: =IF(Infraestructura!$D$200=Infraestructura!$F$200, "CUMPLE", "NO CUMPLE") -> NO CUMPLE | AF200: APOYO TERAPEÚTICO | AO200: =AO79*100/AO182 -> 19.44444444 | AP200: =AP79*100/AO182 -> 0 | AQ200: =AQ79*100/AQ182 -> 6.666666667 | AR200: =AR79*100/AQ182 -> 0 | AS200: =AS79*100/AS182 -> 6.666666667 | AT200: =AT79*100/AS182 -> 0 | AU200: =AU79*100/AU182 -> 0 | AV200: =AV79*100/AU182 -> 0 | AW200: =AW79*100/AW182 -> 9.090909091 | AX200: =AX79*100/AW182 -> 0 | AY200: =AY79*100/AY182 -> 0 | AZ200: =AZ79*100/AY182 -> 0 | BA200: =BA79*100/BA182 -> 0 | BB200: =BB79*100/BA182 -> 0 | BC200: =BC79*100/BC182 ->  | BD200: =BD79*100/BC182 ->  | BE200: =BE79*100/BE182 -> 16.66666667 | BF200: =BF79*100/BE182 -> 0 | BG200: =BG79*100/BG182 -> 0 | BH200: =BH79*100/BG182 -> 0 | BI200: =BI79*100/BI182 -> 0 | BJ200: =BJ79*100/BI182 -> 0 | BK200: =BK79*100/BK182 ->  | BL200: =BL79*100/BK182 -> 
... 81 more rows

Sheet Equipamiento
A1: FILTROS: | B1: Anx: | C1: Cant x Espacio: | D1: Requerido: | E1: Tipo: | F1: Funcional: | G1: No Funcional: | H1: Calif: | K1: Observaciones:
A2: =Menu!$A$5 -> CENTRO ESPECIALIZADO EN TRATAMIENTO PARA PERSONAS CON CONSUMO PROBLEMÁTICO DE ALCOHOL Y OTRAS DROGAS (CETADS) | R2: REQ | T2: COND + | V2: COND - | X2: DES | Z2: REQ | AB2: COND + | AD2: COND - | AF2: DES | AH2: REQ | AJ2: COND + | AL2: COND - | AN2: DES | AP2: REQ | AR2: COND + | AT2: COND - | AV2: DES
A3: EQUIPAMIENTO | R3: MOBILIARIO GENERAL | Z3: MOBILIARIO MEDICO | AH3: EQUIPAMIENTO GENERAL | AP3: EQUIPAMIENTO MEDICO | AX3: TOTAL MOBILIARIO GENERAL | BF3: TOTAL MOBILIARIO MEDICO | BN3: TOTAL EQUIPAMIENTO GENERAL | BV3: TOTAL EQUIPAMIENTO MEDICO
A4: ADMINISTRATIVO | AX4: =SUM(R5:R24) -> 80 | AY4: 0 | AZ4: 30 | BA4: 0 | BB4: 30 | BC4: 0 | BD4: 0 | BE4: 0 | BF4: 0 | BG4: 0 | BH4: 0 | BI4: 0 | BJ4: 0 | BK4: 0 | BL4: 0 | BM4: 0 | BN4: 30 | BO4: 0 | BP4: 10 | BQ4: 0 | BR4: 10 | BS4: 0 | BT4: 0 | BU4: 0 | BV4: 0 | BW4: 0 | BX4: 0 | BY4: 0 | BZ4: 0 | CA4: 0 | CB4: 0 | CC4: 0
A5: ADMISIÓN Y ESTADÍSTICA | AX5: =SUM(R6:R24) -> 80 | AY5: 0 | AZ5: 30 | BA5: 0 | BB5: 30 | BC5: 0 | BD5: 0 | BE5: 0 | BF5: 0 | BG5: 0 | BH5: 0 | BI5: 0 | BJ5: 0 | BK5: 0 | BL5: 0 | BM5: 0 | BN5: 30 | BO5: 0 | BP5: 10 | BQ5: 0 | BR5: 10 | BS5: 0 | BT5: 0 | BU5: 0 | BV5: 0 | BW5: 0 | BX5: 0 | BY5: 0 | BZ5: 0 | CA5: 0 | CB5: 0 | CC5: 0
A6: ÁREA TÉCNICA | AX6: =SUM(R7:R24) -> 80 | AY6: 0 | AZ6: 30 | BA6: 0 | BB6: 30 | BC6: 0 | BD6: 0 | BE6: 0 | BF6: 0 | BG6: 0 | BH6: 0 | BI6: 0 | BJ6: 0 | BK6: 0 | BL6: 0 | BM6: 0 | BN6: 30 | BO6: 0 | BP6: 10 | BQ6: 0 | BR6: 10 | BS6: 0 | BT6: 0 | BU6: 0 | BV6: 0 | BW6: 0 | BX6: 0 | BY6: 0 | BZ6: 0 | CA6: 0 | CB6: 0 | CC6: 0
A7: AMBIENTES | AX7: =SUM(R8:R24) -> 80 | AY7: 0 | AZ7: 30 | BA7: 0 | BB7: 30 | BC7: 0 | BD7: 0 | BE7: 0 | BF7: 0 | BG7: 0 | BH7: 0 | BI7: 0 | BJ7: 0 | BK7: 0 | BL7: 0 | BM7: 0 | BN7: 30 | BO7: 0 | BP7: 10 | BQ7: 0 | BR7: 10 | BS7: 0 | BT7: 0 | BU7: 0 | BV7: 0 | BW7: 0 | BX7: 0 | BY7: 0 | BZ7: 0 | CA7: 0 | CB7: 0 | CC7: 0
A8: Admisión, Información y Recepción | B8: =B1 -> Anx: | C8: =C$1 -> Cant x Espacio: | D8: Requerido: | E8: Tipo: | F8: Funcional: | G8: No Funcional: | J8: =H$1 -> Calif: | K8: Observaciones: | L8: =Infraestructura!$F$8 -> 0 | M8: =Infraestructura!$G$8 -> 0
A9: Mostrador / escritorio/Mesa de despacho | B9: EQ_01 | C9: 1 | D9: =IF(AND($L$8=0,$M$8=0),0,IF(AND($L$8>0,$M$8>0),($L$8+$M$8)*C9,IF(AND($L$8=0,$M$8>0),C9*$M$8,$L$8*C9))) -> 0 | E9: Requerido | F9: 0 | G9: 0 | H9: =IF(AND(F9>=D9,F9>0,D9>0),10,0) -> 0 | I9: =IF(AND(G9>=D9,D9>0,G9>=1),10,0) -> 0 | J9: =H9-I9 -> 0 | N9: MG | R9: =IF(UPPER(E9)="REQUERIDO", 10, "") -> 10 | S9: =IF(UPPER(E9)="REQUERIDO", H9, "") -> 0
A10: Silla | C10: 1 | D10: =IF(AND($L$8=0,$M$8=0),0,IF(AND($L$8>0,$M$8>0),($L$8+$M$8)*C10,IF(AND($L$8=0,$M$8>0),C10*$M$8,$L$8*C10))) -> 0 | E10: Requerido | F10: 0 | G10: 0 | H10: =IF(AND(F10>=D10,F10>0,D10>0),10,0) -> 0 | I10: =IF(AND(G10>=D10,D10>0,G10>=1),10,0) -> 0 | J10: =H10-I10 -> 0 | N10: MG | R10: =IF(UPPER(E10)="REQUERIDO", 10, "") -> 10 | S10: =IF(UPPER(E10)="REQUERIDO", H10, "") -> 0
A11: Basurero | C11: 1 | D11: 0 | E11: Requerido | F11: 0 | G11: 0 | H11: 0 | I11: 0 | J11: 0 | N11: MG | R11: =IF(UPPER(E11)="REQUERIDO", 10, "") -> 10 | S11: =IF(UPPER(E11)="REQUERIDO", H11, "") -> 0
A12: Tablero de Avisos | C12: 1 | D12: 0 | E12: Requerido | F12: 0 | G12: 0 | H12: 0 | I12: 0 | J12: 0 | N12: MG | R12: =IF(UPPER(E12)="REQUERIDO", 10, "") -> 10 | S12: =IF(UPPER(E12)="REQUERIDO", H12, "") -> 0
A13: Armario/Archivador | C13: 1 | D13: 0 | E13: Requerido | F13: 0 | G13: 0 | H13: 0 | I13: 0 | J13: 0 | N13: MG | R13: =IF(UPPER(E13)="REQUERIDO", 10, "") -> 10 | S13: =IF(UPPER(E13)="REQUERIDO", H13, "") -> 0
A14: Teléfono | C14: 1 | D14: 0 | E14: Requerido | F14: 0 | G14: 0 | H14: 0 | I14: 0 | J14: 0 | N14: EG | AH14: =IF(UPPER(E14)="REQUERIDO", 10, "") -> 10 | AI14: =IF(UPPER(E14)="REQUERIDO", H14, "") -> 0
A15: Computador completo (Portátil o de Escritorio) | B15: EQ_02 | C15: 1 | D15: 0 | E15: Requerido | F15: 0 | G15: 0 | H15: 0 | I15: 0 | J15: 0 | N15: EG | AH15: =IF(UPPER(E15)="REQUERIDO", 10, "") -> 10 | AI15: =IF(UPPER(E15)="REQUERIDO", H15, "") -> 0
A16: Archivo | B16: =B1 -> Anx: | C16: =C$1 -> Cant x Espacio: | D16: Requerido: | E16: Tipo: | F16: Funcional: | G16: No Funcional: | J16: =H$1 -> Calif: | K16: Observaciones: | L16: =Infraestructura!$F$9 -> 0 | M16: =Infraestructura!$G$9 -> 0
A17: Estantería | C17: 1 | D17: =IF(AND($L$16=0,$M$16=0),0,IF(AND($L$16>0,$M$16>0),($L$16+$M$16)*C17,IF(AND($L$16=0,$M$16>0),C17*$M$16,$L$16*C17))) -> 0 | E17: Requerido | F17: 0 | G17: 0 | H17: =IF(AND(F17>=D17,F17>0,D17>0),10,0) -> 0 | I17: =IF(AND(G17>=D17,D17>0,G17>=1),10,0) -> 0 | J17: =H17-I17 -> 0 | N17: MG | R17: =IF(UPPER(E17)="REQUERIDO", 10, "") -> 10 | S17: =IF(UPPER(E17)="REQUERIDO", H17, "") -> 0
A18: Armario/Archivador | C18: 1 | D18: =IF(AND($L$16=0,$M$16=0),0,IF(AND($L$16>0,$M$16>0),($L$16+$M$16)*C18,IF(AND($L$16=0,$M$16>0),C18*$M$16,$L$16*C18))) -> 0 | E18: Requerido | F18: 0 | G18: 0 | H18: =IF(AND(F18>=D18,F18>0,D18>0),10,0) -> 0 | I18: 0 | J18: 0 | N18: MG | R18: =IF(UPPER(E18)="REQUERIDO", 10, "") -> 10 | S18: =IF(UPPER(E18)="REQUERIDO", H18, "") -> 0
A19: Escalera pata de gallo / Gradilla | C19: 1 | D19: =IF(AND($L$16=0,$M$16=0),0,IF(AND($L$16>0,$M$16>0),($L$16+$M$16)*C19,IF(AND($L$16=0,$M$16>0),C19*$M$16,$L$16*C19))) -> 0 | E19: Condición | F19: 0 | G19: 0 | H19: =IF(AND(F19>=D19,F19>0,D19>0),10,0) -> 0 | I19: =IF(AND(G19>=D19,D19>0,G19>=1),10,0) -> 0 | J19: =H19-I19 -> 0 | N19: MG | T19: =IF(UPPER(E19)="CONDICIÓN", 10, "") -> 10 | U19: =IF(UPPER(E19)="CONDICIÓN", H19, "") -> 0 | V19: =IF(UPPER(E19)="CONDICIÓN", 10, "") -> 10 | W19: =IF(UPPER(E19)="CONDICIÓN", I19, "") -> 0
A20: Escritorio/ Mesa de despacho | B20: EQ_01 | C20: 1 | D20: 0 | E20: Condición | F20: 0 | G20: 0 | H20: =IF(AND(F20>=D20,F20>0,D20>0),10,0) -> 0 | I20: 0 | J20: 0 | N20: MG | T20: =IF(UPPER(E20)="CONDICIÓN", 10, "") -> 10 | U20: =IF(UPPER(E20)="CONDICIÓN", H20, "") -> 0 | V20: =IF(UPPER(E20)="CONDICIÓN", 10, "") -> 10 | W20: =IF(UPPER(E20)="CONDICIÓN", I20, "") -> 0
A21: Computador completo (Portátil o de Escritorio) | B21: EQ_02 | C21: 1 | D21: 0 | E21: Condición | F21: 0 | G21: 0 | H21: =IF(AND(F21>=D21,F21>0,D21>0),10,0) -> 0 | I21: 0 | J21: 0 | N21: EG | AJ21: =IF(UPPER(E21)="CONDICIÓN", 10, "") -> 10 | AK21: =IF(UPPER(E21)="CONDICIÓN", H21, "") -> 0 | AL21: =IF(UPPER(E21)="CONDICIÓN", 10, "") -> 10 | AM21: =IF(UPPER(E21)="CONDICIÓN", I21, "") -> 0
A22: Silla | C22: 1 | D22: 0 | E22: Condición | F22: 0 | G22: 0 | H22: 0 | I22: 0 | J22: 0 | N22: MG | T22: =IF(UPPER(E22)="CONDICIÓN", 10, "") -> 10 | U22: =IF(UPPER(E22)="CONDICIÓN", H22, "") -> 0 | V22: =IF(UPPER(E22)="CONDICIÓN", 10, "") -> 10 | W22: =IF(UPPER(E22)="CONDICIÓN", I22, "") -> 0
A23: Basurero | C23: 1 | D23: 0 | E23: Requerido | F23: 0 | G23: 0 | H23: 0 | I23: 0 | J23: 0 | N23: MG | R23: =IF(UPPER(E23)="REQUERIDO", 10, "") -> 10 | S23: =IF(UPPER(E23)="REQUERIDO", H23, "") -> 0
A24: Extintor de incendios portátil | C24: 1 | D24: 0 | E24: Requerido | F24: 0 | G24: 0 | H24: 0 | I24: 0 | J24: 0 | N24: EG | AH24: =IF(UPPER(E24)="REQUERIDO", 10, "") -> 10 | AI24: =IF(UPPER(E24)="REQUERIDO", H24, "") -> 0
A25: ASISTENCIAL | AX25: =SUM(R26:R105) -> 310 | AY25: =SUM(S26:S105) -> 0 | AZ25: =SUM(T26:T105) -> 20 | BA25: 0 | BB25: 20 | BC25: 0 | BD25: 130 | BE25: 0 | BF25: 10 | BG25: 0 | BH25: 10 | BI25: 0 | BJ25: 10 | BK25: 0 | BL25: 0 | BM25: 0 | BN25: 130 | BO25: 0 | BP25: 0 | BQ25: 0 | BR25: 0 | BS25: 0 | BT25: 20 | BU25: 0 | BV25: 90 | BW25: 0 | BX25: 50 | BY25: 0 | BZ25: 50 | CA25: =SUM(AU26:AU105) -> 0 | CB25: 0 | CC25: 0
A26: CONSULTA EXTERNA | AX26: =SUM(R27:R105) -> 310 | AY26: =SUM(S27:S105) -> 0 | AZ26: =SUM(T27:T105) -> 20 | BA26: 0 | BB26: 20 | BC26: 0 | BD26: 130 | BE26: 0 | BF26: 10 | BG26: 0 | BH26: 10 | BI26: 0 | BJ26: 10 | BK26: 0 | BL26: 0 | BM26: 0 | BN26: 130 | BO26: 0 | BP26: 0 | BQ26: 0 | BR26: 0 | BS26: 0 | BT26: 20 | BU26: 0 | BV26: 90 | BW26: 0 | BX26: 50 | BY26: 0 | BZ26: 50 | CA26: 0 | CB26: 0 | CC26: 0
A27: ÁREA DE ATENCIÓN DE CONSULTA | AX27: =SUM(R28:R105) -> 310 | AY27: =SUM(S28:S105) -> 0 | AZ27: =SUM(T28:T105) -> 20 | BA27: 0 | BB27: 20 | BC27: 0 | BD27: 130 | BE27: 0 | BF27: 10 | BG27: 0 | BH27: 10 | BI27: 0 | BJ27: 10 | BK27: 0 | BL27: 0 | BM27: 0 | BN27: 130 | BO27: 0 | BP27: 0 | BQ27: 0 | BR27: 0 | BS27: 0 | BT27: 20 | BU27: 0 | BV27: 90 | BW27: 0 | BX27: 50 | BY27: 0 | BZ27: 50 | CA27: 0 | CB27: 0 | CC27: 0
A28: AMBIENTES | AX28: =SUM(R29:R105) -> 310 | AY28: =SUM(S29:S105) -> 0 | AZ28: =SUM(T29:T105) -> 20 | BA28: 0 | BB28: 20 | BC28: 0 | BD28: 130 | BE28: 0 | BF28: 10 | BG28: 0 | BH28: 10 | BI28: 0 | BJ28: 10 | BK28: 0 | BL28: 0 | BM28: 0 | BN28: 130 | BO28: 0 | BP28: 0 | BQ28: 0 | BR28: 0 | BS28: 0 | BT28: 20 | BU28: 0 | BV28: 90 | BW28: 0 | BX28: 50 | BY28: 0 | BZ28: 50 | CA28: 0 | CB28: 0 | CC28: 0
A29: Sala de espera | B29: =B1 -> Anx: | C29: =C$1 -> Cant x Espacio: | D29: Requerido: | E29: Tipo: | F29: Funcional: | G29: No Funcional: | J29: Calif: | K29: Observaciones: | L29: =Infraestructura!$F$17 -> 0 | M29: =Infraestructura!$G$17 -> 0
A30: Banca/Sillas | C30: 1 | D30: =IF(AND($L$29=0,$M$29=0),0,IF(AND($L$29>0,$M$29>0),($L$29+$M$29)*C30,IF(AND($L$29=0,$M$29>0),C30*$M$29,$L$29*C30))) -> 0 | E30: Requerido | F30: 0 | G30: 0 | H30: =IF(AND(F30>=D30,F30>0,D30>0),10,0) -> 0 | I30: =IF(AND(G30>=D30,D30>0,G30>=1),10,0) -> 0 | J30: =H30-I30 -> 0 | N30: MG | R30: =IF(UPPER(E30)="REQUERIDO", 10, "") -> 10 | S30: =IF(UPPER(E30)="REQUERIDO", H30, "") -> 0
A31: Basurero | C31: 1 | D31: =IF(AND($L$29=0,$M$29=0),0,IF(AND($L$29>0,$M$29>0),($L$29+$M$29)*C31,IF(AND($L$29=0,$M$29>0),C31*$M$29,$L$29*C31))) -> 0 | E31: Requerido | F31: 0 | G31: 0 | H31: =IF(AND(F31>=D31,F31>0,D31>0),10,0) -> 0 | I31: =IF(AND(G31>=D31,D31>0,G31>=1),10,0) -> 0 | J31: =H31-I31 -> 0 | N31: MG | R31: =IF(UPPER(E31)="REQUERIDO", 10, "") -> 10 | S31: =IF(UPPER(E31)="REQUERIDO", H31, "") -> 0
A32: Reloj de pared | C32: 1 | D32: =IF(AND($L$29=0,$M$29=0),0,IF(AND($L$29>0,$M$29>0),($L$29+$M$29)*C32,IF(AND($L$29=0,$M$29>0),C32*$M$29,$L$29*C32))) -> 0 | E32: Deseable | F32: 0 | G32: 0 | H32: =IF(AND(F32>=D32,F32>0,D32>0),10,0) -> 0 | I32: =IF(AND(G32>=D32,D32>0,G32>=1),10,0) -> 0 | J32: =H32-I32 -> 0 | N32: EG | AN32: =IF(UPPER(E32)="DESEABLE", 10, "") -> 10 | AO32: =IF(UPPER(E32)="DESEABLE", H32, "") -> 0
A33: Extintor de incendios portátil | C33: 1 | D33: =IF(AND($L$29=0,$M$29=0),0,IF(AND($L$29>0,$M$29>0),($L$29+$M$29)*C33,IF(AND($L$29=0,$M$29>0),C33*$M$29,$L$29*C33))) -> 0 | E33: Requerido | F33: 0 | G33: 0 | H33: =IF(AND(F33>=D33,F33>0,D33>0),10,0) -> 0 | I33: =IF(AND(G33>=D33,D33>0,G33>=1),10,0) -> 0 | J33: =H33-I33 -> 0 | N33: EG | AH33: =IF(UPPER(E33)="REQUERIDO", 10, "") -> 10 | AI33: =IF(UPPER(E33)="REQUERIDO", H33, "") -> 0
A34: Sistema Audiovisual de información | B34: EQ_03 | C34: 1 | D34: =IF(AND($L$29=0,$M$29=0),0,IF(AND($L$29>0,$M$29>0),($L$29+$M$29)*C34,IF(AND($L$29=0,$M$29>0),C34*$M$29,$L$29*C34))) -> 0 | E34: Requerido | F34: 0 | G34: 0 | H34: =IF(AND(F34>=D34,F34>0,D34>0),10,0) -> 0 | I34: =IF(AND(G34>=D34,D34>0,G34>=1),10,0) -> 0 | J34: =H34-I34 -> 0 | N34: MG | R34: =IF(UPPER(E34)="REQUERIDO", 10, "") -> 10 | S34: =IF(UPPER(E34)="REQUERIDO", H34, "") -> 0
A35: Baños/Baterías Sanitarias para personas con discapacidad-puede ser un ambiente exclusivo o puede estar incorporado al ambiente general de baños/baterías sanitarias | B35: =B1 -> Anx: | C35: =C$1 -> Cant x Espacio: | D35: Requerido: | E35: Tipo: | F35: Funcional: | G35: No Funcional: | J35: Calif: | K35: Observaciones: | L35: =Infraestructura!$F$18 -> 0 | M35: =Infraestructura!$G$18 -> 0
A36: Inodoro | C36: 1 | D36: =IF(AND($L$35=0,$M$35=0),0,IF(AND($L$35>0,$M$35>0),($L$35+$M$35)*C36,IF(AND($L$35=0,$M$35>0),C36*$M$35,$L$35*C36))) -> 0 | E36: Deseable | F36: 0 | G36: 0 | H36: =IF(AND(F36>=D36,F36>0,D36>0),10,0) -> 0 | I36: =IF(AND(G36>=D36,D36>0,G36>=1),10,0) -> 0 | J36: =H36-I36 -> 0 | N36: MG | X36: =IF(UPPER(E36)="DESEABLE", 10, "") -> 10 | Y36: =IF(UPPER(E36)="DESEABLE", H36, "") -> 0
A37: Barras de apoyo | C37: 1 | D37: =IF(AND($L$35=0,$M$35=0),0,IF(AND($L$35>0,$M$35>0),($L$35+$M$35)*C37,IF(AND($L$35=0,$M$35>0),C37*$M$35,$L$35*C37))) -> 0 | E37: Deseable | F37: 0 | G37: 0 | H37: 0 | I37: 0 | J37: 0 | N37: MG | X37: 10 | Y37: 0
A38: Dispensador de papel higiénico | C38: 1 | D38: =IF(AND($L$35=0,$M$35=0),0,IF(AND($L$35>0,$M$35>0),($L$35+$M$35)*C38,IF(AND($L$35=0,$M$35>0),C38*$M$35,$L$35*C38))) -> 0 | E38: Deseable | F38: 0 | G38: 0 | H38: 0 | I38: 0 | J38: 0 | N38: MG | X38: 10 | Y38: 0
A39: Lavabo | C39: 1 | D39: 0 | E39: Deseable | F39: 0 | G39: 0 | H39: 0 | I39: 0 | J39: 0 | N39: MG | X39: 10 | Y39: 0
A40: Dispensador de jabón | C40: 1 | D40: 0 | E40: Deseable | F40: 0 | G40: 0 | H40: 0 | I40: 0 | J40: 0 | N40: MG | X40: 10 | Y40: 0
A41: Dispensador de papel toalla | C41: 1 | D41: 0 | E41: Deseable | F41: 0 | G41: 0 | H41: 0 | I41: 0 | J41: 0 | N41: MG | X41: 10 | Y41: 0 | AP41: =IF(UPPER(E41)="REQUERIDO", 10, "") ->  | AQ41: =IF(UPPER(E41)="REQUERIDO", H41, "") -> 
A42: Basurero | C42: 2 | D42: 0 | E42: Deseable | F42: 0 | G42: 0 | H42: 0 | I42: 0 | J42: 0 | N42: MG | X42: 10 | Y42: 0
A43: Espejo empotrado | C43: 1 | D43: 0 | E43: Deseable | F43: 0 | G43: 0 | H43: 0 | I43: 0 | J43: 0 | N43: MG | X43: 10 | Y43: 0
A44: Gancho doble | C44: 1 | D44: 0 | E44: Deseable | F44: 0 | G44: 0 | H44: 0 | I44: 0 | J44: 0 | N44: MG | X44: 10 | Y44: 0
A45: Baños/Baterías Sanitarias por puestos | B45: =B1 -> Anx: | C45: =C$1 -> Cant x Espacio: | D45: Requerido: | E45: Tipo: | F45: Funcional: | G45: No Funcional: | J45: Calif: | K45: Observaciones: | L45: =Infraestructura!F$19 -> 0 | M45: =Infraestructura!G$19 -> 0
A46: Inodoro | C46: 1 | D46: =IF(AND($L$45=0,$M$45=0),0,IF(AND($L$45>0,$M$45>0),($L$45+$M$45)*C46,IF(AND($L$45=0,$M$45>0),C46*$M$45,$L$45*C46))) -> 0 | E46: Requerido | F46: 0 | G46: 0 | H46: =IF(AND(F46>=D46,F46>0,D46>0),10,0) -> 0 | I46: =IF(AND(G46>=D46,D46>0,G46>=1),10,0) -> 0 | J46: =H46-I46 -> 0 | N46: MG | R46: =IF(UPPER(E46)="REQUERIDO", 10, "") -> 10 | S46: =IF(UPPER(E46)="REQUERIDO", H46, "") -> 0
A47: Gancho doble | C47: 1 | D47: =IF(AND($L$45=0,$M$45=0),0,IF(AND($L$35>0,$M$45>0),($L$35+$M$45)*C47,IF(AND($L$45=0,$M$45>0),C47*$M$45,$L$45*C47))) -> 0 | E47: Requerido | F47: 0 | G47: 0 | H47: =IF(AND(F47>=D47,F47>0,D47>0),10,0) -> 0 | I47: =IF(AND(G47>=D47,D47>0,G47>=1),10,0) -> 0 | J47: =H47-I47 -> 0 | N47: MG | R47: =IF(UPPER(E47)="REQUERIDO", 10, "") -> 10 | S47: =IF(UPPER(E47)="REQUERIDO", H47, "") -> 0
A48: Basurero | C48: 1 | D48: =IF(AND($L$45=0,$M$45=0),0,IF(AND($L$35>0,$M$45>0),($L$35+$M$45)*C48,IF(AND($L$45=0,$M$45>0),C48*$M$45,$L$45*C48))) -> 0 | E48: Requerido | F48: 0 | G48: 0 | H48: =IF(AND(F48>=D48,F48>0,D48>0),10,0) -> 0 | I48: =IF(AND(G48>=D48,D48>0,G48>=1),10,0) -> 0 | J48: =H48-I48 -> 0 | N48: MG | R48: =IF(UPPER(E48)="REQUERIDO", 10, "") -> 10 | S48: =IF(UPPER(E48)="REQUERIDO", H48, "") -> 0
A49: Baños/Baterías Sanitarias(compartido) | B49: =B1 -> Anx: | C49: =C$1 -> Cant x Espacio: | D49: Requerido: | E49: Tipo: | F49: Funcional: | G49: No Funcional: | J49: Calif: | K49: Observaciones: | L49: =Infraestructura!F$20 -> 0 | M49: =Infraestructura!G$20 -> 0
A50: Lavabo | C50: 1 | D50: =IF(AND($L$49=0,$M$49=0),0,IF(AND($L$49>0,$M$49>0),($L$49+$M$49)*C50,IF(AND($L$49=0,$M$49>0),C50*$M$49,$L$49*C50))) -> 0 | E50: Requerido | F50: 0 | G50: 0 | H50: =IF(AND(F50>=D50,F50>0,D50>0),10,0) -> 0 | I50: =IF(AND(G50>=D50,D50>0,G50>=1),10,0) -> 0 | J50: =H50-I50 -> 0 | N50: MG | R50: =IF(UPPER(E50)="REQUERIDO", 10, "") -> 10 | S50: =IF(UPPER(E50)="REQUERIDO", H50, "") -> 0
A51: Dispensador de jabón | C51: 1 | D51: =IF(AND($L$49=0,$M$49=0),0,IF(AND($L$49>0,$M$49>0),($L$49+$M$49)*C51,IF(AND($L$49=0,$M$49>0),C51*$M$49,$L$49*C51))) -> 0 | E51: Requerido | F51: 0 | G51: 0 | H51: 0 | I51: 0 | J51: 0 | N51: MG | R51: =IF(UPPER(E51)="REQUERIDO", 10, "") -> 10 | S51: =IF(UPPER(E51)="REQUERIDO", H51, "") -> 0
A52: Dispensador de papel toalla | C52: 1 | D52: =IF(AND($L$49=0,$M$49=0),0,IF(AND($L$49>0,$M$49>0),($L$49+$M$49)*C52,IF(AND($L$49=0,$M$49>0),C52*$M$49,$L$49*C52))) -> 0 | E52: Requerido | F52: 0 | G52: 0 | H52: 0 | I52: 0 | J52: 0 | N52: MG | R52: =IF(UPPER(E52)="REQUERIDO", 10, "") -> 10 | S52: =IF(UPPER(E52)="REQUERIDO", H52, "") -> 0
A53: Dispensador de papel higiénico | C53: 1 | D53: 0 | E53: Requerido | F53: 0 | G53: 0 | H53: 0 | I53: 0 | J53: 0 | N53: MG | R53: =IF(UPPER(E53)="REQUERIDO", 10, "") -> 10 | S53: =IF(UPPER(E53)="REQUERIDO", H53, "") -> 0
A54: Espejo empotrado | C54: 1 | D54: 0 | E54: Deseable | F54: 0 | G54: 0 | H54: 0 | I54: 0 | J54: 0 | N54: MG | X54: =IF(UPPER(E54)="DESEABLE", 10, "") -> 10 | Y54: =IF(UPPER(E54)="DESEABLE", H54, "") -> 0
A55: Basurero | C55: 1 | D55: 0 | E55: Requerido | F55: 0 | G55: 0 | H55: 0 | I55: 0 | J55: 0 | N55: MG | R55: =IF(UPPER(E55)="REQUERIDO", 10, "") -> 10 | S55: =IF(UPPER(E55)="REQUERIDO", H55, "") -> 0
A56: Consultorio polivalente (Psiquiatría/Medicina Interna/Familiar y Comunitaria/General) | B56: =B8 -> Anx: | C56: =C$1 -> Cant x Espacio: | D56: Requerido: | E56: Tipo: | F56: Funcional: | G56: No Funcional: | J56: Calif: | K56: Observaciones: | L56: =Infraestructura!F21 -> 0 | M56: =Infraestructura!G21 -> 0
A57: Escritorio/ Mesa de despacho | B57: EQ_01 | C57: 1 | D57: =IF(AND($L$56=0,$M$56=0),0,IF(AND($L$56>0,$M$56>0),($L$56+$M$56)*C57,IF(AND($L$56=0,$M$56>0),C57*$M$56,$L$56*C57))) -> 0 | E57: Requerido | F57: 0 | G57: 0 | H57: =IF(AND(F57>=D57,F57>0,D57>0),10,0) -> 0 | I57: =IF(AND(G57>=D57,D57>0,G57>=1),10,0) -> 0 | J57: =H57-I57 -> 0 | N57: MG | R57: =IF(UPPER(E57)="REQUERIDO", 10, "") -> 10 | S57: =IF(UPPER(E57)="REQUERIDO", H57, "") -> 0
A58: Computador completo (Portátil o de Escritorio) | B58: EQ_02 | C58: 1 | D58: =IF(AND($L$56=0,$M$56=0),0,IF(AND($L$56>0,$M$56>0),($L$56+$M$56)*C58,IF(AND($L$56=0,$M$56>0),C58*$M$56,$L$56*C58))) -> 0 | E58: Deseable | F58: 0 | G58: 0 | H58: =IF(AND(F58>=D58,F58>0,D58>0),10,0) -> 0 | I58: =IF(AND(G58>=D58,D58>0,G58>=1),10,0) -> 0 | J58: =H58-I58 -> 0 | N58: EG | AN58: =IF(UPPER(E58)="DESEABLE", 10, "") -> 10 | AO58: =IF(UPPER(E58)="DESEABLE", H58, "") -> 0
A59: Silla | C59: 1 | D59: 0 | E59: Requerido | F59: 0 | G59: 0 | H59: =IF(AND(F59>=D59,F59>0,D59>0),10,0) -> 0 | I59: =IF(AND(G59>=D59,D59>0,G59>=1),10,0) -> 0 | J59: =H59-I59 -> 0 | N59: MG | R59: =IF(UPPER(E59)="REQUERIDO", 10, "") -> 10 | S59: =IF(UPPER(E59)="REQUERIDO", H59, "") -> 0
A60: Silla confidente | C60: 2 | D60: =IF(AND($L$56=0,$M$56=0),0,IF(AND($L$56>0,$M$56>0),($L$56+$M$56)*C60,IF(AND($L$56=0,$M$56>0),C60*$M$56,$L$56*C60))) -> 0 | E60: Requerido | F60: 0 | G60: 0 | H60: 0 | I60: 0 | J60: 0 | N60: MG | R60: =IF(UPPER(E60)="REQUERIDO", 10, "") -> 10 | S60: =IF(UPPER(E60)="REQUERIDO", H60, "") -> 0
A61: Armario/Vitrina | C61: 1 | D61: =IF(AND($L$56=0,$M$56=0),0,IF(AND($L$56>0,$M$56>0),($L$56+$M$56)*C61,IF(AND($L$56=0,$M$56>0),C61*$M$56,$L$56*C61))) -> 0 | E61: Requerido | F61: 0 | G61: 0 | H61: 0 | I61: 0 | J61: 0 | N61: MG | R61: =IF(UPPER(E61)="REQUERIDO", 10, "") -> 10 | S61: =IF(UPPER(E61)="REQUERIDO", H61, "") -> 0
A62: Perchero de pie /Gancho doble | C62: 1 | D62: =IF(AND($L$56=0,$M$56=0),0,IF(AND($L$56>0,$M$56>0),($L$56+$M$56)*C62,IF(AND($L$56=0,$M$56>0),C62*$M$56,$L$56*C62))) -> 0 | E62: Deseable | F62: 0 | G62: 0 | H62: 0 | I62: 0 | J62: 0 | N62: MG | X62: =IF(UPPER(E62)="DESEABLE", 10, "") -> 10 | Y62: =IF(UPPER(E62)="DESEABLE", H62, "") -> 0
A63: Camilla de exploración | C63: 1 | D63: 0 | E63: Requerido | F63: 0 | G63: 0 | H63: 0 | I63: 0 | J63: 0 | N63: MM | Z63: =IF(UPPER(E63)="REQUERIDO", 10, "") -> 10 | AA63: =IF(UPPER(E63)="REQUERIDO",H63, "") -> 0
A64: Escabel | C64: 1 | D64: 0 | E64: Condición | F64: 0 | G64: 0 | H64: 0 | I64: 0 | J64: 0 | N64: MG | T64: =IF(UPPER(E64)="CONDICIÓN", 10, "") -> 10 | U64: =IF(UPPER(E64)="CONDICIÓN", H64, "") -> 0 | V64: =IF(UPPER(E64)="CONDICIÓN", 10, "") -> 10 | W64: =IF(UPPER(E64)="CONDICIÓN", I64, "") -> 0
A65: Lámpara examen rodable | C65: 1 | D65: 0 | E65: Requerido | F65: 0 | G65: 0 | H65: 0 | I65: 0 | J65: 0 | N65: EM | AP65: =IF(UPPER(E65)="REQUERIDO", 10, "") -> 10 | AQ65: =IF(UPPER(E65)="REQUERIDO", H65, "") -> 0
A66: Tensiómetro para Adultos | C66: 1 | D66: 0 | E66: Requerido | F66: 0 | G66: 0 | H66: 0 | I66: 0 | J66: 0 | N66: EM | AP66: =IF(UPPER(E66)="REQUERIDO", 10, "") -> 10 | AQ66: =IF(UPPER(E66)="REQUERIDO", H66, "") -> 0
A67: Estetoscopio para Adultos | C67: 1 | D67: 0 | E67: Requerido | F67: 0 | G67: 0 | H67: 0 | I67: 0 | J67: 0 | N67: EM | AP67: =IF(UPPER(E67)="REQUERIDO", 10, "") -> 10 | AQ67: =IF(UPPER(E67)="REQUERIDO", H67, "") -> 0
A68: Tensiómetro pediátrico | C68: 1 | D68: 0 | E68: Condición | F68: 0 | G68: 0 | H68: 0 | I68: 0 | J68: 0 | N68: EM | AR68: =IF(UPPER(E68)="CONDICIÓN", 10, "") -> 10 | AS68: =IF(UPPER(E68)="CONDICIÓN", H68, "") -> 0 | AT68: =IF(UPPER(E68)="CONDICIÓN", 10, "") -> 10 | AU68: =IF(UPPER(E68)="CONDICIÓN", I68, "") -> 0
A69: Estetoscopio pediátrico | C69: 1 | D69: 0 | E69: Condición | F69: 0 | G69: 0 | H69: 0 | I69: 0 | J69: 0 | N69: EM | AR69: =IF(UPPER(E69)="CONDICIÓN", 10, "") -> 10 | AS69: =IF(UPPER(E69)="CONDICIÓN", H69, "") -> 0 | AT69: =IF(UPPER(E69)="CONDICIÓN", 10, "") -> 10 | AU69: =IF(UPPER(E69)="CONDICIÓN", I69, "") -> 0
A70: Báscula + Tallímetro | C70: 1 | D70: =IF(AND($L$56=0,$M$56=0),0,IF(AND($L$56>0,$M$56>0),($L$56+$M$56)*C70,IF(AND($L$56=0,$M$56>0),C70*$M$56,$L$56*C70))) -> 0 | E70: Condición | F70: 0 | G70: 0 | H70: 0 | I70: 0 | J70: 0 | N70: EM | AR70: =IF(UPPER(E70)="CONDICIÓN", 10, "") -> 10 | AS70: =IF(UPPER(E70)="CONDICIÓN", H70, "") -> 0 | AT70: =IF(UPPER(E70)="CONDICIÓN", 10, "") -> 10 | AU70: =IF(UPPER(E70)="CONDICIÓN", I70, "") -> 0
A71: Set de Diagnóstico | B71: EQ_10 | C71: 1 | D71: 0 | E71: Requerido | F71: 0 | G71: 0 | H71: 0 | I71: 0 | J71: 0 | N71: EM | AP71: =IF(UPPER(E71)="REQUERIDO", 10, "") -> 10 | AQ71: =IF(UPPER(E71)="REQUERIDO", H71, "") -> 0
A72: Coche de curaciones | B72: EQ_08 | C72: 1 | D72: 0 | E72: Condición | F72: 0 | G72: 0 | H72: 0 | I72: 0 | J72: 0 | N72: MM | AB72: =IF(UPPER(E72)="CONDICIÓN", 10, "") -> 10 | AC72: =IF(UPPER(E72)="CONDICIÓN",H72, "") -> 0 | AD72: =IF(UPPER(E72)="CONDICIÓN", 10, "") -> 10 | AE72: =IF(UPPER(E72)="CONDICIÓN",I72, "") -> 0
A73: Dispensador para solución hidroalcohólica | C73: 1 | D73: 0 | E73: Requerido | F73: 0 | G73: 0 | H73: 0 | I73: 0 | J73: 0 | N73: EG | AH73: =IF(UPPER(E73)="REQUERIDO", 10, "") -> 10 | AI73: =IF(UPPER(E73)="REQUERIDO", H73, "") -> 0
A74: Lavabo | C74: 1 | D74: 0 | E74: Requerido | F74: 0 | G74: 0 | H74: 0 | I74: 0 | J74: 0 | N74: MG | R74: =IF(UPPER(E74)="REQUERIDO", 10, "") -> 10 | S74: =IF(UPPER(E74)="REQUERIDO", H74, "") -> 0
A75: Dispensador de jabón | C75: 1 | D75: =IF(AND($L$56=0,$M$56=0),0,IF(AND($L$56>0,$M$56>0),($L$56+$M$56)*C75,IF(AND($L$56=0,$M$56>0),C75*$M$56,$L$56*C75))) -> 0 | E75: Requerido | F75: 0 | G75: 0 | H75: 0 | I75: 0 | J75: 0 | N75: MG | R75: =IF(UPPER(E75)="REQUERIDO", 10, "") -> 10 | S75: =IF(UPPER(E75)="REQUERIDO", H75, "") -> 0
A76: Dispensador de papel toalla | C76: 1 | D76: 0 | E76: Requerido | F76: 0 | G76: 0 | H76: 0 | I76: 0 | J76: 0 | N76: MG | R76: =IF(UPPER(E76)="REQUERIDO", 10, "") -> 10 | S76: =IF(UPPER(E76)="REQUERIDO", H76, "") -> 0
A77: Set de recipientes para el manejo de desechos peligrosos y no peligrosos. | B77: EQ_07 | C77: 1 | D77: 0 | E77: Requerido | F77: 0 | G77: 0 | H77: 0 | I77: 0 | J77: 0 | N77: MG | R77: =IF(UPPER(E77)="REQUERIDO", 10, "") -> 10 | S77: =IF(UPPER(E77)="REQUERIDO", H77, "") -> 0
A78: Consultorio de psicología | B78: =B8 -> Anx: | C78: =C$1 -> Cant x Espacio: | D78: Requerido: | E78: Tipo: | F78: =F$1 -> Funcional: | G78: No Funcional: | J78: Calif: | K78: Observaciones: | L78: =Infraestructura!F22 -> 0 | M78: =Infraestructura!G22 -> 0
A79: Escritorio/Mesa de despacho | B79: EQ_01 | C79: 1 | D79: =IF(AND($L$78=0,$M$78=0),0,IF(AND($L$78>0,$M$78>0),($L$78+$M$78)*C79,IF(AND($L$78=0,$M$78>0),C79*$M$78,$L$78*C79))) -> 0 | E79: Requerido | F79: 0 | G79: 0 | H79: =IF(AND(F79>=D79,F79>0,D79>0),10,0) -> 0 | I79: =IF(AND(G79>=D79,D79>0,G79>=1),10,0) -> 0 | J79: =H79-I79 -> 0 | N79: MG | R79: =IF(UPPER(E79)="REQUERIDO", 10, "") -> 10 | S79: =IF(UPPER(E79)="REQUERIDO", H79, "") -> 0
A80: Computador completo (Portátil o de Escritorio) | B80: EQ_02 | C80: 1 | D80: =IF(AND($L$78=0,$M$78=0),0,IF(AND($L$78>0,$M$78>0),($L$78+$M$78)*C80,IF(AND($L$78=0,$M$78>0),C80*$M$78,$L$78*C80))) -> 0 | E80: Requerido | F80: 0 | G80: 0 | H80: 0 | I80: 0 | J80: 0 | N80: EG | AH80: =IF(UPPER(E80)="REQUERIDO", 10, "") -> 10 | AI80: =IF(UPPER(E80)="REQUERIDO", H80, "") -> 0
A81: Armario/vitrina/Archivador | C81: 1 | D81: =IF(AND($L$78=0,$M$78=0),0,IF(AND($L$78>0,$M$78>0),($L$78+$M$78)*C81,IF(AND($L$78=0,$M$78>0),C81*$M$78,$L$78*C81))) -> 0 | E81: Requerido | F81: 0 | G81: 0 | H81: 0 | I81: 0 | J81: 0 | N81: MG | R81: =IF(UPPER(E81)="REQUERIDO", 10, "") -> 10 | S81: =IF(UPPER(E81)="REQUERIDO", H81, "") -> 0 | AH81: =IF(UPPER(E81)="REQUERIDO", 10, "") -> 10 | AI81: =IF(UPPER(E81)="REQUERIDO", H81, "") -> 0
A82: Dispensador para solución hidroalcohólica | C82: 1 | D82: =IF(AND($L$78=0,$M$78=0),0,IF(AND($L$78>0,$M$78>0),($L$78+$M$78)*C82,IF(AND($L$78=0,$M$78>0),C82*$M$78,$L$78*C82))) -> 0 | E82: Requerido | F82: 0 | G82: 0 | H82: 0 | I82: 0 | J82: 0 | N82: MG | R82: =IF(UPPER(E82)="REQUERIDO", 10, "") -> 10 | S82: =IF(UPPER(E82)="REQUERIDO", H82, "") -> 0 | AH82: =IF(UPPER(E82)="REQUERIDO", 10, "") -> 10 | AI82: =IF(UPPER(E82)="REQUERIDO", H82, "") -> 0
A83: Basurero | C83: 1 | D83: =IF(AND($L$78=0,$M$78=0),0,IF(AND($L$78>0,$M$78>0),($L$78+$M$78)*C83,IF(AND($L$78=0,$M$78>0),C83*$M$78,$L$78*C83))) -> 0 | E83: Requerido | F83: 0 | G83: 0 | H83: 0 | I83: 0 | J83: 0 | N83: MG | R83: =IF(UPPER(E83)="REQUERIDO", 10, "") -> 10 | S83: =IF(UPPER(E83)="REQUERIDO", H83, "") -> 0 | AH83: =IF(UPPER(E83)="REQUERIDO", 10, "") -> 10 | AI83: =IF(UPPER(E83)="REQUERIDO", H83, "") -> 0
A84: Perchero de pie/Gancho doble | C84: 1 | D84: =IF(AND($L$78=0,$M$78=0),0,IF(AND($L$78>0,$M$78>0),($L$78+$M$78)*C84,IF(AND($L$78=0,$M$78>0),C84*$M$78,$L$78*C84))) -> 0 | E84: Deseable | F84: 0 | G84: 0 | H84: 0 | I84: 0 | J84: 0 | N84: MG | X84: =IF(UPPER(E84)="DESEABLE", 10, "") -> 10 | Y84: =IF(UPPER(E84)="DESEABLE", H84, "") -> 0
A85: Espejo empotrado | C85: 1 | D85: =IF(AND($L$78=0,$M$78=0),0,IF(AND($L$78>0,$M$78>0),($L$78+$M$78)*C85,IF(AND($L$78=0,$M$78>0),C85*$M$78,$L$78*C85))) -> 0 | E85: Condición | F85: 0 | G85: 0 | H85: 0 | I85: 0 | J85: 0 | N85: MG | T85: =IF(UPPER(E85)="CONDICIÓN", 10, "") -> 10 | U85: =IF(UPPER(E85)="CONDICIÓN", H85, "") -> 0 | V85: =IF(UPPER(E85)="CONDICIÓN", 10, "") -> 10 | W85: =IF(UPPER(E85)="CONDICIÓN", I85, "") -> 0
A86: Silla confidente | C86: 2 | D86: 0 | E86: Requerido | F86: 0 | G86: 0 | H86: 0 | I86: 0 | J86: 0 | N86: MG | R86: =IF(UPPER(E86)="REQUERIDO", 10, "") -> 10 | S86: =IF(UPPER(E86)="REQUERIDO", H86, "") -> 0 | AH86: =IF(UPPER(E86)="REQUERIDO", 10, "") -> 10 | AI86: =IF(UPPER(E86)="REQUERIDO", H86, "") -> 0
A87: Silla | C87: 1 | D87: 0 | E87: Requerido | F87: 0 | G87: 0 | H87: 0 | I87: 0 | J87: 0 | N87: MG | R87: =IF(UPPER(E87)="REQUERIDO", 10, "") -> 10 | S87: =IF(UPPER(E87)="REQUERIDO", H87, "") -> 0 | AH87: =IF(UPPER(E87)="REQUERIDO", 10, "") -> 10 | AI87: =IF(UPPER(E87)="REQUERIDO", H87, "") -> 0
A88: Enfermería | B88: =B8 -> Anx: | C88: =C$1 -> Cant x Espacio: | D88: Requerido: | E88: Tipo: | F88: Funcional: | G88: No Funcional: | J88: Calif: | K88: Observaciones: | L88: =Infraestructura!$F$23 -> 0 | M88: =Infraestructura!$G$23 -> 0
A89: Escritorio/Mesa de despacho | B89: EQ_01 | C89: 1 | D89: =IF(AND($L$88=0,$M$88=0),0,IF(AND($L$88>0,$M$88>0),($L$88+$M$88)*C89,IF(AND($L$88=0,$M$88>0),C89*$M$88,$L$88*C89))) -> 0 | E89: Requerido | F89: 0 | G89: 0 | H89: =IF(AND(F89>=D89,F89>0,D89>0),10,0) -> 0 | I89: =IF(AND(G89>=D89,D89>0,G89>=1),10,0) -> 0 | J89: =H89-I89 -> 0 | N89: MG | R89: =IF(UPPER(E89)="REQUERIDO", 10, "") -> 10 | S89: =IF(UPPER(E89)="REQUERIDO", H89, "") -> 0 | AH89: =IF(UPPER(E89)="REQUERIDO", 10, "") -> 10 | AI89: =IF(UPPER(E89)="REQUERIDO", H89, "") -> 0
A90: Computador completo (Portátil o de Escritorio) | B90: EQ_02 | C90: 1 | D90: =IF(AND($L$88=0,$M$88=0),0,IF(AND($L$88>0,$M$88>0),($L$88+$M$88)*C90,IF(AND($L$88=0,$M$88>0),C90*$M$88,$L$88*C90))) -> 0 | E90: Requerido | F90: 0 | G90: 0 | H90: =IF(AND(F90>=D90,F90>0,D90>0),10,0) -> 0 | I90: =IF(AND(G90>=D90,D90>0,G90>=1),10,0) -> 0 | J90: =H90-I90 -> 0 | N90: EG | AH90: =IF(UPPER(E90)="REQUERIDO", 10, "") -> 10 | AI90: =IF(UPPER(E90)="REQUERIDO", H90, "") -> 0
A91: Armario /vitrina | C91: 1 | D91: 0 | E91: Requerido | F91: 0 | G91: 0 | H91: 0 | I91: 0 | J91: 0 | N91: MG | R91: =IF(UPPER(E91)="REQUERIDO", 10, "") -> 10 | S91: =IF(UPPER(E91)="REQUERIDO", H91, "") -> 0 | AH91: =IF(UPPER(E91)="REQUERIDO", 10, "") -> 10 | AI91: =IF(UPPER(E91)="REQUERIDO", H91, "") -> 0
A92: Báscula + tallímetro | C92: 1 | D92: 0 | E92: Requerido | F92: 0 | G92: 0 | H92: 0 | I92: 0 | J92: 0 | N92: EM | AP92: =IF(UPPER(E92)="REQUERIDO", 10, "") -> 10 | AQ92: =IF(UPPER(E92)="REQUERIDO", H92, "") -> 0
A93: Mesa Auxiliar | C93: 1 | D93: 0 | E93: Requerido | F93: 0 | G93: 0 | H93: 0 | I93: 0 | J93: 0 | N93: EM | AP93: =IF(UPPER(E93)="REQUERIDO", 10, "") -> 10 | AQ93: =IF(UPPER(E93)="REQUERIDO", H93, "") -> 0
A94: Dispensador de papel toalla | C94: 1 | D94: 0 | E94: Requerido | F94: 0 | G94: 0 | H94: 0 | I94: 0 | J94: 0 | N94: EG | AH94: =IF(UPPER(E94)="REQUERIDO", 10, "") -> 10 | AI94: =IF(UPPER(E94)="REQUERIDO", H94, "") -> 0
A95: Dispensador de jabón | C95: 1 | D95: 0 | E95: Requerido | F95: 0 | G95: 0 | H95: 0 | I95: 0 | J95: 0 | N95: EG | AH95: =IF(UPPER(E95)="REQUERIDO", 10, "") -> 10 | AI95: =IF(UPPER(E95)="REQUERIDO", H95, "") -> 0
A96: Lavabo | C96: 1 | D96: 0 | E96: Requerido | F96: 0 | G96: 0 | H96: 0 | I96: 0 | J96: 0 | N96: MG | R96: =IF(UPPER(E96)="REQUERIDO", 10, "") -> 10 | S96: =IF(UPPER(E96)="REQUERIDO", H96, "") -> 0
A97: Tensiómetro para adultos | C97: 1 | D97: 0 | E97: Requerido | F97: 0 | G97: 0 | H97: 0 | I97: 0 | J97: 0 | N97: EM | AP97: =IF(UPPER(E97)="REQUERIDO", 10, "") -> 10 | AQ97: =IF(UPPER(E97)="REQUERIDO", H97, "") -> 0
A98: Estetoscopio para adultos | C98: 1 | D98: 0 | E98: Requerido | F98: 0 | G98: 0 | H98: 0 | I98: 0 | J98: 0 | N98: EM | AP98: =IF(UPPER(E98)="REQUERIDO", 10, "") -> 10 | AQ98: =IF(UPPER(E98)="REQUERIDO", H98, "") -> 0
A99: Tensiómetro pediátrico | C99: 1 | D99: 0 | E99: Condición | F99: 0 | G99: 0 | H99: 0 | I99: 0 | J99: 0 | N99: EM | AR99: =IF(UPPER(E99)="CONDICIÓN", 10, "") -> 10 | AS99: =IF(UPPER(E99)="CONDICIÓN", H99, "") -> 0 | AT99: =IF(UPPER(E99)="CONDICIÓN", 10, "") -> 10 | AU99: =IF(UPPER(E99)="CONDICIÓN", I99, "") -> 0
A100: Estetoscopio pediátrico | C100: 1 | D100: 0 | E100: Condición | F100: 0 | G100: 0 | H100: 0 | I100: 0 | J100: 0 | N100: EM | AR100: =IF(UPPER(E100)="CONDICIÓN", 10, "") -> 10 | AS100: =IF(UPPER(E100)="CONDICIÓN", H100, "") -> 0 | AT100: =IF(UPPER(E100)="CONDICIÓN", 10, "") -> 10 | AU100: =IF(UPPER(E100)="CONDICIÓN", I100, "") -> 0
A101: Termómetro | C101: 1 | D101: 0 | E101: Requerido | F101: 0 | G101: 0 | H101: 0 | I101: 0 | J101: 0 | N101: EM | AP101: =IF(UPPER(E101)="REQUERIDO", 10, "") -> 10 | AQ101: =IF(UPPER(E101)="REQUERIDO", H101, "") -> 0
A102: Set de recipientes para el manejo de desechos peligrosos y no peligrosos. | B102: EQ_07 | C102: 1 | D102: =IF(AND($L$88=0,$M$88=0),0,IF(AND($L$88>0,$M$88>0),($L$88+$M$88)*C102,IF(AND($L$88=0,$M$88>0),C102*$M$88,$L$88*C102))) -> 0 | E102: Requerido | F102: 0 | G102: 0 | H102: 0 | I102: 0 | J102: 0 | N102: MG | R102: =IF(UPPER(E102)="REQUERIDO", 10, "") -> 10 | S102: =IF(UPPER(E102)="REQUERIDO", H102, "") -> 0
A103: Perchero de pie/Gancho doble | C103: 1 | D103: 0 | E103: Deseable | F103: 0 | G103: 0 | H103: 0 | I103: 0 | J103: 0 | N103: MG | X103: =IF(UPPER(E103)="DESEABLE", 10, "") -> 10 | Y103: =IF(UPPER(E103)="DESEABLE", H103, "") -> 0
A104: Silla confidente | C104: 2 | D104: 0 | E104: Requerido | F104: 0 | G104: 0 | H104: =IF(AND(F104>=D104,F104>0,D104>0),10,0) -> 0 | I104: =IF(AND(G104>=D104,D104>0,G104>=1),10,0) -> 0 | J104: =H104-I104 -> 0 | N104: MG | R104: =IF(UPPER(E104)="REQUERIDO", 10, "") -> 10 | S104: =IF(UPPER(E104)="REQUERIDO", H104, "") -> 0
A105: Silla | C105: 1 | D105: 0 | E105: Requerido | F105: 0 | G105: 0 | H105: =IF(AND(F105>=D105,F105>0,D105>0),10,0) -> 0 | I105: =IF(AND(G105>=D105,D105>0,G105>=1),10,0) -> 0 | J105: =H105-I105 -> 0 | N105: MG | R105: =IF(UPPER(E105)="REQUERIDO", 10, "") -> 10 | S105: =IF(UPPER(E105)="REQUERIDO", H105, "") -> 0
A106: ASISTENCIAL | AX106: =SUM(R107:R202) -> 230 | AY106: =SUM(S107:S202) -> 0 | AZ106: =SUM(T107:T202) -> 10 | BA106: 0 | BB106: 10 | BC106: 0 | BD106: 30 | BE106: 0 | BF106: 0 | BG106: 0 | BH106: 0 | BI106: 0 | BJ106: 0 | BK106: 0 | BL106: 0 | BM106: 0 | BN106: 40 | BO106: 0 | BP106: 0 | BQ106: 0 | BR106: 0 | BS106: 0 | BT106: 0 | BU106: 0 | BV106: 0 | BW106: 0 | BX106: 0 | BY106: 0 | BZ106: 0 | CA106: 0 | CB106: 0 | CC106: 0
A107: INTERNACIÓN/RESIDENCIA | AX107: =SUM(R107:R202) -> 230 | AY107: =SUM(S107:S202) -> 0 | AZ107: =SUM(T107:T202) -> 10 | BA107: 0 | BB107: 10 | BC107: 0 | BD107: 30 | BE107: 0 | BF107: 0 | BG107: 0 | BH107: 0 | BI107: 0 | BJ107: 0 | BK107: 0 | BL107: 0 | BM107: 0 | BN107: 40 | BO107: 0 | BP107: 0 | BQ107: 0 | BR107: 0 | BS107: 0 | BT107: 0 | BU107: 0 | BV107: 0 | BW107: 0 | BX107: 0 | BY107: 0 | BZ107: 0 | CA107: 0 | CB107: 0 | CC107: 0
A108: ÁREA DE INTERNACIÓN/RESIDENCIA | AX108: =SUM(R108:R150) -> 170 | AY108: =SUM(S108:S150) -> 0 | AZ108: =SUM(T108:T150) -> 0 | BA108: 0 | BB108: 0 | BC108: 0 | BD108: 30 | BE108: 0 | BF108: 0 | BG108: 0 | BH108: 0 | BI108: 0 | BJ108: 0 | BK108: 0 | BL108: 0 | BM108: 0 | BN108: 30 | BO108: 0 | BP108: 0 | BQ108: 0 | BR108: 0 | BS108: 0 | BT108: 0 | BU108: 0 | BV108: 0 | BW108: 0 | BX108: 0 | BY108: 0 | BZ108: 0 | CA108: 0 | CB108: 0 | CC108: 0
A109: AMBIENTES | AX109: =SUM(R110:R150) -> 170 | AY109: =SUM(S110:S150) -> 0 | AZ109: =SUM(T110:T150) -> 0 | BA109: 0 | BB109: 0 | BC109: 0 | BD109: 30 | BE109: 0 | BF109: 0 | BG109: 0 | BH109: 0 | BI109: 0 | BJ109: 0 | BK109: 0 | BL109: 0 | BM109: 0 | BN109: 30 | BO109: 0 | BP109: 0 | BQ109: 0 | BR109: 0 | BS109: 0 | BT109: 0 | BU109: 0 | BV109: 0 | BW109: 0 | BX109: 0 | BY109: 0 | BZ109: 0 | CA109: 0 | CB109: 0 | CC109: 0
A110: Habitación individual/múltiple | B110: =B1 -> Anx: | C110: =C$1 -> Cant x Espacio: | D110: Requerido: | E110: Tipo: | F110: Funcional: | G110: No Funcional: | J110: Calif: | K110: Observaciones: | L110: =Infraestructura!$F$32 -> 0 | M110: =Infraestructura!$G$32 -> 0
A111: Cama Básica y colchón | B111: EQ_04 | C111: 1 | D111: =IF(AND($L$110=0,$M$110=0),0,IF(AND($L$110>0,$M$110>0),($L$110+$M$110)*C111,IF(AND($L$110=0,$M$110>0),C111*$M$110,$L$110*C111))) -> 0 | E111: Requerido | F111: 0 | G111: 0 | H111: =IF(AND(F111>=D111,F111>0,D111>0),10,0) -> 0 | I111: =IF(AND(G111>=D111,D111>0,G111>=1),10,0) -> 0 | J111: =H111-I111 -> 0 | N111: MG | R111: =IF(UPPER(E111)="REQUERIDO", 10, "") -> 10 | S111: =IF(UPPER(E111)="REQUERIDO", H111, "") -> 0
A112: Basurero | C112: 1 | D112: =IF(AND($L$110=0,$M$110=0),0,IF(AND($L$110>0,$M$110>0),($L$110+$M$110)*C112,IF(AND($L$110=0,$M$110>0),C112*$M$110,$L$110*C112))) -> 0 | E112: Requerido | F112: 0 | G112: 0 | H112: =IF(AND(F112>=D112,F112>0,D112>0),10,0) -> 0 | I112: =IF(AND(G112>=D112,D112>0,G112>=1),10,0) -> 0 | J112: =H112-I112 -> 0 | N112: MG | R112: =IF(UPPER(E112)="REQUERIDO", 10, "") -> 10 | S112: =IF(UPPER(E112)="REQUERIDO", H112, "") -> 0
A113: Velador | C113: 1 | D113: =IF(AND($L$110=0,$M$110=0),0,IF(AND($L$110>0,$M$110>0),($L$110+$M$110)*C113,IF(AND($L$110=0,$M$110>0),C113*$M$110,$L$110*C113))) -> 0 | E113: Requerido | F113: 0 | G113: 0 | H113: =IF(AND(F113>=D113,F113>0,D113>0),10,0) -> 0 | I113: =IF(AND(G113>=D113,D113>0,G113>=1),10,0) -> 0 | J113: =H113-I113 -> 0 | N113: MG | R113: =IF(UPPER(E113)="REQUERIDO", 10, "") -> 10 | S113: =IF(UPPER(E113)="REQUERIDO", H113, "") -> 0
A114: Armario | C114: 1 | D114: =IF(AND($L$110=0,$M$110=0),0,IF(AND($L$110>0,$M$110>0),($L$110+$M$110)*C114,IF(AND($L$110=0,$M$110>0),C114*$M$110,$L$110*C114))) -> 0 | E114: Requerido | F114: 0 | G114: 0 | H114: =IF(AND(F114>=D114,F114>0,D114>0),10,0) -> 0 | I114: =IF(AND(G114>=D114,D114>0,G114>=1),10,0) -> 0 | J114: =H114-I114 -> 0 | N114: MG | R114: =IF(UPPER(E114)="REQUERIDO", 10, "") -> 10 | S114: =IF(UPPER(E114)="REQUERIDO", H114, "") -> 0
A115: Baño de la habitación por puesto | B115: =B1 -> Anx: | C115: =C$1 -> Cant x Espacio: | D115: Requerido: | E115: Tipo: | F115: Funcional: | G115: No Funcional: | J115: Calif: | K115: Observaciones: | L115: =Infraestructura!$F$33 -> 0 | M115: =Infraestructura!$G$33 -> 0
A116: Inodoro | C116: 1 | D116: =IF(AND($L$115=0,$M$115=0),0,IF(AND($L$115>0,$M$115>0),($L$115+$M$115)*C116,IF(AND($L$115=0,$M$115>0),C116*$M$115,$L$115*C116))) -> 0 | E116: Requerido | F116: 0 | G116: 0 | H116: =IF(AND(F116>=D116,F116>0,D116>0),10,0) -> 0 | I116: =IF(AND(G116>=D116,D116>0,G116>=1),10,0) -> 0 | J116: =H116-I116 -> 0 | N116: MG | R116: =IF(UPPER(E116)="REQUERIDO", 10, "") -> 10 | S116: =IF(UPPER(E116)="REQUERIDO", H116, "") -> 0
A117: Barras de apoyo | C117: 1 | D117: =IF(AND($L$115=0,$M$115=0),0,IF(AND($L$115>0,$M$115>0),($L$115+$M$115)*C117,IF(AND($L$115=0,$M$115>0),C117*$M$115,$L$115*C117))) -> 0 | E117: Deseable | F117: 0 | G117: 0 | H117: =IF(AND(F117>=D117,F117>0,D117>0),10,0) -> 0 | I117: =IF(AND(G117>=D117,D117>0,G117>=1),10,0) -> 0 | J117: =H117-I117 -> 0 | N117: MG | X117: =IF(UPPER(E117)="DESEABLE", 10, "") -> 10 | Y117: =IF(UPPER(E117)="DESEABLE", H117, "") -> 0
A118: Dispensador de papel higiénico | C118: 1 | D118: =IF(AND($L$115=0,$M$115=0),0,IF(AND($L$115>0,$M$115>0),($L$115+$M$115)*C118,IF(AND($L$115=0,$M$115>0),C118*$M$115,$L$115*C118))) -> 0 | E118: Requerido | F118: 0 | G118: 0 | H118: =IF(AND(F118>=D118,F118>0,D118>0),10,0) -> 0 | I118: =IF(AND(G118>=D118,D118>0,G118>=1),10,0) -> 0 | J118: =H118-I118 -> 0 | N118: EG | AH118: =IF(UPPER(E118)="REQUERIDO", 10, "") -> 10 | AI118: =IF(UPPER(E118)="REQUERIDO", H118, "") -> 0
A119: Basurero | C119: 1 | D119: 0 | E119: Requerido | F119: 0 | G119: 0 | H119: =IF(AND(F119>=D119,F119>0,D119>0),10,0) -> 0 | I119: =IF(AND(G119>=D119,D119>0,G119>=1),10,0) -> 0 | J119: =H119-I119 -> 0 | N119: MG | R119: =IF(UPPER(E119)="REQUERIDO", 10, "") -> 10 | S119: =IF(UPPER(E119)="REQUERIDO", H119, "") -> 0
A120: Gancho doble | C120: 1 | D120: 0 | E120: Requerido | F120: 0 | G120: 0 | H120: =IF(AND(F120>=D120,F120>0,D120>0),10,0) -> 0 | I120: =IF(AND(G120>=D120,D120>0,G120>=1),10,0) -> 0 | J120: =H120-I120 -> 0 | N120: MG | R120: =IF(UPPER(E120)="REQUERIDO", 10, "") -> 10 | S120: =IF(UPPER(E120)="REQUERIDO", H120, "") -> 0
A121: Baño para la habitación (compartido) | B121: =B1 -> Anx: | C121: =C$1 -> Cant x Espacio: | D121: Requerido: | E121: Tipo: | F121: Funcional: | G121: No Funcional: | J121: Calif: | K121: Observaciones: | L121: =Infraestructura!$F$34 -> 0 | M121: =Infraestructura!$G$34 -> 0
A122: Lavabo | C122: 1 | D122: =IF(AND($L$121=0,$M$121=0),0,IF(AND($L$121>0,$M$121>0),($L$121+$M$121)*C122,IF(AND($L$121=0,$M$121>0),C122*$M$121,$L$121*C122))) -> 0 | E122: Requerido | F122: 0 | G122: 0 | H122: =IF(AND(F122>=D122,F122>0,D122>0),10,0) -> 0 | I122: =IF(AND(G122>=D122,D122>0,G122>=1),10,0) -> 0 | J122: =H122-I122 -> 0 | N122: MG | R122: =IF(UPPER(E122)="REQUERIDO", 10, "") -> 10 | S122: =IF(UPPER(E122)="REQUERIDO", H122, "") -> 0
A123: Dispensador de papel toalla | C123: 1 | D123: =IF(AND($L$121=0,$M$121=0),0,IF(AND($L$121>0,$M$121>0),($L$121+$M$121)*C123,IF(AND($L$121=0,$M$121>0),C123*$M$121,$L$121*C123))) -> 0 | E123: Requerido | F123: 0 | G123: 0 | H123: 0 | I123: 0 | J123: 0 | N123: EG | AH123: =IF(UPPER(E123)="REQUERIDO", 10, "") -> 10 | AI123: =IF(UPPER(E123)="REQUERIDO", H123, "") -> 0
A124: Dispensador de jabón | C124: 1 | D124: =IF(AND($L$121=0,$M$121=0),0,IF(AND($L$121>0,$M$121>0),($L$121+$M$121)*C124,IF(AND($L$121=0,$M$121>0),C124*$M$121,$L$121*C124))) -> 0 | E124: Requerido | F124: 0 | G124: 0 | H124: 0 | I124: 0 | J124: 0 | N124: EG | AH124: =IF(UPPER(E124)="REQUERIDO", 10, "") -> 10 | AI124: =IF(UPPER(E124)="REQUERIDO", H124, "") -> 0
A125: Espejo empotrado | C125: 1 | D125: 0 | E125: Deseable | F125: 0 | G125: 0 | H125: 0 | I125: 0 | J125: 0 | N125: MG | X125: =IF(UPPER(E125)="DESEABLE", 10, "") -> 10 | Y125: =IF(UPPER(E125)="DESEABLE", H125, "") -> 0
A126: Basurero | C126: 1 | D126: 0 | E126: Requerido | F126: 0 | G126: 0 | H126: 0 | I126: 0 | J126: 0 | N126: MG | R126: =IF(UPPER(E126)="REQUERIDO", 10, "") -> 10 | S126: =IF(UPPER(E126)="REQUERIDO", H126, "") -> 0
A127: Ducha | C127: 1 | D127: 0 | E127: Requerido | F127: 0 | G127: 0 | H127: 0 | I127: 0 | J127: 0 | N127: MG | R127: =IF(UPPER(E127)="REQUERIDO", 10, "") -> 10 | S127: =IF(UPPER(E127)="REQUERIDO", H127, "") -> 0
A128: Estar de personal- Será requerido en caso de no contar con Habitación de personal | B128: =B8 -> Anx: | C128: =C$1 -> Cant x Espacio: | D128: Requerido: | E128: Tipo: | F128: Funcional: | G128: No Funcional: | J128: Calif: | K128: Observaciones: | L128: =Infraestructura!$F$35 -> 0 | M128: =Infraestructura!$G$35 -> 0
A129: Mesa | C129: 1 | D129: =IF(AND($L$128=0,$M$128=0),0,IF(AND($L$128>0,$M$128>0),($L$128+$M$128)*C129,IF(AND($L$128=0,$M$128>0),C129*$M$128,$L$128*C129))) -> 0 | E129: =IF(D129>0, "Requerido", "Sin Infraestructura") -> Sin Infraestructura | F129: 0 | G129: 0 | H129: =IF(AND(F129>=D129,F129>0,D129>0),10,0) -> 0 | I129: =IF(AND(G129>=D129,D129>0,G129>=1),10,0) -> 0 | J129: =H129-I129 -> 0 | N129: MG | R129: =IF(UPPER(E129)="REQUERIDO", 10, "") ->  | S129: =IF(UPPER(E129)="REQUERIDO", H129, "") -> 
A130: Silla | C130: 4 | D130: =IF(AND($L$128=0,$M$128=0),0,IF(AND($L$128>0,$M$128>0),($L$128+$M$128)*C130,IF(AND($L$128=0,$M$128>0),C130*$M$128,$L$128*C130))) -> 0 | E130: =IF(D130>0, "Requerido", "Sin Infraestructura") -> Sin Infraestructura | F130: 0 | G130: 0 | H130: =IF(AND(F130>=D130,F130>0,D130>0),10,0) -> 0 | I130: 0 | J130: 0 | N130: MG | R130: =IF(UPPER(E130)="REQUERIDO", 10, "") ->  | S130: =IF(UPPER(E130)="REQUERIDO", H130, "") -> 
A131: Refrigerador | C131: 1 | D131: =IF(AND($L$128=0,$M$128=0),0,IF(AND($L$128>0,$M$128>0),($L$128+$M$128)*C131,IF(AND($L$128=0,$M$128>0),C131*$M$128,$L$128*C131))) -> 0 | E131: =IF(D131>0, "Condición", "Sin Infraestructura") -> Sin Infraestructura | F131: 0 | G131: 0 | H131: 0 | I131: 0 | J131: 0 | N131: EG | AJ131: =IF(UPPER(E131)="CONDICIÓN", 10, "") ->  | AK131: =IF(UPPER(E131)="CONDICIÓN", H131, "") ->  | AL131: =IF(UPPER(E131)="CONDICIÓN", 10, "") ->  | AM131: =IF(UPPER(E131)="CONDICIÓN", I131, "") -> 
A132: Microondas | C132: 1 | D132: 0 | E132: =IF(D132>0, "Condición", "Sin Infraestructura") -> Sin Infraestructura | F132: 0 | G132: 0 | H132: 0 | I132: 0 | J132: 0 | N132: EG | AJ132: =IF(UPPER(E132)="CONDICIÓN", 10, "") ->  | AK132: =IF(UPPER(E132)="CONDICIÓN", H132, "") ->  | AL132: =IF(UPPER(E132)="CONDICIÓN", 10, "") ->  | AM132: =IF(UPPER(E132)="CONDICIÓN", I132, "") -> 
A133: Mesón con lavabo | C133: 1 | D133: 0 | E133: =IF(D133>0, "Requerido", "Sin Infraestructura") -> Sin Infraestructura | F133: 0 | G133: 0 | H133: 0 | I133: 0 | J133: 0 | N133: MG | R133: =IF(UPPER(E133)="REQUERIDO", 10, "") ->  | S133: =IF(UPPER(E133)="REQUERIDO", H133, "") -> 
A134: Dispensador de jabón | C134: 1 | D134: 0 | E134: =IF(D134>0, "Requerido", "Sin Infraestructura") -> Sin Infraestructura | F134: 0 | G134: 0 | H134: 0 | I134: 0 | J134: 0 | N134: MG | R134: =IF(UPPER(E134)="REQUERIDO", 10, "") ->  | S134: =IF(UPPER(E134)="REQUERIDO", H134, "") -> 
A135: Dispensador de papel toalla | C135: 1 | D135: 0 | E135: =IF(D135>0, "Requerido", "Sin Infraestructura") -> Sin Infraestructura | F135: 0 | G135: 0 | H135: 0 | I135: 0 | J135: 0 | N135: MG | R135: =IF(UPPER(E135)="REQUERIDO", 10, "") ->  | S135: =IF(UPPER(E135)="REQUERIDO", H135, "") -> 
A136: Basurero | C136: 1 | D136: =IF(AND($L$128=0,$M$128=0),0,IF(AND($L$128>0,$M$128>0),($L$128+$M$128)*C136,IF(AND($L$128=0,$M$128>0),C136*$M$128,$L$128*C136))) -> 0 | E136: =IF(D136>0, "Requerido", "Sin Infraestructura") -> Sin Infraestructura | F136: 0 | G136: 0 | H136: 0 | I136: 0 | J136: 0 | N136: MG | R136: =IF(UPPER(E136)="REQUERIDO", 10, "") ->  | S136: =IF(UPPER(E136)="REQUERIDO", H136, "") -> 
A137: Habitación del personal - Será requerido en caso de no contar con Estar de personal | B137: =B8 -> Anx: | C137: =C$1 -> Cant x Espacio: | D137: Requerido: | E137: Tipo: | F137: Funcional: | G137: No Funcional: | J137: Calif: | K137: Observaciones: | L137: =Infraestructura!$F$36 -> 0 | M137: =Infraestructura!$G$36 -> 0
A138: Cama Básica y Colchón | B138: EQ_04 | C138: 1 | D138: =IF(AND($L$137=0,$M$137=0),0,IF(AND($L$137>0,$M$137>0),($L$137+$M$137)*C138,IF(AND($L$137=0,$M$137>0),C138*$M$137,$L$137*C138))) -> 0 | E138: =IF(D138>0, "Requerido", "Sin Infraestructura") -> Sin Infraestructura | F138: 0 | G138: 0 | H138: =IF(AND(F138>=D138,F138>0,D138>0),10,0) -> 0 | I138: =IF(AND(G138>=D138,D138>0,G138>=1),10,0) -> 0 | J138: =H138-I138 -> 0 | N138: MG | R138: =IF(UPPER(E138)="REQUERIDO", 10, "") ->  | S138: =IF(UPPER(E138)="REQUERIDO", H138, "") -> 
A139: Basurero | C139: 1 | D139: =IF(AND($L$137=0,$M$137=0),0,IF(AND($L$137>0,$M$137>0),($L$137+$M$137)*C139,IF(AND($L$137=0,$M$137>0),C139*$M$137,$L$137*C139))) -> 0 | E139: =IF(D139>0, "Requerido", "Sin Infraestructura") -> Sin Infraestructura | F139: 0 | G139: 0 | H139: =IF(AND(F139>=D139,F139>0,D139>0),10,0) -> 0 | I139: =IF(AND(G139>=D139,D139>0,G139>=1),10,0) -> 0 | J139: =H139-I139 -> 0 | N139: MG | R139: =IF(UPPER(E139)="REQUERIDO", 10, "") ->  | S139: =IF(UPPER(E139)="REQUERIDO", H139, "") -> 
A140: velador | C140: 1 | D140: =IF(AND($L$137=0,$M$137=0),0,IF(AND($L$137>0,$M$137>0),($L$137+$M$137)*C140,IF(AND($L$137=0,$M$137>0),C140*$M$137,$L$137*C140))) -> 0 | E140: =IF(D140>0, "Requerido", "Sin Infraestructura") -> Sin Infraestructura | F140: 0 | G140: 0 | H140: =IF(AND(F140>=D140,F140>0,D140>0),10,0) -> 0 | I140: =IF(AND(G140>=D140,D140>0,G140>=1),10,0) -> 0 | J140: =H140-I140 -> 0 | N140: MG | R140: =IF(UPPER(E140)="REQUERIDO", 10, "") ->  | S140: =IF(UPPER(E140)="REQUERIDO", H140, "") -> 
A141: Armario | C141: 1 | D141: =IF(AND($L$137=0,$M$137=0),0,IF(AND($L$137>0,$M$137>0),($L$137+$M$137)*C141,IF(AND($L$137=0,$M$137>0),C141*$M$137,$L$137*C141))) -> 0 | E141: =IF(D141>0, "Requerido", "Sin Infraestructura") -> Sin Infraestructura | F141: 0 | G141: 0 | H141: =IF(AND(F141>=D141,F141>0,D141>0),10,0) -> 0 | I141: =IF(AND(G141>=D141,D141>0,G141>=1),10,0) -> 0 | J141: =H141-I141 -> 0 | N141: MG | R141: =IF(UPPER(E141)="REQUERIDO", 10, "") ->  | S141: =IF(UPPER(E141)="REQUERIDO", H141, "") -> 
A142: Baños para personal | B142: =B8 -> Anx: | C142: =C$1 -> Cant x Espacio: | D142: Requerido: | E142: Tipo: | F142: Funcional: | G142: No Funcional: | J142: Calif: | K142: Observaciones: | L142: =Infraestructura!$F$37 -> 0 | M142: =Infraestructura!$G$37 -> 0
A143: Inodoro | C143: 1 | D143: =IF(AND($L$142=0,$M$142=0),0,IF(AND($L$142>0,$M$142>0),($L$142+$M$142)*C143,IF(AND($L$142=0,$M$142>0),C143*$M$142,$L$142*C143))) -> 0 | E143: Requerido | F143: 0 | G143: 0 | H143: =IF(AND(F143>=D143,F143>0,D143>0),10,0) -> 0 | I143: =IF(AND(G143>=D143,D143>0,G143>=1),10,0) -> 0 | J143: =H143-I143 -> 0 | N143: MG | R143: =IF(UPPER(E143)="REQUERIDO", 10, "") -> 10 | S143: =IF(UPPER(E143)="REQUERIDO", H143, "") -> 0
A144: Dispensador de papel higiénico | C144: 1 | D144: 0 | E144: Requerido | F144: 0 | G144: 0 | H144: 0 | I144: 0 | J144: 0 | N144: MG | R144: 10 | S144: 0
A145: Lavabo | C145: 1 | D145: 0 | E145: Requerido | F145: 0 | G145: 0 | H145: 0 | I145: 0 | J145: 0 | N145: MG | R145: 10 | S145: 0
A146: Dispensador de jabón | C146: 1 | D146: 0 | E146: Requerido | F146: 0 | G146: 0 | H146: 0 | I146: 0 | J146: 0 | N146: MG | R146: 10 | S146: 0
A147: Dispensador de papel toalla | C147: 1 | D147: 0 | E147: Requerido | F147: 0 | G147: 0 | H147: 0 | I147: 0 | J147: 0 | N147: MG | R147: 10 | S147: 0
A148: Basurero | C148: 1 | D148: 0 | E148: Requerido | F148: 0 | G148: 0 | H148: 0 | I148: 0 | J148: 0 | N148: MG | R148: 10 | S148: 0
A149: Gancho doble | C149: 1 | D149: 0 | E149: Requerido | F149: 0 | G149: 0 | H149: 0 | I149: 0 | J149: 0 | N149: MG | R149: 10 | S149: 0
A150: Espejo empotrado | C150: 1 | D150: 0 | E150: Deseable | F150: 0 | G150: 0 | H150: 0 | I150: 0 | J150: 0 | N150: MG | X150: =IF(UPPER(E150)="DESEABLE", 10, "") -> 10 | Y150: =IF(UPPER(E150)="DESEABLE", H150, "") -> 0
A151: =Infraestructura!A41 -> ÁREA DE SOPORTE Y SUMINISTROS | AX151: =SUM(R152:R177) -> 60 | AY151: =SUM(S152:S177) -> 0 | AZ151: =SUM(T152:T177) -> 10 | BA151: 0 | BB151: 10 | BC151: 0 | BD151: 0 | BE151: 0 | BF151: 0 | BG151: 0 | BH151: 0 | BI151: 0 | BJ151: 0 | BK151: 0 | BL151: 0 | BM151: 0 | BN151: 10 | BO151: 0 | BP151: 0 | BQ151: 0 | BR151: 0 | BS151: 0 | BT151: 0 | BU151: 0 | BV151: 0 | BW151: 0 | BX151: 0 | BY151: 0 | BZ151: 0 | CA151: 0 | CB151: 0 | CC151: 0
A152: AMBIENTES | AX152: =SUM(R153:R177) -> 60 | AY152: =SUM(S153:S177) -> 0 | AZ152: =SUM(T153:T177) -> 10 | BA152: 0 | BB152: 10 | BC152: 0 | BD152: 0 | BE152: 0 | BF152: 0 | BG152: 0 | BH152: 0 | BI152: 0 | BJ152: 0 | BK152: 0 | BL152: 0 | BM152: 0 | BN152: 10 | BO152: 0 | BP152: 0 | BQ152: 0 | BR152: 0 | BS152: 0 | BT152: 0 | BU152: 0 | BV152: 0 | BW152: 0 | BX152: 0 | BY152: 0 | BZ152: 0 | CA152: 0 | CB152: 0 | CC152: 0
A153: =Infraestructura!A43 -> Lencería | B153: =B8 -> Anx: | C153: =C$1 -> Cant x Espacio: | D153: Requerido: | E153: Tipo: | F153: Funcional: | G153: No Funcional: | J153: Calif: | K153: Observaciones: | L153: =Infraestructura!F43 -> 0 | M153: =Infraestructura!G43 -> 0
A154: Coche de transporte de ropa limpia | C154: 1 | D154: =IF(AND($L$153=0,$M$153=0),0,IF(AND($L$153>0,$M$153>0),($L$153+$M$153)*C154,IF(AND($L$153=0,$M$153>0),C154*$M$153,$L$153*C154))) -> 0 | E154: Requerido | F154: 0 | G154: 0 | H154: =IF(AND(F154>=D154,F154>0,D154>0),10,0) -> 0 | I154: =IF(AND(G154>=D154,D154>0,G154>=1),10,0) -> 0 | J154: =H154-I154 -> 0 | N154: MG | R154: =IF(UPPER(E154)="REQUERIDO", 10, "") -> 10 | S154: =IF(UPPER(E154)="REQUERIDO", H154, "") -> 0
A155: Estantería/Mueble para almacenamiento | C155: 1 | D155: =IF(AND($L$153=0,$M$153=0),0,IF(AND($L$153>0,$M$153>0),($L$153+$M$153)*C155,IF(AND($L$153=0,$M$153>0),C155*$M$153,$L$153*C155))) -> 0 | E155: Requerido | F155: 0 | G155: 0 | H155: =IF(AND(F155>=D155,F155>0,D155>0),10,0) -> 0 | I155: =IF(AND(G155>=D155,D155>0,G155>=1),10,0) -> 0 | J155: =H155-I155 -> 0 | N155: MG | R155: =IF(UPPER(E155)="REQUERIDO", 10, "") -> 10 | S155: =IF(UPPER(E155)="REQUERIDO", H155, "") -> 0
A156: =Infraestructura!A44 -> Recepción y Clasificación de Ropa Usada | B156: =B8 -> Anx: | C156: =C$1 -> Cant x Espacio: | D156: Requerido: | E156: Tipo: | F156: Funcional: | G156: No Funcional: | J156: Calif: | K156: Observaciones: | L156: =Infraestructura!F44 -> 0 | M156: =Infraestructura!G44 -> 0
A157: Estantería | C157: 1 | D157: =IF(AND($L$156=0,$M$156=0),0,IF(AND($L$156>0,$M$156>0),($L$156+$M$156)*C157,IF(AND($L$156=0,$M$156>0),C157*$M$156,$L$156*C157))) -> 0 | E157: Requerido | F157: 0 | G157: 0 | H157: =IF(AND(F157>=D157,F157>0,D157>0),10,0) -> 0 | I157: =IF(AND(G157>=D157,D157>0,G157>=1),10,0) -> 0 | J157: =H157-I157 -> 0 | N157: MG | R157: =IF(UPPER(E157)="REQUERIDO", 10, "") -> 10 | S157: =IF(UPPER(E157)="REQUERIDO", H157, "") -> 0
A158: Coche de transporte de ropa sucia | C158: 1 | D158: =IF(AND($L$156=0,$M$156=0),0,IF(AND($L$156>0,$M$156>0),($L$156+$M$156)*C158,IF(AND($L$156=0,$M$156>0),C158*$M$156,$L$156*C158))) -> 0 | E158: Requerido | F158: 0 | G158: 0 | H158: =IF(AND(F158>=D158,F158>0,D158>0),10,0) -> 0 | I158: =IF(AND(G158>=D158,D158>0,G158>=1),10,0) -> 0 | J158: =H158-I158 -> 0 | N158: MG | R158: =IF(UPPER(E158)="REQUERIDO", 10, "") -> 10 | S158: =IF(UPPER(E158)="REQUERIDO", H158, "") -> 0
A159: Basurero | C159: 1 | D159: =IF(AND($L$156=0,$M$156=0),0,IF(AND($L$156>0,$M$156>0),($L$156+$M$156)*C159,IF(AND($L$156=0,$M$156>0),C159*$M$156,$L$156*C159))) -> 0 | E159: Requerido | F159: 0 | G159: 0 | H159: =IF(AND(F159>=D159,F159>0,D159>0),10,0) -> 0 | I159: =IF(AND(G159>=D159,D159>0,G159>=1),10,0) -> 0 | J159: =H159-I159 -> 0
A160: =Infraestructura!A45 -> Bodega General | B160: =B8 -> Anx: | C160: =C$1 -> Cant x Espacio: | D160: Requerido: | E160: Tipo: | F160: Funcional: | G160: No Funcional: | J160: Calif: | K160: Observaciones: | L160: =Infraestructura!F45 -> 0 | M160: =Infraestructura!G45 -> 0
A161: Estantería | C161: 1 | D161: =IF(AND($L$160=0,$M$160=0),0,IF(AND($L$160>0,$M$160>0),($L$160+$M$160)*C161,IF(AND($L$160=0,$M$160>0),C161*$M$160,$L$160*C161))) -> 0 | E161: Requerido | F161: 0 | G161: 0 | H161: =IF(AND(F161>=D161,F161>0,D161>0),10,0) -> 0 | I161: =IF(AND(G161>=D161,D161>0,G161>=1),10,0) -> 0 | J161: =H161-I161 -> 0 | N161: MG | R161: =IF(UPPER(E161)="REQUERIDO", 10, "") -> 10 | S161: =IF(UPPER(E161)="REQUERIDO", H161, "") -> 0
A162: Escalera pata de gallo/Gradilla | C162: 1 | D162: =IF(AND($L$160=0,$M$160=0),0,IF(AND($L$160>0,$M$160>0),($L$160+$M$160)*C162,IF(AND($L$160=0,$M$160>0),C162*$M$160,$L$160*C162))) -> 0 | E162: Condición | F162: 0 | G162: 0 | H162: =IF(AND(F162>=D162,F162>0,D162>0),10,0) -> 0 | I162: =IF(AND(G162>=D162,D162>0,G162>=1),10,0) -> 0 | J162: =H162-I162 -> 0 | N162: MG | T162: =IF(UPPER(E162)="CONDICIÓN", 10, "") -> 10 | U162: =IF(UPPER(E162)="CONDICIÓN", H162, "") -> 0 | V162: =IF(UPPER(E162)="CONDICIÓN", 10, "") -> 10 | W162: =IF(UPPER(E162)="CONDICIÓN", I162, "") -> 0
A163: Extintor de incendios portátil | C163: 1 | D163: =IF(AND($L$160=0,$M$160=0),0,IF(AND($L$160>0,$M$160>0),($L$160+$M$160)*C163,IF(AND($L$160=0,$M$160>0),C163*$M$160,$L$160*C163))) -> 0 | E163: Requerido | F163: 0 | G163: 0 | H163: =IF(AND(F163>=D163,F163>0,D163>0),10,0) -> 0 | I163: =IF(AND(G163>=D163,D163>0,G163>=1),10,0) -> 0 | J163: =H163-I163 -> 0 | N163: EG | AH163: =IF(UPPER(E163)="REQUERIDO", 10, "") -> 10 | AI163: =IF(UPPER(E163)="REQUERIDO", H163, "") -> 0
A164: Pallets | C164: 1 | D164: =IF(AND($L$160=0,$M$160=0),0,IF(AND($L$160>0,$M$160>0),($L$160+$M$160)*C164,IF(AND($L$160=0,$M$160>0),C164*$M$160,$L$160*C164))) -> 0 | E164: Requerido | F164: 0 | G164: 0 | H164: =IF(AND(F164>=D164,F164>0,D164>0),10,0) -> 0 | I164: =IF(AND(G164>=D164,D164>0,G164>=1),10,0) -> 0 | J164: =H164-I164 -> 0 | N164: MG | R164: =IF(UPPER(E164)="REQUERIDO", 10, "") -> 10 | S164: =IF(UPPER(E164)="REQUERIDO", H164, "") -> 0
A165: =Infraestructura!A46 -> Estación de enfermería | B165: =B8 -> Anx: | C165: =C$1 -> Cant x Espacio: | D165: Requerido: | E165: Tipo: | F165: Funcional: | G165: No Funcional: | J165: Calif: | K165: Observaciones: | L165: =Infraestructura!F46 -> 0 | M165: =Infraestructura!G46 -> 0
A166: Mostrador / escritorio/Mesa de despacho | B166: EQ_01 | C166: 1 | D166: =IF(AND($L$165=0,$M$165=0),0,IF(AND($L$165>0,$M$165>0),($L$165+$M$165)*C166,IF(AND($L$165=0,$M$165>0),C166*$M$165,$L$165*C166))) -> 0 | E166: =IF(D166>0, "Requerido", "Sin Infraestructura") -> Sin Infraestructura | F166: 0 | G166: 0 | H166: =IF(AND(F166>=D166,F166>0,D166>0),10,0) -> 0 | I166: =IF(AND(G166>=D166,D166>0,G166>=1),10,0) -> 0 | J166: =H166-I166 -> 0 | N166: MG | R166: =IF(UPPER(E166)="REQUERIDO", 10, "") ->  | S166: =IF(UPPER(E166)="REQUERIDO", H166, "") -> 
A167: Computador completo (Portátil o de Escritorio) | B167: EQ_02 | C167: 1 | D167: =IF(AND($L$165=0,$M$165=0),0,IF(AND($L$165>0,$M$165>0),($L$165+$M$165)*C167,IF(AND($L$165=0,$M$165>0),C167*$M$165,$L$165*C167))) -> 0 | E167: Sin Infraestructura | F167: 0 | G167: 0 | H167: 0 | I167: 0 | J167: 0 | N167: EG | AH167: =IF(UPPER(E167)="REQUERIDO", 10, "") ->  | AI167: =IF(UPPER(E167)="REQUERIDO", H167, "") -> 
A168: Silla | C168: 1 | D168: =IF(AND($L$165=0,$M$165=0),0,IF(AND($L$165>0,$M$165>0),($L$165+$M$165)*C168,IF(AND($L$165=0,$M$165>0),C168*$M$165,$L$165*C168))) -> 0 | E168: Sin Infraestructura | F168: 0 | G168: 0 | H168: 0 | I168: 0 | J168: 0 | N168: MG | R168: =IF(UPPER(E168)="REQUERIDO", 10, "") ->  | S168: =IF(UPPER(E168)="REQUERIDO", H168, "") -> 
A169: Set de recipientes para el manejo de desechos peligrosos y no peligrosos | B169: EQ_07 | C169: 1 | D169: 0 | E169: Sin Infraestructura | F169: 0 | G169: 0 | H169: 0 | I169: 0 | J169: 0 | N169: MG | R169: =IF(UPPER(E169)="REQUERIDO", 10, "") ->  | S169: =IF(UPPER(E169)="REQUERIDO", H169, "") -> 
A170: Tablero de avisos | C170: 1 | D170: 0 | E170: Sin Infraestructura | F170: 0 | G170: 0 | H170: 0 | I170: 0 | J170: 0 | N170: MG | R170: =IF(UPPER(E170)="REQUERIDO", 10, "") ->  | S170: =IF(UPPER(E170)="REQUERIDO", H170, "") -> 
A171: Extintor de incendios portátil | C171: 1 | D171: 0 | E171: Sin Infraestructura | F171: 0 | G171: 0 | H171: 0 | I171: 0 | J171: 0 | N171: EG
A172: Teléfono | C172: 1 | D172: 0 | E172: Sin Infraestructura | F172: 0 | G172: 0 | H172: 0 | I172: 0 | J172: 0 | N172: EG
A173: Coche de paro completo y reanimación | B173: EQ_09 | C173: 1 | D173: 0 | E173: =IF(D173>0, "Condición", "Sin Infraestructura") -> Sin Infraestructura | F173: 0 | G173: 0 | H173: 0 | I173: 0 | J173: 0 | N173: EM | AR173: =IF(UPPER(E173)="CONDICIÓN", 10, "") ->  | AS173: =IF(UPPER(E173)="CONDICIÓN", H173, "") ->  | AT173: =IF(UPPER(E173)="CONDICIÓN", 10, "") ->  | AU173: =IF(UPPER(E173)="CONDICIÓN", I173, "") -> 
A174: Armario con seguridad | C174: 1 | D174: 0 | E174: =IF(D174>0, "Condición", "Sin Infraestructura") -> Sin Infraestructura | F174: 0 | G174: 0 | H174: 0 | I174: 0 | J174: 0 | N174: EM | AR174: =IF(UPPER(E174)="CONDICIÓN", 10, "") ->  | AS174: =IF(UPPER(E174)="CONDICIÓN", H174, "") ->  | AT174: =IF(UPPER(E174)="CONDICIÓN", 10, "") ->  | AU174: =IF(UPPER(E174)="CONDICIÓN", I174, "") -> 
A175: Dispensador de papel toalla | C175: 1 | D175: 0 | E175: =IF(D175>0, "Requerido", "Sin Infraestructura") -> Sin Infraestructura | F175: 0 | G175: 0 | H175: 0 | I175: 0 | J175: 0 | N175: EG | AH175: =IF(UPPER(E175)="REQUERIDO", 10, "") ->  | AI175: =IF(UPPER(E175)="REQUERIDO", H175, "") -> 
A176: Dispensador de jabón | C176: 1 | D176: 0 | E176: =IF(D176>0, "Requerido", "Sin Infraestructura") -> Sin Infraestructura | F176: 0 | G176: 0 | H176: 0 | I176: 0 | J176: 0 | N176: EG | AH176: =IF(UPPER(E176)="REQUERIDO", 10, "") ->  | AI176: =IF(UPPER(E176)="REQUERIDO", H176, "") -> 
A177: Lavabo | C177: 1 | D177: 0 | E177: =IF(D177>0, "Requerido", "Sin Infraestructura") -> Sin Infraestructura | F177: 0 | G177: 0 | H177: 0 | I177: 0 | J177: 0 | N177: MG | R177: =IF(UPPER(E177)="REQUERIDO", 10, "") ->  | S177: =IF(UPPER(E177)="REQUERIDO", H177, "") -> 
A178: =Infraestructura!A50 -> ÁREA DEL PERSONAL | AX178: =SUM(R179:R202) -> 0 | AY178: =SUM(S179:S202) -> 0 | AZ178: =SUM(T179:T202) -> 0 | BA178: 0 | BB178: 0 | BC178: 0 | BD178: 0 | BE178: 0 | BF178: 0 | BG178: 0 | BH178: 0 | BI178: 0 | BJ178: 0 | BK178: 0 | BL178: 0 | BM178: 0 | BN178: 0 | BO178: 0 | BP178: 0 | BQ178: 0 | BR178: 0 | BS178: 0 | BT178: 0 | BU178: 0 | BV178: 0 | BW178: 0 | BX178: 0 | BY178: 0 | BZ178: 0 | CA178: 0 | CB178: 0 | CC178: 0
A179: AMBIENTES | AX179: =SUM(R180:R202) -> 0 | AY179: =SUM(S180:S202) -> 0 | AZ179: =SUM(T180:T202) -> 0 | BA179: 0 | BB179: 0 | BC179: 0 | BD179: 0 | BE179: 0 | BF179: 0 | BG179: 0 | BH179: 0 | BI179: 0 | BJ179: 0 | BK179: 0 | BL179: 0 | BM179: 0 | BN179: 0 | BO179: 0 | BP179: 0 | BQ179: 0 | BR179: 0 | BS179: 0 | BT179: 0 | BU179: 0 | BV179: 0 | BW179: 0 | BX179: 0 | BY179: 0 | BZ179: 0 | CA179: 0 | CB179: 0 | CC179: 0
A180: Sala de Uso múltiple | B180: =B8 -> Anx: | C180: =C$1 -> Cant x Espacio: | D180: Requerido: | E180: Tipo: | F180: Funcional: | G180: No Funcional: | J180: Calif: | K180: Observaciones: | L180: =Infraestructura!F52 -> 0 | M180: =Infraestructura!G52 -> 0
A181: Computador completo (Portátil o de Escritorio) | B181: EQ_02 | C181: 1 | D181: =IF(AND($L$180=0,$M$180=0),0,IF(AND($L$180>0,$M$180>0),($L$180+$M$180)*C181,IF(AND($L$180=0,$M$180>0),C181*$M$180,$L$180*C181))) -> 0 | E181: =IF(D181>0, "Requerido", "Sin Infraestructura") -> Sin Infraestructura | F181: 0 | G181: 0 | H181: =IF(AND(F181>=D181,F181>0,D181>0),10,0) -> 0 | I181: =IF(AND(G181>=D181,D181>0,G181>=1),10,0) -> 0 | J181: =H181-I181 -> 0 | N181: EG | AH181: =IF(UPPER(E181)="REQUERIDO", 10, "") ->  | AI181: =IF(UPPER(E181)="REQUERIDO", H181, "") -> 
A182: Proyector multimedia/Sistema Audiovisual | C182: 1 | D182: =IF(AND($L$180=0,$M$180=0),0,IF(AND($L$180>0,$M$180>0),($L$180+$M$180)*C182,IF(AND($L$180=0,$M$180>0),C182*$M$180,$L$180*C182))) -> 0 | E182: =IF(D182>0, "Requerido", "Sin Infraestructura") -> Sin Infraestructura | F182: 0 | G182: 0 | H182: 0 | I182: 0 | J182: 0 | N182: EG | AH182: =IF(UPPER(E182)="REQUERIDO", 10, "") ->  | AI182: =IF(UPPER(E182)="REQUERIDO", H182, "") -> 
A183: Pantalla de proyección | C183: 1 | D183: =IF(AND($L$180=0,$M$180=0),0,IF(AND($L$180>0,$M$180>0),($L$180+$M$180)*C183,IF(AND($L$180=0,$M$180>0),C183*$M$180,$L$180*C183))) -> 0 | E183: =IF(D183>0, "Condición", "Sin Infraestructura") -> Sin Infraestructura | F183: 0 | G183: 0 | H183: 0 | I183: 0 | J183: 0 | N183: MG | T183: =IF(UPPER(E183)="CONDICIÓN", 10, "") ->  | U183: =IF(UPPER(E183)="CONDICIÓN", H183, "") ->  | V183: =IF(UPPER(E183)="CONDICIÓN", 10, "") ->  | W183: =IF(UPPER(E183)="CONDICIÓN", I183, "") -> 
A184: mesa | C184: 1 | D184: 0 | E184: =IF(D184>0, "Requerido", "Sin Infraestructura") -> Sin Infraestructura | F184: 0 | G184: 0 | H184: 0 | I184: 0 | J184: 0 | N184: MG | R184: =IF(UPPER(E184)="REQUERIDO", 10, "") ->  | S184: =IF(UPPER(E184)="REQUERIDO", H184, "") -> 
A185: Silla | C185: 8 | D185: 0 | E185: =IF(D185>0, "Requerido", "Sin Infraestructura") -> Sin Infraestructura | F185: 0 | G185: 0 | H185: 0 | I185: 0 | J185: 0 | N185: MG | R185: =IF(UPPER(E185)="REQUERIDO", 10, "") ->  | S185: =IF(UPPER(E185)="REQUERIDO", H185, "") -> 
A186: Equipo de amplificación con micrófono, consola y caja amplificadora | C186: 1 | D186: 0 | E186: =IF(D186>0, "Condición", "Sin Infraestructura") -> Sin Infraestructura | F186: 0 | G186: 0 | H186: 0 | I186: 0 | J186: 0 | N186: EG | AJ186: =IF(UPPER(E186)="CONDICIÓN", 10, "") ->  | AK186: =IF(UPPER(E186)="CONDICIÓN", H186, "") ->  | AL186: =IF(UPPER(E186)="CONDICIÓN", 10, "") ->  | AM186: =IF(UPPER(E186)="CONDICIÓN", I186, "") -> 
A187: Casilleros/lockers | C187: 1 | D187: 0 | E187: =IF(D187>0, "Condición", "Sin Infraestructura") -> Sin Infraestructura | F187: 0 | G187: 0 | H187: 0 | I187: 0 | J187: 0 | N187: MG | T187: =IF(UPPER(E187)="CONDICIÓN", 10, "") ->  | U187: =IF(UPPER(E187)="CONDICIÓN", H187, "") ->  | V187: =IF(UPPER(E187)="CONDICIÓN", 10, "") ->  | W187: =IF(UPPER(E187)="CONDICIÓN", I187, "") -> 
A188: Vestidores | B188: =B8 -> Anx: | C188: =C$1 -> Cant x Espacio: | D188: Requerido: | E188: Tipo: | F188: Funcional: | G188: No Funcional: | J188: Calif: | K188: Observaciones: | L188: =Infraestructura!F53 -> 0 | M188: =Infraestructura!G53 -> 0
A189: Casilleros/lockers | C189: 1 | D189: =IF(AND($L$188=0,$M$188=0),0,IF(AND($L$188>0,$M$188>0),($L$188+$M$188)*C189,IF(AND($L$188=0,$M$188>0),C189*$M$188,$L$188*C189))) -> 0 | E189: =IF(D189>0, "Requerido", "Sin Infraestructura") -> Sin Infraestructura | F189: 0 | G189: 0 | H189: =IF(AND(F189>=D189,F189>0,D189>0),10,0) -> 0 | I189: =IF(AND(G189>=D189,D189>0,G189>=1),10,0) -> 0 | J189: =H189-I189 -> 0 | N189: MG | R189: =IF(UPPER(E189)="REQUERIDO", 10, "") ->  | S189: =IF(UPPER(E189)="REQUERIDO", H189, "") -> 
A190: Banco de vestuario | C190: 1 | D190: =IF(AND($L$188=0,$M$188=0),0,IF(AND($L$188>0,$M$188>0),($L$188+$M$188)*C190,IF(AND($L$188=0,$M$188>0),C190*$M$188,$L$188*C190))) -> 0 | E190: Sin Infraestructura | F190: 0 | G190: 0 | H190: =IF(AND(F190>=D190,F190>0,D190>0),10,0) -> 0 | I190: =IF(AND(G190>=D190,D190>0,G190>=1),10,0) -> 0 | J190: =H190-I190 -> 0 | N190: MG | R190: =IF(UPPER(E190)="REQUERIDO", 10, "") ->  | S190: =IF(UPPER(E190)="REQUERIDO", H190, "") -> 
A191: Gancho doble | C191: 2 | D191: =IF(AND($L$188=0,$M$188=0),0,IF(AND($L$188>0,$M$188>0),($L$188+$M$188)*C191,IF(AND($L$188=0,$M$188>0),C191*$M$188,$L$188*C191))) -> 0 | E191: Sin Infraestructura | F191: 0 | G191: 0 | H191: =IF(AND(F191>=D191,F191>0,D191>0),10,0) -> 0 | I191: =IF(AND(G191>=D191,D191>0,G191>=1),10,0) -> 0 | J191: =H191-I191 -> 0 | N191: MG | R191: =IF(UPPER(E191)="REQUERIDO", 10, "") ->  | S191: =IF(UPPER(E191)="REQUERIDO", H191, "") -> 
A192: Basurero | C192: 1 | D192: =IF(AND($L$188=0,$M$188=0),0,IF(AND($L$188>0,$M$188>0),($L$188+$M$188)*C192,IF(AND($L$188=0,$M$188>0),C192*$M$188,$L$188*C192))) -> 0 | E192: Sin Infraestructura | F192: 0 | G192: 0 | H192: =IF(AND(F192>=D192,F192>0,D192>0),10,0) -> 0 | I192: =IF(AND(G192>=D192,D192>0,G192>=1),10,0) -> 0 | J192: =H192-I192 -> 0 | N192: MG | R192: =IF(UPPER(E192)="REQUERIDO", 10, "") ->  | S192: =IF(UPPER(E192)="REQUERIDO", H192, "") -> 
A193: Baño de vestidores | B193: =B16 -> Anx: | C193: =C$1 -> Cant x Espacio: | D193: Requerido: | E193: Tipo: | F193: Funcional: | G193: No Funcional: | J193: Calif: | K193: Observaciones: | L193: =Infraestructura!F54 -> 0 | M193: =Infraestructura!G54 -> 0
A194: Inodoro | C194: 1 | D194: =IF(AND($L$193=0,$M$193=0),0,IF(AND($L$193>0,$M$193>0),($L$193+$M$193)*C194,IF(AND($L$193=0,$M$193>0),C194*$M$193,$L$193*C194))) -> 0 | E194: Sin Infraestructura | F194: 0 | G194: 0 | H194: =IF(AND(F194>=D194,F194>0,D194>0),10,0) -> 0 | I194: =IF(AND(G194>=D194,D194>0,G194>=1),10,0) -> 0 | J194: =H194-I194 -> 0 | N194: MG | R194: =IF(UPPER(E194)="REQUERIDO", 10, "") ->  | S194: =IF(UPPER(E194)="REQUERIDO", H194, "") -> 
A195: Dispensador de papel higiénico | C195: 1 | D195: =IF(AND($L$193=0,$M$193=0),0,IF(AND($L$193>0,$M$193>0),($L$193+$M$193)*C195,IF(AND($L$193=0,$M$193>0),C195*$M$193,$L$193*C195))) -> 0 | E195: Sin Infraestructura | F195: 0 | G195: 0 | H195: 0 | I195: 0 | J195: 0 | N195: MG
A196: Lavabo | C196: 1 | D196: =IF(AND($L$193=0,$M$193=0),0,IF(AND($L$193>0,$M$193>0),($L$193+$M$193)*C196,IF(AND($L$193=0,$M$193>0),C196*$M$193,$L$193*C196))) -> 0 | E196: Sin Infraestructura | F196: 0 | G196: 0 | H196: 0 | I196: 0 | J196: 0 | N196: MG
A197: Dispensador de jabón | C197: 1 | D197: 0 | E197: Sin Infraestructura | F197: 0 | G197: 0 | H197: 0 | I197: 0 | J197: 0 | N197: MG
A198: Dispensador de papel toalla | C198: 1 | D198: 0 | E198: Sin Infraestructura | F198: 0 | G198: 0 | H198: 0 | I198: 0 | J198: 0 | N198: MG
A199: Basurero | C199: 2 | D199: 0 | E199: Sin Infraestructura | F199: 0 | G199: 0 | H199: 0 | I199: 0 | J199: 0 | N199: MG
A200: Gancho doble | C200: 1 | D200: 0 | E200: Sin Infraestructura | F200: 0 | G200: 0 | H200: 0 | I200: 0 | J200: 0 | N200: MG
... 455 more rows

Sheet Norma
A1: FILTROS: | B1: Anx: | C1: Requerido: | D1: Servicios / Consultorios: | E1: Tipo: | F1: Posee: | G1: No Posee: | H1: Calif: | K1: Observaciones:
A2: =Menu!$A$5 -> CENTRO ESPECIALIZADO EN TRATAMIENTO PARA PERSONAS CON CONSUMO PROBLEMÁTICO DE ALCOHOL Y OTRAS DROGAS (CETADS) | Q2: req | S2: des | U2: cond | W2: cond - | Y2: req | AA2: des | AC2: COND + | AE2: cond -
A3: NORMA | Q3: NORMAS | Y3: TOTAL NORMAS
A4: NORMA | Y4: =SUM(Q5:Q23) -> 130 | Z4: 0 | AA4: 0 | AB4: 0 | AC4: 40 | AD4: 0 | AE4: 40 | AF4: 0
A5: ADMINISTRATIVO | Y5: =SUM(Q6:Q23) -> 130 | Z5: 0 | AA5: 0 | AB5: 0 | AC5: 40 | AD5: 0 | AE5: 40 | AF5: 0
A6: Admisión, Información y Recepción | B6: =B1 -> Anx: | C6: =C$1 -> Requerido: | D6: Servicios / Consultorios: | E6: Tipo: | F6: Posee: | G6: No Posee: | J6: =H$1 -> Calif: | K6: Observaciones: | Y6: =SUM(Q7:Q23) -> 130 | Z6: 0 | AA6: 0 | AB6: 0 | AC6: 40 | AD6: 0 | AE6: 40 | AF6: 0
A7: Instructivo para el Llenado del Registro Diario Automatizado de Consultas y Atenciones Ambulatorias (RDACAA). 2013 | C7: 1 | E7: Condición | F7: 0 | G7: 0 | H7: =IF(AND(F7>=C7,C7>0,F7>=1),10,0) -> 0 | I7: =IF(AND(G7>=C7,C7>0,G7>=1),10,0) -> 0 | J7: =H7-I7 -> 0 | U7: =IF(UPPER(E7)="CONDICIÓN", 10, "") -> 10 | V7: =IF(UPPER(E7)="CONDICIÓN", H7, "") -> 0 | W7: =IF(UPPER(E7)="CONDICIÓN", 10, "") -> 10 | X7: =IF(UPPER(E7)="CONDICIÓN", I7, "") -> 0
A8: Manual de Instalación del Tarjetero índice | C8: 1 | E8: Condición | F8: 0 | G8: 0 | H8: =IF(AND(F8>=C8,C8>0,F8>=1),10,0) -> 0 | I8: =IF(AND(G8>=C8,C8>0,G8>=1),10,0) -> 0 | J8: =H8-I8 -> 0 | U8: =IF(UPPER(E8)="CONDICIÓN", 10, "") -> 10 | V8: =IF(UPPER(E8)="CONDICIÓN", H8, "") -> 0 | W8: =IF(UPPER(E8)="CONDICIÓN", 10, "") -> 10 | X8: =IF(UPPER(E8)="CONDICIÓN", I8, "") -> 0
A9: Manual del Usuario del Tarjetero Indice | C9: 1 | E9: Condición | F9: 0 | G9: 0 | H9: 0 | I9: 0 | J9: 0 | U9: =IF(UPPER(E9)="CONDICIÓN", 10, "") -> 10 | V9: =IF(UPPER(E9)="CONDICIÓN", H9, "") -> 0 | W9: =IF(UPPER(E9)="CONDICIÓN", 10, "") -> 10 | X9: =IF(UPPER(E9)="CONDICIÓN", I9, "") -> 0
A10: Manual de Manejo, Archivo de las Historias Clínicas | C10: 1 | E10: Requerido | F10: 0 | G10: 0 | H10: 0 | I10: 0 | J10: 0 | Q10: =IF(UPPER(E10)="REQUERIDO", 10, "") -> 10 | R10: =IF(UPPER(E10)="REQUERIDO", H10, "") -> 0
A11: Norma Técnica: Subsistema de Referencia, Derivación, Contrareferencia, Referencia inversa y Transferencia del Sistema Nacional de Salud. 2014 | C11: 1 | E11: Requerido | F11: 0 | G11: 0 | H11: 0 | I11: 0 | J11: 0 | Q11: =IF(UPPER(E11)="REQUERIDO", 10, "") -> 10 | R11: 0
A12: Políticas Uso de Servicios de Red y Servicios Informáticos del Ministerio de Salud Pública | C12: 1 | E12: Condición | F12: 0 | G12: 0 | H12: 0 | I12: 0 | J12: 0 | U12: =IF(UPPER(E12)="CONDICIÓN", 10, "") -> 10 | V12: =IF(UPPER(E12)="CONDICIÓN", H12, "") -> 0 | W12: =IF(UPPER(E12)="CONDICIÓN", 10, "") -> 10 | X12: =IF(UPPER(E12)="CONDICIÓN", I12, "") -> 0
A13: Modelo de Gestión de requerimientos e inconformidades ciudadanas para mejorar los servicios de salud a nivel nacional | C13: 1 | E13: Requerido | F13: 0 | G13: 0 | H13: 0 | I13: 0 | J13: 0 | Q13: 10 | R13: 0
A14: Registro de visitas a usuarios/pacientes | C14: 1 | E14: Requerido | F14: 0 | G14: 0 | H14: 0 | I14: 0 | J14: 0 | Q14: 10 | R14: 0
A15: Reglamento de Señalización de Seguridad para Establecimientos de Salud | C15: 1 | E15: Requerido | F15: 0 | G15: 0 | H15: 0 | I15: 0 | J15: 0 | Q15: 10 | R15: 0
A16: Acuerdo Ministerial 5212: Tipología Sustitutiva para Homologar los Establecimientos de Salud por Niveles de Atención y Servicios de Apoyo del Sistema Nacional de Salud | C16: 1 | E16: Requerido | F16: 0 | G16: 0 | H16: 0 | I16: 0 | J16: 0 | Q16: 10 | R16: 0
A17: Manual de Normas de Bioseguridad para la Red de Servicios de Salud en el Ecuador | C17: 1 | E17: Requerido | F17: 0 | G17: 0 | H17: 0 | I17: 0 | J17: 0 | Q17: 10 | R17: 0
A18: Norma Técnica: Atención Integral en Violencia de Género. 2014 | C18: 1 | E18: Requerido | F18: 0 | G18: 0 | H18: 0 | I18: 0 | J18: 0 | Q18: 10 | R18: 0
A19: Ley Derechos y Amparo al Paciente impreso en formato A0 | C19: 1 | E19: Requerido | F19: 0 | G19: 0 | H19: 0 | I19: 0 | J19: 0 | Q19: 10 | R19: 0
A20: Protocolos de Procedimientos de Limpieza | C20: 1 | E20: Requerido | F20: 0 | G20: 0 | H20: 0 | I20: 0 | J20: 0 | Q20: 10 | R20: 0
A21: Registro de limpieza del área funcional del Establecimiento | C21: 1 | E21: Requerido | F21: 0 | G21: 0 | H21: 0 | I21: 0 | J21: 0 | Q21: 10 | R21: 0
A22: Registro de Mantenimiento de Equipos: Preventivo y/o Correctivo | C22: 1 | E22: Requerido | F22: 0 | G22: 0 | H22: 0 | I22: 0 | J22: 0 | Q22: 10 | R22: 0
A23: Acuerdo Ministerial 5186: Reglamento Interministerial para la Gestión Integral de Desechos Sanitarios | C23: 1 | E23: Requerido | F23: 0 | G23: 0 | H23: 0 | I23: 0 | J23: 0 | Q23: 10 | R23: 0
A24: ASISTENCIAL | Y24: =SUM(Q25:Q113) -> 580 | Z24: 0 | AA24: 0 | AB24: 0 | AC24: 270 | AD24: 0 | AE24: 270 | AF24: 0
A25: CONSULTA EXTERNA | Y25: =SUM(Q26:Q113) -> 580 | Z25: 0 | AA25: 0 | AB25: 0 | AC25: 270 | AD25: 0 | AE25: 270 | AF25: 0
A26: Consultorio polivalente (Psiquiatría/Medicina Interna/Familiar y Comunitaria/General) | B26: =B1 -> Anx: | C26: =C$1 -> Requerido: | D26: Servicios / Consultorios: | E26: Tipo: | F26: Posee: | G26: No Posee: | J26: =H$1 -> Calif: | K26: Observaciones: | Y26: =SUM(Q27:Q56) -> 200 | Z26: 0 | AA26: 0 | AB26: 0 | AC26: 100 | AD26: 0 | AE26: 100 | AF26: 0
A27: Instructivo para el Llenado del Registro Diario Automatizado de Consultas y Atenciones Ambulatorias (RDACAA). 2013 | C27: 1 | E27: Condición | F27: 0 | G27: 0 | H27: =IF(AND(F27>=C27,C27>0,F27>=1),10,0) -> 0 | I27: =IF(AND(G27>=C27,C27>0,G27>=1),10,0) -> 0 | J27: =H27-I27 -> 0 | U27: =IF(UPPER(E27)="CONDICIÓN", 10, "") -> 10 | V27: =IF(UPPER(E27)="CONDICIÓN", H27, "") -> 0 | W27: =IF(UPPER(E27)="CONDICIÓN", 10, "") -> 10 | X27: =IF(UPPER(E27)="CONDICIÓN", I27, "") -> 0
A28: Clasificación Estadística Internacional de Enfermedades y Problemas Relacionados con la Salud. Décima Revisión - CIE10 | C28: 1 | E28: Requerido | F28: 0 | G28: 0 | H28: 0 | I28: 0 | J28: 0 | Q28: =IF(UPPER(E28)="REQUERIDO", 10, "") -> 10 | R28: =IF(UPPER(E28)="REQUERIDO", H28, "") -> 0
A29: Reglamento a la Ley Organica de Salud | C29: 1 | E29: Requerido | F29: 0 | G29: 0 | H29: 0 | I29: 0 | J29: 0 | Q29: 10 | R29: 0
A30: Guía para la adecuación cultural de los servicios de salud. 2006 | C30: 1 | E30: Requerido | F30: 0 | G30: 0 | H30: 0 | I30: 0 | J30: 0 | Q30: 10 | R30: 0
A31: Manual del modelo de atención integral en salud - MAIS. 2013 | C31: 1 | E31: Requerido | F31: 0 | G31: 0 | H31: 0 | I31: 0 | J31: 0 | Q31: 10 | R31: 0
A32: Ley Derechos y Amparo al Paciente | C32: 1 | E32: Requerido | F32: 0 | G32: 0 | H32: 0 | I32: 0 | J32: 0 | Q32: 10 | R32: 0
A33: Ley de sustancias estupefacientes y Psicotrópicas | C33: 1 | E33: Requerido | F33: 0 | G33: 0 | H33: 0 | I33: 0 | J33: 0 | Q33: 10 | R33: 0
A34: Cuadro nacional de medicamentos básicos y registro terapéutico. 9na revisión | C34: 1 | E34: Requerido | F34: 0 | G34: 0 | H34: 0 | I34: 0 | J34: 0 | Q34: 10 | R34: 0
A35: Acuerdo Ministerial 4693: Reforma a la 9na. Revisión del Cuadro Nacional de Medicamentos Básicos y Registro Terapéutico | C35: 1 | E35: Requerido | F35: 0 | G35: 0 | H35: 0 | I35: 0 | J35: 0 | Q35: 10 | R35: 0
A36: Norma Técnica: Subsistema de Referencia, Derivación, Contrareferencia, Referencia inversa y Transferencia del Sistema Nacional de Salud. 2014 | C36: 1 | E36: Requerido | F36: 0 | G36: 0 | H36: 0 | I36: 0 | J36: 0 | Q36: 10 | R36: 0
A37: Registro de Evolución de la Atención Médica y Modelo Terapéutico | C37: 1 | E37: Requerido | F37: 0 | G37: 0 | H37: =IF(AND(F37>=C37,C37>0,F37>=1),10,0) -> 0 | I37: 0 | J37: 0 | Q37: 10 | R37: 0
A38: Registro de Indicadores para la Satisfacción del Usuario | C38: 1 | E38: Requerido | F38: 0 | G38: 0 | H38: =IF(AND(F38>=C38,C38>0,F38>=1),10,0) -> 0 | I38: 0 | J38: 0 | Q38: =IF(UPPER(E38)="REQUERIDO", 10, "") -> 10 | R38: =IF(UPPER(E38)="REQUERIDO", H38, "") -> 0
A39: Protocolo: Atención integral del consumo nocivo de alcohol, tabaco y otras drogas. 2016 | C39: 1 | E39: Requerido | F39: 0 | G39: 0 | H39: =IF(AND(F39>=C39,C39>0,F39>=1),10,0) -> 0 | I39: 0 | J39: 0 | Q39: =IF(UPPER(E39)="REQUERIDO", 10, "") -> 10 | R39: =IF(UPPER(E39)="REQUERIDO", H39, "") -> 0
A40: Guía de atención integral de adultos y Adolescentes con infección por VIH/SIDA. 2012 | C40: 1 | E40: Condición | F40: 0 | G40: 0 | H40: =IF(AND(F40>=C40,C40>0,F40>=1),10,0) -> 0 | I40: 0 | J40: 0 | U40: =IF(UPPER(E40)="CONDICIÓN", 10, "") -> 10 | V40: =IF(UPPER(E40)="CONDICIÓN", H40, "") -> 0 | W40: =IF(UPPER(E40)="CONDICIÓN", 10, "") -> 10 | X40: =IF(UPPER(E40)="CONDICIÓN", I40, "") -> 0
A41: Guía de Práctica Clínica: Prevención, Diagnóstico, Tratamiento y Control de la Tuberculosis. 2015 | C41: 1 | E41: Requerido | F41: 0 | G41: 0 | H41: =IF(AND(F41>=C41,C32>0,F32>=1),10,0) -> 0 | I41: 0 | J41: 0 | Q41: =IF(UPPER(E41)="REQUERIDO", 10, "") -> 10 | R41: =IF(UPPER(E41)="REQUERIDO", H41, "") -> 0
A42: Manual de Normas y Procedimientos para el Control de la Tuberculosis en Ecuador. 2010 | C42: 1 | E42: Requerido | F42: 0 | G42: 0 | H42: =IF(AND(F42>=C42,C42>0,F42>=1),10,0) -> 0 | I42: 0 | J42: 0 | Q42: =IF(UPPER(E42)="REQUERIDO", 10, "") -> 10 | R42: =IF(UPPER(E42)="REQUERIDO", H42, "") -> 0
A43: Normas y protocolos para la alimentación y nutrición en la atención integral a personas que viven con VIH/SIDA. 2010 | C43: 1 | E43: Condición | F43: 0 | G43: 0 | H43: 0 | I43: 0 | J43: 0 | U43: =IF(UPPER(E43)="CONDICIÓN", 10, "") -> 10 | V43: =IF(UPPER(E43)="CONDICIÓN", H43, "") -> 0 | W43: =IF(UPPER(E43)="CONDICIÓN", 10, "") -> 10 | X43: =IF(UPPER(E43)="CONDICIÓN", I43, "") -> 0
A44: Normas y protocolos de atención integral de salud de las y los adultos mayores - 1. 2010 | C44: 1 | E44: Condición | F44: 0 | G44: 0 | H44: 0 | I44: 0 | J44: 0 | U44: 10 | V44: 0 | W44: 10 | X44: 0
A45: Normas y protocolos de atención integral de salud de las y los adultos mayores - 2. 2010 | C45: 1 | E45: Condición | F45: 0 | G45: 0 | H45: 0 | I45: 0 | J45: 0 | U45: 10 | V45: 0 | W45: 10 | X45: 0
A46: Normas y protocolos de atención integral de salud de las y los adultos mayores - 3. 2010 | C46: 1 | E46: Condición | F46: 0 | G46: 0 | H46: 0 | I46: 0 | J46: 0 | U46: 10 | V46: 0 | W46: 10 | X46: 0
A47: Normas y procedimientos para la atención integral de salud a adolescentes. 2009 | C47: 1 | E47: Condición | F47: 0 | G47: 0 | H47: 0 | I47: 0 | J47: 0 | U47: 10 | V47: 0 | W47: 10 | X47: 0
A48: Guía de Supervisión: Salud de Adolescentes. 2014 | C48: 1 | E48: Condición | F48: 0 | G48: 0 | H48: 0 | I48: 0 | J48: 0 | U48: 10 | V48: 0 | W48: 10 | X48: 0
A49: Manual de procedimientos de antropometría y determinación de la presión arterial. 2012 | C49: 1 | E49: Requerido | F49: 0 | G49: 0 | H49: 0 | I49: 0 | J49: 0 | Q49: =IF(UPPER(E49)="REQUERIDO", 10, "") -> 10 | R49: =IF(UPPER(E49)="REQUERIDO", H49, "") -> 0
A50: Acuerdo Ministerial 1124: Instructivo para el uso de la Receta Médica. | C50: 1 | E50: Condición | F50: 0 | G50: 0 | H50: 0 | I50: 0 | J50: 0 | U50: =IF(UPPER(E50)="CONDICIÓN", 10, "") -> 10 | V50: =IF(UPPER(E50)="CONDICIÓN", H50, "") -> 0 | W50: =IF(UPPER(E50)="CONDICIÓN", 10, "") -> 10 | X50: =IF(UPPER(E50)="CONDICIÓN", I50, "") -> 0
A51: Acuerdo Ministerial 4912: Reforma al Reglamento para la Gestión del Suministro de Medicamentos y Control Administrativo Financiero, y el Instructivo para el uso de la Receta Médica. | C51: 1 | E51: Condición | F51: 0 | G51: 0 | H51: 0 | I51: 0 | J51: 0 | U51: =IF(UPPER(E51)="CONDICIÓN", 10, "") -> 10 | V51: =IF(UPPER(E51)="CONDICIÓN", H51, "") -> 0 | W51: =IF(UPPER(E51)="CONDICIÓN", 10, "") -> 10 | X51: =IF(UPPER(E51)="CONDICIÓN", I51, "") -> 0
A52: Acuerdo Ministerial 5186: Reglamento Interministerial para la Gestión Integral de Desechos Sanitarios | C52: 1 | E52: Requerido | F52: 0 | G52: 0 | H52: 0 | I52: 0 | J52: 0 | Q52: =IF(UPPER(E52)="REQUERIDO", 10, "") -> 10 | R52: =IF(UPPER(E52)="REQUERIDO", H52, "") -> 0
A53: Manual de Normas de Bioseguridad para la Red de Servicios de Salud en el Ecuador | C53: 1 | E53: Requerido | F53: 0 | G53: 0 | H53: 0 | I53: 0 | J53: 0 | Q53: =IF(UPPER(E53)="REQUERIDO", 10, "") -> 10 | R53: =IF(UPPER(E53)="REQUERIDO", H53, "") -> 0
A54: Protocolos de Procedimientos de Limpieza y Desinfección | C54: 1 | E54: Requerido | F54: 0 | G54: 0 | H54: 0 | I54: 0 | J54: 0 | Q54: =IF(UPPER(E54)="REQUERIDO", 10, "") -> 10 | R54: =IF(UPPER(E54)="REQUERIDO", H54, "") -> 0
A55: Registro de limpieza y desinfección del área funcional del Establecimiento | C55: 1 | E55: Requerido | F55: 0 | G55: 0 | H55: 0 | I55: 0 | J55: 0 | Q55: =IF(UPPER(E55)="REQUERIDO", 10, "") -> 10 | R55: =IF(UPPER(E55)="REQUERIDO", H55, "") -> 0
A56: Registro de Mantenimiento de Equipos: Preventivo y/o Correctivo | C56: 1 | E56: Requerido | F56: 0 | G56: 0 | H56: 0 | I56: 0 | J56: 0 | Q56: =IF(UPPER(E56)="REQUERIDO", 10, "") -> 10 | R56: =IF(UPPER(E56)="REQUERIDO", H56, "") -> 0
A57: Consultorio psicología | B57: =B1 -> Anx: | C57: =C$1 -> Requerido: | D57: Servicios / Consultorios: | E57: Tipo: | F57: Posee: | G57: No Posee: | J57: =H$1 -> Calif: | K57: Observaciones: | Y57: =SUM(Q58:Q79) -> 170 | Z57: 0 | AA57: 0 | AB57: 0 | AC57: 50 | AD57: 0 | AE57: 50 | AF57: 0
A58: Instructivo para el Llenado del Registro Diario Automatizado de Consultas y Atenciones Ambulatorias (RDACAA). 2013 | C58: 1 | E58: Condición | F58: 0 | G58: 0 | H58: =IF(AND(F58>=C58,C58>0,F58>=1),10,0) -> 0 | I58: 0 | J58: 0 | U58: =IF(UPPER(E58)="CONDICIÓN", 10, "") -> 10 | V58: =IF(UPPER(E58)="CONDICIÓN", H58, "") -> 0 | W58: =IF(UPPER(E58)="CONDICIÓN", 10, "") -> 10 | X58: =IF(UPPER(E58)="CONDICIÓN", I58, "") -> 0
A59: Clasificación Estadística Internacional de Enfermedades y Problemas Relacionados con la Salud. Décima Revisión - CIE10 | C59: 1 | E59: Requerido | F59: 0 | G59: 0 | H59: 0 | I59: 0 | J59: 0 | Q59: =IF(UPPER(E59)="REQUERIDO", 10, "") -> 10 | R59: =IF(UPPER(E59)="REQUERIDO", H59, "") -> 0
A60: Reglamento a la Ley Organica de Salud | C60: 1 | E60: Requerido | F60: 0 | G60: 0 | H60: 0 | I60: 0 | J60: 0 | Q60: 10 | R60: 0
A61: Guía para la adecuación cultural de los servicios de salud. 2006 | C61: 1 | E61: Requerido | F61: 0 | G61: 0 | H61: 0 | I61: 0 | J61: 0 | Q61: 10 | R61: 0
A62: Manual del modelo de atención integral en salud - MAIS. 2013 | C62: 1 | E62: Requerido | F62: 0 | G62: 0 | H62: 0 | I62: 0 | J62: 0 | Q62: 10 | R62: 0
A63: Ley Derechos y Amparo al Paciente | C63: 1 | E63: Requerido | F63: 0 | G63: 0 | H63: 0 | I63: 0 | J63: 0 | Q63: 10 | R63: 0
A64: Ley de sustancias estupefacientes y Psicotrópicas | C64: 1 | E64: Requerido | F64: 0 | G64: 0 | H64: 0 | I64: 0 | J64: 0 | Q64: 10 | R64: 0
A65: Cuadro nacional de medicamentos básicos y registro terapéutico. 9na revisión | C65: 1 | E65: Requerido | F65: 0 | G65: 0 | H65: 0 | I65: 0 | J65: 0 | Q65: 10 | R65: 0
A66: Acuerdo Ministerial 4693: Reforma a la 9na. Revisión del Cuadro Nacional de Medicamentos Básicos y Registro Terapéutico | C66: 1 | E66: Requerido | F66: 0 | G66: 0 | H66: 0 | I66: 0 | J66: 0 | Q66: 10 | R66: 0
A67: Norma Técnica: Subsistema de Referencia, Derivación, Contrareferencia, Referencia inversa y Transferencia del Sistema Nacional de Salud. 2014 | C67: 1 | E67: Requerido | F67: 0 | G67: 0 | H67: 0 | I67: 0 | J67: 0 | Q67: 10 | R67: 0
A68: Protocolo: Atención integral del consumo nocivo de alcohol, tabaco y otras drogas. 2016 | C68: 1 | E68: Requerido | F68: 0 | G68: 0 | H68: 0 | I68: 0 | J68: 0 | Q68: 10 | R68: 0
A69: Fundamentos de la Prevención en Materia de Drogas | C69: 1 | E69: Condición | F69: 0 | G69: 0 | H69: 0 | I69: 0 | J69: 0 | U69: =IF(UPPER(E69)="CONDICIÓN", 10, "") -> 10 | V69: =IF(UPPER(E69)="CONDICIÓN", H69, "") -> 0 | W69: =IF(UPPER(E69)="CONDICIÓN", 10, "") -> 10 | X69: =IF(UPPER(E69)="CONDICIÓN", I69, "") -> 0
A70: Guía de Abordaje del Tabaquismo en Atención Primaria de Salud | C70: 1 | E70: Condición | F70: 0 | G70: 0 | H70: 0 | I70: 0 | J70: 0 | U70: =IF(UPPER(E70)="CONDICIÓN", 10, "") -> 10 | V70: =IF(UPPER(E70)="CONDICIÓN", H70, "") -> 0 | W70: =IF(UPPER(E70)="CONDICIÓN", 10, "") -> 10 | X70: =IF(UPPER(E70)="CONDICIÓN", I70, "") -> 0
A71: Plan Estratégico Nacional de Salud Mental 2015 - 2017 | C71: 1 | E71: Requerido | F71: 0 | G71: 0 | H71: 0 | I71: 0 | J71: 0 | Q71: 10 | R71: =IF(UPPER(E71)="REQUERIDO", H71, "") -> 0
A72: Modelo de Atención de Salud Mental, en el Marco del Modelo de Atención Integral de Salud (MAIS) - con enfoque familiar, comunitario e intercultural | C72: 1 | E72: Requerido | F72: 0 | G72: 0 | H72: 0 | I72: 0 | J72: 0 | Q72: 10 | R72: =IF(UPPER(E72)="REQUERIDO", H72, "") -> 0
A73: Acuerdo Ministerial 1124: Instructivo para el uso de la Receta Médica. | C73: 1 | E73: Condición | F73: 0 | G73: 0 | H73: 0 | I73: 0 | J73: 0 | U73: =IF(UPPER(E73)="CONDICIÓN", 10, "") -> 10 | V73: =IF(UPPER(E73)="CONDICIÓN", H73, "") -> 0 | W73: =IF(UPPER(E73)="CONDICIÓN", 10, "") -> 10 | X73: =IF(UPPER(E73)="CONDICIÓN", I73, "") -> 0
A74: Acuerdo Ministerial 4912: Reforma al Reglamento para la Gestión del Suministro de Medicamentos y Control Administrativo Financiero, y el Instructivo para el uso de la Receta Médica. | C74: 1 | E74: Condición | F74: 0 | G74: 0 | H74: 0 | I74: 0 | J74: 0 | U74: =IF(UPPER(E74)="CONDICIÓN", 10, "") -> 10 | V74: =IF(UPPER(E74)="CONDICIÓN", H74, "") -> 0 | W74: =IF(UPPER(E74)="CONDICIÓN", 10, "") -> 10 | X74: =IF(UPPER(E74)="CONDICIÓN", I74, "") -> 0
A75: Acuerdo Ministerial 5186: Reglamento Interministerial para la Gestión Integral de Desechos Sanitarios | C75: 1 | E75: Requerido | F75: 0 | G75: 0 | H75: 0 | I75: 0 | J75: 0 | Q75: 10 | R75: 0
A76: Manual de Normas de Bioseguridad para la Red de Servicios de Salud en el Ecuador | C76: 1 | E76: Requerido | F76: 0 | G76: 0 | H76: 0 | I76: 0 | J76: 0 | Q76: 10 | R76: 0
A77: Protocolos de Procedimientos de Limpieza y Desinfección | C77: 1 | E77: Requerido | F77: 0 | G77: 0 | H77: 0 | I77: 0 | J77: 0 | Q77: 10 | R77: 0
A78: Registro de limpieza y desinfección del área funcional del Establecimiento | C78: 1 | E78: Requerido | F78: 0 | G78: 0 | H78: 0 | I78: 0 | J78: 0 | Q78: 10 | R78: 0
A79: Registro de Mantenimiento de Equipos: Preventivo y/o Correctivo | C79: 1 | E79: Requerido | F79: 0 | G79: 0 | H79: 0 | I79: 0 | J79: 0 | Q79: 10 | R79: 0
A80: Enfermería | B80: =B1 -> Anx: | C80: =C$1 -> Requerido: | D80: Servicios / Consultorios: | E80: Tipo: | F80: =F$1 -> Posee: | G80: No Posee: | J80: =H$1 -> Calif: | K80: Observaciones: | Y80: =SUM(Q81:Q113) -> 210 | Z80: 0 | AA80: 0 | AB80: 0 | AC80: 120 | AD80: 0 | AE80: 120 | AF80: 0
A81: Instructivo para el Llenado del Registro Diario Automatizado de Consultas y Atenciones Ambulatorias (RDACAA). 2013 | C81: 1 | E81: Condición | F81: 0 | G81: 0 | H81: =IF(AND(F81>=C81,C81>0,F81>=1),10,0) -> 0 | I81: 0 | J81: 0 | U81: =IF(UPPER(E81)="CONDICIÓN", 10, "") -> 10 | V81: =IF(UPPER(E81)="CONDICIÓN", H81, "") -> 0 | W81: =IF(UPPER(E81)="CONDICIÓN", 10, "") -> 10 | X81: =IF(UPPER(E81)="CONDICIÓN", I81, "") -> 0
A82: Clasificación Estadística Internacional de Enfermedades y Problemas Relacionados con la Salud. Décima Revisión - CIE10 | C82: 1 | E82: Requerido | F82: 0 | G82: 0 | H82: 0 | I82: 0 | J82: 0 | Q82: =IF(UPPER(E82)="REQUERIDO", 10, "") -> 10 | R82: =IF(UPPER(E82)="REQUERIDO", H82, "") -> 0
A83: Reglamento a la Ley Organica de Salud | C83: 1 | E83: Requerido | F83: 0 | G83: 0 | H83: 0 | I83: 0 | J83: 0 | Q83: =IF(UPPER(E83)="REQUERIDO", 10, "") -> 10 | R83: =IF(UPPER(E83)="REQUERIDO", H83, "") -> 0
A84: Guía para la adecuación cultural de los servicios de salud. 2006 | C84: 1 | E84: Requerido | F84: 0 | G84: 0 | H84: 0 | I84: 0 | J84: 0 | Q84: =IF(UPPER(E84)="REQUERIDO", 10, "") -> 10 | R84: =IF(UPPER(E84)="REQUERIDO", H84, "") -> 0
A85: Manual del modelo de atención integral en salud - MAIS. 2013 | C85: 1 | E85: Requerido | F85: 0 | G85: 0 | H85: 0 | I85: 0 | J85: 0 | Q85: =IF(UPPER(E85)="REQUERIDO", 10, "") -> 10 | R85: =IF(UPPER(E85)="REQUERIDO", H85, "") -> 0
A86: Ley Derechos y Amparo al Paciente | C86: 1 | E86: Requerido | F86: 0 | G86: 0 | H86: 0 | I86: 0 | J86: 0 | Q86: 10 | R86: 0
A87: Cuadro nacional de medicamentos básicos y registro terapéutico. 9na revisión | C87: 1 | E87: Requerido | F87: 0 | G87: 0 | H87: 0 | I87: 0 | J87: 0 | Q87: 10 | R87: 0
A88: Acuerdo Ministerial 4693: Reforma a la 9na. Revisión del Cuadro Nacional de Medicamentos Básicos y Registro Terapéutico | C88: 1 | E88: Requerido | F88: 0 | G88: 0 | H88: 0 | I88: 0 | J88: 0 | Q88: 10 | R88: 0
A89: Modelo de gestión de aplicación de consentimiento informado en práctica asistencial. 2015 | C89: 1 | E89: Requerido | F89: 0 | G89: 0 | H89: 0 | I89: 0 | J89: 0 | Q89: 10 | R89: 0
A90: Guía de Práctica Clínica: Cuidados Paliativos. 2014 | C90: 1 | E90: Requerido | F90: 0 | G90: 0 | H90: 0 | I90: 0 | J90: 0 | Q90: 10 | R90: 0
A91: Manual de procedimientos de Enfermería | C91: 1 | E91: Requerido | F91: 0 | G91: 0 | H91: 0 | I91: =IF(AND(G91>=C91,C91>0,G91>=1),10,0) -> 0 | J91: =H91-I91 -> 0 | Q91: 10 | R91: 0
A92: Protocolo: Atención integral del consumo nocivo de alcohol, tabaco y otras drogas. 2016 | C92: 1 | E92: Requerido | F92: 0 | G92: 0 | H92: 0 | I92: 0 | J92: 0 | Q92: 10 | R92: 0
A93: Guía de Práctica Clínica: Prevención, Diagnóstico, Tratamiento y Control de la Tuberculosis. 2015 | C93: 1 | E93: Requerido | F93: 0 | G93: 0 | H93: 0 | I93: 0 | J93: 0 | Q93: 10 | R93: 0
A94: Manual de Normas y Procedimientos para el Control de la Tuberculosis en Ecuador. 2010 | C94: 1 | E94: Requerido | F94: 0 | G94: 0 | H94: 0 | I94: 0 | J94: 0 | Q94: 10 | R94: 0
A95: Guía de atención integral de adultos y Adolescentes con infección por VIH/SIDA. 2012 | C95: 1 | E95: Condición | F95: 0 | G95: 0 | H95: 0 | I95: 0 | J95: 0 | U95: =IF(UPPER(E95)="CONDICIÓN", 10, "") -> 10 | V95: =IF(UPPER(E95)="CONDICIÓN", H95, "") -> 0 | W95: =IF(UPPER(E95)="CONDICIÓN", 10, "") -> 10 | X95: =IF(UPPER(E95)="CONDICIÓN", I95, "") -> 0
A96: Normas y protocolos de atención integral de salud de las y los adultos mayores - 1. 2010 | C96: 1 | E96: Condición | F96: 0 | G96: 0 | H96: 0 | I96: 0 | J96: 0 | U96: 10 | V96: 0 | W96: 10 | X96: 0
A97: Normas y protocolos de atención integral de salud de las y los adultos mayores - 2. 2010 | C97: 1 | E97: Condición | F97: 0 | G97: 0 | H97: 0 | I97: 0 | J97: 0 | U97: 10 | V97: 0 | W97: 10 | X97: 0
A98: Normas y protocolos de atención integral de salud de las y los adultos mayores - 3. 2010 | C98: 1 | E98: Condición | F98: 0 | G98: 0 | H98: 0 | I98: 0 | J98: 0 | U98: 10 | V98: 0 | W98: 10 | X98: 0
A99: Manual para cuidadores de la persona adulta mayor dependiente | C99: 1 | E99: Condición | F99: 0 | G99: 0 | H99: 0 | I99: 0 | J99: 0 | U99: 10 | V99: 0 | W99: 10 | X99: 0
A100: Normas de atención integral a la niñez. 2011 | C100: 1 | E100: Condición | F100: 0 | G100: 0 | H100: 0 | I100: 0 | J100: 0 | U100: 10 | V100: 0 | W100: 10 | X100: 0
A101: Normas y procedimientos para la atención integral de salud a adolescentes. 2009 | C101: 1 | E101: Condición | F101: 0 | G101: 0 | H101: 0 | I101: 0 | J101: 0 | U101: 10 | V101: 0 | W101: 10 | X101: 0
A102: Guía de Supervisión: Salud de Adolescentes. 2014 | C102: 1 | E102: Condición | F102: 0 | G102: 0 | H102: =IF(AND(F102>=C102,C102>0,F102>=1),10,0) -> 0 | I102: 0 | J102: 0 | U102: 10 | V102: 0 | W102: 10 | X102: 0
A103: Promoción de la Salud Mental: Manejo del Estrés | C103: 1 | E103: Requerido | F103: 0 | G103: 0 | H103: =IF(AND(F103>=C103,C103>0,F103>=1),10,0) -> 0 | I103: 0 | J103: 0 | Q103: 10 | R103: 0
A104: Guía de Abordaje del Tabaquismo en Atención Primaria de Salud | C104: 1 | E104: Requerido | F104: 0 | G104: 0 | H104: =IF(AND(F104>=C104,C104>0,F104>=1),10,0) -> 0 | I104: 0 | J104: 0 | Q104: 10 | R104: 0
A105: Manual de procedimientos de antropometría y determinación de la presión arterial. 2012 | C105: 1 | E105: Requerido | F105: 0 | G105: 0 | H105: =IF(AND(F105>=C105,C105>0,F105>=1),10,0) -> 0 | I105: 0 | J105: 0 | Q105: 10 | R105: 0
A106: Acuerdo Ministerial 1124: Instructivo para el uso de la Receta Médica. | C106: 1 | E106: Condición | F106: 0 | G106: 0 | H106: =IF(AND(F106>=C106,C106>0,F106>=1),10,0) -> 0 | I106: 0 | J106: 0 | U106: =IF(UPPER(E106)="CONDICIÓN", 10, "") -> 10 | V106: =IF(UPPER(E106)="CONDICIÓN", H106, "") -> 0 | W106: =IF(UPPER(E106)="CONDICIÓN", 10, "") -> 10 | X106: =IF(UPPER(E106)="CONDICIÓN", I106, "") -> 0
A107: Acuerdo Ministerial 4912: Reforma al Reglamento para la Gestión del Suministro de Medicamentos y Control Administrativo Financiero, y el Instructivo para el uso de la Receta Médica. | C107: 1 | E107: Condición | F107: 0 | G107: 0 | H107: =IF(AND(F107>=C107,C107>0,F107>=1),10,0) -> 0 | I107: 0 | J107: 0 | U107: =IF(UPPER(E107)="CONDICIÓN", 10, "") -> 10 | V107: =IF(UPPER(E107)="CONDICIÓN", H107, "") -> 0 | W107: =IF(UPPER(E107)="CONDICIÓN", 10, "") -> 10 | X107: =IF(UPPER(E107)="CONDICIÓN", I107, "") -> 0
A108: Acuerdo Ministerial 5186: Reglamento Interministerial para la Gestión Integral de Desechos Sanitarios | C108: 1 | E108: Requerido | F108: 0 | G108: 0 | H108: 0 | I108: 0 | J108: 0 | Q108: 10 | R108: 0
A109: Manual de lencería sanitaria para los establecimientos de salud pertenecientes al MSP. 2014 | C109: 1 | E109: Condición | F109: 0 | G109: 0 | H109: 0 | I109: 0 | J109: 0 | U109: =IF(UPPER(E109)="CONDICIÓN", 10, "") -> 10 | V109: =IF(UPPER(E109)="CONDICIÓN", H109, "") -> 0 | W109: =IF(UPPER(E109)="CONDICIÓN", 10, "") -> 10 | X109: =IF(UPPER(E109)="CONDICIÓN", I109, "") -> 0
A110: Manual de Normas de Bioseguridad para la Red de Servicios de Salud en el Ecuador | C110: 1 | E110: Requerido | F110: 0 | G110: 0 | H110: 0 | I110: 0 | J110: 0 | Q110: 10 | R110: 0
A111: Protocolos de Procedimientos de Limpieza y Desinfección | C111: 1 | E111: Requerido | F111: 0 | G111: 0 | H111: 0 | I111: 0 | J111: 0 | Q111: 10 | R111: 0
A112: Registro de limpieza y desinfección del área funcional del Establecimiento | C112: 1 | E112: Requerido | F112: 0 | G112: 0 | H112: 0 | I112: 0 | J112: 0 | Q112: 10 | R112: 0
A113: Registro de Mantenimiento de Equipos: Preventivo y/o Correctivo | C113: 1 | E113: Requerido | F113: 0 | G113: 0 | H113: 0 | I113: 0 | J113: 0 | Q113: 10 | R113: 0
A114: ASISTENCIAL | Y114: =SUM(Q115:Q152) -> 240 | Z114: 0 | AA114: 0 | AB114: 0 | AC114: 120 | AD114: 0 | AE114: 120 | AF114: 0
A115: INTERNACIÓN / RESIDENCIA | Y115: =SUM(Q116:Q152) -> 240 | Z115: 0 | AA115: 0 | AB115: 0 | AC115: 120 | AD115: 0 | AE115: 120 | AF115: 0
A116: Área de Internación/Residencia | B116: =B1 -> Anx: | C116: =C$1 -> Requerido: | D116: Servicios / Consultorios: | E116: Tipo: | F116: Posee: | G116: No Posee: | J116: =H$1 -> Calif: | K116: Observaciones: | Y116: =SUM(Q117:Q152) -> 240 | Z116: 0 | AA116: 0 | AB116: 0 | AC116: 120 | AD116: 0 | AE116: 120 | AF116: 0
A117: Instructivo para el Llenado del Registro Diario Automatizado de Consultas y Atenciones Ambulatorias (RDACAA). 2013 | C117: 1 | E117: Condición | F117: 0 | G117: 0 | H117: =IF(AND(F117>=C117,C117>0,F117>=1),10,0) -> 0 | I117: =IF(AND(G117>=C117,C117>0,G117>=1),10,0) -> 0 | J117: =H117-I117 -> 0 | U117: =IF(UPPER(E117)="CONDICIÓN", 10, "") -> 10 | V117: =IF(UPPER(E117)="CONDICIÓN", H117, "") -> 0 | W117: =IF(UPPER(E117)="CONDICIÓN", 10, "") -> 10 | X117: =IF(UPPER(E117)="CONDICIÓN", I117, "") -> 0
A118: Clasificación Estadística Internacional de Enfermedades y Problemas Relacionados con la Salud. Décima Revisión - CIE10 | C118: 1 | E118: Requerido | F118: 0 | G118: 0 | H118: =IF(AND(F118>=C118,C118>0,F118>=1),10,0) -> 0 | I118: 0 | J118: 0 | Q118: =IF(UPPER(E118)="REQUERIDO", 10, "") -> 10 | R118: =IF(UPPER(E118)="REQUERIDO", H118, "") -> 0
A119: Reglamento a la Ley Organica de Salud | C119: 1 | E119: Requerido | F119: 0 | G119: 0 | H119: =IF(AND(F119>=C119,C119>0,F119>=1),10,0) -> 0 | I119: 0 | J119: 0 | Q119: =IF(UPPER(E119)="REQUERIDO", 10, "") -> 10 | R119: =IF(UPPER(E119)="REQUERIDO", H119, "") -> 0
A120: Guía para la adecuación cultural de los servicios de salud. 2006 | C120: 1 | E120: Requerido | F120: 0 | G120: 0 | H120: =IF(AND(F120>=C120,C120>0,F120>=1),10,0) -> 0 | I120: 0 | J120: 0 | Q120: =IF(UPPER(E120)="REQUERIDO", 10, "") -> 10 | R120: =IF(UPPER(E120)="REQUERIDO", H120, "") -> 0
A121: Manual del modelo de atención integral en salud - MAIS. 2013 | C121: 1 | E121: Requerido | F121: 0 | G121: 0 | H121: =IF(AND(F121>=C121,C121>0,F121>=1),10,0) -> 0 | I121: 0 | J121: 0 | Q121: =IF(UPPER(E121)="REQUERIDO", 10, "") -> 10 | R121: =IF(UPPER(E121)="REQUERIDO", H121, "") -> 0
A122: Ley Derechos y Amparo al Paciente | C122: 1 | E122: Requerido | F122: 0 | G122: 0 | H122: 0 | I122: 0 | J122: 0 | Q122: 10 | R122: 0
A123: Ley de sustancias estupefacientes y Psicotrópicas | C123: 1 | E123: Requerido | F123: 0 | G123: 0 | H123: 0 | I123: 0 | J123: 0 | Q123: 10 | R123: 0
A124: Cuadro nacional de medicamentos básicos y registro terapéutico. 9na revisión | C124: 1 | E124: Requerido | F124: 0 | G124: 0 | H124: 0 | I124: 0 | J124: 0 | Q124: 10 | R124: 0
A125: Acuerdo Ministerial 4693: Reforma a la 9na. Revisión del Cuadro Nacional de Medicamentos Básicos y Registro Terapéutico | C125: 1 | E125: Requerido | F125: 0 | G125: 0 | H125: 0 | I125: 0 | J125: 0 | Q125: 10 | R125: 0
A126: Norma Técnica: Subsistema de Referencia, Derivación, Contrareferencia, Referencia inversa y Transferencia del Sistema Nacional de Salud. 2014 | C126: 1 | E126: Requerido | F126: 0 | G126: 0 | H126: 0 | I126: 0 | J126: 0 | Q126: 10 | R126: 0
A127: Manual de Procedimientos del Subsistema Alerta Acción (SIVE) - Alerta. 2014 | C127: 1 | E127: Requerido | F127: 0 | G127: 0 | H127: 0 | I127: 0 | J127: 0 | Q127: 10 | R127: 0
A128: Guía de atención integral de adultos y Adolescentes con infección por VIH/SIDA. 2012 | C128: 1 | E128: Condición | F128: 0 | G128: 0 | H128: 0 | I128: 0 | J128: 0 | U128: =IF(UPPER(E128)="CONDICIÓN", 10, "") -> 10 | V128: =IF(UPPER(E128)="CONDICIÓN", H128, "") -> 0 | W128: =IF(UPPER(E128)="CONDICIÓN", 10, "") -> 10 | X128: =IF(UPPER(E128)="CONDICIÓN", I128, "") -> 0
A129: Protocolo: Atención integral del consumo nocivo de alcohol, tabaco y otras drogas. 2016 | C129: 1 | E129: Requerido | F129: 0 | G129: 0 | H129: 0 | I129: 0 | J129: 0 | Q129: 10 | R129: 0
A130: Guía de Práctica Clínica: Prevención, Diagnóstico, Tratamiento y Control de la Tuberculosis. 2015 | C130: 1 | E130: Requerido | F130: 0 | G130: 0 | H130: 0 | I130: 0 | J130: 0 | Q130: 10 | R130: 0
A131: Manual de Normas y Procedimientos para el Control de la Tuberculosis en Ecuador. 2010 | C131: 1 | E131: Requerido | F131: 0 | G131: 0 | H131: 0 | I131: 0 | J131: 0 | Q131: 10 | R131: 0
A132: Protocolo de atención en intoxicación aguda por opioides y sindrome de abstinencia. 2015 | C132: 1 | E132: Requerido | F132: 0 | G132: 0 | H132: 0 | I132: 0 | J132: 0 | Q132: 10 | R132: 0
A133: Normas y protocolos de atención integral de salud de las y los adultos mayores - 1. 2010 | C133: 1 | E133: Condición | F133: 0 | G133: 0 | H133: 0 | I133: 0 | J133: 0 | U133: =IF(UPPER(E133)="CONDICIÓN", 10, "") -> 10 | V133: =IF(UPPER(E133)="CONDICIÓN", H133, "") -> 0 | W133: =IF(UPPER(E133)="CONDICIÓN", 10, "") -> 10 | X133: =IF(UPPER(E133)="CONDICIÓN", I133, "") -> 0
A134: Normas y protocolos de atención integral de salud de las y los adultos mayores - 2. 2010 | C134: 1 | E134: Condición | F134: 0 | G134: 0 | H134: 0 | I134: 0 | J134: 0 | U134: 10 | V134: 0 | W134: 10 | X134: 0
A135: Normas y protocolos de atención integral de salud de las y los adultos mayores - 3. 2010 | C135: 1 | E135: Condición | F135: 0 | G135: 0 | H135: 0 | I135: 0 | J135: 0 | U135: 10 | V135: 0 | W135: 10 | X135: 0
A136: Carné Socio - Sanitario del Adulto Mayor | C136: 1 | E136: Condición | F136: 0 | G136: 0 | H136: 0 | I136: 0 | J136: 0 | U136: 10 | V136: 0 | W136: 10 | X136: 0
A137: Normas y procedimientos para la atención integral de salud a adolescentes. 2009 | C137: 1 | E137: Condición | F137: 0 | G137: 0 | H137: 0 | I137: 0 | J137: 0 | U137: 10 | V137: 0 | W137: 10 | X137: 0
A138: Caja de herramientas. Documentos de Apoyo Técnico. Normas y protocolos de Atención Integral a los/las Adolescentes | C138: 1 | E138: Condición | F138: 0 | G138: 0 | H138: 0 | I138: 0 | J138: 0 | U138: 10 | V138: 0 | W138: 10 | X138: 0
A139: Guía de Supervisión: Salud de Adolescentes. 2014 | C139: 1 | E139: Condición | F139: 0 | G139: 0 | H139: 0 | I139: 0 | J139: 0 | U139: 10 | V139: 0 | W139: 10 | X139: 0
A140: Norma Técnica de Atención Integral en Violencia de Género. 2014 | C140: 1 | E140: Requerido | F140: 0 | G140: 0 | H140: 0 | I140: 0 | J140: 0 | Q140: 10 | R140: 0
A141: Norma y protocolos de atención integral a la violencia de género, intrafamiliar y sexual por ciclos de vida. 2011 | C141: 1 | E141: Requerido | F141: 0 | G141: 0 | H141: 0 | I141: 0 | J141: 0 | Q141: 10 | R141: 0
A142: Introducción a la Guía de actividad Física dirigido al personal de salud I. 2011 | C142: 1 | E142: Requerido | F142: 0 | G142: 0 | H142: 0 | I142: 0 | J142: 0 | Q142: 10 | R142: 0
A143: Guía de actividad Física dirigido al personal de salud II. 2011 | C143: 1 | E143: Requerido | F143: 0 | G143: 0 | H143: 0 | I143: 0 | J143: 0 | Q143: 10 | R143: 0
A144: Manual de lencería sanitaria para los establecimientos de salud pertenecientes al MSP. 2014 | C144: 1 | E144: Condición | F144: 0 | G144: 0 | H144: 0 | I144: 0 | J144: 0 | U144: =IF(UPPER(E144)="CONDICIÓN", 10, "") -> 10 | V144: =IF(UPPER(E144)="CONDICIÓN", H144, "") -> 0 | W144: =IF(UPPER(E144)="CONDICIÓN", 10, "") -> 10 | X144: =IF(UPPER(E144)="CONDICIÓN", I144, "") -> 0
A145: Manual de procedimientos de antropometría y determinación de la presión arterial. 2012 | C145: 1 | E145: Requerido | F145: 0 | G145: 0 | H145: 0 | I145: 0 | J145: 0 | Q145: 10 | R145: 0
A146: Acuerdo Ministerial 1124: Instructivo para el uso de la Receta Médica. | C146: 1 | E146: Condición | F146: 0 | G146: 0 | H146: 0 | I146: 0 | J146: 0 | U146: =IF(UPPER(E146)="CONDICIÓN", 10, "") -> 10 | V146: =IF(UPPER(E146)="CONDICIÓN", H146, "") -> 0 | W146: =IF(UPPER(E146)="CONDICIÓN", 10, "") -> 10 | X146: =IF(UPPER(E146)="CONDICIÓN", I146, "") -> 0
A147: Acuerdo Ministerial 4912: Reforma al Reglamento para la Gestión del Suministro de Medicamentos y Control Administrativo Financiero, y el Instructivo para el uso de la Receta Médica. | C147: 1 | E147: Condición | F147: 0 | G147: 0 | H147: 0 | I147: 0 | J147: 0 | U147: =IF(UPPER(E147)="CONDICIÓN", 10, "") -> 10 | V147: =IF(UPPER(E147)="CONDICIÓN", H147, "") -> 0 | W147: =IF(UPPER(E147)="CONDICIÓN", 10, "") -> 10 | X147: =IF(UPPER(E147)="CONDICIÓN", I147, "") -> 0
A148: Acuerdo Ministerial 5186: Reglamento Interministerial para la Gestión Integral de Desechos Sanitarios | C148: 1 | E148: Requerido | F148: 0 | G148: 0 | H148: 0 | I148: 0 | J148: 0 | Q148: 10 | R148: 0
A149: Manual de Normas de Bioseguridad para la Red de Servicios de Salud en el Ecuador | C149: 1 | E149: Requerido | F149: 0 | G149: 0 | H149: 0 | I149: 0 | J149: 0 | Q149: 10 | R149: 0
A150: Protocolos de Procedimientos de Limpieza y Desinfección | C150: 1 | E150: Requerido | F150: 0 | G150: 0 | H150: 0 | I150: 0 | J150: 0 | Q150: 10 | R150: 0
A151: Registro de limpieza y desinfección del área funcional del Establecimiento | C151: 1 | E151: Requerido | F151: 0 | G151: 0 | H151: 0 | I151: 0 | J151: 0 | Q151: 10 | R151: 0
A152: Registro de Mantenimiento de Equipos: Preventivo y/o Correctivo | C152: 1 | E152: Requerido | F152: 0 | G152: 0 | H152: 0 | I152: 0 | J152: 0 | Q152: 10 | R152: 0
A153: APOYO TERAPEÚTICO | Y153: =SUM(Q154:Q170) -> 130 | Z153: 0 | AA153: 0 | AB153: 0 | AC153: 0 | AD153: 0 | AE153: 0 | AF153: 0
A154: DOTACIÓN DE MEDICAMENTOS Y DISPOSITIVOS MÉDICOS (FARMACIA) | Y154: =SUM(Q155:Q170) -> 130 | Z154: 0 | AA154: 0 | AB154: 0 | AC154: 0 | AD154: 0 | AE154: 0 | AF154: 0
A155: Área de Farmacia | B155: =B1 -> Anx: | C155: =C$1 -> Requerido: | D155: Servicios / Consultorios: | E155: Tipo: | F155: Posee: | G155: No Posee: | J155: =H$1 -> Calif: | K155: Observaciones: | Y155: =SUM(Q156:Q170) -> 130 | Z155: 0 | AA155: 0 | AB155: 0 | AC155: 0 | AD155: 0 | AE155: 0 | AF155: 0
A156: Guia Recepción de Medicamentos | C156: 1 | E156: Requerido | F156: 0 | G156: 0 | H156: =IF(AND(F156>=C156,C156>0,F156>=1),10,0) -> 0 | I156: =IF(AND(G156>=C156,C156>0,G156>=1),10,0) -> 0 | J156: =H156-I156 -> 0 | Q156: =IF(UPPER(E156)="REQUERIDO", 10, "") -> 10 | R156: =IF(UPPER(E156)="REQUERIDO", H156, "") -> 0
A157: Manual de Procesos para la Gestión de Suministros de Medicamentos | C157: 1 | E157: Requerido | F157: 0 | G157: 0 | H157: =IF(AND(F157>=C157,C157>0,F157>=1),10,0) -> 0 | I157: 0 | J157: 0 | Q157: =IF(UPPER(E157)="REQUERIDO", 10, "") -> 10 | R157: =IF(UPPER(E157)="REQUERIDO", H157, "") -> 0
A158: Acuerdo Ministerial 1124: Instructivo para el uso de la Receta Médica. | C158: 1 | E158: Condición | F158: 0 | G158: 0 | H158: =IF(AND(F158>=C158,C158>0,F158>=1),10,0) -> 0 | I158: 0 | J158: 0
A159: Acuerdo Ministerial 4912: Reforma al Reglamento para la Gestión del Suministro de Medicamentos y Control Administrativo Financiero, y el Instructivo para el uso de la Receta Médica. | C159: 1 | E159: Condición | F159: 0 | G159: 0 | H159: =IF(AND(F159>=C159,C159>0,F159>=1),10,0) -> 0 | I159: 0 | J159: 0
A160: Cuadro nacional de medicamentos básicos y registro terapéutico. 9na revisión | C160: 1 | E160: Requerido | F160: 0 | G160: 0 | H160: 0 | I160: 0 | J160: 0 | Q160: 10 | R160: 0
A161: Acuerdo Ministerial 4693: Reforma a la 9na. Revisión del Cuadro Nacional de Medicamentos Básicos y Registro Terapéutico | C161: 1 | E161: Requerido | F161: 0 | G161: 0 | H161: 0 | I161: 0 | J161: 0 | Q161: 10 | R161: 0
A162: Acuerdo Ministerial 205: Reglamento para el registro y control sanitario de dispositivos médicos, reactivos bioquímicos y de diagnóstico; y, productos dentales | C162: 1 | E162: Requerido | F162: 0 | G162: 0 | H162: 0 | I162: 0 | J162: 0 | Q162: 10 | R162: 0
A163: Acuerdo Ministerial 4872: Reglamento de buenas prácticas de almacenamiento, distribución y transporte para establecimientos farmacéuticos | C163: 1 | E163: Requerido | F163: 0 | G163: 0 | H163: 0 | I163: 0 | J163: 0 | Q163: 10 | R163: 0
A164: Registro de Temperatura de los refrigeradores | C164: 1 | E164: Requerido | F164: 0 | G164: 0 | H164: 0 | I164: 0 | J164: 0 | Q164: 10 | R164: 0
A165: Registro de Temperatura y Humedad ambiental | C165: 1 | E165: Requerido | F165: 0 | G165: 0 | H165: 0 | I165: 0 | J165: 0 | Q165: 10 | R165: 0
A166: Acuerdo Ministerial 5186: Reglamento Interministerial para la Gestión Integral de Desechos Sanitarios | C166: 1 | E166: Requerido | F166: 0 | G166: 0 | H166: 0 | I166: 0 | J166: 0 | Q166: 10 | R166: 0
A167: Manual de Normas de Bioseguridad para la Red de Servicios de Salud en el Ecuador | C167: 1 | E167: Requerido | F167: 0 | G167: 0 | H167: =IF(AND(F167>=C167,C167>0,F167>=1),10,0) -> 0 | I167: 0 | J167: 0 | Q167: 10 | R167: 0
A168: Protocolos de Procedimientos de Limpieza y Desinfección | C168: 1 | E168: Requerido | F168: 0 | G168: 0 | H168: =IF(AND(F168>=C168,C168>0,F168>=1),10,0) -> 0 | I168: 0 | J168: 0 | Q168: =IF(UPPER(E168)="REQUERIDO", 10, "") -> 10 | R168: =IF(UPPER(E168)="REQUERIDO", H168, "") -> 0
A169: Registro de limpieza y desinfección del área funcional del Establecimiento | C169: 1 | E169: Requerido | F169: 0 | G169: 0 | H169: =IF(AND(F169>=C169,C169>0,F169>=1),10,0) -> 0 | I169: 0 | J169: 0 | Q169: 10 | R169: 0
A170: Registro de Mantenimiento de Equipos: Preventivo y/o Correctivo | C170: 1 | E170: Requerido | F170: 0 | G170: 0 | H170: =IF(AND(F170>=C170,C170>0,F170>=1),10,0) -> 0 | I170: 0 | J170: 0 | Q170: 10 | R170: 0
A171: APOYO DIAGNÓSTICO Y TERAPEÚTICO | Y171: =SUM(Q172:Q189) -> 10 | Z171: 0 | AA171: 0 | AB171: 0 | AC171: 140 | AD171: 0 | AE171: 140 | AF171: 0
A172: REHABILITACIÓN | Y172: =SUM(Q173:Q189) -> 10 | Z172: 0 | AA172: 0 | AB172: 0 | AC172: 140 | AD172: 0 | AE172: 140 | AF172: 0
A173: Taller ocupacional y de uso múltiple | B173: =B1 -> Anx: | C173: =C$1 -> Requerido: | D173: Servicios / Consultorios: | E173: Tipo: | F173: Posee: | G173: No Posee: | J173: =H$1 -> Calif: | K173: Observaciones: | Y173: =SUM(Q174:Q189) -> 10 | Z173: 0 | AA173: 0 | AB173: 0 | AC173: 140 | AD173: 0 | AE173: 140 | AF173: 0
A174: Instructivo para el Llenado del Registro Diario Automatizado de Consultas y Atenciones Ambulatorias (RDACAA). 2013 | C174: 1 | E174: Condición | F174: 0 | G174: 0 | H174: =IF(AND(F174>=C174,C174>0,F174>=1),10,0) -> 0 | I174: =IF(AND(G174>=C174,C174>0,G174>=1),10,0) -> 0 | J174: =H174-I174 -> 0 | U174: =IF(UPPER(E174)="CONDICIÓN", 10, 0) -> 10 | V174: =IF(UPPER(E174)="CONDICIÓN", H174, "") -> 0 | W174: =IF(UPPER(E174)="CONDICIÓN", 10, "") -> 10 | X174: =IF(UPPER(E174)="CONDICIÓN", I174, "") -> 0
A175: Ley Derechos y Amparo al Paciente impreso en formato A0 | C175: 1 | E175: Requerido | F175: 0 | G175: 0 | H175: 0 | I175: 0 | J175: 0 | Q175: =IF(UPPER(E175)="REQUERIDO", 10, "") -> 10 | R175: =IF(UPPER(E175)="REQUERIDO", H175, "") -> 0
A176: Acuerdo Ministerial 5186: Reglamento Interministerial para la Gestión Integral de Desechos Sanitarios | C176: 1 | E176: Condición | F176: 0 | G176: 0 | H176: 0 | I176: 0 | J176: 0 | U176: =IF(UPPER(E176)="CONDICIÓN", 10, 0) -> 10 | V176: =IF(UPPER(E176)="CONDICIÓN", H176, "") -> 0 | W176: =IF(UPPER(E176)="CONDICIÓN", 10, "") -> 10 | X176: =IF(UPPER(E176)="CONDICIÓN", I176, "") -> 0
A177: Manual de Normas de Bioseguridad para la Red de Servicios de Salud en el Ecuador | C177: 1 | E177: Condición | F177: 0 | G177: 0 | H177: 0 | I177: 0 | J177: 0 | U177: 10 | V177: 0 | W177: 10 | X177: 0
A178: Protocolos de Procedimientos de Limpieza y Desinfección | C178: 1 | E178: Condición | F178: 0 | G178: 0 | H178: 0 | I178: 0 | J178: 0 | U178: 10 | V178: 0 | W178: 10 | X178: 0
A179: Registro de limpieza y desinfección del área funcional del Establecimiento | C179: 1 | E179: Condición | F179: 0 | G179: 0 | H179: 0 | I179: 0 | J179: 0 | U179: 10 | V179: 0 | W179: 10 | X179: 0
A180: Registro de Mantenimiento de Equipos: Preventivo y/o Correctivo | C180: 1 | E180: Condición | F180: 0 | G180: 0 | H180: 0 | I180: 0 | J180: 0 | U180: 10 | V180: 0 | W180: 10 | X180: 0
A181: Registro Diario de Terapias | C181: 1 | E181: Condición | F181: 0 | G181: 0 | H181: 0 | I181: 0 | J181: 0 | U181: 10 | V181: 0 | W181: 10 | X181: 0
A182: Sala de cinesiterapia | B182: =B1 -> Anx: | C182: =C$1 -> Requerido: | D182: Servicios / Consultorios: | E182: Tipo: | F182: Posee: | G182: No Posee: | J182: =H$1 -> Calif: | K182: Observaciones: | Y182: =SUM(Q183:Q189) -> 0 | Z182: 0 | AA182: 0 | AB182: 0 | AC182: 70 | AD182: 0 | AE182: 70 | AF182: 0
A183: Instructivo para el Llenado del Registro Diario Automatizado de Consultas y Atenciones Ambulatorias (RDACAA). 2013 | C183: 1 | E183: Condición | F183: 0 | G183: 0 | H183: =IF(AND(F183>=C183,C183>0,F183>=1),10,0) -> 0 | I183: 0 | J183: 0 | U183: =IF(UPPER(E183)="CONDICIÓN", 10, 0) -> 10 | V183: =IF(UPPER(E183)="CONDICIÓN", H183, "") -> 0 | W183: =IF(UPPER(E183)="CONDICIÓN", 10, "") -> 10 | X183: =IF(UPPER(E183)="CONDICIÓN", I183, "") -> 0
A184: Acuerdo Ministerial 5186: Reglamento Interministerial para la Gestión Integral de Desechos Sanitarios | C184: 1 | E184: Condición | F184: 0 | G184: 0 | H184: 0 | I184: 0 | J184: 0 | U184: 10 | V184: 0 | W184: 10 | X184: 0
A185: Manual de Normas de Bioseguridad para la Red de Servicios de Salud en el Ecuador | C185: 1 | E185: Condición | F185: 0 | G185: 0 | H185: 0 | I185: 0 | J185: 0 | U185: 10 | V185: 0 | W185: 10 | X185: 0
A186: Protocolos de Procedimientos de Limpieza y Desinfección | C186: 1 | E186: Condición | F186: 0 | G186: 0 | H186: 0 | I186: 0 | J186: 0 | U186: 10 | V186: 0 | W186: 10 | X186: 0
A187: Registro de limpieza y desinfección del área funcional del Establecimiento | C187: 1 | E187: Condición | F187: 0 | G187: 0 | H187: 0 | I187: 0 | J187: 0 | U187: 10 | V187: 0 | W187: 10 | X187: 0
A188: Registro de Mantenimiento de Equipos: Preventivo y/o Correctivo | C188: 1 | E188: Condición | F188: 0 | G188: 0 | H188: 0 | I188: 0 | J188: 0 | U188: 10 | V188: 0 | W188: 10 | X188: 0
A189: Registro Diario de Terapias | C189: 1 | E189: Condición | F189: 0 | G189: 0 | H189: 0 | I189: 0 | J189: 0 | U189: 10 | V189: 0 | W189: 10 | X189: 0
A190: APOYO TERAPEUTICO | Y190: =SUM(Q191:Q210) -> 120 | Z190: 0 | AA190: 0 | AB190: 0 | AC190: 50 | AD190: 0 | AE190: 50 | AF190: 0
A191: NUTRICIÓN Y DIETETICA | Y191: =SUM(Q192:Q210) -> 120 | Z191: 0 | AA191: 0 | AB191: 0 | AC191: 50 | AD191: 0 | AE191: 50 | AF191: 0
A192: AREA DE COMEDOR | B192: =B1 -> Anx: | C192: =C$1 -> Requerido: | D192: Servicios / Consultorios: | E192: Tipo: | F192: Posee: | G192: No Posee: | J192: =H$1 -> Calif: | K192: Observaciones: | Y192: =SUM(Q193:Q196) -> 40 | Z192: 0 | AA192: 0 | AB192: 0 | AC192: 0 | AD192: 0 | AE192: 0 | AF192: 0
A193: Ley Derechos y Amparo al Paciente impreso en formato A0 | C193: 1 | E193: Requerido | F193: 0 | G193: 0 | H193: =IF(AND(F193>=C193,C193>0,F193>=1),10,0) -> 0 | I193: =IF(AND(G193>=C193,C193>0,G193>=1),10,0) -> 0 | J193: =H193-I193 -> 0 | Q193: =IF(UPPER(E193)="REQUERIDO", 10, "") -> 10 | R193: =IF(UPPER(E193)="REQUERIDO", H193, "") -> 0
A194: Acuerdo Ministerial 5186: Reglamento Interministerial para la Gestión Integral de Desechos Sanitarios | C194: 1 | E194: Requerido | F194: 0 | G194: 0 | H194: =IF(AND(F194>=C194,C194>0,F194>=1),10,0) -> 0 | I194: 0 | J194: 0 | Q194: =IF(UPPER(E194)="REQUERIDO", 10, "") -> 10 | R194: =IF(UPPER(E194)="REQUERIDO", H194, "") -> 0
A195: Manual de Normas de Bioseguridad para la Red de Servicios de Salud en el Ecuador | C195: 1 | E195: Requerido | F195: 0 | G195: 0 | H195: =IF(AND(F195>=C195,C195>0,F195>=1),10,0) -> 0 | I195: 0 | J195: 0 | Q195: =IF(UPPER(E195)="REQUERIDO", 10, "") -> 10 | R195: =IF(UPPER(E195)="REQUERIDO", H195, "") -> 0
A196: Protocolos de Procedimientos de Limpieza | C196: 1 | E196: Requerido | F196: 0 | G196: 0 | H196: =IF(AND(F196>=C196,C196>0,F196>=1),10,0) -> 0 | I196: 0 | J196: 0 | Q196: =IF(UPPER(E196)="REQUERIDO", 10, "") -> 10 | R196: =IF(UPPER(E196)="REQUERIDO", H196, "") -> 0
A197: AREA TECNICA DE COCINA | B197: =B1 -> Anx: | C197: =C$1 -> Requerido: | D197: Servicios / Consultorios: | E197: Tipo: | F197: =F$1 -> Posee: | G197: No Posee: | J197: =H$1 -> Calif: | K197: Observaciones: | Y197: =SUM(Q198:Q210) -> 80 | Z197: 0 | AA197: 0 | AB197: 0 | AC197: 50 | AD197: 0 | AE197: 50 | AF197: 0
A198: Ley Derechos y Amparo al Paciente | C198: 1 | E198: Requerido | F198: 0 | G198: 0 | H198: =IF(AND(F198>=C198,C198>0,F198>=1),10,0) -> 0 | I198: 0 | J198: 0 | Q198: =IF(UPPER(E198)="REQUERIDO", 10, "") -> 10 | R198: =IF(UPPER(E198)="REQUERIDO", H198, "") -> 0 | V198: =IF(UPPER(E198)="CONDICIÓN", H198, "") ->  | X198: =IF(UPPER(G198)="CONDICIÓN", K198, "") -> 
A199: Guía para la adecuación cultural de los servicios de salud. 2006 | C199: 1 | E199: Requerido | F199: 0 | G199: 0 | H199: =IF(AND(F199>=C199,C199>0,F199>=1),10,0) -> 0 | I199: 0 | J199: 0 | Q199: 10 | R199: 0
A200: Manual del modelo de atención integral en salud - MAIS. 2013 | C200: 1 | E200: Requerido | F200: 0 | G200: 0 | H200: 0 | I200: 0 | J200: 0 | Q200: 10 | R200: 0
... 131 more rows

Sheet TalentoHumano
A1: FILTROS: | B1: Anx: | C1: Requerido: | D1: Puestos; Pacientes o Servicios: | E1: Tipo: | F1: Cumple: | G1: No Cumple: | H1: Calif: | K1: Observaciones:
A2: =Menu!$A$5 -> CENTRO ESPECIALIZADO EN TRATAMIENTO PARA PERSONAS CON CONSUMO PROBLEMÁTICO DE ALCOHOL Y OTRAS DROGAS (CETADS) | Q2: REQ | S2: COND+ | U2: COND- | W2: DES | Y2: REQ | AA2: DES | AC2: COND | AE2: COND- | AG2: REQ | AI2: CON | AK2: CON- | AM2: DES | AO2: REQ | AQ2: DES | AS2: COND | AU2: COND-
A3: TALENTO HUMANO | Q3: ADMINISTRATIVOS | Y3: ASISTENCIALES | AG3: TOTAL ADMINISTRATIVOS | AO3: TOTAL ASISTENCIALES
A4: ADMINISTRATIVO | L4: =ROW(A4) -> 4 | AG4: =SUM(Q4:Q8) -> 10 | AH4: =SUM(R4:R8) -> 0 | AI4: =SUM(S4:S8) -> 0 | AJ4: =SUM(T4:T8) -> 0 | AK4: =SUM(U4:U8) -> 0 | AL4: =SUM(V4:V8) -> 0 | AM4: 0 | AN4: 0 | AO4: 0 | AP4: 0 | AQ4: 0 | AR4: 0 | AS4: 0 | AT4: 0 | AU4: 0 | AV4: 0
A5: ADMISIÓN Y ESTADÍSTICA | L5: =ROW(A5) -> 5 | AG5: =SUM(Q7:Q8) -> 10 | AH5: =SUM(R7:R8) -> 0 | AI5: =SUM(S7:S8) -> 0 | AJ5: =SUM(T7:T8) -> 0 | AK5: =SUM(U7:U8) -> 0 | AL5: 0 | AM5: 0 | AN5: 0 | AO5: 0 | AP5: 0 | AQ5: 0 | AR5: 0 | AS5: 0 | AT5: 0 | AU5: 0 | AV5: 0
A6: ADMISIÓN, INFORMACIÓN Y RECEPCIÓN | AG6: =SUM(Q8) -> 10 | AH6: =SUM(R8) -> 0 | AI6: =SUM(S8) -> 0 | AJ6: =SUM(T8) -> 0 | AK6: 0 | AL6: 0 | AM6: 0 | AN6: 0 | AO6: 0 | AP6: 0 | AQ6: 0 | AR6: 0 | AS6: 0 | AT6: 0 | AU6: 0 | AV6: 0
A7: Administrativos: | B7: =B1 -> Anx: | C7: =C$1 -> Requerido: | D7: Puestos; Pacientes o Servicios: | E7: Tipo: | F7: =F$1 -> Cumple: | G7: =G1 -> No Cumple: | J7: =H$1 -> Calif: | K7: Observaciones:
A8: Asistente de Admisiones y Estadísticas | C8: 1 | E8: Requerido | F8: 0 | G8: 0 | H8: =IF(AND(F8>=C8,C8>0,F8>=1),10,0) -> 0 | I8: =IF(AND(G8>=C8,C8>0,G8>=1),10,0) -> 0 | J8: =H8-I8 -> 0 | M8: ADMINISTRATIVO | Q8: =IF(UPPER(E8)="REQUERIDO", 10, "") -> 10 | R8: =IF(UPPER(E8)="REQUERIDO", H8, "") -> 0
A9: ASISTENCIAL | L9: =ROW(A9) -> 9 | AG9: =SUM(Q11:Q16) -> 0 | AH9: =SUM(R10:R16) -> 0 | AI9: =SUM(S11:S16) -> 0 | AJ9: =SUM(T10:T16) -> 0 | AK9: =SUM(U11:U16) -> 0 | AL9: =SUM(V10:V16) -> 0 | AM9: =SUM(W11:W16) -> 0 | AN9: =SUM(X10:X16) -> 0 | AO9: =SUM(Y11:Y16) -> 30 | AP9: =SUM(Z10:Z16) -> 0 | AQ9: =SUM(AA11:AA16) -> 0 | AR9: =SUM(AB10:AB16) -> 0 | AS9: =SUM(AC11:AC16) -> 0 | AT9: =SUM(AD10:AD16) -> 0 | AU9: =SUM(AE11:AE16) -> 0 | AV9: =SUM(AF10:AF16) -> 0
A10: CONSULTA EXTERNA | L10: =ROW(A10) -> 10 | AG10: =SUM(Q11:Q16) -> 0 | AH10: =SUM(R11:R16) -> 0 | AI10: =SUM(S11:S16) -> 0 | AJ10: =SUM(T11:T16) -> 0 | AK10: =SUM(U11:U16) -> 0 | AL10: 0 | AM10: 0 | AN10: 0 | AO10: 30 | AP10: 0 | AQ10: 0 | AR10: 0 | AS10: 0 | AT10: 0 | AU10: 0 | AV10: 0
A11: ÁREA DE ATENCIÓN Y CONSULTA | AG11: =SUM(Q13:Q16) -> 0 | AH11: =SUM(R13:R16) -> 0 | AI11: =SUM(S13:S16) -> 0 | AJ11: =SUM(T13:T16) -> 0 | AK11: =SUM(U13:U16) -> 0 | AL11: 0 | AM11: 0 | AN11: 0 | AO11: 30 | AP11: 0 | AQ11: 0 | AR11: 0 | AS11: 0 | AT11: 0 | AU11: 0 | AV11: 0
A12: Operativos | B12: =B1 -> Anx: | C12: =C$1 -> Requerido: | D12: Puestos; Pacientes o Servicios: | E12: Tipo: | F12: Cumple: | G12: No Cumple: | J12: =H$1 -> Calif: | K12: Observaciones:
A13: Medico especialista en: Psiquiatría, Medicina Interna, Familiar o General, además con conocimientos en drogodependencia | C13: 1 | E13: Requerido | F13: 0 | G13: 0 | H13: =IF(AND(F13>=C13,C13>0,F13>=1),10,0) -> 0 | I13: =IF(AND(G13>=C13,C13>0,G13>=1),10,0) -> 0 | J13: =H13-I13 -> 0 | M13: ASISTENCIAL | Y13: =IF(UPPER(E13)="REQUERIDO", 10, 0) -> 10 | Z13: =IF(UPPER(E13)="REQUERIDO", H13, "") -> 0
A14: Psicólogo clínico | C14: 1 | E14: Requerido | F14: 0 | G14: 0 | H14: =IF(AND(F14>=C14,C14>0,F14>=1),10,0) -> 0 | I14: =IF(AND(G14>=C14,C14>0,G14>=1),10,0) -> 0 | J14: =H14-I14 -> 0 | M14: ASISTENCIAL | Y14: =IF(UPPER(E14)="REQUERIDO", 10, 0) -> 10 | Z14: =IF(UPPER(E14)="REQUERIDO", H14, "") -> 0
A15: Lcda(o). En Enfermería | C15: 1 | E15: Requerido | F15: 0 | G15: 0 | H15: =IF(AND(F15>=C15,C15>0,F15>=1),10,0) -> 0 | I15: =IF(AND(G15>=C15,C15>0,G15>=1),10,0) -> 0 | J15: =H15-I15 -> 0 | M15: ASISTENCIAL | Y15: =IF(UPPER(E15)="REQUERIDO", 10, 0) -> 10 | Z15: =IF(UPPER(E15)="REQUERIDO", H15, "") -> 0
A16: ASISTENCIAL | L16: =ROW(A16) -> 16 | AG16: =SUM(Q17:Q22) -> 0 | AH16: =SUM(R17:R22) -> 0 | AI16: =SUM(S17:S22) -> 0 | AJ16: =SUM(T17:T22) -> 0 | AK16: =SUM(U17:U22) -> 0 | AL16: 0 | AM16: 0 | AN16: 0 | AO16: 10 | AP16: 0 | AQ16: 0 | AR16: 0 | AS16: 10 | AT16: 0 | AU16: 10 | AV16: 0
A17: INTERNACIÓN /RESIDENCIA El establecimiento contará con talento humano adecuado diferenciado para el tratamiento de adultos, adultas, niños y adolescentes hombres, niñas y adolescentes mujeres | L17: =ROW(A17) -> 17 | AG17: =SUM(Q18:Q22) -> 0 | AH17: =SUM(R18:R22) -> 0 | AI17: =SUM(S18:S22) -> 0 | AJ17: =SUM(T18:T22) -> 0 | AK17: =SUM(U18:U22) -> 0 | AL17: 0 | AM17: 0 | AN17: 0 | AO17: 10 | AP17: 0 | AQ17: 0 | AR17: 0 | AS17: 10 | AT17: 0 | AU17: 10 | AV17: 0
A18: ÁREA DE INTERNACIÓN Y RESIDENCIA | AG18: =SUM(Q20:Q22) -> 0 | AH18: =SUM(R20:R22) -> 0 | AI18: =SUM(S20:S22) -> 0 | AJ18: =SUM(T20:T22) -> 0 | AK18: =SUM(U20:U22) -> 0 | AL18: 0 | AM18: 0 | AN18: 0 | AO18: 10 | AP18: 0 | AQ18: 0 | AR18: 0 | AS18: 10 | AT18: 0 | AU18: 10 | AV18: 0
A19: Operativos | B19: =B1 -> Anx: | C19: =C$1 -> Requerido: | D19: Puestos; Pacientes o Servicios: | E19: Tipo: | F19: Cumple: | G19: No Cumple: | J19: =H$1 -> Calif: | K19: Observaciones:
A20: Lcda(o). En Enfermería | C20: 1 | E20: Requerido | F20: 0 | G20: 0 | H20: =IF(AND(F20>=C20,C20>0,F20>=1),10,0) -> 0 | I20: =IF(AND(G20>=C20,C20>0,G20>=1),10,0) -> 0 | J20: =H20-I20 -> 0 | M20: ASISTENCIAL | Y20: =IF(UPPER(E20)="REQUERIDO", 10, "") -> 10 | Z20: =IF(UPPER(E20)="REQUERIDO", H20, "") -> 0
A21: Personal / Monitor Vivencial | C21: 1 | E21: Condición | F21: 0 | G21: 0 | H21: =IF(AND(F21>=C21,C21>0,F21>=1),10,0) -> 0 | I21: =IF(AND(G21>=C21,C21>0,G21>=1),10,0) -> 0 | J21: =H21-I21 -> 0 | M21: ASISTENCIAL | AC21: =IF(UPPER(E21)="CONDICIÓN", 10, "") -> 10 | AD21: =IF(UPPER(E21)="CONDICIÓN", H21, "") -> 0 | AE21: =IF(UPPER(E21)="CONDICIÓN", 10, "") -> 10 | AF21: =IF(UPPER(E21)="CONDICIÓN", I21, "") -> 0
A22: APOYO TERAPEUTICO | L22: =ROW(A22) -> 22 | AG22: =SUM(Q23:Q28) -> 10 | AH22: =SUM(R23:R28) -> 0 | AI22: =SUM(S23:S28) -> 0 | AJ22: =SUM(T23:T28) -> 0 | AK22: =SUM(U23:U28) -> 0 | AL22: 0 | AM22: 0 | AN22: 0 | AO22: 10 | AP22: 0 | AQ22: 0 | AR22: 0 | AS22: 0 | AT22: 0 | AU22: 0 | AV22: 0
A23: DOTACIÓN DE MEDICAMENTOS Y DISPOSITIVOS MÉDICOS (FARMACIA) | L23: =ROW(A23) -> 23 | AG23: =SUM(Q24:Q28) -> 10 | AH23: =SUM(R24:R28) -> 0 | AI23: =SUM(S24:S28) -> 0 | AJ23: =SUM(T24:T28) -> 0 | AK23: =SUM(U24:U28) -> 0 | AL23: 0 | AM23: 0 | AN23: 0 | AO23: 10 | AP23: 0 | AQ23: 0 | AR23: 0 | AS23: 0 | AT23: 0 | AU23: 0 | AV23: 0
A24: Área de Farmacia | AG24: =SUM(Q26:Q28) -> 10 | AH24: =SUM(R26:R28) -> 0 | AI24: =SUM(S26:S28) -> 0 | AJ24: =SUM(T26:T28) -> 0 | AK24: =SUM(U26:U28) -> 0 | AL24: 0 | AM24: 0 | AN24: 0 | AO24: 10 | AP24: 0 | AQ24: 0 | AR24: 0 | AS24: 0 | AT24: 0 | AU24: 0 | AV24: 0
A25: Operativos | B25: =B1 -> Anx: | C25: =C$1 -> Requerido: | D25: =D$1 -> Puestos; Pacientes o Servicios: | E25: =E$1 -> Tipo: | F25: =F$1 -> Cumple: | G25: =G$1 -> No Cumple: | J25: =H$1 -> Calif: | K25: =K$1 -> Observaciones:
A26: Químico o Bioquímico Farmacéutico Responsable de la Gestión del suministro de Medicamentos y Dispositivos Médicos | C26: 1 | E26: Requerido | F26: 0 | G26: 0 | H26: =IF(AND(F26>=C26,C26>0,F26>=1),10,0) -> 0 | I26: =IF(AND(G26>=C26,C26>0,G26>=1),10,0) -> 0 | J26: =H26-I26 -> 0 | M26: ASISTENCIAL | Y26: =IF(UPPER(E26)="REQUERIDO", 10, "") -> 10 | Z26: =IF(UPPER(E26)="REQUERIDO", H26, "") -> 0
A27: Administrativos | B27: =B1 -> Anx: | C27: =C$1 -> Requerido: | D27: =D$1 -> Puestos; Pacientes o Servicios: | E27: =E$1 -> Tipo: | F27: =F$1 -> Cumple: | G27: =G$1 -> No Cumple: | J27: =H$1 -> Calif: | K27: =K$1 -> Observaciones:
A28: Auxiliar de Farmacia | C28: 1 | E28: Requerido | F28: 0 | G28: 0 | H28: =IF(AND(F28>=C28,C28>0,F28>=1),10,0) -> 0 | I28: =IF(AND(G28>=C28,C28>0,G28>=1),10,0) -> 0 | J28: =H28-I28 -> 0 | M28: ADMINISTRATIVO | Q28: =IF(UPPER(E28)="REQUERIDO", 10, "") -> 10 | R28: =IF(UPPER(E26:E28)="REQUERIDO", H26:H28, "") -> 0
A29: APOYO DIAGNÓSTICO Y TERAPEÚTICO | L29: =ROW(A29) -> 29 | AG29: =SUM(Q29:Q34) -> 0 | AH29: =SUM(R29:R34) -> 0 | AI29: =SUM(S29:S34) -> 0 | AJ29: =SUM(T29:T34) -> 0 | AK29: =SUM(U29:U34) -> 0 | AL29: 0 | AM29: 0 | AN29: 0 | AO29: 10 | AP29: 0 | AQ29: 0 | AR29: 0 | AS29: 10 | AT29: 0 | AU29: 10 | AV29: 0
A30: REHABILITACIÓN | L30: =ROW(A30) -> 30 | AG30: =SUM(Q31:Q34) -> 0 | AH30: =SUM(R31:R34) -> 0 | AI30: =SUM(S31:S34) -> 0 | AJ30: =SUM(T31:T34) -> 0 | AK30: =SUM(U31:U34) -> 0 | AL30: 0 | AM30: 0 | AN30: 0 | AO30: 10 | AP30: 0 | AQ30: 0 | AR30: 0 | AS30: 10 | AT30: 0 | AU30: 10 | AV30: 0
A31: Área de Terapias | AG31: =SUM(Q33:Q34) -> 0 | AH31: =SUM(R33:R34) -> 0 | AI31: =SUM(S33:S34) -> 0 | AJ31: =SUM(T33:T34) -> 0 | AK31: =SUM(U33:U34) -> 0 | AL31: 0 | AM31: 0 | AN31: 0 | AO31: 10 | AP31: 0 | AQ31: 0 | AR31: 0 | AS31: 10 | AT31: 0 | AU31: 10 | AV31: 0
A32: Operativos | B32: =B1 -> Anx: | C32: =C$1 -> Requerido: | D32: Puestos; Pacientes o Servicios: | E32: Tipo: | F32: Cumple: | G32: No Cumple: | J32: =H$1 -> Calif: | K32: Observaciones:
A33: Terapista Ocupacional | C33: 1 | E33: Requerido | F33: 0 | G33: 0 | H33: =IF(AND(F33>=C33,C33>0,F33>=1),10,0) -> 0 | I33: =IF(AND(G33>=C33,C33>0,G33>=1),10,0) -> 0 | J33: =H33-I33 -> 0 | M33: ASISTENCIAL | Y33: =IF(UPPER(E33)="REQUERIDO", 10, "") -> 10 | Z33: =IF(UPPER(E33)="REQUERIDO", H33, "") -> 0
A34: Terapista Físico | C34: 1 | E34: Condición | F34: 0 | G34: 0 | H34: =IF(AND(F34>=C34,C34>0,F34>=1),10,0) -> 0 | I34: =IF(AND(G34>=C34,C34>0,G34>=1),10,0) -> 0 | J34: =H34-I34 -> 0 | M34: ASISTENCIAL | AC34: =IF(UPPER(E34)="CONDICIÓN", 10, "") -> 10 | AD34: =IF(UPPER(E34)="CONDICIÓN", H34, "") -> 0 | AE34: =IF(UPPER(E34)="CONDICIÓN", 10, "") -> 10 | AF34: =IF(UPPER(E34)="CONDICIÓN", I34, "") -> 0
A35: APOYO TERAPEÚTICO | L35: =ROW(A35) -> 35 | AG35: =SUM(Q36:Q40) -> 10 | AH35: =SUM(R36:R40) -> 0 | AI35: =SUM(S36:S40) -> 0 | AJ35: =SUM(T36:T40) -> 0 | AK35: =SUM(U36:U40) -> 0 | AL35: 0 | AM35: 0 | AN35: 0 | AO35: 10 | AP35: 0 | AQ35: 0 | AR35: 0 | AS35: 0 | AT35: 0 | AU35: 0 | AV35: 0
A36: NUTRICIÓN Y DIETÉTICA | L36: =ROW(A36) -> 36 | AG36: =SUM(Q37:Q40) -> 10 | AH36: =SUM(R37:R40) -> 0 | AI36: =SUM(S37:S40) -> 0 | AJ36: =SUM(T37:T40) -> 0 | AK36: =SUM(U37:U40) -> 0 | AL36: 0 | AM36: 0 | AN36: 0 | AO36: 10 | AP36: 0 | AQ36: 0 | AR36: 0 | AS36: 0 | AT36: 0 | AU36: 0 | AV36: 0
A37: Operativos | B37: =B1 -> Anx: | C37: =C$1 -> Requerido: | D37: Puestos; Pacientes o Servicios: | E37: Tipo: | F37: Cumple: | G37: No Cumple: | J37: =H$1 -> Calif: | K37: Observaciones: | AG37: =SUM(Q38:Q40) -> 10 | AH37: =SUM(R38:R40) -> 0 | AI37: =SUM(S38:S40) -> 0 | AJ37: =SUM(T38:T40) -> 0 | AK37: =SUM(U38:U40) -> 0 | AL37: 0 | AM37: 0 | AN37: 0 | AO37: 10 | AP37: 0 | AQ37: 0 | AR37: 0 | AS37: 0 | AT37: 0 | AU37: 0 | AV37: 0
A38: Nutricionista | C38: 1 | E38: Requerido | F38: 0 | G38: 0 | H38: =IF(AND(F38>=C38,C38>0,F38>=1),10,0) -> 0 | I38: =IF(AND(G38>=C38,C38>0,G38>=1),10,0) -> 0 | J38: =H38-I38 -> 0 | M38: ASISTENCIAL | Y38: =IF(UPPER(E38)="REQUERIDO", 10, "") -> 10 | Z38: =IF(UPPER(E38)="REQUERIDO", H38, "") -> 0
A39: Administrativos | B39: =B1 -> Anx: | C39: =C$1 -> Requerido: | D39: Puestos; Pacientes o Servicios: | E39: Tipo: | F39: Cumple: | G39: No Cumple: | H39: Calif: | K39: Observaciones:
A40: Personal de cocina | C40: 1 | E40: Requerido | F40: 0 | G40: 0 | H40: =IF(AND(F40>=C40,C40>0,F40>=1),10,0) -> 0 | I40: =IF(AND(G40>=C40,C40>0,G40>=1),10,0) -> 0 | J40: =H40-I40 -> 0 | M40: ADMINISTRATIVO | Q40: =IF(UPPER(E40)="REQUERIDO", 10, "") -> 10 | R40: =IF(UPPER(E40)="REQUERIDO", H40, "") -> 0
A41: ADMINISTRATIVO | L41: =ROW(A41) -> 41 | AG41: =SUM(Q42:Q46) -> 20 | AH41: =SUM(R42:R46) -> 0 | AI41: =SUM(S42:S46) -> 10 | AJ41: 0 | AK41: 10 | AL41: 0 | AM41: 0 | AN41: 0 | AO41: 0 | AP41: 0 | AQ41: 0 | AR41: 0 | AS41: 0 | AT41: 0 | AU41: 0 | AV41: 0
A42: ADMINISTRACIÓN TECNICA | L42: =ROW(A42) -> 42 | AG42: =SUM(Q43:Q46) -> 20 | AH42: =SUM(R43:R46) -> 0 | AI42: =SUM(S43:S46) -> 10 | AJ42: 0 | AK42: 10 | AL42: 0 | AM42: 0 | AN42: 0 | AO42: 0 | AP42: 0 | AQ42: 0 | AR42: 0 | AS42: 0 | AT42: 0 | AU42: 0 | AV42: 0
A43: Administrativos | B43: =B1 -> Anx: | C43: =C$1 -> Requerido: | D43: Puestos; Pacientes o Servicios: | E43: Tipo: | F43: Cumple: | G43: No Cumple: | J43: =H$1 -> Calif: | K43: Observaciones:
A44: Responsable Técnico del Establecimiento(psiquiatra, médico o psicólogo especialista o con experiencia en drogodependencias) | C44: 1 | E44: Requerido | F44: 0 | G44: 0 | H44: =IF(AND(F44>=C44,C44>0,F44>=1),10,0) -> 0 | I44: =IF(AND(G44>=C44,C44>0,G44>=1),10,0) -> 0 | J44: =H44-I44 -> 0 | M44: ADMINISTRATIVO | Q44: =IF(UPPER(E44)="REQUERIDO", 10, "") -> 10 | R44: =IF(UPPER(E44)="REQUERIDO", H44, "") -> 0 | AG44: =SUM(Q44:Q46) -> 20 | AH44: =SUM(R44:R46) -> 0 | AI44: =SUM(S44:S46) -> 10 | AJ44: =SUM(T44:T46) -> 0 | AK44: =SUM(U44:U46) -> 10 | AL44: 0 | AM44: 0 | AN44: 0 | AO44: 0 | AP44: 0 | AQ44: 0 | AR44: 0 | AS44: 0 | AT44: 0 | AU44: 0 | AV44: 0
A45: Trabajador Social | C45: =ROUND(D45/60,0) -> 1 | D45: 60 | E45: Requerido | F45: 0 | G45: 0 | H45: =IF(AND(F45>=C45,C45>0,F45>=1),10,0) -> 0 | I45: =IF(AND(G45>=C45,C45>0,G45>=1),10,0) -> 0 | J45: =H45-I45 -> 0 | M45: ADMINISTRATIVO | Q45: =IF(UPPER(E45)="REQUERIDO", 10, "") -> 10 | R45: =IF(UPPER(E45)="REQUERIDO", H45, "") -> 0
A46: Asistente de administrativo | C46: 1 | E46: Condición | F46: 0 | G46: 0 | H46: =IF(AND(F46>=C46,C46>0,F46>=1),10,0) -> 0 | I46: =IF(AND(G46>=C46,C46>0,G46>=1),10,0) -> 0 | J46: =H46-I46 -> 0 | M46: ADMINISTRATIVO | S46: =IF(UPPER(E46)="CONDICIÓN", 10, "") -> 10 | T46: =IF(UPPER(E46)="CONDICIÓN", H46, "") -> 0 | U46: =IF(UPPER(E46)="CONDICIÓN", 10, "") -> 10 | V46: =IF(UPPER(E46)="CONDICIÓN", I46, "") -> 0
A47: GENERAL | L47: =ROW(A47) -> 47 | AG47: =SUM(Q49:Q54) -> 10 | AH47: =SUM(R49:R54) -> 0 | AI47: =SUM(S49:S54) -> 10 | AJ47: =SUM(T49:T54) -> 0 | AK47: =SUM(U49:U54) -> 10 | AL47: 0 | AM47: 0 | AN47: 0 | AO47: 0 | AP47: 0 | AQ47: 0 | AR47: 0 | AS47: 0 | AT47: 0 | AU47: 0 | AV47: 0
A48: SERVICIOS INTERNOS DE APOYO | L48: =ROW(A48) -> 48 | AG48: =SUM(Q49:Q54) -> 10 | AH48: =SUM(R49:R54) -> 0 | AI48: =SUM(S49:S54) -> 10 | AJ48: =SUM(T49:T54) -> 0 | AK48: =SUM(U49:U54) -> 10 | AL48: 0 | AM48: 0 | AN48: 0 | AO48: 0 | AP48: 0 | AQ48: 0 | AR48: 0 | AS48: 0 | AT48: 0 | AU48: 0 | AV48: 0
A49: LAVANDERÍA/LIMPIEZA | AG49: =SUM(Q50:Q51) -> 10 | AH49: =SUM(R50:R51) -> 0 | AI49: =SUM(S50:S51) -> 0 | AJ49: =SUM(T50:T51) -> 0 | AK49: =SUM(U50:U51) -> 0 | AL49: 0 | AM49: 0 | AN49: 0 | AO49: 0 | AP49: 0 | AQ49: 0 | AR49: 0 | AS49: 0 | AT49: 0 | AU49: 0 | AV49: 0
A50: Operativos | B50: =B7 -> Anx: | C50: =C$1 -> Requerido: | D50: Puestos; Pacientes o Servicios: | E50: Tipo: | F50: Cumple: | G50: No Cumple: | J50: =H$1 -> Calif: | K50: Observaciones: | AG50: =SUM(Q51:Q51) -> 10 | AH50: =SUM(R51:R51) -> 0 | AI50: =SUM(S51:S51) -> 0 | AJ50: =SUM(T51:T51) -> 0 | AK50: =SUM(U51:U51) -> 0 | AL50: 0 | AM50: 0 | AN50: 0 | AO50: 0 | AP50: 0 | AQ50: 0 | AR50: 0 | AS50: 0 | AT50: 0 | AU50: 0 | AV50: 0
A51: Auxiliar de Servicios | C51: 1 | E51: Requerido | F51: 0 | G51: 0 | H51: =IF(AND(F51>=C51,C51>0,F51>=1),10,0) -> 0 | I51: =IF(AND(G51>=C51,C51>0,G51>=1),10,0) -> 0 | J51: =H51-I51 -> 0 | M51: ADMINISTRATIVO | Q51: =IF(UPPER(E51)="REQUERIDO", 10, "") -> 10 | R51: =IF(UPPER(E51)="REQUERIDO", H51, "") -> 0
A52: GUARDIANIA | AG52: =SUM(Q52:Q54) -> 0 | AH52: =SUM(R52:R54) -> 0 | AI52: =SUM(S52:S54) -> 10 | AJ52: =SUM(T52:T54) -> 0 | AK52: =SUM(U52:U54) -> 10 | AL52: 0 | AM52: 0 | AN52: 0 | AO52: 0 | AP52: 0 | AQ52: 0 | AR52: 0 | AS52: 0 | AT52: 0 | AU52: 0 | AV52: 0
A53: Operativos | B53: =B10 -> 0 | C53: =C$1 -> Requerido: | D53: Puestos; Pacientes o Servicios: | E53: Tipo: | F53: Cumple: | G53: No Cumple: | J53: =H$1 -> Calif: | K53: Observaciones: | AG53: =SUM(Q53:Q54) -> 0 | AH53: =SUM(R53:R54) -> 0 | AI53: =SUM(S53:S54) -> 10 | AJ53: =SUM(T53:T54) -> 0 | AK53: =SUM(U53:U54) -> 10 | AL53: 0 | AM53: 0 | AN53: 0 | AO53: 0 | AP53: 0 | AQ53: 0 | AR53: 0 | AS53: 0 | AT53: 0 | AU53: 0 | AV53: 0
A54: Seguridad y Guardianía | C54: 1 | E54: Condición | F54: 0 | G54: 0 | H54: =IF(AND(F54>=C54,C54>0,F54>=1),10,0) -> 0 | I54: =IF(AND(G54>=C54,C54>0,G54>=1),10,0) -> 0 | J54: =H54-I54 -> 0 | M54: ADMINISTRATIVO | S54: =IF(UPPER(E54)="CONDICIÓN", 10, "") -> 10 | T54: =IF(UPPER(E54)="CONDICIÓN", H54, "") -> 0 | U54: =IF(UPPER(E54)="CONDICIÓN", 10, "") -> 10 | V54: =IF(UPPER(E54)="CONDICIÓN", I54, "") -> 0 | AG54: REQ | AI54: COND | AK54: COND- | AM54: DES | AO54: REQ | AQ54: DES | AS54: COND | AU54: COND-
A55: TOTAL ITEMS REQUERIDOS: | Y55: TOTAL GENERAL: | AG55: =AG4+AG9+AG16+AG22+AG29+AG41+AG35+AG47 -> 60 | AH55: 0 | AI55: 20 | AJ55: 0 | AK55: 20 | AL55: 0 | AM55: 0 | AN55: 0 | AO55: 70 | AP55: 0 | AQ55: 0 | AR55: 0 | AS55: 20 | AT55: 0 | AU55: 20 | AV55: 0
A56: ADMINISTRATIVOS: | C56: % Obtenido: | D56: % Obtenido: | E56: % Obtenido: | F56: % A Cumplir: | G56: % Final: | W56: 4 | X56: ADMINISTRATIVO | AG56: =AG4*100/$AG$55 -> 16.66666667 | AH56: =AH4*100/AG55 -> 0 | AI56: =AI4*100/AI55 -> 0 | AJ56: =AJ4*100/AI55 -> 0 | AK56: =AK4*100/$AK$55 -> 0 | AL56: =AL4*100/AK55 -> 0 | AM56: =AM4*100/AM55 ->  | AN56: =AN4*100/AM55 ->  | AO56: =AO4*100/$AO$55 -> 0 | AP56: =AP4*100/AO55 -> 0 | AQ56: =AQ4*100/AQ55 ->  | AR56: =AR4*100/AQ55 ->  | AS56: =AS4*100/$AS$55 -> 0 | AT56: =AT4*100/AS55 -> 0 | AU56: =AU4*100/AU55 -> 0 | AV56: =AV4*100/AU55 -> 0
A57: =X56 -> ADMINISTRATIVO | C57: =TalentoHumano!$AH$56*30/100/100 -> 0 | F57: =TalentoHumano!$AG$56*30/100/100 -> 0.05 | G57: =IF(TalentoHumano!$C$57=TalentoHumano!$F$57, "CUMPLE", "NO CUMPLE") -> NO CUMPLE | W57: 5 | X57: ADMISIÓN Y ESTADÍSTICA | AG57: =AG5*100/AG55 -> 16.66666667 | AH57: =AH5*100/AG55 -> 0 | AI57: =AI5*100/AI55 -> 0 | AJ57: =AJ5*100/AI55 -> 0 | AK57: =AK5*100/AK55 -> 0 | AL57: =AL5*100/AK55 -> 0 | AM57: =AM5*100/AM55 ->  | AN57: =AN5*100/AM55 ->  | AO57: =AO5*100/AO55 -> 0 | AP57: =AP5*100/AO55 -> 0 | AQ57: =AQ5*100/AQ55 ->  | AR57: =AR5*100/AQ55 ->  | AS57: =AS5*100/AS55 -> 0 | AT57: =AT5*100/AS55 -> 0 | AU57: =AU5*100/AU55 -> 0 | AV57: =AV5*100/AU55 -> 0
A58: =X57 -> ADMISIÓN Y ESTADÍSTICA | D58: =TalentoHumano!$AH$57*30/100/100 -> 0 | F58: =TalentoHumano!$AG$57*30/100/100 -> 0.05 | G58: =IF(TalentoHumano!$D$58=TalentoHumano!$F$58, "CUMPLE", "NO CUMPLE") -> NO CUMPLE | W58: 9 | X58: ASISTENCIAL | AG58: =AG9*100/$AG$55 -> 0 | AH58: =AH9*100/AG55 -> 0 | AI58: =AI9*100/AI55 -> 0 | AJ58: =AJ9*100/AI55 -> 0 | AK58: =AK9*100/$AK$55 -> 0 | AL58: =AL9*100/AK55 -> 0 | AM58: =AM9*100/AM55 ->  | AN58: =AN9*100/AM55 ->  | AO58: =AO9*100/$AO$55 -> 42.85714286 | AP58: =AP9*100/AO55 -> 0 | AQ58: =AQ9*100/AQ55 ->  | AR58: =AR9*100/AQ55 ->  | AS58: =AS9*100/$AG$55 -> 0 | AT58: =AT9*100/AS55 -> 0 | AU58: =AU9*100/AU55 -> 0 | AV58: =AV9*100/AU55 -> 0
A59: =X62 -> APOYO TERAPEUTICO | C59: =TalentoHumano!$AH$62*30/100/100 -> 0 | F59: =TalentoHumano!$AG$62*30/100/100 -> 0.05 | G59: =IF(TalentoHumano!$C$59=TalentoHumano!$F$59, "CUMPLE", "NO CUMPLE") -> NO CUMPLE | W59: 10 | X59: CONSULTA EXTERNA | AG59: =AG10*100/AG55 -> 0 | AH59: =AH10*100/AG55 -> 0 | AI59: =AI10*100/AI55 -> 0 | AJ59: =AJ10*100/AI55 -> 0 | AK59: =AK10*100/AK55 -> 0 | AL59: =AL10*100/AK55 -> 0 | AM59: =AM10*100/AM55 ->  | AN59: =AN10*100/AM55 ->  | AO59: =AO10*100/AO55 -> 42.85714286 | AP59: =AP10*100/AO55 -> 0 | AQ59: =AQ10*100/AQ55 ->  | AR59: =AR10*100/AQ55 ->  | AS59: =AS10*100/AS55 -> 0 | AT59: =AT10*100/AS55 -> 0 | AU59: =AU10*100/AU55 -> 0 | AV59: =AV10*100/AU55 -> 0
A60: =X63 -> DOTACIÓN DE MEDICAMENTOS Y DISPOSITIVOS MÉDICOS | D60: =TalentoHumano!$AH$63*30/100/100 -> 0 | F60: =TalentoHumano!$AG$63*30/100/100 -> 0.05 | G60: =IF(TalentoHumano!$D$60=TalentoHumano!$F$60, "CUMPLE", "NO CUMPLE") -> NO CUMPLE | W60: 16 | X60: ASISTENCIALES: | AG60: =AG16*100/AG55 -> 0 | AH60: =AH16*100/AG55 -> 0 | AI60: =AI16*100/AI55 -> 0 | AJ60: =AJ16*100/AI55 -> 0 | AK60: =AK16*100/AK55 -> 0 | AL60: =AL16*100/AK55 -> 0 | AM60: =AM16*100/AM55 ->  | AN60: =AN16*100/AM55 ->  | AO60: =AO16*100/AO55 -> 14.28571429 | AP60: =AP16*100/AO55 -> 0 | AQ60: =AQ16*100/AQ55 ->  | AR60: =AR16*100/AQ55 ->  | AS60: =AS16*100/AS55 -> 50 | AT60: =AT16*100/AS55 -> 0 | AU60: =AU16*100/AU55 -> 50 | AV60: =AV16*100/AU55 -> 0
A61: =X66 -> ADMINISTRATIVO | C61: =TalentoHumano!$AH$66*30/100/100 -> 0 | F61: =TalentoHumano!$AG$66*30/100/100 -> 0.05 | G61: =IF(TalentoHumano!$C$61=TalentoHumano!$F$61, "CUMPLE", "NO CUMPLE") -> NO CUMPLE | W61: 17 | X61: INTERNACIÓN /RESIDENCIA | AG61: =AG17*100/AG55 -> 0 | AH61: =AH17*100/AG55 -> 0 | AI61: =AI17*100/AI55 -> 0 | AJ61: =AJ17*100/AI55 -> 0 | AK61: =AK17*100/AK55 -> 0 | AL61: =AL17*100/AK55 -> 0 | AM61: =AM17*100/AM55 ->  | AN61: =AN17*100/AM55 ->  | AO61: =AO17*100/AO55 -> 14.28571429 | AP61: =AP17*100/AO55 -> 0 | AQ61: =AQ17*100/AQ55 ->  | AR61: =AR17*100/AQ55 ->  | AS61: =AS17*100/AS55 -> 50 | AT61: =AT17*100/AS55 -> 0 | AU61: =AU17*100/AU55 -> 50 | AV61: =AV17*100/AU55 -> 0
A62: ADMINISTRACIÓN TECNICA | D62: =TalentoHumano!$AH$67*30/100/100 -> 0 | F62: =TalentoHumano!$AG$67*30/100/100 -> 0.05 | G62: =IF(TalentoHumano!$D$62=TalentoHumano!$F$62, "CUMPLE", "NO CUMPLE") -> NO CUMPLE | W62: 22 | X62: APOYO TERAPEUTICO | AG62: =AG22*100/AG55 -> 16.66666667 | AH62: =AH22*100/AG55 -> 0 | AI62: =AI22*100/AI55 -> 0 | AJ62: =AJ22*100/AI55 -> 0 | AK62: =AK22*100/AK55 -> 0 | AL62: =AL22*100/AK55 -> 0 | AM62: =AM22*100/AM55 ->  | AN62: =AN22*100/AM55 ->  | AO62: =AO22*100/AO55 -> 14.28571429 | AP62: =AP22*100/AO55 -> 0 | AQ62: =AQ22*100/AQ55 ->  | AR62: =AR22*100/AQ55 ->  | AS62: =AS22*100/AS55 -> 0 | AT62: =AT22*100/AS55 -> 0 | AU62: =AU22*100/AU55 -> 0 | AV62: =AV22*100/AU55 -> 0
A63: APOYO TERAPEÚTICO | C63: =TalentoHumano!$AH$68*30/100/100 -> 0 | F63: =TalentoHumano!$AG$68*30/100/100 -> 0.1 | G63: =IF(TalentoHumano!$C$63=TalentoHumano!$F$63, "CUMPLE", "NO CUMPLE") -> NO CUMPLE | W63: 23 | X63: DOTACIÓN DE MEDICAMENTOS Y DISPOSITIVOS MÉDICOS | AG63: =AG23*100/AG55 -> 16.66666667 | AH63: =AH23*100/AG55 -> 0 | AI63: =AI23*100/AI55 -> 0 | AJ63: =AJ23*100/AI55 -> 0 | AK63: =AK23*100/AK55 -> 0 | AL63: =AL23*100/AK55 -> 0 | AM63: =AM23*100/AM55 ->  | AN63: =AN23*100/AM55 ->  | AO63: =AO23*100/AO55 -> 14.28571429 | AP63: =AP23*100/AO55 -> 0 | AQ63: =AQ23*100/AQ55 ->  | AR63: =AR23*100/AQ55 ->  | AS63: =AS23*100/AS55 -> 0 | AT63: =AT23*100/AS55 -> 0 | AU63: =AU23*100/AU55 -> 0 | AV63: =AV23*100/AU55 -> 0
A64: NUTRICIÓN Y DIETÉTICA | D64: =TalentoHumano!$AH$69*30/100/100 -> 0 | F64: =TalentoHumano!$AG$69*30/100/100 -> 0.1 | G64: =IF(TalentoHumano!$D$64=TalentoHumano!$F$64, "CUMPLE", "NO CUMPLE") -> NO CUMPLE | W64: 29 | X64: APOYO DIAGNÓSTICO Y TERAPEÚTICO | AG64: =AG29*100/AG55 -> 0 | AH64: =AH29*100/AG55 -> 0 | AI64: =AI29*100/AI55 -> 0 | AJ64: =AJ29*100/AI55 -> 0 | AK64: =AK29*100/AK55 -> 0 | AL64: =AL29*100/AK55 -> 0 | AM64: =AM29*100/AM55 ->  | AN64: =AN29*100/AM55 ->  | AO64: =AO29*100/AO55 -> 14.28571429 | AP64: =AP29*100/AO55 -> 0 | AQ64: =AQ29*100/AQ55 ->  | AR64: =AR29*100/AQ55 ->  | AS64: =AS29*100/AS55 -> 50 | AT64: =AT29*100/AS55 -> 0 | AU64: =AU29*100/AU55 -> 50 | AV64: =AV29*100/AU55 -> 0
A65: GENERAL | C65: =TalentoHumano!$AH$70*30/100/100 -> 0 | F65: =TalentoHumano!$AG$70*30/100/100 -> 0.05 | G65: =IF(TalentoHumano!$C$65=TalentoHumano!$F$65, "CUMPLE", "NO CUMPLE") -> NO CUMPLE | W65: 30 | X65: REHABILITACIÓN | AG65: =AG30*100/AG55 -> 0 | AH65: =AH30*100/AG55 -> 0 | AI65: =AI30*100/AI55 -> 0 | AJ65: =AJ30*100/AI55 -> 0 | AK65: =AK30*100/AK55 -> 0 | AL65: =AL30*100/AK55 -> 0 | AM65: =AM30*100/AM55 ->  | AN65: =AN30*100/AM55 ->  | AO65: =AO30*100/AO55 -> 14.28571429 | AP65: =AP30*100/AO55 -> 0 | AQ65: =AQ30*100/AQ55 ->  | AR65: =AR30*100/AQ55 ->  | AS65: =AS30*100/AS55 -> 50 | AT65: =AT30*100/AS55 -> 0 | AU65: =AU30*100/AU55 -> 50 | AV65: =AV30*100/AU55 -> 0
A66: SERVICIOS INTERNOS DE APOYO | D66: =TalentoHumano!$AH$71*30/100/100 -> 0 | F66: =TalentoHumano!$AG$71*30/100/100 -> 0.05 | G66: =IF(TalentoHumano!$D$66=TalentoHumano!$F$66, "CUMPLE", "NO CUMPLE") -> NO CUMPLE | W66: 35 | X66: ADMINISTRATIVO | AG66: =AG35*100/AG55 -> 16.66666667 | AH66: =AH35*100/AG55 -> 0 | AI66: =AI35*100/AI55 -> 0 | AJ66: =AJ35*100/AI55 -> 0 | AK66: =AK35*100/AK55 -> 0 | AL66: =AL35*100/AK55 -> 0 | AM66: =AM35*100/AM55 ->  | AN66: =AN35*100/AM55 ->  | AO66: =AO35*100/AO55 -> 14.28571429 | AP66: =AP35*100/AO55 -> 0 | AQ66: =AQ35*100/AQ55 ->  | AR66: =AR35*100/AQ55 ->  | AS66: =AS35*100/AS55 -> 0 | AT66: =AT35*100/AS55 -> 0 | AU66: =AU35*100/AU55 -> 0 | AV66: =AV35*100/AU55 -> 0
A67: TOTAL REQUERIDO: | F67: 0.3000000119 | G67: =SUM(TalentoHumano!$C$57 : TalentoHumano!C66) -> 0 | W67: 36 | X67: ADMINISTRACIÓN TECNICA | AG67: =AG36*100/AG55 -> 16.66666667 | AH67: =AH36*100/AG55 -> 0 | AI67: =AI36*100/AI55 -> 0 | AJ67: =AJ36*100/AI55 -> 0 | AK67: =AK36*100/AK55 -> 0 | AL67: =AL36*100/AK55 -> 0 | AM67: =AM36*100/AM55 ->  | AN67: =AN36*100/AM55 ->  | AO67: =AO36*100/AO55 -> 14.28571429 | AP67: =AP36*100/AO55 -> 0 | AQ67: =AQ36*100/AQ55 ->  | AR67: =AR36*100/AQ55 ->  | AS67: =AS36*100/AS55 -> 0 | AT67: =AT36*100/AS55 -> 0 | AU67: =AU36*100/AU55 -> 0 | AV67: =AV36*100/AU55 -> 0
A68: ASISTENCIALES: | C68: % Obtenido: | D68: % Obtenido: | E68: % Obtenido: | F68: % A Cumplir: | G68: % Final: | W68: 41 | X68: APOYO TERAPEÚTICO | AG68: =AG41*100/AG55 -> 33.33333333 | AH68: =AH41*100/AG55 -> 0 | AI68: =AI41*100/AI55 -> 50 | AJ68: =AJ41*100/AI55 -> 0 | AK68: =AK41*100/AK55 -> 50 | AL68: =AL41*100/AK55 -> 0 | AM68: =AM41*100/AM55 ->  | AN68: =AN41*100/AM55 ->  | AO68: =AO41*100/AO55 -> 0 | AP68: =AP41*100/AO55 -> 0 | AQ68: =AQ41*100/AQ55 ->  | AR68: =AR41*100/AQ55 ->  | AS68: =AS41*100/AS55 -> 0 | AT68: =AT41*100/AS55 -> 0 | AU68: =AU41*100/AU55 -> 0 | AV68: =AV41*100/AU55 -> 0
A69: =X58 -> ASISTENCIAL | C69: =TalentoHumano!$AP$58*70/100/100 -> 0 | F69: =AO58*70/100/100 -> 0.3 | G69: =IF(TalentoHumano!$C$69=TalentoHumano!$F$69, "CUMPLE", "NO CUMPLE") -> NO CUMPLE | W69: 42 | X69: NUTRICIÓN Y DIETÉTICA | AG69: =AG42*100/AG55 -> 33.33333333 | AH69: =AH42*100/AG55 -> 0 | AI69: =AI42*100/AI55 -> 50 | AJ69: =AJ42*100/AI55 -> 0 | AK69: =AK42*100/AK55 -> 50 | AL69: =AL42*100/AK55 -> 0 | AM69: =AM42*100/AM55 ->  | AN69: =AN42*100/AM55 ->  | AO69: =AO42*100/AO55 -> 0 | AP69: =AP42*100/AO55 -> 0 | AQ69: =AQ42*100/AQ55 ->  | AR69: =AR42*100/AQ55 ->  | AS69: =AS42*100/AS55 -> 0 | AT69: =AT42*100/AS55 -> 0 | AU69: =AU42*100/AU55 -> 0 | AV69: =AV42*100/AU55 -> 0
A70: =TalentoHumano!$X$59 -> CONSULTA EXTERNA | D70: =TalentoHumano!$AP$59*70/100/100 -> 0 | F70: =AO59*70/100/100 -> 0.3 | G70: =IF(TalentoHumano!$D$70=TalentoHumano!$F$70, "CUMPLE", "NO CUMPLE") -> NO CUMPLE | W70: 47 | X70: GENERAL | AG70: =AG47*100/AG55 -> 16.66666667 | AH70: =AH47*100/AG55 -> 0 | AI70: =AI47*100/AI55 -> 50 | AJ70: =AJ47*100/AI55 -> 0 | AK70: =AK47*100/AK55 -> 50 | AL70: =AL47*100/AK55 -> 0 | AM70: =AM47*100/AM55 ->  | AN70: =AN47*100/AM55 ->  | AO70: =AO47*100/AO55 -> 0 | AP70: =AP47*100/AO55 -> 0 | AQ70: =AQ47*100/AQ55 ->  | AR70: =AR47*100/AQ55 ->  | AS70: =AS47*100/AS55 -> 0 | AT70: =AT47*100/AS55 -> 0 | AU70: =AU47*100/AU55 -> 0 | AV70: =AV47*100/AU55 -> 0
A71: =X60 -> ASISTENCIALES: | C71: =TalentoHumano!$AP$60*70/100/100 -> 0 | F71: 0.1 | G71: =IF(TalentoHumano!$C$71=TalentoHumano!$F$71, "CUMPLE", "NO CUMPLE") -> NO CUMPLE | W71: 48 | X71: SERVICIOS INTERNOS DE APOYO | AG71: =AG48*100/AG55 -> 16.66666667 | AH71: =AH48*100/AG55 -> 0 | AI71: =AI48*100/AI55 -> 50 | AJ71: =AJ48*100/AI55 -> 0 | AK71: =AK48*100/AK55 -> 50 | AL71: =AL48*100/AK55 -> 0 | AM71: =AM48*100/AM55 ->  | AN71: =AN48*100/AM55 ->  | AO71: =AO48*100/AO55 -> 0 | AP71: =AP48*100/AO55 -> 0 | AQ71: =AQ48*100/AQ55 ->  | AR71: =AR48*100/AQ55 ->  | AS71: =AS48*100/AS55 -> 0 | AT71: =AT48*100/AS55 -> 0 | AU71: =AU48*100/AU55 -> 0 | AV71: =AV48*100/AU55 -> 0
A72: INTERNACIÓN /RESIDENCIA | D72: =TalentoHumano!$AP$61*70/100/100 -> 0 | F72: 0.1 | G72: =IF(TalentoHumano!$D$72=TalentoHumano!$F$72, "CUMPLE", "NO CUMPLE") -> NO CUMPLE
A73: APOYO TERAPEUTICO | C73: =TalentoHumano!$AP$62*70/100/100 -> 0 | F73: 0.1 | G73: =IF(TalentoHumano!$C$73=TalentoHumano!$F$73, "CUMPLE", "NO CUMPLE") -> NO CUMPLE
A74: DOTACIÓN DE MEDICAMENTOS Y DISPOSITIVOS MÉDICOS | D74: =TalentoHumano!$AP$63*70/100/100 -> 0 | F74: 0.1 | G74: =IF(TalentoHumano!$D$74=TalentoHumano!$F$74, "CUMPLE", "NO CUMPLE") -> NO CUMPLE
A75: APOYO DIAGNÓSTICO Y TERAPEÚTICO | C75: =TalentoHumano!$AP$64*70/100/100 -> 0 | F75: 0.1 | G75: =IF(TalentoHumano!$C$75=TalentoHumano!$F$75, "CUMPLE", "NO CUMPLE") -> NO CUMPLE
A76: REHABILITACIÓN | D76: =TalentoHumano!$AP$65*70/100/100 -> 0 | F76: 0.1 | G76: =IF(TalentoHumano!$D$76=TalentoHumano!$F$76, "CUMPLE", "NO CUMPLE") -> NO CUMPLE
A77: =X68 -> APOYO TERAPEÚTICO | C77: =TalentoHumano!$AP$66*70/100/100 -> 0 | F77: 0.1 | G77: =IF(TalentoHumano!$C$77=TalentoHumano!$F$77, "CUMPLE", "NO CUMPLE") -> NO CUMPLE
A78: =X69 -> NUTRICIÓN Y DIETÉTICA | D78: =TalentoHumano!$AP$67*70/100/100 -> 0 | F78: 0.1 | G78: =IF(TalentoHumano!$D$78=TalentoHumano!$F$78, "CUMPLE", "NO CUMPLE") -> NO CUMPLE
A79: TOTAL REQUERIDO: | F79: 0.6999999881 | G79: =SUM(TalentoHumano!$C$69 : TalentoHumano!$C$78) -> 0
A80: TOTAL ITEMS REQUERIDOS:
A81: TOTAL % REQUERIDO: | F81: 1 | G81: =(G67+G79) -> 0
A83: TOTAL ITEMS CONDICIONADOS +:
A84: ADMINISTRATIVOS: | C84: % Obtenido: | D84: % Obtenido: | E84: % Obtenido: | F84: % A Cumplir: | G84: % Final:
A85: =X68 -> APOYO TERAPEÚTICO | C85: =AJ68*70/100/100 -> 0 | F85: =AI68*70/100/100 -> 0.35 | G85: =IF(C85=F85, "CUMPLE", "NO CUMPLE") -> NO CUMPLE
A86: =X69 -> NUTRICIÓN Y DIETÉTICA | D86: =AJ69*70/100/100 -> 0 | F86: =AI69*70/100/100 -> 0.35 | G86: =IF(D86=F86, "CUMPLE", "NO CUMPLE") -> NO CUMPLE
A87: =X70 -> GENERAL | C87: =AJ70*70/100/100 -> 0 | F87: =AI70*70/100/100 -> 0.35 | G87: =IF(C87=F87, "CUMPLE", "NO CUMPLE") -> NO CUMPLE
A88: =X71 -> SERVICIOS INTERNOS DE APOYO | D88: =AJ71*70/100/100 -> 0 | F88: =AI71*70/100/100 -> 0.35 | G88: =IF(D88=F88, "CUMPLE", "NO CUMPLE") -> NO CUMPLE
A89: TOTAL % CONDICIONADO: | F89: 0.7 | G89: =SUM(C85:C88) -> 0
A90: ASISTENCIALES: | C90: % Obtenido: | D90: % Obtenido: | E90: % Obtenido: | F90: % A Cumplir: | G90: % Final:
A91: ASISTENCIALES: | C91: =AT60*30/100/100 -> 0 | F91: =AS60*30/100/100 -> 0.15 | G91: =IF(C91=F91, "CUMPLE", "NO CUMPLE") -> NO CUMPLE
A92: INTERNACIÓN /RESIDENCIA | D92: =AT61*30/100/100 -> 0 | F92: =AS61*30/100/100 -> 0.15 | G92: =IF(D92=F92, "CUMPLE", "NO CUMPLE") -> NO CUMPLE
A93: APOYO DIAGNÓSTICO Y TERAPEÚTICO | C93: =AT64*30/100/100 -> 0 | F93: =AS64*30/100/100 -> 0.15 | G93: =IF(C93=F93, "CUMPLE", "NO CUMPLE") -> NO CUMPLE
A94: REHABILITACIÓN | D94: =AT65*30/100/100 -> 0 | F94: =AS65*30/100/100 -> 0.15 | G94: =IF(D94=F94, "CUMPLE", "NO CUMPLE") -> NO CUMPLE
A95: TOTAL % CONDICIONADO: | F95: 0.35 | G95: =SUM(C91:C94) -> 0
A96: TOTAL % CONDICIONADO +: | F96: 1 | G96: =G89+G95 -> 0
A97: TOTAL ITEMS CONDICIONADOS -:
A98: ADMINISTRATIVOS: | C98: % Obtenido: | D98: % Obtenido: | E98: % Obtenido: | F98: % A Cumplir: | G98: % Final:
A99: APOYO TERAPEÚTICO | C99: =-AL68*70/100/100 -> 0 | F99: =-AK68*70/100/100 -> -0.35 | G99: =IF(C99=F99, "CUMPLE", "NO CUMPLE") -> NO CUMPLE
A100: NUTRICIÓN Y DIETÉTICA | D100: =-AL69*70/100/100 -> 0 | F100: =-AK69*70/100/100 -> -0.35 | G100: =IF(D100=F100, "CUMPLE", "NO CUMPLE") -> NO CUMPLE
A101: GENERAL | C101: =-AL70*70/100/100 -> 0 | F101: =-AK70*70/100/100 -> -0.35 | G101: =IF(C101=F101, "CUMPLE", "NO CUMPLE") -> NO CUMPLE
A102: SERVICIOS INTERNOS DE APOYO | D102: =-AL71*70/100/100 -> 0 | F102: =-AK71*70/100/100 -> -0.35 | G102: =IF(D102=F102, "CUMPLE", "NO CUMPLE") -> NO CUMPLE
A103: TOTAL % CONDICIONADO: | F103: 0.7 | G103: =SUM(C99:C102) -> 0
A104: ASISTENCIALES: | C104: % Obtenido: | D104: % Obtenido: | E104: % Obtenido: | F104: % A Cumplir: | G104: % Final:
A105: ASISTENCIALES: | C105: =-AV60*30/100/100 -> 0 | F105: =-AU60*30/100/100 -> -0.15 | G105: =IF(C105=F105, "CUMPLE", "NO CUMPLE") -> NO CUMPLE
A106: INTERNACIÓN /RESIDENCIA | D106: =-AV61*30/100/100 -> 0 | F106: =-AU61*30/100/100 -> -0.15 | G106: =IF(D106=F106, "CUMPLE", "NO CUMPLE") -> NO CUMPLE
A107: APOYO DIAGNÓSTICO Y TERAPEÚTICO | C107: =-AV64*30/100/100 -> 0 | F107: =-AU64*30/100/100 -> -0.15 | G107: =IF(C107=F107, "CUMPLE", "NO CUMPLE") -> NO CUMPLE
A108: REHABILITACIÓN | D108: =-AV65*30/100/100 -> 0 | F108: =-AU65*30/100/100 -> -0.15 | G108: =IF(D108=F108, "CUMPLE", "NO CUMPLE") -> NO CUMPLE
A109: TOTAL % CONDICIONADO: | F109: 0.3 | G109: =SUM(C105:C108) -> 0
A110: TOTAL ITEMS CONDICIONADOS:
A111: TOTAL % CONDICIONADO: | F111: 0.3 | G111: =(G103+G109) -> 0
A114: TOTALES COMPONENTE:
A115: TOTAL % REQUERIDO: | F115: 0.35 | G115: =(G81)*0.35 -> 0
A116: TOTAL % CONDICIÓN: | F116: 0.35 | G116: =(G96+G111)*0.35 -> 0
A117: TOTAL % DESEABLE: | F117: 0.35 | G117: 0.35

Sheet Reportes
A5: MATRIZ DE LICENCIAMIENTO:
A6: CALIFICACIÓN POR SERVICIOS
A7: =Menu!A5 -> CENTRO ESPECIALIZADO EN TRATAMIENTO PARA PERSONAS CON CONSUMO PROBLEMÁTICO DE ALCOHOL Y OTRAS DROGAS (CETADS)
A8: ENTIDAD DEL SISTEMA: | D8: Pública
A9: NOMBRE UNIDAD OPERATIVA:
A10: UNICODIGO:
A11: REGION: | D11: SIERRA
A12: PROVINCIA: | D12: TUNGURAHUA
A13: CANTON: | D13: MOCHA
A14: PARROQUIA:
A15: DISTRIBUCIÓN ZONAL SENPLADES: | D15: 1
A16: DIRECCIÓN:
A17: AREA/DISTRITO:
A18: RESPRESENTANTE LEGAL / CORREO ELECTRÓNICO UNIDAD OPERATIVA: | D18: /
A19: FECHA:
A20: TELÉFONO:
A21: COMPONENTES: | B21: INFRAESTRUCTURA | E21: EQUIPAMIENTO | H21: NORMA | K21: TALENTO HUMANO | N21: CALIFICACIÓN POR SERVICIO
B22: REQUERIDOS | D22: TOTAL | E22: REQUERIDOS | G22: TOTAL | H22: REQUERIDOS | J22: TOTAL | K22: REQUERIDOS | M22: TOTAL
A23: PORCENTAJES SERVICIOS | B23: % A CUMPLIR | C23: % OBTENIDO | D23: % CALIFICACIÓN | E23: % A CUMPLIR | F23: % OBTENIDO | G23: % CALIFICACIÓN | H23: % A CUMPLIR | I23: % OBTENIDO | J23: % CALIFICACIÓN | K23: % A CUMPLIR | L23: % OBTENIDO | M23: % CALIFICACIÓN | N23: % ÍNDICE GLOBAL DE LICENCIAMIENTO POR SERVICIO | O23: CALIFICACIÓN POR SERVICIO
A24: ADMINISTRATIVO | B24: =(Infraestructura!F183*85) -> 2.361111111 | C24: =(Infraestructura!C183*85) -> 0 | D24: =(C24*100/B24)*0.3 -> 0 | E24: =(Equipamiento!F430+Equipamiento!F475)*85 -> 2.859656532 | F24: =(Equipamiento!C430+Equipamiento!C475)*85 -> 0 | G24: =(F24*100/E24)*0.3 -> 0 | H24: =(Norma!F273*85) -> 6.538461538 | I24: =(Norma!C273*85)*1 -> 0 | J24: =(I24*100/H24)*0.05 -> 0 | K24: =TalentoHumano!F57*85*1 -> 4.25 | L24: =TalentoHumano!C57*85*1 -> 0 | M24: =(L24*100/K24)*0.35 -> 0 | N24: =(D24+G24+J24+M24)*0.85/100*1 -> 0 | O24: =IF(N24<0.7, "NO LICENCIA", IF(N24<0.85,"LICENCIA CONDICIONADA", IF(N24<=1, "SI LICENCIA", ""))) -> NO LICENCIA
A25: ADMISIÓN Y ESTADÍSTICA | B25: =Infraestructura!F184*85 -> 2.361111111 | C25: =Infraestructura!D184*85*1 -> 0 | D25: =(C25*100/B25)*0.3 -> 0 | E25: =(Equipamiento!F431+Equipamiento!F476)*85 -> 2.859656532 | F25: =(Equipamiento!D431+Equipamiento!D476)*85 -> 0 | G25: =(F25*100/E25)*0.3 -> 0 | H25: =(Norma!F274*85)*1 -> 6.538461538 | I25: =(Norma!D274*85)*1 -> 0 | J25: =(I25*100/H25)*0.05 -> 0 | K25: =TalentoHumano!F58*85*1 -> 4.25 | L25: =TalentoHumano!D58*85*1 -> 0 | M25: =(L25*100/K25)*0.35 -> 0 | N25: 0
A26: ASISTENCIAL | B26: =(Infraestructura!F186*85) -> 7.083333333 | C26: =(Infraestructura!C186*85)*1 -> 0 | D26: =(C26*100/B26)*0.3 -> 0 | E26: =(Equipamiento!F433+Equipamiento!F461+Equipamiento!F478+Equipamiento!F505)*85 -> 33.48476481 | F26: =(Equipamiento!C433+Equipamiento!C461+Equipamiento!C478+Equipamiento!C505)*85 -> 0 | G26: =(F26*100/E26)*0.3 -> 0 | H26: =(Norma!F276*85)*1 -> 29.17159763 | I26: =(Norma!C276*85)*1 -> 0 | J26: =(I26*100/H26)*0.05 -> 0 | K26: =TalentoHumano!F69*85*1 -> 25.5 | L26: =TalentoHumano!C69*85*1 -> 0 | M26: =(L26*100/K26)*0.35 -> 0 | N26: 0 | O26: =IF(N26<0.7, "NO LICENCIA", IF(N26<0.85,"LICENCIA CONDICIONADA", IF(N26<=1, "SI LICENCIA", ""))) -> NO LICENCIA
A27: CONSULTA EXTERNA | B27: =(Infraestructura!F187*85) -> 7.083333333 | C27: =(Infraestructura!D187*85)*1 -> 0 | D27: =(C27*100/B27)*0.3 -> 0 | E27: =(Equipamiento!F434+Equipamiento!F462+Equipamiento!F479+Equipamiento!F506)*85 -> 33.48476481 | F27: =(Equipamiento!D434+Equipamiento!D462+Equipamiento!D479+Equipamiento!D506)*85 -> 0 | G27: =(F27*100/E27)*0.3 -> 0 | H27: =(Norma!F277*85)*1 -> 29.17159763 | I27: =(Norma!D277*85)*1 -> 0 | J27: 0 | K27: =TalentoHumano!F70*85*1 -> 25.5 | L27: =TalentoHumano!D70*85*1 -> 0 | M27: 0 | N27: 0
A28: ASISTENCIAL | B28: =(Infraestructura!F189*85)*1 -> 8.263888889 | C28: =(Infraestructura!C189*85)*1 -> 0 | D28: 0 | E28: =(Equipamiento!F436+Equipamiento!F481)*85 -> 6.173986486 | F28: =(Equipamiento!C436+Equipamiento!C481)*85 -> 0 | G28: =(F28*100/E28)*0.3 -> 0 | H28: =(Norma!F278*85)*1 -> 12.07100592 | I28: =(Norma!C278*85)*1 -> 0 | J28: 0 | K28: =TalentoHumano!F71*85*1 -> 8.5 | L28: =TalentoHumano!C71*85*1 -> 0 | M28: 0 | N28: 0 | O28: =IF(N28<0.7, "NO LICENCIA", IF(N28<0.85,"LICENCIA CONDICIONADA", IF(N28<=1, "SI LICENCIA", ""))) -> NO LICENCIA
A29: INTERNACIÓN /RESIDENCIA | B29: =(Infraestructura!F190*85)*1 -> 8.263888889 | C29: =(Infraestructura!D190*85)*1 -> 0 | D29: 0 | E29: =(Equipamiento!F437+Equipamiento!F482)*85 -> 6.173986486 | F29: =(Equipamiento!D437+Equipamiento!D482)*85 -> 0 | G29: =(F29*100/E29)*0.3 -> 0 | H29: =(Norma!F279*85)*1 -> 12.07100592 | I29: =(Norma!D279*85)*1 -> 0 | J29: =(I29*100/H29)*0.05 -> 0 | K29: =TalentoHumano!F72*85*1 -> 8.5 | L29: =TalentoHumano!D72*85*1 -> 0 | M29: 0 | N29: 0
A30: APOYO TERAPEUTICO | B30: =(Infraestructura!F193*85)*1 -> 2.361111111 | C30: =(Infraestructura!C193*85)*1 -> 0 | D30: 0 | E30: =(Equipamiento!F440+Equipamiento!F486)*85 -> 4.570664414 | F30: =(Equipamiento!C440+Equipamiento!C486)*85 -> 0 | G30: 0 | H30: =(Norma!F280*85)*1 -> 6.538461538 | I30: =(Norma!C280*85)*1 -> 0 | J30: 0 | K30: =(TalentoHumano!F59+TalentoHumano!F73)*85*1 -> 12.75 | L30: =(TalentoHumano!C59+TalentoHumano!C73)*85*1 -> 0 | M30: 0 | N30: 0 | O30: =IF(N30<0.7, "NO LICENCIA", IF(N30<0.85,"LICENCIA CONDICIONADA", IF(N30<=1, "SI LICENCIA", ""))) -> NO LICENCIA
A31: DOTACIÓN DE MEDICAMENTOS Y DISPOSITIVOS MÉDICOS | B31: =(Infraestructura!F194*85)*1 -> 2.361111111 | C31: =(Infraestructura!D194*85)*1 -> 0 | D31: 0 | E31: =(Equipamiento!F441+Equipamiento!F487)*85 -> 4.570664414 | F31: =(Equipamiento!D441+Equipamiento!D487)*85 -> 0 | G31: 0 | H31: =(Norma!F281*85)*1 -> 6.538461538 | I31: =(Norma!D281*85)*1 -> 0 | J31: 0 | K31: =(TalentoHumano!F60+TalentoHumano!F74)*85*1 -> 12.75 | L31: =(TalentoHumano!D60+TalentoHumano!D74)*85*1 -> 0 | M31: 0 | N31: 0
A32: APOYO DIAGNÓSTICO Y TERAPEÚTICO | B32: =(Infraestructura!F196*85)*1 -> 2.361111111 | C32: =(Infraestructura!C196*85)*1 -> 0 | D32: 0 | E32: =(Equipamiento!F443+Equipamiento!F464+Equipamiento!F489+Equipamiento!F508)*85 -> 16.54127685 | F32: =(Equipamiento!C443+Equipamiento!C464+Equipamiento!C489+Equipamiento!C508)*85 -> 0 | G32: 0 | H32: =(Norma!F282*85)*1 -> 0.5029585799 | I32: =Norma!C282*85*1 -> 0 | J32: 0 | K32: =TalentoHumano!F75*85*1 -> 8.5 | L32: =TalentoHumano!C75*85*1 -> 0 | M32: 0 | N32: 0 | O32: =IF(N32<0.7, "NO LICENCIA", IF(N32<0.85,"LICENCIA CONDICIONADA", IF(N32<=1, "SI LICENCIA", ""))) -> NO LICENCIA
A33: REHABILITACIÓN | B33: =(Infraestructura!F197*85)*1 -> 2.361111111 | C33: =(Infraestructura!D197*85)*1 -> 0 | D33: 0 | E33: =(Equipamiento!F444+Equipamiento!F465+Equipamiento!F490+Equipamiento!F509)*85 -> 16.54127685 | F33: =(Equipamiento!D444+Equipamiento!D465+Equipamiento!D490+Equipamiento!D509)*85 -> 0 | G33: 0 | H33: =(Norma!F283*85)*1 -> 0.5029585799 | I33: =Norma!D283*85*1 -> 0 | J33: 0 | K33: =TalentoHumano!F76*85*1 -> 8.5 | L33: =TalentoHumano!D76*85*1 -> 0 | M33: 0 | N33: 0
A34: APOYO TERAPEÚTICO | B34: =(Infraestructura!F199*85)*1 -> 8.263888889 | C34: =(Infraestructura!C199*85)*1 -> 0 | D34: 0 | E34: =(Equipamiento!F446+Equipamiento!F467+Equipamiento!F492)*85 -> 11.78561374 | F34: =(Equipamiento!C446+Equipamiento!C467+Equipamiento!C492)*85 -> 0 | G34: 0 | H34: =(Norma!F284*85)*1 -> 6.035502959 | I34: =Norma!C284*85*1 -> 0 | J34: 0 | K34: =(TalentoHumano!F77+TalentoHumano!F63)*85*1 -> 17 | L34: =(TalentoHumano!C77+TalentoHumano!C63)*85*1 -> 0 | M34: 0 | N34: 0 | O34: =IF(N34<0.7, "NO LICENCIA", IF(N34<0.85,"LICENCIA CONDICIONADA", IF(N34<=1, "SI LICENCIA", ""))) -> NO LICENCIA
A35: NUTRICIÓN Y DIETÉTICA | B35: =(Infraestructura!F200*85)*1 -> 8.263888889 | C35: =(Infraestructura!D200*85)*1 -> 0 | D35: 0 | E35: =(Equipamiento!F447+Equipamiento!F468+Equipamiento!F493)*85 -> 11.78561374 | F35: =(Equipamiento!D447+Equipamiento!D468+Equipamiento!D493)*85 -> 0 | G35: 0 | H35: =(Norma!F285*85)*1 -> 6.035502959 | I35: =Norma!D285*85*1 -> 0 | J35: 0 | K35: =(TalentoHumano!F78+TalentoHumano!F64)*85*1 -> 17 | L35: =(TalentoHumano!D78+TalentoHumano!D64)*85*1 -> 0 | M35: 0 | N35: 0
